Workbook

Sheet District
Y1: Do Not | AF1: Aberdeen
F2: District Name | G2: ABERDEEN | K2: <- Please select distrtict from this drop-down | X2: <<- Please Select District From Drop Down | Y2: Change | AF2: Brewster
F3: CCDDD | G3: =VLOOKUP(G2,CCDDD!B:C,2,0) -> 14005 | K3: 2021-22 | M3: 2020-21 | O3: 2011-12 | Q3: 2010-11 | S3: 2009-10 | U3: 2008-09 | W3: 2007-08 | AF3: Bridgeport
V4: %% | AF4: Burlington
H5: Prelim 2025-2026 | I5: % of PY | J5: Final 25-26 | K5: Final 2021-22 | L5: % of PY | M5: Final 2020-21 | O5: Prelim 2011-12 | P5: % of PY | Q5: Final 2010-11 | R5: % of PY | S5: Final 2009-10 | T5: % of PY | U5: Final 2008-09 | V5: of Prior Year | W5: 2007-08 | AF5: Cascade
F6: Regular Allocation | AF6: Cashmere
B7: 2 | F7: K-12 Migrant Students | G7: Average Number | H7: =IFERROR(VLOOKUP($G$3,'2026-27 Final'!$B$19:$AA$162,4,0),0) -> 159 | I7: =H7/J7 -> 0.9520958084 | J7: =IFERROR(VLOOKUP($G$3,'2025-26 Final'!$B$19:$AA$164,4,0),0) -> 167 | K7: 338 | L7: =IFERROR(K7/M7-1,0) -> 0.1304347826 | M7: 299 | O7: =VLOOKUP($G$2,#REF!,$B7,FALSE) ->  | P7: =IF(Q7=0,0,O7/Q7) ->  | Q7: =VLOOKUP($G$2,#REF!,$B7,FALSE) ->  | R7: =IF(S7>0,Q7/S7,"-") ->  | S7: =VLOOKUP($G$2,#REF!,$B7,FALSE) ->  | T7: =IF(U7>0,S7/U7,"-") ->  | U7: =VLOOKUP($G$2,#REF!,$B7,FALSE) ->  | V7: =IF(W7>0,U7/W7,"-") ->  | W7: =VLOOKUP($G$2,#REF!,$B7,FALSE) ->  | Y7: 1 | Z7: 3 | AF7: Centralia
B8: 3 | G8: Regular Dollars | H8: =IFERROR(VLOOKUP($G$3,'2026-27 Final'!$B$19:$AA$162,5,0),0) -> 78380 | I8: 0.9992733021 | J8: =IFERROR(VLOOKUP($G$3,'2025-26 Final'!$B$19:$AA$164,5,0),0) -> 78437 | K8: 159039 | L8: 0.3281029487 | M8: 119749 | O8: =VLOOKUP($G$2,#REF!,$B8,FALSE) ->  | Q8: =VLOOKUP($G$2,#REF!,$B8,FALSE) ->  | R8: =IF(S8>0,Q8/S8,"-") ->  | S8: =VLOOKUP($G$2,#REF!,$B8,FALSE) ->  | T8: =IF(U8>0,S8/U8,"-") ->  | U8: =VLOOKUP($G$2,#REF!,$B8,FALSE) ->  | W8: =VLOOKUP($G$2,#REF!,$B8,FALSE) ->  | Y8: 2 | Z8: 3 | AF8: College Place
B9: 4 | F9: Needs Support | G9: Average Number | H9: =IFERROR(VLOOKUP($G$3,'2026-27 Final'!$B$19:$AA$162,6,0),0) -> 64 | I9: 2.133333333 | J9: =IFERROR(VLOOKUP($G$3,'2025-26 Final'!$B$19:$AA$1646,6,0),0) -> 30 | K9: 59 | L9: -0.01666666667 | M9: 60 | O9: =VLOOKUP($G$2,#REF!,$B9,FALSE) ->  | P9: =IF(Q9=0,0,O9/Q9) ->  | Q9: =VLOOKUP($G$2,#REF!,$B9,FALSE) ->  | S9: =VLOOKUP($G$2,#REF!,$B9,FALSE) ->  | U9: =VLOOKUP($G$2,#REF!,$B9,FALSE) ->  | W9: =VLOOKUP($G$2,#REF!,$B9,FALSE) ->  | Y9: 1 | Z9: 4 | AF9: Columbia
B10: 5 | G10: Regular Dollars | H10: =IFERROR(VLOOKUP($G$3,'2026-27 Final'!$B$19:$AA$162,7,0),0) -> 7887 | I10: 2.238717003 | J10: =IFERROR(VLOOKUP($G$3,'2025-26 Final'!$B$19:$AA$164,7,0),0) -> 3523 | K10: 6940 | L10: 0.1553187947 | M10: 6007 | O10: =VLOOKUP($G$2,#REF!,$B10,FALSE) ->  | P10: =IF(Q10=0,0,O10/Q10) ->  | Q10: =VLOOKUP($G$2,#REF!,$B10,FALSE) ->  | S10: =VLOOKUP($G$2,#REF!,$B10,FALSE) ->  | U10: =VLOOKUP($G$2,#REF!,$B10,FALSE) ->  | W10: =VLOOKUP($G$2,#REF!,$B10,FALSE) ->  | Y10: 2 | Z10: 4 | AF10: Conway
B11: 6 | F11: Priority Interruption | G11: Priority Number | H11: =IFERROR(VLOOKUP($G$3,'2026-27 Final'!$B$19:$AA$162,8,0),0) -> 41 | I11: 0.5 | J11: =IFERROR(VLOOKUP($G$3,'2025-26 Final'!$B$19:$AA$164,8,0),0) -> 82 | K11: 108 | L11: 0.1368421053 | M11: 95 | O11: =VLOOKUP($G$2,#REF!,$B11,FALSE) ->  | Q11: =VLOOKUP($G$2,#REF!,$B11,FALSE) ->  | S11: =VLOOKUP($G$2,#REF!,$B11,FALSE) ->  | U11: =VLOOKUP($G$2,#REF!,$B11,FALSE) ->  | W11: =VLOOKUP($G$2,#REF!,$B11,FALSE) ->  | Y11: 1 | Z11: 5 | AF11: East Valley
B12: 7 | G12: Priority Dollars | H12: =IFERROR(VLOOKUP($G$3,'2026-27 Final'!$B$19:$AA$162,9,0),0) -> 20211 | I12: 0.5247702134 | J12: =IFERROR(VLOOKUP($G$3,'2025-26 Final'!$B$19:$AA$164,9,0),0) -> 38514 | K12: 50817 | L12: 0.335637501 | M12: 38047 | O12: =VLOOKUP($G$2,#REF!,$B12,FALSE) ->  | Q12: =VLOOKUP($G$2,#REF!,$B12,FALSE) ->  | S12: =VLOOKUP($G$2,#REF!,$B12,FALSE) ->  | U12: =VLOOKUP($G$2,#REF!,$B12,FALSE) ->  | W12: =VLOOKUP($G$2,#REF!,$B12,FALSE) ->  | Y12: 3 | Z12: 5 | AF12: Eastmont
B13: 8 | C13: Grades 1-5 | F13: Top 1/4 | G13: Attendance | H13: 78867 | I13: 1 | J13: 78867 | L13: =K13/M13-1 ->  | Q13: =VLOOKUP($G$2,#REF!,$B13,FALSE) ->  | S13: =VLOOKUP($G$2,#REF!,$B13,FALSE) ->  | U13: =VLOOKUP($G$2,#REF!,$B13,FALSE) ->  | W13: =VLOOKUP($G$2,#REF!,$B13,FALSE) ->  | Y13: 1 | Z13: 6 | AF13: Ellensburg
B14: 9 | G14: Dollars | H14: 78867 | I14: 1 | J14: 78867 | Q14: =VLOOKUP($G$2,#REF!,$B14,FALSE) ->  | S14: =VLOOKUP($G$2,#REF!,$B14,FALSE) ->  | U14: =VLOOKUP($G$2,#REF!,$B14,FALSE) ->  | W14: =VLOOKUP($G$2,#REF!,$B14,FALSE) ->  | Y14: 4 | Z14: 6 | AF14: Entiat
B15: 10 | F15: middle 2/4 | G15: Attendance | H15: 78867 | I15: 1 | J15: 78867 | Q15: =VLOOKUP($G$2,#REF!,$B15,FALSE) ->  | S15: =VLOOKUP($G$2,#REF!,$B15,FALSE) ->  | U15: =VLOOKUP($G$2,#REF!,$B15,FALSE) ->  | W15: =VLOOKUP($G$2,#REF!,$B15,FALSE) ->  | Y15: 1 | Z15: 7 | AF15: Ephrata
B16: 11 | G16: Dollars | H16: 78867 | I16: 1 | J16: 78867 | Q16: =VLOOKUP($G$2,#REF!,$B16,FALSE) ->  | S16: =VLOOKUP($G$2,#REF!,$B16,FALSE) ->  | U16: =VLOOKUP($G$2,#REF!,$B16,FALSE) ->  | W16: =VLOOKUP($G$2,#REF!,$B16,FALSE) ->  | Y16: 4 | Z16: 7 | AF16: Ferndale
B17: 12 | C17: Grades 6-8 | F17: Top 1/4 | G17: Attendance | H17: 78867 | I17: 1 | J17: 78867 | Q17: =VLOOKUP($G$2,#REF!,$B17,FALSE) ->  | S17: =VLOOKUP($G$2,#REF!,$B17,FALSE) ->  | U17: =VLOOKUP($G$2,#REF!,$B17,FALSE) ->  | W17: =VLOOKUP($G$2,#REF!,$B17,FALSE) ->  | Y17: 1 | Z17: 8 | AF17: Finley
B18: 13 | G18: Dollars | H18: 78867 | I18: 1 | J18: 78867 | Q18: =VLOOKUP($G$2,#REF!,$B18,FALSE) ->  | S18: =VLOOKUP($G$2,#REF!,$B18,FALSE) ->  | U18: =VLOOKUP($G$2,#REF!,$B18,FALSE) ->  | W18: =VLOOKUP($G$2,#REF!,$B18,FALSE) ->  | Y18: 4 | Z18: 8 | AF18: Goldendale
B19: 14 | F19: middle 2/4 | G19: Attendance | H19: 78867 | I19: 1 | J19: 78867 | Q19: =VLOOKUP($G$2,#REF!,$B19,FALSE) ->  | S19: =VLOOKUP($G$2,#REF!,$B19,FALSE) ->  | U19: =VLOOKUP($G$2,#REF!,$B19,FALSE) ->  | W19: =VLOOKUP($G$2,#REF!,$B19,FALSE) ->  | Y19: 1 | Z19: 9 | AF19: Grandview
B20: 15 | G20: Dollars | H20: 78867 | I20: 1 | J20: 78867 | Q20: =VLOOKUP($G$2,#REF!,$B20,FALSE) ->  | S20: =VLOOKUP($G$2,#REF!,$B20,FALSE) ->  | U20: =VLOOKUP($G$2,#REF!,$B20,FALSE) ->  | W20: =VLOOKUP($G$2,#REF!,$B20,FALSE) ->  | Y20: 4 | Z20: 9 | AF20: Granger
B21: 16 | C21: Grades 9-12 | F21: Top 1/4 | G21: Attendance | H21: 78867 | I21: 1 | J21: 78867 | Q21: =VLOOKUP($G$2,#REF!,$B21,FALSE) ->  | S21: =VLOOKUP($G$2,#REF!,$B21,FALSE) ->  | U21: =VLOOKUP($G$2,#REF!,$B21,FALSE) ->  | W21: =VLOOKUP($G$2,#REF!,$B21,FALSE) ->  | Y21: 1 | Z21: 10 | AF21: Highland
B22: 17 | G22: Dollars | H22: 78867 | I22: 1 | J22: 78867 | Q22: =VLOOKUP($G$2,#REF!,$B22,FALSE) ->  | S22: =VLOOKUP($G$2,#REF!,$B22,FALSE) ->  | U22: =VLOOKUP($G$2,#REF!,$B22,FALSE) ->  | W22: =VLOOKUP($G$2,#REF!,$B22,FALSE) ->  | Y22: 4 | Z22: 10 | AF22: Hoquiam
B23: 18 | F23: middle 2/4 | G23: Attendance | H23: 78867 | I23: 1 | J23: 78867 | Q23: =VLOOKUP($G$2,#REF!,$B23,FALSE) ->  | S23: =VLOOKUP($G$2,#REF!,$B23,FALSE) ->  | U23: =VLOOKUP($G$2,#REF!,$B23,FALSE) ->  | W23: =VLOOKUP($G$2,#REF!,$B23,FALSE) ->  | Y23: 1 | Z23: 11 | AF23: Kennewick
B24: 19 | G24: Dollars | H24: 78867 | I24: 1 | J24: 78867 | Q24: =VLOOKUP($G$2,#REF!,$B24,FALSE) ->  | S24: =VLOOKUP($G$2,#REF!,$B24,FALSE) ->  | U24: =VLOOKUP($G$2,#REF!,$B24,FALSE) ->  | W24: =VLOOKUP($G$2,#REF!,$B24,FALSE) ->  | Y24: 4 | Z24: 11 | AF24: Kiona Benton
B26: 20 | G26: Subtotal Dollars | H26: =IFERROR(VLOOKUP($G$3,'2026-27 Final'!$B$19:$AA$162,10,0),0) -> 106478 | I26: =H26/J26 -> 0.8838255557 | J26: =IFERROR(VLOOKUP($G$3,'2025-26 Final'!$B$19:$AA$164,10,0),0) -> 120474 | K26: 216796 | L26: =IFERROR(K26/M26-1,0) -> 0.3235166633 | M26: 163803 | O26: =VLOOKUP($G$2,#REF!,8,FALSE) ->  | Q26: =VLOOKUP($G$2,#REF!,$B26,FALSE) ->  | S26: =VLOOKUP($G$2,#REF!,$B26,FALSE) ->  | U26: =VLOOKUP($G$2,#REF!,$B26,FALSE) ->  | W26: =VLOOKUP($G$2,#REF!,$B26,FALSE) ->  | AF26: La Conner
B28: 21 | F28: Other Fund Factor | H28: =IFERROR(VLOOKUP($G$3,'2026-27 Final'!$B$19:$AA$162,11,0),0) -> 1 | J28: =IFERROR(VLOOKUP($G$3,'2025-26 Final'!$B$19:$AA$164,11,0),0) -> 0.95 | K28: 0.95 | L28: =IFERROR(K28/M28-1,0) -> 0 | M28: 0.95 | O28: N/A | Q28: =VLOOKUP($G$2,#REF!,$B28,FALSE) ->  | S28: =VLOOKUP($G$2,#REF!,$B28,FALSE) ->  | U28: =VLOOKUP($G$2,#REF!,$B28,FALSE) ->  | W28: =VLOOKUP($G$2,#REF!,$B28,FALSE) ->  | Y28: 1 | Z28: 12 | AF28: Lake Chelan
B29: 22 | F29: Rural Factor | H29: =IFERROR(VLOOKUP($G$3,'2026-27 Final'!$B$19:$AA$162,13,0),0) -> 1.1 | J29: =IFERROR(VLOOKUP($G$3,'2025-26 Final'!$B$19:$AA$164,13,0),0) -> 1 | K29: 1 | L29: =IFERROR(K29/M29-1,0) -> 0 | M29: 1 | Q29: =VLOOKUP($G$2,#REF!,$B29,FALSE) ->  | S29: =VLOOKUP($G$2,#REF!,$B29,FALSE) ->  | U29: =VLOOKUP($G$2,#REF!,$B29,FALSE) ->  | W29: =VLOOKUP($G$2,#REF!,$B29,FALSE) ->  | Y29: 2 | Z29: 12 | AF29: Lake Quinault
B30: 23 | G30: Total Allocated Amount | H30: =IFERROR(VLOOKUP($G$3,'2026-27 Final'!$B$19:$AA$162,18,0),0) -> 117126 | I30: =H30/J30 -> 1.023381389 | J30: =IFERROR(VLOOKUP($G$3,'2025-26 Final'!$B$19:$AA$164,18,0),0) -> 114450 | K30: 205956 | L30: =IFERROR(K30/M30-1,0) -> 0.3235141023 | M30: 155613 | O30: =VLOOKUP($G$2,#REF!,9,FALSE) ->  | P30: =IF(Q30=0,0,O30/Q30) ->  | Q30: =VLOOKUP($G$2,#REF!,$B30,FALSE) ->  | S30: =VLOOKUP($G$2,#REF!,$B30,FALSE) ->  | U30: =VLOOKUP($G$2,#REF!,$B30,FALSE) ->  | W30: =VLOOKUP($G$2,#REF!,$B30,FALSE) ->  | Y30: 25 | AF30: Lind
O31: =IF(VLOOKUP($G$3,#REF!,15,FALSE)="Y","Not participating","") ->  | Q31: =IF(VLOOKUP($G$3,#REF!,29,FALSE)="Y","Not participating","") ->  | AF31: Lynden
F32: Summer Allocation | AF32: Mabton
F33: Allocation Factors | G33: Total Student | M33: 299 | Q33: =IF(ISNA(VLOOKUP($G$2,#REF!,Y33,FALSE)),0,VLOOKUP($G$2,#REF!,Y33,FALSE)) ->  | S33: =IF(ISNA(VLOOKUP($G$2,#REF!,AA33,FALSE)),0,VLOOKUP($G$2,#REF!,AA33,FALSE)) ->  | U33: =IF(ISNA(VLOOKUP($G$2,#REF!,$Y$33,FALSE)),0,VLOOKUP($G$2,#REF!,$Y$33,FALSE)) ->  | W33: =IF(ISNA(VLOOKUP($G$2,#REF!,AA33,FALSE)),0,VLOOKUP($G$2,#REF!,AA33,FALSE)) ->  | Y33: 2 | AA33: 2 | AF33: Manson
G34: Needs Service | M34: 60 | Q34: =IF(ISNA(VLOOKUP($G$2,#REF!,$AA$34,FALSE)),0,VLOOKUP($G$2,#REF!,$AA$34,FALSE)) ->  | S34: =IF(ISNA(VLOOKUP($G$2,#REF!,$AA$34,FALSE)),0,VLOOKUP($G$2,#REF!,$AA$34,FALSE)) ->  | U34: =IF(ISNA(VLOOKUP($G$2,#REF!,$Y$34,FALSE)),0,VLOOKUP($G$2,#REF!,$Y$34,FALSE)) ->  | W34: =IF(ISNA(VLOOKUP($G$2,#REF!,AA34,FALSE)),0,VLOOKUP($G$2,#REF!,AA34,FALSE)) ->  | Y34: 3 | AA34: 3 | AF34: Monroe
G35: Priority | M35: 95 | Q35: =IF(ISNA(VLOOKUP($G$2,#REF!,$AA$35,FALSE)),0,VLOOKUP($G$2,#REF!,$AA$35,FALSE)) ->  | S35: =IF(ISNA(VLOOKUP($G$2,#REF!,$AA$35,FALSE)),0,VLOOKUP($G$2,#REF!,$AA$35,FALSE)) ->  | U35: =IF(ISNA(VLOOKUP($G$2,#REF!,$Y$35,FALSE)),0,VLOOKUP($G$2,#REF!,$Y$35,FALSE)) ->  | W35: =IF(ISNA(VLOOKUP($G$2,#REF!,AA35,FALSE)),0,VLOOKUP($G$2,#REF!,AA35,FALSE)) ->  | Y35: 4 | AA35: 4 | AF35: Moses Lake
F36: Dollars | M36: 21049 | Q36: =IF(ISNA(VLOOKUP($G$2,#REF!,$AA$36,FALSE)),0,VLOOKUP($G$2,#REF!,$AA$36,FALSE)) ->  | S36: =IF(ISNA(VLOOKUP($G$2,#REF!,$AA$36,FALSE)),0,VLOOKUP($G$2,#REF!,$AA$36,FALSE)) ->  | U36: =IF(ISNA(VLOOKUP($G$2,#REF!,$Y$36,FALSE)),0,VLOOKUP($G$2,#REF!,$Y$36,FALSE)) ->  | W36: =IF(ISNA(VLOOKUP($G$2,#REF!,AA36,FALSE)),0,VLOOKUP($G$2,#REF!,AA36,FALSE)) ->  | Y36: 5 | AA36: 5 | AF36: Mossyrock
Q37: =IF(ISNA(VLOOKUP($G$2,#REF!,$AA$37,FALSE)),0,VLOOKUP($G$2,#REF!,$AA$37,FALSE)) ->  | S37: =IF(ISNA(VLOOKUP($G$2,#REF!,$AA$37,FALSE)),0,VLOOKUP($G$2,#REF!,$AA$37,FALSE)) ->  | U37: =IF(ISNA(VLOOKUP($G$2,#REF!,$Y$37,FALSE)),0,VLOOKUP($G$2,#REF!,$Y$37,FALSE)) ->  | W37: =IF(ISNA(VLOOKUP($G$2,#REF!,AA37,FALSE)),0,VLOOKUP($G$2,#REF!,AA37,FALSE)) ->  | Y37: 6 | AA37: 6 | AF37: Mount Vernon
F38: SY 26-27 Health Support Grant | H38: =IFERROR(VLOOKUP($G$3,'2026-27 Final'!$B$19:$AA$162,24,0),0) -> 1250 | J38: =IFERROR(VLOOKUP($G$3,'2025-26 Final'!$B$19:$AA$164,24,0),0) -> 1250 | K38: 2500 | Q38: =IF(ISNA(VLOOKUP($G$2,#REF!,$AA$38,FALSE)),0,VLOOKUP($G$2,#REF!,$AA$38,FALSE)) ->  | S38: =IF(ISNA(VLOOKUP($G$2,#REF!,$AA$38,FALSE)),0,VLOOKUP($G$2,#REF!,$AA$38,FALSE)) ->  | U38: =IF(ISNA(VLOOKUP($G$2,#REF!,$Y$38,FALSE)),0,VLOOKUP($G$2,#REF!,$Y$38,FALSE)) ->  | W38: =IF(ISNA(VLOOKUP($G$2,#REF!,AA38,FALSE)),0,VLOOKUP($G$2,#REF!,AA38,FALSE)) ->  | Y38: 7 | AA38: 7 | AF38: Mt Adams
G39: Total Allocated Amount | H39: =H38+H30 -> 118376 | I39: =H39/J39 -> 1.023128781 | J39: =J38+J30 -> 115700 | K39: =K38+K30 -> 208456 | Q39: =IF(ISNA(VLOOKUP($G$2,#REF!,$AA$39,FALSE)),0,VLOOKUP($G$2,#REF!,$AA$39,FALSE)) ->  | S39: =IF(ISNA(VLOOKUP($G$2,#REF!,$AA$39,FALSE)),0,VLOOKUP($G$2,#REF!,$AA$39,FALSE)) ->  | U39: =IF(ISNA(VLOOKUP($G$2,#REF!,$Y$39,FALSE)),0,VLOOKUP($G$2,#REF!,$Y$39,FALSE)) ->  | V39: =IF(W39>0,U39/W39,"-") ->  | W39: =IF(ISNA(VLOOKUP($G$2,#REF!,AA39,FALSE)),0,VLOOKUP($G$2,#REF!,AA39,FALSE)) ->  | Y39: 8 | AA39: 8 | AF39: Naches
AF40: Naselle-Grays River
AF41: Nooksack Valley
AF42: North Franklin
AF43: Ocean Beach
AF44: Ocosta
AF45: Okanogan
AF46: Omak
AF47: Orondo
AF48: Oroville
AF49: Othello
AF50: Palisades
AF51: Pasco
AF52: Pateros
AF53: Paterson
AF54: Prosser
AF55: Quillayute Valley
AF56: Quincy
AF57: Rochester
AF58: Roosevelt
AF59: Royal City
AF60: Seattle
AF61: Sedro Woolley
AF62: Shelton
AF63: Soap Lake
AF64: South Bend
AF65: Sunnyside
AF66: Tacoma
AF67: Tonasket
AF68: Toppenish
AF69: Touchet
AF70: Union Gap
AF71: Vancouver
AF72: Wahkiakum
AF73: Wahluke
AF74: Walla Walla
AF75: Wapato
AF76: Warden
AF77: Waterville
AF78: Wenatchee
AF79: West Valley
AF80: White Salmon
AF81: Winlock
AF82: Yakima
AF83: Zillah

Sheet 2026-27 Final
J1: From Assumptions Page:
D2: Constant Dollar Multipliers - Do Not Change Here | J2: Target Amounts | O2: =Assumptions!C24 -> 20923716
D3: 0 | F3: 2.036969198e+66 | G3: 492.9546545 | H3: Use CTRL K | J3: Actual Amounts | O3: =O18 -> 20923716
J4: Difference | O4: =O3-O2 -> 0
H7: Put total here | J7: =Assumptions!C24 -> 20923716
J10: Go to H9 & Control K to set dollar amount
E14: Migrant Students | V14: Accepting Funding? | X14: HOLD HARMLESS
D15: =G3 -> 492.9546545 | E15: K-12 | G15: Needs Support | I15: Priority Interuption
C16: CCDDD | D16: District | E16: Ave. number | F16: Regular Dollars | G16: Ave. number | H16: Regular Dollars | I16: Priority Number | J16: Priority Dollars | K16: Subtotal | L16: Other Funds Factor | M16: Subtotal 2 | N16: Add'l Rural Factor | O16: Total Allocated Amount | Q16: MOE | R16: MOE Red. | S16: Subtotal After MOE | V16: Y for yes, N for no (reallocates money) | X16: Override funding? Y for yes, otherwise blank. | Y16: Health Support Grant | Z16: Behavioral Health Supports | AA16: Total
E17: 10 | F17: =F18/E18 -> 492.9547374 | G17: 0.25 | H17: =H18/G18 -> 125.3960323 | I17: 1 | J17: =J18/I18 -> 503.3765826 | N17: 0.1 | O17: 124
A18: 0 | C18: 99999 | D18: State Total | E18: =SUMIF(E19:E162,">-10") -> 29605 | F18: =SUM(F19:F162) -> 14593925 | G18: =SUMIF(G19:G162,">=10") -> 9426 | H18: =SUM(H19:H162) -> 1181983 | I18: =SUMIF(I19:I162,">=10") -> 8609 | J18: =SUM(J19:J162) -> 4333569 | K18: =SUM(K19:K162) -> 20109477 | M18: =SUM(M19:M162) -> 21172573 | O18: =SUM(O19:O162) -> 20923716 | R18: =SUM(R19:R150) -> 0 | S18: =SUM(S19:S162) -> 20923716 | T18: Previous Year Final Allocations | U18: Allocation Difference | W18: Consortia | Y18: =SUM(Y19:Y162) -> 98500 | Z18: =SUM(Z19:Z162) -> 125662 | AA18: =SUM(AA19:AA162) -> 20792513
A19: 1 | B19: 14005 | D19: ABERDEEN | E19: =IFERROR(VLOOKUP(B19,Enrollment!$A$2:$G$146,5,0),0) -> 159 | F19: =IF(E19>=10,ROUND(E19*$G$3,0),0) -> 78380 | G19: =IFERROR(VLOOKUP(B19,Enrollment!$A$2:$G$146,6,0),0) -> 64 | H19: =IF(E19>=$E$17,ROUND(G19*$G$3*$G$17,0),0) -> 7887 | I19: =IFERROR(VLOOKUP(B19,Enrollment!$A$2:$G$146,7,0),0) -> 41 | J19: =IF(E19>=$E$17,ROUND(I19*$G$3*$I$17,0),0) -> 20211 | K19: =+F19+H19+J19 -> 106478 | L19: =IF(E19>$E$17,_xlfn.IFNA(VLOOKUP(B19,'other funds ftr 2026'!A:I,9,FALSE),0),1) -> 1 | M19: =IF(L19=0,K19,ROUND(K19*L19,0)) -> 106478 | N19: =1+IF(ISNA(VLOOKUP(B19,'Rural and Low Income 26-27'!$A$1:$B$132,2,FALSE)),0,$N$17) -> 1.1 | O19: =IF(V19="y",ROUND(M19*N19,0),0) -> 117126 | R19: =ROUND(IF(Q19>0,-(0.9-Q19)*O19,0),0) -> 0 | S19: =O19+R19 -> 117126 | T19: =IFERROR(VLOOKUP(B19,'2025-26 Final'!$B$19:$AA$164,26,0),0) -> 115700 | U19: =S19-T19 -> 1426 | V19: y | Y19: =IF(V19="Y",IF(E19<=99,750,IF(AND(E19>=100,E19<=399),1250,2000)),0) -> 1250 | AA19: =IF(W19=1, 0, Y19+S19+Z19) -> 118376
A20: 2 | B20: 29103 | D20: ANACORTES | E20: =IFERROR(VLOOKUP(B20,Enrollment!$A$2:$G$146,5,0),0) -> 0 | F20: =IF(E20>=10,ROUND(E20*$G$3,0),0) -> 0 | G20: =IFERROR(VLOOKUP(B20,Enrollment!$A$2:$G$146,6,0),0) -> 0 | H20: =IF(E20>=$E$17,ROUND(G20*$G$3*$G$17,0),0) -> 0 | I20: =IFERROR(VLOOKUP(B20,Enrollment!$A$2:$G$146,7,0),0) -> 0 | J20: =IF(E20>=$E$17,ROUND(I20*$G$3*$I$17,0),0) -> 0 | K20: 0 | L20: =IF(E20>$E$17,_xlfn.IFNA(VLOOKUP(B20,'other funds ftr 2026'!A:I,9,FALSE),0),1) -> 1 | M20: 0 | N20: =1+IF(ISNA(VLOOKUP(B20,'Rural and Low Income 26-27'!$A$1:$B$132,2,FALSE)),0,$N$17) -> 1 | O20: 0 | R20: 0 | S20: 0 | T20: =IFERROR(VLOOKUP(B20,'2025-26 Final'!$B$19:$AA$164,26,0),0) -> 0 | U20: 0 | V20: n | Y20: =IF(V20="Y",IF(E20<=99,750,IF(AND(E20>=100,E20<=399),1250,2000)),0) -> 0 | AA20: =IF(W20=1, 0, Y20+S20+Z20) -> 0
A21: 3 | B21: 31016 | D21: ARLINGTON | E21: =IFERROR(VLOOKUP(B21,Enrollment!$A$2:$G$146,5,0),0) -> 39 | F21: 19225 | G21: =IFERROR(VLOOKUP(B21,Enrollment!$A$2:$G$146,6,0),0) -> 22 | H21: 2711 | I21: =IFERROR(VLOOKUP(B21,Enrollment!$A$2:$G$146,7,0),0) -> 7 | J21: 3451 | K21: 25387 | L21: =IF(E21>$E$17,_xlfn.IFNA(VLOOKUP(B21,'other funds ftr 2026'!A:I,9,FALSE),0),1) -> 0 | M21: 25387 | N21: =1+IF(ISNA(VLOOKUP(B21,'Rural and Low Income 26-27'!$A$1:$B$132,2,FALSE)),0,$N$17) -> 1 | O21: 0 | R21: 0 | S21: 0 | T21: =IFERROR(VLOOKUP(B21,'2025-26 Final'!$B$19:$AA$164,26,0),0) -> 0 | U21: 0 | V21: n | Y21: 0 | AA21: 0
A22: 4 | B22: 17408 | D22: AUBURN | E22: =IFERROR(VLOOKUP(B22,Enrollment!$A$2:$G$146,5,0),0) -> 23 | F22: 11338 | G22: =IFERROR(VLOOKUP(B22,Enrollment!$A$2:$G$146,6,0),0) -> 9 | H22: 1109 | I22: =IFERROR(VLOOKUP(B22,Enrollment!$A$2:$G$146,7,0),0) -> 6 | J22: 2958 | K22: 15405 | L22: =IF(E22>$E$17,_xlfn.IFNA(VLOOKUP(B22,'other funds ftr 2026'!A:I,9,FALSE),0),1) -> 0 | M22: 15405 | N22: =1+IF(ISNA(VLOOKUP(B22,'Rural and Low Income 26-27'!$A$1:$B$132,2,FALSE)),0,$N$17) -> 1 | O22: 0 | R22: 0 | S22: 0 | T22: =IFERROR(VLOOKUP(B22,'2025-26 Final'!$B$19:$AA$164,26,0),0) -> 0 | U22: 0 | V22: n | Y22: 0 | AA22: 0
A23: 5 | B23: 06119 | D23: BATTLE GROUND | E23: =IFERROR(VLOOKUP(B23,Enrollment!$A$2:$G$146,5,0),0) -> 12 | F23: 5915 | G23: =IFERROR(VLOOKUP(B23,Enrollment!$A$2:$G$146,6,0),0) -> 7 | H23: 863 | I23: =IFERROR(VLOOKUP(B23,Enrollment!$A$2:$G$146,7,0),0) -> 0 | J23: 0 | K23: 6778 | L23: =IF(E23>$E$17,_xlfn.IFNA(VLOOKUP(B23,'other funds ftr 2026'!A:I,9,FALSE),0),1) -> 0 | M23: 6778 | N23: =1+IF(ISNA(VLOOKUP(B23,'Rural and Low Income 26-27'!$A$1:$B$132,2,FALSE)),0,$N$17) -> 1 | O23: 0 | R23: 0 | S23: 0 | T23: =IFERROR(VLOOKUP(B23,'2025-26 Final'!$B$19:$AA$164,26,0),0) -> 0 | U23: 0 | V23: n | Y23: 0 | AA23: 0
A24: 6 | B24: 37501 | D24: BELLINGHAM | E24: =IFERROR(VLOOKUP(B24,Enrollment!$A$2:$G$146,5,0),0) -> 72 | F24: 35493 | G24: =IFERROR(VLOOKUP(B24,Enrollment!$A$2:$G$146,6,0),0) -> 26 | H24: 3204 | I24: =IFERROR(VLOOKUP(B24,Enrollment!$A$2:$G$146,7,0),0) -> 23 | J24: 11338 | K24: 50035 | L24: =IF(E24>$E$17,_xlfn.IFNA(VLOOKUP(B24,'other funds ftr 2026'!A:I,9,FALSE),0),1) -> 0 | M24: 50035 | N24: =1+IF(ISNA(VLOOKUP(B24,'Rural and Low Income 26-27'!$A$1:$B$132,2,FALSE)),0,$N$17) -> 1 | O24: 50035 | R24: 0 | S24: 50035 | T24: =IFERROR(VLOOKUP(B24,'2025-26 Final'!$B$19:$AA$164,26,0),0) -> 0 | U24: 50035 | V24: y | Y24: 750 | AA24: 50785
A25: 7 | B25: 27403 | D25: BETHEL | E25: =IFERROR(VLOOKUP(B25,Enrollment!$A$2:$G$146,5,0),0) -> 10 | F25: 4930 | G25: =IFERROR(VLOOKUP(B25,Enrollment!$A$2:$G$146,6,0),0) -> 6 | H25: 739 | I25: =IFERROR(VLOOKUP(B25,Enrollment!$A$2:$G$146,7,0),0) -> 0 | J25: 0 | K25: 5669 | L25: =IF(E25>$E$17,_xlfn.IFNA(VLOOKUP(B25,'other funds ftr 2026'!A:I,9,FALSE),0),1) -> 1 | M25: 5669 | N25: =1+IF(ISNA(VLOOKUP(B25,'Rural and Low Income 26-27'!$A$1:$B$132,2,FALSE)),0,$N$17) -> 1 | O25: 0 | R25: 0 | S25: 0 | T25: =IFERROR(VLOOKUP(B25,'2025-26 Final'!$B$19:$AA$164,26,0),0) -> 0 | U25: 0 | V25: n | Y25: 0 | AA25: 0
A26: 8 | B26: 18100 | D26: BREMERTON | E26: =IFERROR(VLOOKUP(B26,Enrollment!$A$2:$G$146,5,0),0) -> 30 | F26: 14789 | G26: =IFERROR(VLOOKUP(B26,Enrollment!$A$2:$G$146,6,0),0) -> 24 | H26: 2958 | I26: =IFERROR(VLOOKUP(B26,Enrollment!$A$2:$G$146,7,0),0) -> 1 | J26: 493 | K26: 18240 | L26: =IF(E26>$E$17,_xlfn.IFNA(VLOOKUP(B26,'other funds ftr 2026'!A:I,9,FALSE),0),1) -> 0.95 | M26: 17328 | N26: =1+IF(ISNA(VLOOKUP(B26,'Rural and Low Income 26-27'!$A$1:$B$132,2,FALSE)),0,$N$17) -> 1 | O26: 17328 | R26: 0 | S26: 17328 | T26: =IFERROR(VLOOKUP(B26,'2025-26 Final'!$B$19:$AA$164,26,0),0) -> 33099 | U26: -15771 | V26: y | Y26: 750 | AA26: 18078
A27: 9 | B27: 24111 | D27: BREWSTER | E27: =IFERROR(VLOOKUP(B27,Enrollment!$A$2:$G$146,5,0),0) -> 224 | F27: 110422 | G27: =IFERROR(VLOOKUP(B27,Enrollment!$A$2:$G$146,6,0),0) -> 69 | H27: 8503 | I27: =IFERROR(VLOOKUP(B27,Enrollment!$A$2:$G$146,7,0),0) -> 58 | J27: 28591 | K27: 147516 | L27: =IF(E27>$E$17,_xlfn.IFNA(VLOOKUP(B27,'other funds ftr 2026'!A:I,9,FALSE),0),1) -> 1.05 | M27: 154892 | N27: =1+IF(ISNA(VLOOKUP(B27,'Rural and Low Income 26-27'!$A$1:$B$132,2,FALSE)),0,$N$17) -> 1.1 | O27: 170381 | R27: 0 | S27: 170381 | T27: =IFERROR(VLOOKUP(B27,'2025-26 Final'!$B$19:$AA$164,26,0),0) -> 173353 | U27: -2972 | V27: y | Y27: 1250 | AA27: 171631
A28: 10 | B28: 09075 | D28: BRIDGEPORT | E28: =IFERROR(VLOOKUP(B28,Enrollment!$A$2:$G$146,5,0),0) -> 152 | F28: 74929 | G28: =IFERROR(VLOOKUP(B28,Enrollment!$A$2:$G$146,6,0),0) -> 59 | H28: 7271 | I28: =IFERROR(VLOOKUP(B28,Enrollment!$A$2:$G$146,7,0),0) -> 28 | J28: 13803 | K28: 96003 | L28: =IF(E28>$E$17,_xlfn.IFNA(VLOOKUP(B28,'other funds ftr 2026'!A:I,9,FALSE),0),1) -> 1.05 | M28: 100803 | N28: =1+IF(ISNA(VLOOKUP(B28,'Rural and Low Income 26-27'!$A$1:$B$132,2,FALSE)),0,$N$17) -> 1 | O28: 100803 | R28: 0 | S28: 100803 | T28: =IFERROR(VLOOKUP(B28,'2025-26 Final'!$B$19:$AA$164,26,0),0) -> 119305 | U28: -18502 | V28: y | Y28: 1250 | AA28: 102053
A29: 11 | B29: 29100 | D29: BURLINGTON-EDISON | E29: =IFERROR(VLOOKUP(B29,Enrollment!$A$2:$G$146,5,0),0) -> 520 | F29: 256336 | G29: =IFERROR(VLOOKUP(B29,Enrollment!$A$2:$G$146,6,0),0) -> 208 | H29: 25634 | I29: =IFERROR(VLOOKUP(B29,Enrollment!$A$2:$G$146,7,0),0) -> 97 | J29: 47817 | K29: 329787 | L29: =IF(E29>$E$17,_xlfn.IFNA(VLOOKUP(B29,'other funds ftr 2026'!A:I,9,FALSE),0),1) -> 1.05 | M29: 346276 | N29: =1+IF(ISNA(VLOOKUP(B29,'Rural and Low Income 26-27'!$A$1:$B$132,2,FALSE)),0,$N$17) -> 1 | O29: 346276 | R29: 0 | S29: 346276 | T29: =IFERROR(VLOOKUP(B29,'2025-26 Final'!$B$19:$AA$164,26,0),0) -> 359421 | U29: -13145 | V29: y | Y29: 2000 | AA29: 348276
A30: 12 | B30: 04228 | D30: CASCADE | E30: =IFERROR(VLOOKUP(B30,Enrollment!$A$2:$G$146,5,0),0) -> 54 | F30: 26620 | G30: =IFERROR(VLOOKUP(B30,Enrollment!$A$2:$G$146,6,0),0) -> 12 | H30: 1479 | I30: =IFERROR(VLOOKUP(B30,Enrollment!$A$2:$G$146,7,0),0) -> 8 | J30: 3944 | K30: 32043 | L30: =IF(E30>$E$17,_xlfn.IFNA(VLOOKUP(B30,'other funds ftr 2026'!A:I,9,FALSE),0),1) -> 1 | M30: 32043 | N30: =1+IF(ISNA(VLOOKUP(B30,'Rural and Low Income 26-27'!$A$1:$B$132,2,FALSE)),0,$N$17) -> 1 | O30: 32043 | R30: 0 | S30: 32043 | T30: =IFERROR(VLOOKUP(B30,'2025-26 Final'!$B$19:$AA$164,26,0),0) -> 32335 | U30: -292 | V30: y | Y30: 750 | AA30: 32793
A31: 14 | B31: 04222 | D31: CASHMERE | E31: =IFERROR(VLOOKUP(B31,Enrollment!$A$2:$G$146,5,0),0) -> 165 | F31: 81338 | G31: =IFERROR(VLOOKUP(B31,Enrollment!$A$2:$G$146,6,0),0) -> 48 | H31: 5915 | I31: =IFERROR(VLOOKUP(B31,Enrollment!$A$2:$G$146,7,0),0) -> 3 | J31: 1479 | K31: 88732 | L31: =IF(E31>$E$17,_xlfn.IFNA(VLOOKUP(B31,'other funds ftr 2026'!A:I,9,FALSE),0),1) -> 1.05 | M31: 93169 | N31: =1+IF(ISNA(VLOOKUP(B31,'Rural and Low Income 26-27'!$A$1:$B$132,2,FALSE)),0,$N$17) -> 1 | O31: 93169 | R31: 0 | S31: 93169 | T31: =IFERROR(VLOOKUP(B31,'2025-26 Final'!$B$19:$AA$164,26,0),0) -> 103805 | U31: -10636 | V31: y | Y31: 1250 | AA31: 94419
A32: 13 | B32: 18401 | D32: CENTRAL KITSAP | E32: =IFERROR(VLOOKUP(B32,Enrollment!$A$2:$G$146,5,0),0) -> 13 | F32: 6408 | G32: =IFERROR(VLOOKUP(B32,Enrollment!$A$2:$G$146,6,0),0) -> 6 | H32: 739 | I32: =IFERROR(VLOOKUP(B32,Enrollment!$A$2:$G$146,7,0),0) -> 5 | J32: 2465 | K32: 9612 | L32: =IF(E32>$E$17,_xlfn.IFNA(VLOOKUP(B32,'other funds ftr 2026'!A:I,9,FALSE),0),1) -> 0 | M32: 9612 | N32: =1+IF(ISNA(VLOOKUP(B32,'Rural and Low Income 26-27'!$A$1:$B$132,2,FALSE)),0,$N$17) -> 1 | O32: 0 | R32: =ROUND(IF(Q32>0,-(0.9-Q32)*O32,0),0) -> 0 | S32: 0 | T32: =IFERROR(VLOOKUP(B32,'2025-26 Final'!$B$19:$AA$164,26,0),0) -> 0 | U32: 0 | V32: n | Y32: 0 | AA32: 0
A33: 15 | B33: 32356 | D33: CENTRAL VALLEY | E33: =IFERROR(VLOOKUP(B33,Enrollment!$A$2:$G$146,5,0),0) -> 12 | F33: 5915 | G33: =IFERROR(VLOOKUP(B33,Enrollment!$A$2:$G$146,6,0),0) -> 10 | H33: 1232 | I33: =IFERROR(VLOOKUP(B33,Enrollment!$A$2:$G$146,7,0),0) -> 2 | J33: 986 | K33: 8133 | L33: =IF(E33>$E$17,_xlfn.IFNA(VLOOKUP(B33,'other funds ftr 2026'!A:I,9,FALSE),0),1) -> 0 | M33: 8133 | N33: =1+IF(ISNA(VLOOKUP(B33,'Rural and Low Income 26-27'!$A$1:$B$132,2,FALSE)),0,$N$17) -> 1 | O33: 0 | R33: =ROUND(IF(Q33>0,-(0.9-Q33)*O33,0),0) -> 0 | S33: 0 | T33: =IFERROR(VLOOKUP(B33,'2025-26 Final'!$B$19:$AA$164,26,0),0) -> 0 | U33: 0 | V33: n | Y33: 0 | AA33: 0
A34: 16 | B34: 21401 | D34: CENTRALIA | E34: =IFERROR(VLOOKUP(B34,Enrollment!$A$2:$G$146,5,0),0) -> 80 | F34: 39436 | G34: =IFERROR(VLOOKUP(B34,Enrollment!$A$2:$G$146,6,0),0) -> 16 | H34: 1972 | I34: =IFERROR(VLOOKUP(B34,Enrollment!$A$2:$G$146,7,0),0) -> 26 | J34: 12817 | K34: 54225 | L34: =IF(E34>$E$17,_xlfn.IFNA(VLOOKUP(B34,'other funds ftr 2026'!A:I,9,FALSE),0),1) -> 0.95 | M34: 51514 | N34: =1+IF(ISNA(VLOOKUP(B34,'Rural and Low Income 26-27'!$A$1:$B$132,2,FALSE)),0,$N$17) -> 1 | O34: 51514 | R34: =ROUND(IF(Q34>0,-(0.9-Q34)*O34,0),0) -> 0 | S34: 51514 | T34: =IFERROR(VLOOKUP(B34,'2025-26 Final'!$B$19:$AA$164,26,0),0) -> 62661 | U34: -11147 | V34: y | X34: Y | Y34: 750 | AA34: 52264
A35: 17 | B35: 21302 | D35: CHEHALIS | E35: =IFERROR(VLOOKUP(B35,Enrollment!$A$2:$G$146,5,0),0) -> 24 | F35: 11831 | G35: =IFERROR(VLOOKUP(B35,Enrollment!$A$2:$G$146,6,0),0) -> 11 | H35: 1356 | I35: =IFERROR(VLOOKUP(B35,Enrollment!$A$2:$G$146,7,0),0) -> 6 | J35: 2958 | K35: 16145 | L35: =IF(E35>$E$17,_xlfn.IFNA(VLOOKUP(B35,'other funds ftr 2026'!A:I,9,FALSE),0),1) -> 0.95 | M35: 15338 | N35: =1+IF(ISNA(VLOOKUP(B35,'Rural and Low Income 26-27'!$A$1:$B$132,2,FALSE)),0,$N$17) -> 1 | O35: 15338 | R35: 0 | S35: 15338 | T35: =IFERROR(VLOOKUP(B35,'2025-26 Final'!$B$19:$AA$164,26,0),0) -> 19602 | U35: -4264 | V35: y | Y35: 750 | AA35: 16088
A36: 18 | B36: 32360 | D36: CHENEY | E36: =IFERROR(VLOOKUP(B36,Enrollment!$A$2:$G$146,5,0),0) -> 10 | F36: 4930 | G36: =IFERROR(VLOOKUP(B36,Enrollment!$A$2:$G$146,6,0),0) -> 7 | H36: 863 | I36: =IFERROR(VLOOKUP(B36,Enrollment!$A$2:$G$146,7,0),0) -> 0 | J36: 0 | K36: 5793 | L36: =IF(E36>$E$17,_xlfn.IFNA(VLOOKUP(B36,'other funds ftr 2026'!A:I,9,FALSE),0),1) -> 1 | M36: 5793 | N36: =1+IF(ISNA(VLOOKUP(B36,'Rural and Low Income 26-27'!$A$1:$B$132,2,FALSE)),0,$N$17) -> 1 | O36: 0 | R36: =ROUND(IF(Q36>0,-(0.9-Q36)*O36,0),0) -> 0 | S36: 0 | T36: =IFERROR(VLOOKUP(B36,'2025-26 Final'!$B$19:$AA$164,26,0),0) -> 0 | U36: 0 | V36: n | X36: Y | Y36: 0 | AA36: 0
A37: 19 | B37: 27901 | D37: CHIEF LESCHI TRIBAL COMPACT | E37: =IFERROR(VLOOKUP(B37,Enrollment!$A$2:$G$146,5,0),0) -> 24 | F37: 11831 | G37: =IFERROR(VLOOKUP(B37,Enrollment!$A$2:$G$146,6,0),0) -> 16 | H37: 1972 | I37: =IFERROR(VLOOKUP(B37,Enrollment!$A$2:$G$146,7,0),0) -> 1 | J37: 493 | K37: 14296 | L37: =IF(E37>$E$17,_xlfn.IFNA(VLOOKUP(B37,'other funds ftr 2026'!A:I,9,FALSE),0),1) -> 0 | M37: 14296 | N37: =1+IF(ISNA(VLOOKUP(B37,'Rural and Low Income 26-27'!$A$1:$B$132,2,FALSE)),0,$N$17) -> 1 | O37: 0 | R37: 0 | S37: 0 | T37: =IFERROR(VLOOKUP(B37,'2025-26 Final'!$B$19:$AA$164,26,0),0) -> 0 | U37: 0 | V37: n | Y37: 0 | AA37: 0 | AB37: NEW
A38: 20 | B38: 27400 | D38: CLOVER PARK | E38: =IFERROR(VLOOKUP(B38,Enrollment!$A$2:$G$146,5,0),0) -> 15 | F38: 7394 | G38: =IFERROR(VLOOKUP(B38,Enrollment!$A$2:$G$146,6,0),0) -> 5 | H38: 616 | I38: =IFERROR(VLOOKUP(B38,Enrollment!$A$2:$G$146,7,0),0) -> 3 | J38: 1479 | K38: 9489 | L38: =IF(E38>$E$17,_xlfn.IFNA(VLOOKUP(B38,'other funds ftr 2026'!A:I,9,FALSE),0),1) -> 0 | M38: 9489 | N38: =1+IF(ISNA(VLOOKUP(B38,'Rural and Low Income 26-27'!$A$1:$B$132,2,FALSE)),0,$N$17) -> 1 | O38: 9489 | R38: 0 | S38: 9489 | T38: =IFERROR(VLOOKUP(B38,'2025-26 Final'!$B$19:$AA$164,26,0),0) -> 0 | U38: 9489 | V38: y | Y38: 750 | AA38: 10239
A39: 21 | B39: 36250 | D39: COLLEGE PLACE | E39: =IFERROR(VLOOKUP(B39,Enrollment!$A$2:$G$146,5,0),0) -> 199 | F39: 98098 | G39: =IFERROR(VLOOKUP(B39,Enrollment!$A$2:$G$146,6,0),0) -> 70 | H39: 8627 | I39: =IFERROR(VLOOKUP(B39,Enrollment!$A$2:$G$146,7,0),0) -> 55 | J39: 27113 | K39: 133838 | L39: =IF(E39>$E$17,_xlfn.IFNA(VLOOKUP(B39,'other funds ftr 2026'!A:I,9,FALSE),0),1) -> 1.05 | M39: 140530 | N39: =1+IF(ISNA(VLOOKUP(B39,'Rural and Low Income 26-27'!$A$1:$B$132,2,FALSE)),0,$N$17) -> 1 | O39: 140530 | R39: 0 | S39: 140530 | T39: =IFERROR(VLOOKUP(B39,'2025-26 Final'!$B$19:$AA$164,26,0),0) -> 152158 | U39: -11628 | V39: y | Y39: 1250 | AA39: 141780
A40: 22 | B40: 36400 | D40: COLUMBIA (WALLA WALLA) | E40: =IFERROR(VLOOKUP(B40,Enrollment!$A$2:$G$146,5,0),0) -> 52 | F40: 25634 | G40: =IFERROR(VLOOKUP(B40,Enrollment!$A$2:$G$146,6,0),0) -> 26 | H40: 3204 | I40: =IFERROR(VLOOKUP(B40,Enrollment!$A$2:$G$146,7,0),0) -> 7 | J40: 3451 | K40: 32289 | L40: =IF(E40>$E$17,_xlfn.IFNA(VLOOKUP(B40,'other funds ftr 2026'!A:I,9,FALSE),0),1) -> 1 | M40: 32289 | N40: =1+IF(ISNA(VLOOKUP(B40,'Rural and Low Income 26-27'!$A$1:$B$132,2,FALSE)),0,$N$17) -> 1 | O40: 32289 | R40: 0 | S40: 32289 | T40: =IFERROR(VLOOKUP(B40,'2025-26 Final'!$B$19:$AA$164,26,0),0) -> 0 | U40: 32289 | V40: y | W40: 1 | Y40: 750 | AA40: 0
A41: 23 | B41: 29317 | D41: CONWAY | E41: =IFERROR(VLOOKUP(B41,Enrollment!$A$2:$G$146,5,0),0) -> 12 | F41: 5915 | G41: =IFERROR(VLOOKUP(B41,Enrollment!$A$2:$G$146,6,0),0) -> 7 | H41: 863 | I41: =IFERROR(VLOOKUP(B41,Enrollment!$A$2:$G$146,7,0),0) -> 1 | J41: 493 | K41: 7271 | L41: =IF(E41>$E$17,_xlfn.IFNA(VLOOKUP(B41,'other funds ftr 2026'!A:I,9,FALSE),0),1) -> 0 | M41: 7271 | N41: =1+IF(ISNA(VLOOKUP(B41,'Rural and Low Income 26-27'!$A$1:$B$132,2,FALSE)),0,$N$17) -> 1.1 | O41: 0 | R41: 0 | S41: 0 | T41: =IFERROR(VLOOKUP(B41,'2025-26 Final'!$B$19:$AA$164,26,0),0) -> 0 | U41: 0 | V41: n | Y41: 0 | AA41: 0 | AB41: NEW
A42: 24 | B42: 15204 | D42: COUPEVILLE | E42: =IFERROR(VLOOKUP(B42,Enrollment!$A$2:$G$146,5,0),0) -> 0 | F42: 0 | G42: =IFERROR(VLOOKUP(B42,Enrollment!$A$2:$G$146,6,0),0) -> 0 | H42: 0 | I42: =IFERROR(VLOOKUP(B42,Enrollment!$A$2:$G$146,7,0),0) -> 0 | J42: 0 | K42: 0 | L42: =IF(E42>$E$17,_xlfn.IFNA(VLOOKUP(B42,'other funds ftr 2026'!A:I,9,FALSE),0),1) -> 1 | M42: 0 | N42: =1+IF(ISNA(VLOOKUP(B42,'Rural and Low Income 26-27'!$A$1:$B$132,2,FALSE)),0,$N$17) -> 1 | O42: 0 | R42: 0 | S42: 0 | T42: =IFERROR(VLOOKUP(B42,'2025-26 Final'!$B$19:$AA$164,26,0),0) -> 0 | U42: 0 | V42: n | Y42: 0 | AA42: 0
A43: 25 | B43: 39090 | D43: EAST VALLEY (YAKIMA) | E43: =IFERROR(VLOOKUP(B43,Enrollment!$A$2:$G$146,5,0),0) -> 161 | F43: 79366 | G43: =IFERROR(VLOOKUP(B43,Enrollment!$A$2:$G$146,6,0),0) -> 114 | H43: 14049 | I43: =IFERROR(VLOOKUP(B43,Enrollment!$A$2:$G$146,7,0),0) -> 16 | J43: 7887 | K43: 101302 | L43: =IF(E43>$E$17,_xlfn.IFNA(VLOOKUP(B43,'other funds ftr 2026'!A:I,9,FALSE),0),1) -> 0 | M43: 101302 | N43: =1+IF(ISNA(VLOOKUP(B43,'Rural and Low Income 26-27'!$A$1:$B$132,2,FALSE)),0,$N$17) -> 1 | O43: 0 | R43: 0 | S43: 0 | T43: =IFERROR(VLOOKUP(B43,'2025-26 Final'!$B$19:$AA$164,26,0),0) -> 0 | U43: 0 | V43: n | Y43: 0 | AA43: 0
A44: 26 | B44: 09206 | D44: EASTMONT | E44: =IFERROR(VLOOKUP(B44,Enrollment!$A$2:$G$146,5,0),0) -> 1042 | F44: 513659 | G44: =IFERROR(VLOOKUP(B44,Enrollment!$A$2:$G$146,6,0),0) -> 220 | H44: 27113 | I44: =IFERROR(VLOOKUP(B44,Enrollment!$A$2:$G$146,7,0),0) -> 345 | J44: 170069 | K44: 710841 | L44: =IF(E44>$E$17,_xlfn.IFNA(VLOOKUP(B44,'other funds ftr 2026'!A:I,9,FALSE),0),1) -> 1.05 | M44: 746383 | N44: =1+IF(ISNA(VLOOKUP(B44,'Rural and Low Income 26-27'!$A$1:$B$132,2,FALSE)),0,$N$17) -> 1 | O44: 746383 | R44: 0 | S44: 746383 | T44: =IFERROR(VLOOKUP(B44,'2025-26 Final'!$B$19:$AA$164,26,0),0) -> 588989 | U44: 157394 | V44: y | Y44: 2000 | AA44: 748383
A45: 27 | B45: 19028 | D45: EASTON | E45: =IFERROR(VLOOKUP(B45,Enrollment!$A$2:$G$146,5,0),0) -> 0 | F45: 0 | G45: =IFERROR(VLOOKUP(B45,Enrollment!$A$2:$G$146,6,0),0) -> 0 | H45: 0 | I45: =IFERROR(VLOOKUP(B45,Enrollment!$A$2:$G$146,7,0),0) -> 0 | J45: 0 | K45: 0 | L45: =IF(E45>$E$17,_xlfn.IFNA(VLOOKUP(B45,'other funds ftr 2026'!A:I,9,FALSE),0),1) -> 1 | M45: 0 | N45: =1+IF(ISNA(VLOOKUP(B45,'Rural and Low Income 26-27'!$A$1:$B$132,2,FALSE)),0,$N$17) -> 1.1 | O45: 0 | R45: 0 | S45: 0 | T45: =IFERROR(VLOOKUP(B45,'2025-26 Final'!$B$19:$AA$164,26,0),0) -> 0 | U45: 0 | V45: n | Y45: 0 | AA45: 0
A46: 28 | B46: 31015 | D46: EDMONDS | E46: =IFERROR(VLOOKUP(B46,Enrollment!$A$2:$G$146,5,0),0) -> 25 | F46: 12324 | G46: =IFERROR(VLOOKUP(B46,Enrollment!$A$2:$G$146,6,0),0) -> 12 | H46: 1479 | I46: =IFERROR(VLOOKUP(B46,Enrollment!$A$2:$G$146,7,0),0) -> 2 | J46: 986 | K46: 14789 | L46: =IF(E46>$E$17,_xlfn.IFNA(VLOOKUP(B46,'other funds ftr 2026'!A:I,9,FALSE),0),1) -> 0 | M46: 14789 | N46: =1+IF(ISNA(VLOOKUP(B46,'Rural and Low Income 26-27'!$A$1:$B$132,2,FALSE)),0,$N$17) -> 1 | O46: 14789 | R46: 0 | S46: 14789 | T46: =IFERROR(VLOOKUP(B46,'2025-26 Final'!$B$19:$AA$164,26,0),0) -> 0 | U46: 14789 | V46: y | Y46: 750 | AA46: 15539
A47: 31 | B47: 19401 | D47: ELLENSBURG | E47: =IFERROR(VLOOKUP(B47,Enrollment!$A$2:$G$146,5,0),0) -> 16 | F47: 7887 | G47: =IFERROR(VLOOKUP(B47,Enrollment!$A$2:$G$146,6,0),0) -> 13 | H47: 1602 | I47: =IFERROR(VLOOKUP(B47,Enrollment!$A$2:$G$146,7,0),0) -> 0 | J47: 0 | K47: 9489 | L47: =IF(E47>$E$17,_xlfn.IFNA(VLOOKUP(B47,'other funds ftr 2026'!A:I,9,FALSE),0),1) -> 0 | M47: 9489 | N47: =1+IF(ISNA(VLOOKUP(B47,'Rural and Low Income 26-27'!$A$1:$B$132,2,FALSE)),0,$N$17) -> 1 | O47: 0 | R47: 0 | S47: 0 | T47: =IFERROR(VLOOKUP(B47,'2025-26 Final'!$B$19:$AA$164,26,0),0) -> 0 | U47: 0 | V47: n | Y47: 0 | AA47: 0
A48: 32 | B48: 14068 | D48: ELMA | E48: =IFERROR(VLOOKUP(B48,Enrollment!$A$2:$G$146,5,0),0) -> 12 | F48: 5915 | G48: =IFERROR(VLOOKUP(B48,Enrollment!$A$2:$G$146,6,0),0) -> 6 | H48: 739 | I48: =IFERROR(VLOOKUP(B48,Enrollment!$A$2:$G$146,7,0),0) -> 4 | J48: 1972 | K48: 8626 | L48: =IF(E48>$E$17,_xlfn.IFNA(VLOOKUP(B48,'other funds ftr 2026'!A:I,9,FALSE),0),1) -> 0 | M48: 8626 | N48: =1+IF(ISNA(VLOOKUP(B48,'Rural and Low Income 26-27'!$A$1:$B$132,2,FALSE)),0,$N$17) -> 1 | O48: 0 | R48: 0 | S48: 0 | T48: =IFERROR(VLOOKUP(B48,'2025-26 Final'!$B$19:$AA$164,26,0),0) -> 0 | U48: 0 | V48: n | Y48: 0 | AA48: 0
A49: 33 | B49: 04127 | D49: ENTIAT | E49: =IFERROR(VLOOKUP(B49,Enrollment!$A$2:$G$146,5,0),0) -> 69 | F49: 34014 | G49: =IFERROR(VLOOKUP(B49,Enrollment!$A$2:$G$146,6,0),0) -> 39 | H49: 4806 | I49: =IFERROR(VLOOKUP(B49,Enrollment!$A$2:$G$146,7,0),0) -> 6 | J49: 2958 | K49: 41778 | L49: =IF(E49>$E$17,_xlfn.IFNA(VLOOKUP(B49,'other funds ftr 2026'!A:I,9,FALSE),0),1) -> 0 | M49: 41778 | N49: =1+IF(ISNA(VLOOKUP(B49,'Rural and Low Income 26-27'!$A$1:$B$132,2,FALSE)),0,$N$17) -> 1.1 | O49: 0 | R49: 0 | S49: 0 | T49: =IFERROR(VLOOKUP(B49,'2025-26 Final'!$B$19:$AA$164,26,0),0) -> 0 | U49: 0 | V49: n | Y49: 0 | AA49: 0
A50: 34 | B50: 13165 | D50: EPHRATA | E50: =IFERROR(VLOOKUP(B50,Enrollment!$A$2:$G$146,5,0),0) -> 130 | F50: 64084 | G50: =IFERROR(VLOOKUP(B50,Enrollment!$A$2:$G$146,6,0),0) -> 63 | H50: 7764 | I50: =IFERROR(VLOOKUP(B50,Enrollment!$A$2:$G$146,7,0),0) -> 21 | J50: 10352 | K50: 82200 | L50: =IF(E50>$E$17,_xlfn.IFNA(VLOOKUP(B50,'other funds ftr 2026'!A:I,9,FALSE),0),1) -> 1 | M50: 82200 | N50: =1+IF(ISNA(VLOOKUP(B50,'Rural and Low Income 26-27'!$A$1:$B$132,2,FALSE)),0,$N$17) -> 1 | O50: 82200 | R50: 0 | S50: 82200 | T50: =IFERROR(VLOOKUP(B50,'2025-26 Final'!$B$19:$AA$164,26,0),0) -> 79804 | U50: 2396 | V50: y | Y50: 1250 | AA50: 83450
A51: 35 | B51: 31002 | D51: EVERETT | E51: =IFERROR(VLOOKUP(B51,Enrollment!$A$2:$G$146,5,0),0) -> 42 | F51: 20704 | G51: =IFERROR(VLOOKUP(B51,Enrollment!$A$2:$G$146,6,0),0) -> 28 | H51: 3451 | I51: =IFERROR(VLOOKUP(B51,Enrollment!$A$2:$G$146,7,0),0) -> 4 | J51: 1972 | K51: 26127 | L51: =IF(E51>$E$17,_xlfn.IFNA(VLOOKUP(B51,'other funds ftr 2026'!A:I,9,FALSE),0),1) -> 0 | M51: 26127 | N51: =1+IF(ISNA(VLOOKUP(B51,'Rural and Low Income 26-27'!$A$1:$B$132,2,FALSE)),0,$N$17) -> 1 | O51: 0 | R51: 0 | S51: 0 | T51: =IFERROR(VLOOKUP(B51,'2025-26 Final'!$B$19:$AA$164,26,0),0) -> 0 | U51: 0 | V51: n | Y51: 0 | AA51: 0
A52: 36 | B52: 06114 | D52: EVERGREEN (CLARK) | E52: =IFERROR(VLOOKUP(B52,Enrollment!$A$2:$G$146,5,0),0) -> 19 | F52: 9366 | G52: =IFERROR(VLOOKUP(B52,Enrollment!$A$2:$G$146,6,0),0) -> 16 | H52: 1972 | I52: =IFERROR(VLOOKUP(B52,Enrollment!$A$2:$G$146,7,0),0) -> 1 | J52: 493 | K52: 11831 | L52: =IF(E52>$E$17,_xlfn.IFNA(VLOOKUP(B52,'other funds ftr 2026'!A:I,9,FALSE),0),1) -> 0 | M52: 11831 | N52: =1+IF(ISNA(VLOOKUP(B52,'Rural and Low Income 26-27'!$A$1:$B$132,2,FALSE)),0,$N$17) -> 1 | O52: 0 | R52: 0 | S52: 0 | T52: =IFERROR(VLOOKUP(B52,'2025-26 Final'!$B$19:$AA$164,26,0),0) -> 0 | U52: 0 | V52: n | Y52: 0 | AA52: 0
A53: 37 | B53: 17210 | D53: FEDERAL WAY | E53: =IFERROR(VLOOKUP(B53,Enrollment!$A$2:$G$146,5,0),0) -> 15 | F53: 7394 | G53: =IFERROR(VLOOKUP(B53,Enrollment!$A$2:$G$146,6,0),0) -> 11 | H53: 1356 | I53: =IFERROR(VLOOKUP(B53,Enrollment!$A$2:$G$146,7,0),0) -> 3 | J53: 1479 | K53: 10229 | L53: =IF(E53>$E$17,_xlfn.IFNA(VLOOKUP(B53,'other funds ftr 2026'!A:I,9,FALSE),0),1) -> 0 | M53: 10229 | N53: =1+IF(ISNA(VLOOKUP(B53,'Rural and Low Income 26-27'!$A$1:$B$132,2,FALSE)),0,$N$17) -> 1 | O53: 0 | R53: 0 | S53: 0 | T53: =IFERROR(VLOOKUP(B53,'2025-26 Final'!$B$19:$AA$164,26,0),0) -> 0 | U53: 0 | V53: n | X53: Y | Y53: 0 | AA53: 0
A54: 38 | B54: 37502 | D54: FERNDALE | E54: =IFERROR(VLOOKUP(B54,Enrollment!$A$2:$G$146,5,0),0) -> 96 | F54: 47324 | G54: =IFERROR(VLOOKUP(B54,Enrollment!$A$2:$G$146,6,0),0) -> 13 | H54: 1602 | I54: =IFERROR(VLOOKUP(B54,Enrollment!$A$2:$G$146,7,0),0) -> 22 | J54: 10845 | K54: 59771 | L54: =IF(E54>$E$17,_xlfn.IFNA(VLOOKUP(B54,'other funds ftr 2026'!A:I,9,FALSE),0),1) -> 0.95 | M54: 56782 | N54: =1+IF(ISNA(VLOOKUP(B54,'Rural and Low Income 26-27'!$A$1:$B$132,2,FALSE)),0,$N$17) -> 1 | O54: 56782 | R54: 0 | S54: 56782 | T54: =IFERROR(VLOOKUP(B54,'2025-26 Final'!$B$19:$AA$164,26,0),0) -> 65502 | U54: -8720 | V54: y | X54: Y | Y54: 750 | AA54: 57532
A55: 39 | B55: 03053 | D55: FINLEY | E55: =IFERROR(VLOOKUP(B55,Enrollment!$A$2:$G$146,5,0),0) -> 92 | F55: 45352 | G55: =IFERROR(VLOOKUP(B55,Enrollment!$A$2:$G$146,6,0),0) -> 42 | H55: 5176 | I55: =IFERROR(VLOOKUP(B55,Enrollment!$A$2:$G$146,7,0),0) -> 11 | J55: 5423 | K55: 55951 | L55: =IF(E55>$E$17,_xlfn.IFNA(VLOOKUP(B55,'other funds ftr 2026'!A:I,9,FALSE),0),1) -> 1.05 | M55: 58749 | N55: =1+IF(ISNA(VLOOKUP(B55,'Rural and Low Income 26-27'!$A$1:$B$132,2,FALSE)),0,$N$17) -> 1 | O55: 58749 | R55: 0 | S55: 58749 | T55: =IFERROR(VLOOKUP(B55,'2025-26 Final'!$B$19:$AA$164,26,0),0) -> 0 | U55: 58749 | V55: y | W55: 1 | Y55: 750 | AA55: 0
A56: 40 | B56: 27402 | D56: FRANKLIN PIERCE | E56: =IFERROR(VLOOKUP(B56,Enrollment!$A$2:$G$146,5,0),0) -> 0 | F56: 0 | G56: =IFERROR(VLOOKUP(B56,Enrollment!$A$2:$G$146,6,0),0) -> 0 | H56: 0 | I56: =IFERROR(VLOOKUP(B56,Enrollment!$A$2:$G$146,7,0),0) -> 0 | J56: 0 | K56: 0 | L56: =IF(E56>$E$17,_xlfn.IFNA(VLOOKUP(B56,'other funds ftr 2026'!A:I,9,FALSE),0),1) -> 1 | M56: 0 | N56: =1+IF(ISNA(VLOOKUP(B56,'Rural and Low Income 26-27'!$A$1:$B$132,2,FALSE)),0,$N$17) -> 1 | O56: 0 | R56: 0 | S56: 0 | T56: =IFERROR(VLOOKUP(B56,'2025-26 Final'!$B$19:$AA$164,26,0),0) -> 0 | U56: 0 | V56: n | Y56: 0 | AA56: 0
A57: 41 | B57: 20404 | D57: GOLDENDALE | E57: =IFERROR(VLOOKUP(B57,Enrollment!$A$2:$G$146,5,0),0) -> 55 | F57: 27113 | G57: =IFERROR(VLOOKUP(B57,Enrollment!$A$2:$G$146,6,0),0) -> 32 | H57: 3944 | I57: =IFERROR(VLOOKUP(B57,Enrollment!$A$2:$G$146,7,0),0) -> 2 | J57: 986 | K57: 32043 | L57: =IF(E57>$E$17,_xlfn.IFNA(VLOOKUP(B57,'other funds ftr 2026'!A:I,9,FALSE),0),1) -> 0.95 | M57: 30441 | N57: =1+IF(ISNA(VLOOKUP(B57,'Rural and Low Income 26-27'!$A$1:$B$132,2,FALSE)),0,$N$17) -> 1 | O57: 30441 | R57: 0 | S57: 30441 | T57: =IFERROR(VLOOKUP(B57,'2025-26 Final'!$B$19:$AA$164,26,0),0) -> 40555 | U57: -10114 | V57: y | Y57: 750 | AA57: 31191
A58: 42 | B58: 13301 | D58: GRAND COULEE DAM | E58: =IFERROR(VLOOKUP(B58,Enrollment!$A$2:$G$146,5,0),0) -> 173 | F58: 85281 | G58: =IFERROR(VLOOKUP(B58,Enrollment!$A$2:$G$146,6,0),0) -> 128 | H58: 15775 | I58: =IFERROR(VLOOKUP(B58,Enrollment!$A$2:$G$146,7,0),0) -> 15 | J58: 7394 | K58: 108450 | L58: =IF(E58>$E$17,_xlfn.IFNA(VLOOKUP(B58,'other funds ftr 2026'!A:I,9,FALSE),0),1) -> 1.1 | M58: 119295 | N58: =1+IF(ISNA(VLOOKUP(B58,'Rural and Low Income 26-27'!$A$1:$B$132,2,FALSE)),0,$N$17) -> 1.1 | O58: 131225 | R58: 0 | S58: 131225 | T58: =IFERROR(VLOOKUP(B58,'2025-26 Final'!$B$19:$AA$164,26,0),0) -> 146428 | U58: -15203 | V58: y | Y58: 1250 | AA58: 132475
A59: 43 | B59: 39200 | D59: GRANDVIEW | E59: =IFERROR(VLOOKUP(B59,Enrollment!$A$2:$G$146,5,0),0) -> 763 | F59: 376124 | G59: =IFERROR(VLOOKUP(B59,Enrollment!$A$2:$G$146,6,0),0) -> 189 | H59: 23292 | I59: =IFERROR(VLOOKUP(B59,Enrollment!$A$2:$G$146,7,0),0) -> 223 | J59: 109929 | K59: 509345 | L59: =IF(E59>$E$17,_xlfn.IFNA(VLOOKUP(B59,'other funds ftr 2026'!A:I,9,FALSE),0),1) -> 1.05 | M59: 534812 | N59: =1+IF(ISNA(VLOOKUP(B59,'Rural and Low Income 26-27'!$A$1:$B$132,2,FALSE)),0,$N$17) -> 1.1 | O59: 588293 | R59: 0 | S59: 588293 | T59: =IFERROR(VLOOKUP(B59,'2025-26 Final'!$B$19:$AA$164,26,0),0) -> 529970 | U59: 58323 | V59: y | Y59: 2000 | AA59: 590293
A60: 44 | B60: 39204 | D60: GRANGER | E60: =IFERROR(VLOOKUP(B60,Enrollment!$A$2:$G$146,5,0),0) -> 296 | F60: 145915 | G60: =IFERROR(VLOOKUP(B60,Enrollment!$A$2:$G$146,6,0),0) -> 132 | H60: 16268 | I60: =IFERROR(VLOOKUP(B60,Enrollment!$A$2:$G$146,7,0),0) -> 71 | J60: 35000 | K60: 197183 | L60: =IF(E60>$E$17,_xlfn.IFNA(VLOOKUP(B60,'other funds ftr 2026'!A:I,9,FALSE),0),1) -> 1.05 | M60: 207042 | N60: =1+IF(ISNA(VLOOKUP(B60,'Rural and Low Income 26-27'!$A$1:$B$132,2,FALSE)),0,$N$17) -> 1 | O60: 207042 | R60: 0 | S60: 207042 | T60: =IFERROR(VLOOKUP(B60,'2025-26 Final'!$B$19:$AA$164,26,0),0) -> 210598 | U60: -3556 | V60: y | Y60: 1250 | AA60: 208292
A61: 45 | B61: 39203 | D61: HIGHLAND | E61: =IFERROR(VLOOKUP(B61,Enrollment!$A$2:$G$146,5,0),0) -> 210 | F61: 103520 | G61: =IFERROR(VLOOKUP(B61,Enrollment!$A$2:$G$146,6,0),0) -> 77 | H61: 9489 | I61: =IFERROR(VLOOKUP(B61,Enrollment!$A$2:$G$146,7,0),0) -> 63 | J61: 31056 | K61: 144065 | L61: =IF(E61>$E$17,_xlfn.IFNA(VLOOKUP(B61,'other funds ftr 2026'!A:I,9,FALSE),0),1) -> 1.05 | M61: 151268 | N61: =1+IF(ISNA(VLOOKUP(B61,'Rural and Low Income 26-27'!$A$1:$B$132,2,FALSE)),0,$N$17) -> 1 | O61: 151268 | R61: 0 | S61: 151268 | T61: =IFERROR(VLOOKUP(B61,'2025-26 Final'!$B$19:$AA$164,26,0),0) -> 150063 | U61: 1205 | V61: y | Y61: 1250 | AA61: 152518
A62: 46 | B62: 17401 | D62: HIGHLINE | E62: =IFERROR(VLOOKUP(B62,Enrollment!$A$2:$G$146,5,0),0) -> 0 | F62: 0 | G62: =IFERROR(VLOOKUP(B62,Enrollment!$A$2:$G$146,6,0),0) -> 0 | H62: 0 | I62: =IFERROR(VLOOKUP(B62,Enrollment!$A$2:$G$146,7,0),0) -> 0 | J62: 0 | K62: 0 | L62: =IF(E62>$E$17,_xlfn.IFNA(VLOOKUP(B62,'other funds ftr 2026'!A:I,9,FALSE),0),1) -> 1 | M62: 0 | N62: =1+IF(ISNA(VLOOKUP(B62,'Rural and Low Income 26-27'!$A$1:$B$132,2,FALSE)),0,$N$17) -> 1 | O62: 0 | R62: 0 | S62: 0 | T62: =IFERROR(VLOOKUP(B62,'2025-26 Final'!$B$19:$AA$164,26,0),0) -> 0 | U62: 0 | V62: n | X62: Y | Y62: 0 | AA62: 0
A63: 47 | B63: 23404 | D63: HOOD CANAL | E63: =IFERROR(VLOOKUP(B63,Enrollment!$A$2:$G$146,5,0),0) -> 25 | F63: 12324 | G63: =IFERROR(VLOOKUP(B63,Enrollment!$A$2:$G$146,6,0),0) -> 17 | H63: 2095 | I63: =IFERROR(VLOOKUP(B63,Enrollment!$A$2:$G$146,7,0),0) -> 1 | J63: 493 | K63: 14912 | L63: =IF(E63>$E$17,_xlfn.IFNA(VLOOKUP(B63,'other funds ftr 2026'!A:I,9,FALSE),0),1) -> 1 | M63: 14912 | N63: =1+IF(ISNA(VLOOKUP(B63,'Rural and Low Income 26-27'!$A$1:$B$132,2,FALSE)),0,$N$17) -> 1.1 | O63: 16403 | R63: 0 | S63: 16403 | T63: =IFERROR(VLOOKUP(B63,'2025-26 Final'!$B$19:$AA$164,26,0),0) -> 23264 | U63: -6861 | V63: y | Y63: 750 | AA63: 17153
A64: 48 | B64: 14028 | D64: HOQUIAM | E64: =IFERROR(VLOOKUP(B64,Enrollment!$A$2:$G$146,5,0),0) -> 12 | F64: 5915 | G64: =IFERROR(VLOOKUP(B64,Enrollment!$A$2:$G$146,6,0),0) -> 4 | H64: 493 | I64: =IFERROR(VLOOKUP(B64,Enrollment!$A$2:$G$146,7,0),0) -> 6 | J64: 2958 | K64: 9366 | L64: =IF(E64>$E$17,_xlfn.IFNA(VLOOKUP(B64,'other funds ftr 2026'!A:I,9,FALSE),0),1) -> 0 | M64: 9366 | N64: =1+IF(ISNA(VLOOKUP(B64,'Rural and Low Income 26-27'!$A$1:$B$132,2,FALSE)),0,$N$17) -> 1.1 | O64: 0 | R64: 0 | S64: 0 | T64: =IFERROR(VLOOKUP(B64,'2025-26 Final'!$B$19:$AA$164,26,0),0) -> 0 | U64: 0 | V64: n | Y64: 0 | AA64: 0
A65: 49 | B65: 10070 | D65: INCHELIUM | E65: =IFERROR(VLOOKUP(B65,Enrollment!$A$2:$G$146,5,0),0) -> 0 | F65: 0 | G65: =IFERROR(VLOOKUP(B65,Enrollment!$A$2:$G$146,6,0),0) -> 0 | H65: 0 | I65: =IFERROR(VLOOKUP(B65,Enrollment!$A$2:$G$146,7,0),0) -> 0 | J65: 0 | K65: 0 | L65: =IF(E65>$E$17,_xlfn.IFNA(VLOOKUP(B65,'other funds ftr 2026'!A:I,9,FALSE),0),1) -> 1 | M65: 0 | N65: =1+IF(ISNA(VLOOKUP(B65,'Rural and Low Income 26-27'!$A$1:$B$132,2,FALSE)),0,$N$17) -> 1.1 | O65: 0 | R65: 0 | S65: 0 | T65: =IFERROR(VLOOKUP(B65,'2025-26 Final'!$B$19:$AA$164,26,0),0) -> 10438 | U65: -10438 | V65: n | Y65: 0 | AA65: 0
A66: 50 | B66: 08458 | D66: KELSO | E66: =IFERROR(VLOOKUP(B66,Enrollment!$A$2:$G$146,5,0),0) -> 26 | F66: 12817 | G66: =IFERROR(VLOOKUP(B66,Enrollment!$A$2:$G$146,6,0),0) -> 22 | H66: 2711 | I66: =IFERROR(VLOOKUP(B66,Enrollment!$A$2:$G$146,7,0),0) -> 2 | J66: 986 | K66: 16514 | L66: =IF(E66>$E$17,_xlfn.IFNA(VLOOKUP(B66,'other funds ftr 2026'!A:I,9,FALSE),0),1) -> 0.95 | M66: 15688 | N66: =1+IF(ISNA(VLOOKUP(B66,'Rural and Low Income 26-27'!$A$1:$B$132,2,FALSE)),0,$N$17) -> 1 | O66: 0 | R66: 0 | S66: 0 | T66: =IFERROR(VLOOKUP(B66,'2025-26 Final'!$B$19:$AA$164,26,0),0) -> 22002 | U66: -22002 | V66: n | Y66: 0 | AA66: 0
A67: 51 | B67: 03017 | D67: KENNEWICK | E67: =IFERROR(VLOOKUP(B67,Enrollment!$A$2:$G$146,5,0),0) -> 2679 | F67: 1320626 | G67: =IFERROR(VLOOKUP(B67,Enrollment!$A$2:$G$146,6,0),0) -> 883 | H67: 108820 | I67: =IFERROR(VLOOKUP(B67,Enrollment!$A$2:$G$146,7,0),0) -> 882 | J67: 434786 | K67: 1864232 | L67: =IF(E67>$E$17,_xlfn.IFNA(VLOOKUP(B67,'other funds ftr 2026'!A:I,9,FALSE),0),1) -> 1.05 | M67: 1957444 | N67: =1+IF(ISNA(VLOOKUP(B67,'Rural and Low Income 26-27'!$A$1:$B$132,2,FALSE)),0,$N$17) -> 1 | O67: 1957444 | R67: 0 | S67: 1957444 | T67: =IFERROR(VLOOKUP(B67,'2025-26 Final'!$B$19:$AA$164,26,0),0) -> 2091045 | U67: -133601 | V67: y | Y67: 2000 | AA67: 1959444
A68: 52 | B68: 17415 | D68: KENT | E68: =IFERROR(VLOOKUP(B68,Enrollment!$A$2:$G$146,5,0),0) -> 18 | F68: 8873 | G68: =IFERROR(VLOOKUP(B68,Enrollment!$A$2:$G$146,6,0),0) -> 12 | H68: 1479 | I68: =IFERROR(VLOOKUP(B68,Enrollment!$A$2:$G$146,7,0),0) -> 1 | J68: 493 | K68: 10845 | L68: =IF(E68>$E$17,_xlfn.IFNA(VLOOKUP(B68,'other funds ftr 2026'!A:I,9,FALSE),0),1) -> 0 | M68: 10845 | N68: =1+IF(ISNA(VLOOKUP(B68,'Rural and Low Income 26-27'!$A$1:$B$132,2,FALSE)),0,$N$17) -> 1 | O68: 0 | R68: 0 | S68: 0 | T68: =IFERROR(VLOOKUP(B68,'2025-26 Final'!$B$19:$AA$164,26,0),0) -> 0 | U68: 0 | V68: n | Y68: 0 | AA68: 0
A69: 53 | B69: 03052 | D69: KIONA-BENTON CITY | E69: =IFERROR(VLOOKUP(B69,Enrollment!$A$2:$G$146,5,0),0) -> 305 | F69: 150351 | G69: =IFERROR(VLOOKUP(B69,Enrollment!$A$2:$G$146,6,0),0) -> 93 | H69: 11461 | I69: =IFERROR(VLOOKUP(B69,Enrollment!$A$2:$G$146,7,0),0) -> 80 | J69: 39436 | K69: 201248 | L69: =IF(E69>$E$17,_xlfn.IFNA(VLOOKUP(B69,'other funds ftr 2026'!A:I,9,FALSE),0),1) -> 1.1 | M69: 221373 | N69: =1+IF(ISNA(VLOOKUP(B69,'Rural and Low Income 26-27'!$A$1:$B$132,2,FALSE)),0,$N$17) -> 1 | O69: 221373 | R69: 0 | S69: 221373 | T69: =IFERROR(VLOOKUP(B69,'2025-26 Final'!$B$19:$AA$164,26,0),0) -> 232451 | U69: -11078 | V69: y | Y69: 1250 | AA69: 222623
A70: 54 | B70: 19403 | D70: KITTITAS | E70: =IFERROR(VLOOKUP(B70,Enrollment!$A$2:$G$146,5,0),0) -> 0 | F70: 0 | G70: =IFERROR(VLOOKUP(B70,Enrollment!$A$2:$G$146,6,0),0) -> 0 | H70: 0 | I70: =IFERROR(VLOOKUP(B70,Enrollment!$A$2:$G$146,7,0),0) -> 0 | J70: 0 | K70: 0 | L70: =IF(E70>$E$17,_xlfn.IFNA(VLOOKUP(B70,'other funds ftr 2026'!A:I,9,FALSE),0),1) -> 1 | M70: 0 | N70: =1+IF(ISNA(VLOOKUP(B70,'Rural and Low Income 26-27'!$A$1:$B$132,2,FALSE)),0,$N$17) -> 1.1 | O70: 0 | R70: 0 | S70: 0 | T70: =IFERROR(VLOOKUP(B70,'2025-26 Final'!$B$19:$AA$164,26,0),0) -> 0 | U70: 0 | V70: n | Y70: 0 | AA70: 0
A71: 55 | B71: 29311 | D71: LA CONNER | E71: =IFERROR(VLOOKUP(B71,Enrollment!$A$2:$G$146,5,0),0) -> 124 | F71: 61126 | G71: =IFERROR(VLOOKUP(B71,Enrollment!$A$2:$G$146,6,0),0) -> 28 | H71: 3451 | I71: =IFERROR(VLOOKUP(B71,Enrollment!$A$2:$G$146,7,0),0) -> 46 | J71: 22676 | K71: 87253 | L71: =IF(E71>$E$17,_xlfn.IFNA(VLOOKUP(B71,'other funds ftr 2026'!A:I,9,FALSE),0),1) -> 1.1 | M71: 95978 | N71: =1+IF(ISNA(VLOOKUP(B71,'Rural and Low Income 26-27'!$A$1:$B$132,2,FALSE)),0,$N$17) -> 1.1 | O71: 105576 | R71: 0 | S71: 105576 | T71: =IFERROR(VLOOKUP(B71,'2025-26 Final'!$B$19:$AA$164,26,0),0) -> 89196 | U71: 16380 | V71: y | Y71: 1250 | AA71: 106826
A72: 56 | B72: 04129 | D72: LAKE CHELAN | E72: =IFERROR(VLOOKUP(B72,Enrollment!$A$2:$G$146,5,0),0) -> 156 | F72: 76901 | G72: =IFERROR(VLOOKUP(B72,Enrollment!$A$2:$G$146,6,0),0) -> 72 | H72: 8873 | I72: =IFERROR(VLOOKUP(B72,Enrollment!$A$2:$G$146,7,0),0) -> 35 | J72: 17253 | K72: 103027 | L72: =IF(E72>$E$17,_xlfn.IFNA(VLOOKUP(B72,'other funds ftr 2026'!A:I,9,FALSE),0),1) -> 1.05 | M72: 108178 | N72: =1+IF(ISNA(VLOOKUP(B72,'Rural and Low Income 26-27'!$A$1:$B$132,2,FALSE)),0,$N$17) -> 1 | O72: 108178 | R72: 0 | S72: 108178 | T72: =IFERROR(VLOOKUP(B72,'2025-26 Final'!$B$19:$AA$164,26,0),0) -> 111103 | U72: -2925 | V72: y | Y72: 1250 | AA72: 109428
A73: 57 | B73: 31306 | D73: LAKEWOOD | E73: =IFERROR(VLOOKUP(B73,Enrollment!$A$2:$G$146,5,0),0) -> 22 | F73: 10845 | G73: =IFERROR(VLOOKUP(B73,Enrollment!$A$2:$G$146,6,0),0) -> 9 | H73: 1109 | I73: =IFERROR(VLOOKUP(B73,Enrollment!$A$2:$G$146,7,0),0) -> 4 | J73: 1972 | K73: 13926 | L73: =IF(E73>$E$17,_xlfn.IFNA(VLOOKUP(B73,'other funds ftr 2026'!A:I,9,FALSE),0),1) -> 0 | M73: 13926 | N73: =1+IF(ISNA(VLOOKUP(B73,'Rural and Low Income 26-27'!$A$1:$B$132,2,FALSE)),0,$N$17) -> 1 | O73: 0 | R73: 0 | S73: 0 | T73: =IFERROR(VLOOKUP(B73,'2025-26 Final'!$B$19:$AA$164,26,0),0) -> 0 | U73: 0 | V73: n | Y73: 0 | AA73: 0
A74: 58 | B74: 01158 | D74: LIND | E74: =IFERROR(VLOOKUP(B74,Enrollment!$A$2:$G$146,5,0),0) -> 33 | F74: 16268 | G74: =IFERROR(VLOOKUP(B74,Enrollment!$A$2:$G$146,6,0),0) -> 16 | H74: 1972 | I74: =IFERROR(VLOOKUP(B74,Enrollment!$A$2:$G$146,7,0),0) -> 4 | J74: 1972 | K74: 20212 | L74: =IF(E74>$E$17,_xlfn.IFNA(VLOOKUP(B74,'other funds ftr 2026'!A:I,9,FALSE),0),1) -> 1.1 | M74: 22233 | N74: =1+IF(ISNA(VLOOKUP(B74,'Rural and Low Income 26-27'!$A$1:$B$132,2,FALSE)),0,$N$17) -> 1.1 | O74: 24456 | R74: 0 | S74: 24456 | T74: =IFERROR(VLOOKUP(B74,'2025-26 Final'!$B$19:$AA$164,26,0),0) -> 30019 | U74: -5563 | V74: y | Y74: 750 | AA74: 25206
A75: 59 | B75: 08122 | D75: LONGVIEW | E75: =IFERROR(VLOOKUP(B75,Enrollment!$A$2:$G$146,5,0),0) -> 22 | F75: 10845 | G75: =IFERROR(VLOOKUP(B75,Enrollment!$A$2:$G$146,6,0),0) -> 21 | H75: 2588 | I75: =IFERROR(VLOOKUP(B75,Enrollment!$A$2:$G$146,7,0),0) -> 0 | J75: 0 | K75: 13433 | L75: =IF(E75>$E$17,_xlfn.IFNA(VLOOKUP(B75,'other funds ftr 2026'!A:I,9,FALSE),0),1) -> 0 | M75: 13433 | N75: =1+IF(ISNA(VLOOKUP(B75,'Rural and Low Income 26-27'!$A$1:$B$132,2,FALSE)),0,$N$17) -> 1 | O75: 13433 | R75: 0 | S75: 13433 | T75: =IFERROR(VLOOKUP(B75,'2025-26 Final'!$B$19:$AA$164,26,0),0) -> 0 | U75: 13433 | V75: y | Y75: 750 | AA75: 14183
A76: 60 | B76: 20406 | D76: LYLE | E76: =IFERROR(VLOOKUP(B76,Enrollment!$A$2:$G$146,5,0),0) -> 0 | F76: 0 | G76: =IFERROR(VLOOKUP(B76,Enrollment!$A$2:$G$146,6,0),0) -> 0 | H76: 0 | I76: =IFERROR(VLOOKUP(B76,Enrollment!$A$2:$G$146,7,0),0) -> 0 | J76: 0 | K76: 0 | L76: =IF(E76>$E$17,_xlfn.IFNA(VLOOKUP(B76,'other funds ftr 2026'!A:I,9,FALSE),0),1) -> 1 | M76: 0 | N76: =1+IF(ISNA(VLOOKUP(B76,'Rural and Low Income 26-27'!$A$1:$B$132,2,FALSE)),0,$N$17) -> 1.1 | O76: 0 | R76: 0 | S76: 0 | T76: =IFERROR(VLOOKUP(B76,'2025-26 Final'!$B$19:$AA$164,26,0),0) -> 0 | U76: 0 | V76: n | Y76: 0 | AA76: 0
A77: 61 | B77: 37504 | D77: LYNDEN | E77: =IFERROR(VLOOKUP(B77,Enrollment!$A$2:$G$146,5,0),0) -> 122 | F77: 60140 | G77: =IFERROR(VLOOKUP(B77,Enrollment!$A$2:$G$146,6,0),0) -> 30 | H77: 3697 | I77: =IFERROR(VLOOKUP(B77,Enrollment!$A$2:$G$146,7,0),0) -> 14 | J77: 6901 | K77: 70738 | L77: =IF(E77>$E$17,_xlfn.IFNA(VLOOKUP(B77,'other funds ftr 2026'!A:I,9,FALSE),0),1) -> 1 | M77: 70738 | N77: =1+IF(ISNA(VLOOKUP(B77,'Rural and Low Income 26-27'!$A$1:$B$132,2,FALSE)),0,$N$17) -> 1 | O77: 70738 | R77: 0 | S77: 70738 | T77: =IFERROR(VLOOKUP(B77,'2025-26 Final'!$B$19:$AA$164,26,0),0) -> 62661 | U77: 8077 | V77: y | Y77: 1250 | AA77: 71988
A78: 62 | B78: 39120 | D78: MABTON | E78: =IFERROR(VLOOKUP(B78,Enrollment!$A$2:$G$146,5,0),0) -> 473 | F78: 233168 | G78: =IFERROR(VLOOKUP(B78,Enrollment!$A$2:$G$146,6,0),0) -> 47 | H78: 5792 | I78: =IFERROR(VLOOKUP(B78,Enrollment!$A$2:$G$146,7,0),0) -> 147 | J78: 72464 | K78: 311424 | L78: =IF(E78>$E$17,_xlfn.IFNA(VLOOKUP(B78,'other funds ftr 2026'!A:I,9,FALSE),0),1) -> 1.1 | M78: 342566 | N78: =1+IF(ISNA(VLOOKUP(B78,'Rural and Low Income 26-27'!$A$1:$B$132,2,FALSE)),0,$N$17) -> 1 | O78: 342566 | R78: 0 | S78: 342566 | T78: =IFERROR(VLOOKUP(B78,'2025-26 Final'!$B$19:$AA$164,26,0),0) -> 359004 | U78: -16438 | V78: y | Y78: 2000 | AA78: 344566
A79: 63 | B79: 04019 | D79: MANSON | E79: =IFERROR(VLOOKUP(B79,Enrollment!$A$2:$G$146,5,0),0) -> 87 | F79: 42887 | G79: =IFERROR(VLOOKUP(B79,Enrollment!$A$2:$G$146,6,0),0) -> 29 | H79: 3574 | I79: =IFERROR(VLOOKUP(B79,Enrollment!$A$2:$G$146,7,0),0) -> 20 | J79: 9859 | K79: 56320 | L79: =IF(E79>$E$17,_xlfn.IFNA(VLOOKUP(B79,'other funds ftr 2026'!A:I,9,FALSE),0),1) -> 1.05 | M79: 59136 | N79: =1+IF(ISNA(VLOOKUP(B79,'Rural and Low Income 26-27'!$A$1:$B$132,2,FALSE)),0,$N$17) -> 1 | O79: 59136 | R79: 0 | S79: 59136 | T79: =IFERROR(VLOOKUP(B79,'2025-26 Final'!$B$19:$AA$164,26,0),0) -> 76088 | U79: -16952 | V79: y | Y79: 750 | AA79: 59886
A80: 64 | B80: 33207 | D80: MARY WALKER | E80: =IFERROR(VLOOKUP(B80,Enrollment!$A$2:$G$146,5,0),0) -> 19 | F80: 9366 | G80: =IFERROR(VLOOKUP(B80,Enrollment!$A$2:$G$146,6,0),0) -> 9 | H80: 1109 | I80: =IFERROR(VLOOKUP(B80,Enrollment!$A$2:$G$146,7,0),0) -> 0 | J80: 0 | K80: 10475 | L80: =IF(E80>$E$17,_xlfn.IFNA(VLOOKUP(B80,'other funds ftr 2026'!A:I,9,FALSE),0),1) -> 0 | M80: 10475 | N80: =1+IF(ISNA(VLOOKUP(B80,'Rural and Low Income 26-27'!$A$1:$B$132,2,FALSE)),0,$N$17) -> 1.1 | O80: 0 | R80: 0 | S80: 0 | T80: =IFERROR(VLOOKUP(B80,'2025-26 Final'!$B$19:$AA$164,26,0),0) -> 0 | U80: 0 | V80: n | Y80: 0 | AA80: 0
A81: 65 | B81: 31025 | D81: MARYSVILLE | E81: =IFERROR(VLOOKUP(B81,Enrollment!$A$2:$G$146,5,0),0) -> 311 | F81: 153309 | G81: =IFERROR(VLOOKUP(B81,Enrollment!$A$2:$G$146,6,0),0) -> 84 | H81: 10352 | I81: =IFERROR(VLOOKUP(B81,Enrollment!$A$2:$G$146,7,0),0) -> 105 | J81: 51760 | K81: =+F81+H81+J81 -> 215421 | L81: =IF(E81>$E$17,_xlfn.IFNA(VLOOKUP(B81,'other funds ftr 2026'!A:I,9,FALSE),0),1) -> 0.95 | M81: =IF(L81=0,K81,ROUND(K81*L81,0)) -> 204650 | N81: =1+IF(ISNA(VLOOKUP(B81,'Rural and Low Income 26-27'!$A$1:$B$132,2,FALSE)),0,$N$17) -> 1 | O81: =IF(V81="y",ROUND(M81*N81,0),0) -> 204650 | R81: 0 | S81: =O81+R81 -> 204650 | T81: =IFERROR(VLOOKUP(B81,'2025-26 Final'!$B$19:$AA$164,26,0),0) -> 243018 | U81: =S81-T81 -> -38368 | V81: y | Y81: 1250 | AA81: 205900
A82: 66 | B82: 37505 | D82: MERIDIAN | E82: =IFERROR(VLOOKUP(B82,Enrollment!$A$2:$G$146,5,0),0) -> 41 | F82: =IF(E82>=10,ROUND(E82*$G$3,0),0) -> 20211 | G82: =IFERROR(VLOOKUP(B82,Enrollment!$A$2:$G$146,6,0),0) -> 19 | H82: =IF(E82>=$E$17,ROUND(G82*$G$3*$G$17,0),0) -> 2342 | I82: =IFERROR(VLOOKUP(B82,Enrollment!$A$2:$G$146,7,0),0) -> 4 | J82: =IF(E82>=$E$17,ROUND(I82*$G$3*$I$17,0),0) -> 1972 | K82: 24525 | L82: =IF(E82>$E$17,_xlfn.IFNA(VLOOKUP(B82,'other funds ftr 2026'!A:I,9,FALSE),0),1) -> 0.95 | M82: 23299 | N82: =1+IF(ISNA(VLOOKUP(B82,'Rural and Low Income 26-27'!$A$1:$B$132,2,FALSE)),0,$N$17) -> 1 | O82: 23299 | R82: 0 | S82: 23299 | T82: =IFERROR(VLOOKUP(B82,'2025-26 Final'!$B$19:$AA$164,26,0),0) -> 20241 | U82: 3058 | V82: y | Y82: 750 | AA82: =IF(W82=1, 0, Y82+S82+Z82) -> 24049
A83: 67 | B83: 31103 | D83: MONROE | E83: =IFERROR(VLOOKUP(B83,Enrollment!$A$2:$G$146,5,0),0) -> 0 | F83: 0 | G83: =IFERROR(VLOOKUP(B83,Enrollment!$A$2:$G$146,6,0),0) -> 0 | H83: 0 | I83: =IFERROR(VLOOKUP(B83,Enrollment!$A$2:$G$146,7,0),0) -> 0 | J83: 0 | K83: 0 | L83: =IF(E83>$E$17,_xlfn.IFNA(VLOOKUP(B83,'other funds ftr 2026'!A:I,9,FALSE),0),1) -> 1 | M83: 0 | N83: =1+IF(ISNA(VLOOKUP(B83,'Rural and Low Income 26-27'!$A$1:$B$132,2,FALSE)),0,$N$17) -> 1 | O83: 0 | R83: 0 | S83: 0 | T83: =IFERROR(VLOOKUP(B83,'2025-26 Final'!$B$19:$AA$164,26,0),0) -> 0 | U83: 0 | V83: n | X83: Y | Y83: 0 | AA83: 0
A84: 68 | B84: 13161 | D84: MOSES LAKE | E84: =IFERROR(VLOOKUP(B84,Enrollment!$A$2:$G$146,5,0),0) -> 516 | F84: 254365 | G84: =IFERROR(VLOOKUP(B84,Enrollment!$A$2:$G$146,6,0),0) -> 162 | H84: 19965 | I84: =IFERROR(VLOOKUP(B84,Enrollment!$A$2:$G$146,7,0),0) -> 146 | J84: 71971 | K84: 346301 | L84: =IF(E84>$E$17,_xlfn.IFNA(VLOOKUP(B84,'other funds ftr 2026'!A:I,9,FALSE),0),1) -> 1 | M84: 346301 | N84: =1+IF(ISNA(VLOOKUP(B84,'Rural and Low Income 26-27'!$A$1:$B$132,2,FALSE)),0,$N$17) -> 1.1 | O84: 380931 | R84: 0 | S84: 380931 | T84: =IFERROR(VLOOKUP(B84,'2025-26 Final'!$B$19:$AA$164,26,0),0) -> 382202 | U84: -1271 | V84: y | X84: Y | Y84: =IF(V84="Y",IF(E84<=99,750,IF(AND(E84>=100,E84<=399),1250,2000)),0) -> 2000 | Z84: 125662 | AA84: 508593
A85: 69 | B85: 21206 | D85: MOSSYROCK | E85: =IFERROR(VLOOKUP(B85,Enrollment!$A$2:$G$146,5,0),0) -> 66 | F85: 32535 | G85: =IFERROR(VLOOKUP(B85,Enrollment!$A$2:$G$146,6,0),0) -> 19 | H85: 2342 | I85: =IFERROR(VLOOKUP(B85,Enrollment!$A$2:$G$146,7,0),0) -> 16 | J85: 7887 | K85: 42764 | L85: =IF(E85>$E$17,_xlfn.IFNA(VLOOKUP(B85,'other funds ftr 2026'!A:I,9,FALSE),0),1) -> 1 | M85: 42764 | N85: =1+IF(ISNA(VLOOKUP(B85,'Rural and Low Income 26-27'!$A$1:$B$132,2,FALSE)),0,$N$17) -> 1 | O85: 42764 | R85: 0 | S85: 42764 | T85: =IFERROR(VLOOKUP(B85,'2025-26 Final'!$B$19:$AA$164,26,0),0) -> 39734 | U85: 3030 | V85: y | Y85: 750 | AA85: 43514
A86: 70 | B86: 39209 | D86: MOUNT ADAMS | E86: =IFERROR(VLOOKUP(B86,Enrollment!$A$2:$G$146,5,0),0) -> 361 | F86: 177957 | G86: =IFERROR(VLOOKUP(B86,Enrollment!$A$2:$G$146,6,0),0) -> 117 | H86: 14419 | I86: =IFERROR(VLOOKUP(B86,Enrollment!$A$2:$G$146,7,0),0) -> 83 | J86: 40915 | K86: 233291 | L86: =IF(E86>$E$17,_xlfn.IFNA(VLOOKUP(B86,'other funds ftr 2026'!A:I,9,FALSE),0),1) -> 1.1 | M86: 256620 | N86: =1+IF(ISNA(VLOOKUP(B86,'Rural and Low Income 26-27'!$A$1:$B$132,2,FALSE)),0,$N$17) -> 1 | O86: 256620 | R86: 0 | S86: 256620 | T86: =IFERROR(VLOOKUP(B86,'2025-26 Final'!$B$19:$AA$164,26,0),0) -> 257895 | U86: -1275 | V86: y | Y86: 1250 | AA86: 257870
A87: 71 | B87: 37507 | D87: MOUNT BAKER | E87: =IFERROR(VLOOKUP(B87,Enrollment!$A$2:$G$146,5,0),0) -> 21 | F87: 10352 | G87: =IFERROR(VLOOKUP(B87,Enrollment!$A$2:$G$146,6,0),0) -> 8 | H87: 986 | I87: =IFERROR(VLOOKUP(B87,Enrollment!$A$2:$G$146,7,0),0) -> 7 | J87: 3451 | K87: 14789 | L87: =IF(E87>$E$17,_xlfn.IFNA(VLOOKUP(B87,'other funds ftr 2026'!A:I,9,FALSE),0),1) -> 0.95 | M87: 14050 | N87: =1+IF(ISNA(VLOOKUP(B87,'Rural and Low Income 26-27'!$A$1:$B$132,2,FALSE)),0,$N$17) -> 1 | O87: 14050 | R87: 0 | S87: 14050 | T87: =IFERROR(VLOOKUP(B87,'2025-26 Final'!$B$19:$AA$164,26,0),0) -> 13689 | U87: 361 | V87: y | Y87: 750 | AA87: 14800
A88: 72 | B88: 29320 | D88: MOUNT VERNON | E88: =IFERROR(VLOOKUP(B88,Enrollment!$A$2:$G$146,5,0),0) -> 1093 | F88: 538799 | G88: =IFERROR(VLOOKUP(B88,Enrollment!$A$2:$G$146,6,0),0) -> 624 | H88: 76901 | I88: =IFERROR(VLOOKUP(B88,Enrollment!$A$2:$G$146,7,0),0) -> 171 | J88: 84295 | K88: 699995 | L88: =IF(E88>$E$17,_xlfn.IFNA(VLOOKUP(B88,'other funds ftr 2026'!A:I,9,FALSE),0),1) -> 1.1 | M88: 769995 | N88: =1+IF(ISNA(VLOOKUP(B88,'Rural and Low Income 26-27'!$A$1:$B$132,2,FALSE)),0,$N$17) -> 1 | O88: 769995 | R88: 0 | S88: 769995 | T88: =IFERROR(VLOOKUP(B88,'2025-26 Final'!$B$19:$AA$164,26,0),0) -> 1238340 | U88: -468345 | V88: y | Y88: 2000 | AA88: 771995
A89: 73 | B89: 17903 | D89: MUCKLESHOOT INDIAN TRIBE | E89: =IFERROR(VLOOKUP(B89,Enrollment!$A$2:$G$146,5,0),0) -> 11 | F89: 5423 | G89: =IFERROR(VLOOKUP(B89,Enrollment!$A$2:$G$146,6,0),0) -> 7 | H89: 863 | I89: =IFERROR(VLOOKUP(B89,Enrollment!$A$2:$G$146,7,0),0) -> 3 | J89: 1479 | K89: 7765 | L89: =IF(E89>$E$17,_xlfn.IFNA(VLOOKUP(B89,'other funds ftr 2026'!A:I,9,FALSE),0),1) -> 0 | M89: 7765 | N89: =1+IF(ISNA(VLOOKUP(B89,'Rural and Low Income 26-27'!$A$1:$B$132,2,FALSE)),0,$N$17) -> 1 | O89: 0 | R89: 0 | S89: 0 | T89: =IFERROR(VLOOKUP(B89,'2025-26 Final'!$B$19:$AA$164,26,0),0) -> 0 | U89: 0 | V89: n | Y89: 0 | AA89: 0
A90: 74 | B90: 31006 | D90: MUKILTEO | E90: =IFERROR(VLOOKUP(B90,Enrollment!$A$2:$G$146,5,0),0) -> 14 | F90: 6901 | G90: =IFERROR(VLOOKUP(B90,Enrollment!$A$2:$G$146,6,0),0) -> 10 | H90: 1232 | I90: =IFERROR(VLOOKUP(B90,Enrollment!$A$2:$G$146,7,0),0) -> 0 | J90: 0 | K90: 8133 | L90: =IF(E90>$E$17,_xlfn.IFNA(VLOOKUP(B90,'other funds ftr 2026'!A:I,9,FALSE),0),1) -> 0 | M90: 8133 | N90: =1+IF(ISNA(VLOOKUP(B90,'Rural and Low Income 26-27'!$A$1:$B$132,2,FALSE)),0,$N$17) -> 1 | O90: 0 | R90: 0 | S90: 0 | T90: =IFERROR(VLOOKUP(B90,'2025-26 Final'!$B$19:$AA$164,26,0),0) -> 0 | U90: 0 | V90: n | Y90: 0 | AA90: 0
A91: 75 | B91: 39003 | D91: NACHES VALLEY | E91: =IFERROR(VLOOKUP(B91,Enrollment!$A$2:$G$146,5,0),0) -> 87 | F91: 42887 | G91: =IFERROR(VLOOKUP(B91,Enrollment!$A$2:$G$146,6,0),0) -> 49 | H91: 6039 | I91: =IFERROR(VLOOKUP(B91,Enrollment!$A$2:$G$146,7,0),0) -> 18 | J91: 8873 | K91: 57799 | L91: =IF(E91>$E$17,_xlfn.IFNA(VLOOKUP(B91,'other funds ftr 2026'!A:I,9,FALSE),0),1) -> 1.05 | M91: 60689 | N91: =1+IF(ISNA(VLOOKUP(B91,'Rural and Low Income 26-27'!$A$1:$B$132,2,FALSE)),0,$N$17) -> 1 | O91: 60689 | R91: 0 | S91: 60689 | T91: =IFERROR(VLOOKUP(B91,'2025-26 Final'!$B$19:$AA$164,26,0),0) -> 67679 | U91: -6990 | V91: y | Y91: 750 | AA91: 61439
A92: 76 | B92: 25155 | D92: NASELLE-GRAYS RIVER VALLEY | E92: =IFERROR(VLOOKUP(B92,Enrollment!$A$2:$G$146,5,0),0) -> 50 | F92: 24648 | G92: =IFERROR(VLOOKUP(B92,Enrollment!$A$2:$G$146,6,0),0) -> 8 | H92: 986 | I92: =IFERROR(VLOOKUP(B92,Enrollment!$A$2:$G$146,7,0),0) -> 12 | J92: 5915 | K92: 31549 | L92: =IF(E92>$E$17,_xlfn.IFNA(VLOOKUP(B92,'other funds ftr 2026'!A:I,9,FALSE),0),1) -> 1.1 | M92: 34704 | N92: =1+IF(ISNA(VLOOKUP(B92,'Rural and Low Income 26-27'!$A$1:$B$132,2,FALSE)),0,$N$17) -> 1.1 | O92: 38174 | R92: 0 | S92: 38174 | T92: =IFERROR(VLOOKUP(B92,'2025-26 Final'!$B$19:$AA$164,26,0),0) -> 47636 | U92: -9462 | V92: y | Y92: 750 | AA92: 38924
A93: 77 | B93: 24014 | D93: NESPELEM | E93: =IFERROR(VLOOKUP(B93,Enrollment!$A$2:$G$146,5,0),0) -> 41 | F93: 20211 | G93: =IFERROR(VLOOKUP(B93,Enrollment!$A$2:$G$146,6,0),0) -> 19 | H93: 2342 | I93: =IFERROR(VLOOKUP(B93,Enrollment!$A$2:$G$146,7,0),0) -> 1 | J93: 493 | K93: 23046 | L93: =IF(E93>$E$17,_xlfn.IFNA(VLOOKUP(B93,'other funds ftr 2026'!A:I,9,FALSE),0),1) -> 1.1 | M93: 25351 | N93: =1+IF(ISNA(VLOOKUP(B93,'Rural and Low Income 26-27'!$A$1:$B$132,2,FALSE)),0,$N$17) -> 1.1 | O93: 27886 | R93: 0 | S93: 27886 | T93: =IFERROR(VLOOKUP(B93,'2025-26 Final'!$B$19:$AA$164,26,0),0) -> 45790 | U93: -17904 | V93: y | Y93: 750 | AA93: 28636
A94: 78 | B94: 37506 | D94: NOOKSACK VALLEY | E94: =IFERROR(VLOOKUP(B94,Enrollment!$A$2:$G$146,5,0),0) -> 114 | F94: 56197 | G94: =IFERROR(VLOOKUP(B94,Enrollment!$A$2:$G$146,6,0),0) -> 55 | H94: 6778 | I94: =IFERROR(VLOOKUP(B94,Enrollment!$A$2:$G$146,7,0),0) -> 25 | J94: 12324 | K94: 75299 | L94: =IF(E94>$E$17,_xlfn.IFNA(VLOOKUP(B94,'other funds ftr 2026'!A:I,9,FALSE),0),1) -> 1 | M94: 75299 | N94: =1+IF(ISNA(VLOOKUP(B94,'Rural and Low Income 26-27'!$A$1:$B$132,2,FALSE)),0,$N$17) -> 1 | O94: 75299 | R94: 0 | S94: 75299 | T94: =IFERROR(VLOOKUP(B94,'2025-26 Final'!$B$19:$AA$164,26,0),0) -> 83678 | U94: -8379 | V94: y | Y94: 1250 | AA94: 76549
A95: 79 | B95: 14064 | D95: NORTH BEACH | E95: =IFERROR(VLOOKUP(B95,Enrollment!$A$2:$G$146,5,0),0) -> 0 | F95: 0 | G95: =IFERROR(VLOOKUP(B95,Enrollment!$A$2:$G$146,6,0),0) -> 0 | H95: 0 | I95: =IFERROR(VLOOKUP(B95,Enrollment!$A$2:$G$146,7,0),0) -> 0 | J95: 0 | K95: 0 | L95: =IF(E95>$E$17,_xlfn.IFNA(VLOOKUP(B95,'other funds ftr 2026'!A:I,9,FALSE),0),1) -> 1 | M95: 0 | N95: =1+IF(ISNA(VLOOKUP(B95,'Rural and Low Income 26-27'!$A$1:$B$132,2,FALSE)),0,$N$17) -> 1 | O95: 0 | R95: 0 | S95: 0 | T95: =IFERROR(VLOOKUP(B95,'2025-26 Final'!$B$19:$AA$164,26,0),0) -> 16719 | U95: -16719 | V95: n | Y95: 0 | AA95: 0
A96: 80 | B96: 11051 | D96: NORTH FRANKLIN | E96: =IFERROR(VLOOKUP(B96,Enrollment!$A$2:$G$146,5,0),0) -> 634 | F96: 312533 | G96: =IFERROR(VLOOKUP(B96,Enrollment!$A$2:$G$146,6,0),0) -> 147 | H96: 18116 | I96: =IFERROR(VLOOKUP(B96,Enrollment!$A$2:$G$146,7,0),0) -> 296 | J96: 145915 | K96: 476564 | L96: =IF(E96>$E$17,_xlfn.IFNA(VLOOKUP(B96,'other funds ftr 2026'!A:I,9,FALSE),0),1) -> 1.1 | M96: 524220 | N96: =1+IF(ISNA(VLOOKUP(B96,'Rural and Low Income 26-27'!$A$1:$B$132,2,FALSE)),0,$N$17) -> 1 | O96: 524220 | R96: 0 | S96: 524220 | T96: =IFERROR(VLOOKUP(B96,'2025-26 Final'!$B$19:$AA$164,26,0),0) -> 500953 | U96: 23267 | V96: y | Y96: 2000 | AA96: 526220
A97: 81 | B97: 18400 | D97: NORTH KITSAP | E97: =IFERROR(VLOOKUP(B97,Enrollment!$A$2:$G$146,5,0),0) -> 78 | F97: 38450 | G97: =IFERROR(VLOOKUP(B97,Enrollment!$A$2:$G$146,6,0),0) -> 12 | H97: 1479 | I97: =IFERROR(VLOOKUP(B97,Enrollment!$A$2:$G$146,7,0),0) -> 11 | J97: 5423 | K97: 45352 | L97: =IF(E97>$E$17,_xlfn.IFNA(VLOOKUP(B97,'other funds ftr 2026'!A:I,9,FALSE),0),1) -> 0 | M97: 45352 | N97: =1+IF(ISNA(VLOOKUP(B97,'Rural and Low Income 26-27'!$A$1:$B$132,2,FALSE)),0,$N$17) -> 1 | O97: 45352 | R97: 0 | S97: 45352 | T97: =IFERROR(VLOOKUP(B97,'2025-26 Final'!$B$19:$AA$164,26,0),0) -> 0 | U97: 45352 | V97: y | Y97: 750 | AA97: 46102
A98: 82 | B98: 23403 | D98: NORTH MASON | E98: =IFERROR(VLOOKUP(B98,Enrollment!$A$2:$G$146,5,0),0) -> 0 | F98: 0 | G98: =IFERROR(VLOOKUP(B98,Enrollment!$A$2:$G$146,6,0),0) -> 0 | H98: 0 | I98: =IFERROR(VLOOKUP(B98,Enrollment!$A$2:$G$146,7,0),0) -> 0 | J98: 0 | K98: 0 | L98: =IF(E98>$E$17,_xlfn.IFNA(VLOOKUP(B98,'other funds ftr 2026'!A:I,9,FALSE),0),1) -> 1 | M98: 0 | N98: =1+IF(ISNA(VLOOKUP(B98,'Rural and Low Income 26-27'!$A$1:$B$132,2,FALSE)),0,$N$17) -> 1 | O98: 0 | R98: =ROUND(IF(Q98>0,-(0.9-Q98)*O98,0),0) -> 0 | S98: 0 | T98: =IFERROR(VLOOKUP(B98,'2025-26 Final'!$B$19:$AA$164,26,0),0) -> 0 | U98: 0 | V98: n | Y98: 0 | AA98: 0
A99: 83 | B99: 34003 | D99: NORTH THURSTON PUBLIC SCHOOLS | E99: =IFERROR(VLOOKUP(B99,Enrollment!$A$2:$G$146,5,0),0) -> 58 | F99: 28591 | G99: =IFERROR(VLOOKUP(B99,Enrollment!$A$2:$G$146,6,0),0) -> 25 | H99: 3081 | I99: =IFERROR(VLOOKUP(B99,Enrollment!$A$2:$G$146,7,0),0) -> 1 | J99: 493 | K99: 32165 | L99: =IF(E99>$E$17,_xlfn.IFNA(VLOOKUP(B99,'other funds ftr 2026'!A:I,9,FALSE),0),1) -> 0.95 | M99: 30557 | N99: =1+IF(ISNA(VLOOKUP(B99,'Rural and Low Income 26-27'!$A$1:$B$132,2,FALSE)),0,$N$17) -> 1 | O99: 30557 | R99: 0 | S99: 30557 | T99: =IFERROR(VLOOKUP(B99,'2025-26 Final'!$B$19:$AA$164,26,0),0) -> 33545 | U99: -2988 | V99: y | Y99: 750 | AA99: 31307
A100: 84 | B100: 15201 | D100: OAK HARBOR | E100: =IFERROR(VLOOKUP(B100,Enrollment!$A$2:$G$146,5,0),0) -> 0 | F100: 0 | G100: =IFERROR(VLOOKUP(B100,Enrollment!$A$2:$G$146,6,0),0) -> 0 | H100: 0 | I100: =IFERROR(VLOOKUP(B100,Enrollment!$A$2:$G$146,7,0),0) -> 0 | J100: 0 | K100: 0 | L100: =IF(E100>$E$17,_xlfn.IFNA(VLOOKUP(B100,'other funds ftr 2026'!A:I,9,FALSE),0),1) -> 1 | M100: 0 | N100: =1+IF(ISNA(VLOOKUP(B100,'Rural and Low Income 26-27'!$A$1:$B$132,2,FALSE)),0,$N$17) -> 1 | O100: 0 | R100: 0 | S100: 0 | T100: =IFERROR(VLOOKUP(B100,'2025-26 Final'!$B$19:$AA$164,26,0),0) -> 0 | U100: 0 | V100: n | Y100: 0 | AA100: 0
A101: 85 | B101: 25101 | D101: OCEAN BEACH | E101: =IFERROR(VLOOKUP(B101,Enrollment!$A$2:$G$146,5,0),0) -> 25 | F101: 12324 | G101: =IFERROR(VLOOKUP(B101,Enrollment!$A$2:$G$146,6,0),0) -> 5 | H101: 616 | I101: =IFERROR(VLOOKUP(B101,Enrollment!$A$2:$G$146,7,0),0) -> 13 | J101: 6408 | K101: 19348 | L101: =IF(E101>$E$17,_xlfn.IFNA(VLOOKUP(B101,'other funds ftr 2026'!A:I,9,FALSE),0),1) -> 1 | M101: 19348 | N101: =1+IF(ISNA(VLOOKUP(B101,'Rural and Low Income 26-27'!$A$1:$B$132,2,FALSE)),0,$N$17) -> 1 | O101: 0 | R101: 0 | S101: 0 | T101: =IFERROR(VLOOKUP(B101,'2025-26 Final'!$B$19:$AA$164,26,0),0) -> 28861 | U101: -28861 | V101: n | Y101: 0 | AA101: 0
A102: 86 | B102: 14172 | D102: OCOSTA | E102: =IFERROR(VLOOKUP(B102,Enrollment!$A$2:$G$146,5,0),0) -> 31 | F102: 15282 | G102: =IFERROR(VLOOKUP(B102,Enrollment!$A$2:$G$146,6,0),0) -> 4 | H102: 493 | I102: =IFERROR(VLOOKUP(B102,Enrollment!$A$2:$G$146,7,0),0) -> 15 | J102: 7394 | K102: 23169 | L102: =IF(E102>$E$17,_xlfn.IFNA(VLOOKUP(B102,'other funds ftr 2026'!A:I,9,FALSE),0),1) -> 1 | M102: 23169 | N102: =1+IF(ISNA(VLOOKUP(B102,'Rural and Low Income 26-27'!$A$1:$B$132,2,FALSE)),0,$N$17) -> 1.1 | O102: 25486 | R102: 0 | S102: 25486 | T102: =IFERROR(VLOOKUP(B102,'2025-26 Final'!$B$19:$AA$164,26,0),0) -> 24903 | U102: 583 | V102: y | Y102: 750 | AA102: 26236
A103: 87 | B103: 24105 | D103: OKANOGAN | E103: =IFERROR(VLOOKUP(B103,Enrollment!$A$2:$G$146,5,0),0) -> 46 | F103: 22676 | G103: =IFERROR(VLOOKUP(B103,Enrollment!$A$2:$G$146,6,0),0) -> 21 | H103: 2588 | I103: =IFERROR(VLOOKUP(B103,Enrollment!$A$2:$G$146,7,0),0) -> 4 | J103: 1972 | K103: 27236 | L103: =IF(E103>$E$17,_xlfn.IFNA(VLOOKUP(B103,'other funds ftr 2026'!A:I,9,FALSE),0),1) -> 0 | M103: 27236 | N103: =1+IF(ISNA(VLOOKUP(B103,'Rural and Low Income 26-27'!$A$1:$B$132,2,FALSE)),0,$N$17) -> 1.1 | O103: 0 | R103: 0 | S103: 0 | T103: =IFERROR(VLOOKUP(B103,'2025-26 Final'!$B$19:$AA$164,26,0),0) -> 0 | U103: 0 | V103: n | Y103: 0 | AA103: 0
A104: 88 | B104: 34111 | D104: OLYMPIA | E104: =IFERROR(VLOOKUP(B104,Enrollment!$A$2:$G$146,5,0),0) -> 48 | F104: 23662 | G104: =IFERROR(VLOOKUP(B104,Enrollment!$A$2:$G$146,6,0),0) -> 13 | H104: 1602 | I104: =IFERROR(VLOOKUP(B104,Enrollment!$A$2:$G$146,7,0),0) -> 23 | J104: 11338 | K104: 36602 | L104: =IF(E104>$E$17,_xlfn.IFNA(VLOOKUP(B104,'other funds ftr 2026'!A:I,9,FALSE),0),1) -> 0.95 | M104: 34772 | N104: =1+IF(ISNA(VLOOKUP(B104,'Rural and Low Income 26-27'!$A$1:$B$132,2,FALSE)),0,$N$17) -> 1 | O104: 34772 | R104: 0 | S104: 34772 | T104: =IFERROR(VLOOKUP(B104,'2025-26 Final'!$B$19:$AA$164,26,0),0) -> 222876 | U104: -188104 | V104: y | Y104: 750 | AA104: 35522
A105: 89 | B105: 24019 | D105: OMAK | E105: =IFERROR(VLOOKUP(B105,Enrollment!$A$2:$G$146,5,0),0) -> 48 | F105: 23662 | G105: =IFERROR(VLOOKUP(B105,Enrollment!$A$2:$G$146,6,0),0) -> 27 | H105: 3327 | I105: =IFERROR(VLOOKUP(B105,Enrollment!$A$2:$G$146,7,0),0) -> 12 | J105: 5915 | K105: 32904 | L105: =IF(E105>$E$17,_xlfn.IFNA(VLOOKUP(B105,'other funds ftr 2026'!A:I,9,FALSE),0),1) -> 0 | M105: 32904 | N105: =1+IF(ISNA(VLOOKUP(B105,'Rural and Low Income 26-27'!$A$1:$B$132,2,FALSE)),0,$N$17) -> 1.1 | O105: 0 | R105: 0 | S105: 0 | T105: =IFERROR(VLOOKUP(B105,'2025-26 Final'!$B$19:$AA$164,26,0),0) -> 0 | U105: 0 | V105: n | Y105: 0 | AA105: 0
A106: 90 | B106: 09013 | D106: ORONDO | E106: =IFERROR(VLOOKUP(B106,Enrollment!$A$2:$G$146,5,0),0) -> 38 | F106: 18732 | G106: =IFERROR(VLOOKUP(B106,Enrollment!$A$2:$G$146,6,0),0) -> 5 | H106: 616 | I106: =IFERROR(VLOOKUP(B106,Enrollment!$A$2:$G$146,7,0),0) -> 6 | J106: 2958 | K106: 22306 | L106: =IF(E106>$E$17,_xlfn.IFNA(VLOOKUP(B106,'other funds ftr 2026'!A:I,9,FALSE),0),1) -> 1.1 | M106: 24537 | N106: =1+IF(ISNA(VLOOKUP(B106,'Rural and Low Income 26-27'!$A$1:$B$132,2,FALSE)),0,$N$17) -> 1.1 | O106: 26991 | R106: 0 | S106: 26991 | T106: =IFERROR(VLOOKUP(B106,'2025-26 Final'!$B$19:$AA$164,26,0),0) -> 33144 | U106: -6153 | V106: y | Y106: 750 | AA106: 27741
A107: 91 | B107: 24410 | D107: OROVILLE | E107: =IFERROR(VLOOKUP(B107,Enrollment!$A$2:$G$146,5,0),0) -> 35 | F107: 17253 | G107: =IFERROR(VLOOKUP(B107,Enrollment!$A$2:$G$146,6,0),0) -> 6 | H107: 739 | I107: =IFERROR(VLOOKUP(B107,Enrollment!$A$2:$G$146,7,0),0) -> 7 | J107: 3451 | K107: 21443 | L107: =IF(E107>$E$17,_xlfn.IFNA(VLOOKUP(B107,'other funds ftr 2026'!A:I,9,FALSE),0),1) -> 0 | M107: 21443 | N107: =1+IF(ISNA(VLOOKUP(B107,'Rural and Low Income 26-27'!$A$1:$B$132,2,FALSE)),0,$N$17) -> 1.1 | O107: 0 | R107: 0 | S107: 0 | T107: =IFERROR(VLOOKUP(B107,'2025-26 Final'!$B$19:$AA$164,26,0),0) -> 0 | U107: 0 | V107: n | Y107: 0 | AA107: 0
A108: 92 | B108: 01147 | D108: OTHELLO | E108: =IFERROR(VLOOKUP(B108,Enrollment!$A$2:$G$146,5,0),0) -> 845 | F108: 416547 | G108: =IFERROR(VLOOKUP(B108,Enrollment!$A$2:$G$146,6,0),0) -> 234 | H108: 28838 | I108: =IFERROR(VLOOKUP(B108,Enrollment!$A$2:$G$146,7,0),0) -> 291 | J108: 143450 | K108: 588835 | L108: =IF(E108>$E$17,_xlfn.IFNA(VLOOKUP(B108,'other funds ftr 2026'!A:I,9,FALSE),0),1) -> 1.05 | M108: 618277 | N108: =1+IF(ISNA(VLOOKUP(B108,'Rural and Low Income 26-27'!$A$1:$B$132,2,FALSE)),0,$N$17) -> 1 | O108: 618277 | R108: 0 | S108: 618277 | T108: =IFERROR(VLOOKUP(B108,'2025-26 Final'!$B$19:$AA$164,26,0),0) -> 587017 | U108: 31260 | V108: y | Y108: 2000 | AA108: 620277
A109: 93 | B109: 11001 | D109: PASCO | E109: =IFERROR(VLOOKUP(B109,Enrollment!$A$2:$G$146,5,0),0) -> 1734 | F109: 854783 | G109: =IFERROR(VLOOKUP(B109,Enrollment!$A$2:$G$146,6,0),0) -> 645 | H109: 79489 | I109: =IFERROR(VLOOKUP(B109,Enrollment!$A$2:$G$146,7,0),0) -> 520 | J109: 256336 | K109: 1190608 | L109: =IF(E109>$E$17,_xlfn.IFNA(VLOOKUP(B109,'other funds ftr 2026'!A:I,9,FALSE),0),1) -> 1 | M109: 1190608 | N109: =1+IF(ISNA(VLOOKUP(B109,'Rural and Low Income 26-27'!$A$1:$B$132,2,FALSE)),0,$N$17) -> 1 | O109: 1190608 | R109: 0 | S109: 1190608 | T109: =IFERROR(VLOOKUP(B109,'2025-26 Final'!$B$19:$AA$164,26,0),0) -> 1276008 | U109: -85400 | V109: y | Y109: 2000 | AA109: 1192608
A110: 94 | B110: 24122 | D110: PATEROS | E110: =IFERROR(VLOOKUP(B110,Enrollment!$A$2:$G$146,5,0),0) -> 0 | F110: 0 | G110: =IFERROR(VLOOKUP(B110,Enrollment!$A$2:$G$146,6,0),0) -> 0 | H110: 0 | I110: =IFERROR(VLOOKUP(B110,Enrollment!$A$2:$G$146,7,0),0) -> 0 | J110: 0 | K110: 0 | L110: =IF(E110>$E$17,_xlfn.IFNA(VLOOKUP(B110,'other funds ftr 2026'!A:I,9,FALSE),0),1) -> 1 | M110: 0 | N110: =1+IF(ISNA(VLOOKUP(B110,'Rural and Low Income 26-27'!$A$1:$B$132,2,FALSE)),0,$N$17) -> 1.1 | O110: 0 | R110: 0 | S110: 0 | T110: =IFERROR(VLOOKUP(B110,'2025-26 Final'!$B$19:$AA$164,26,0),0) -> 0 | U110: 0 | V110: n | Y110: 0 | AA110: 0
A111: 95 | B111: 03050 | D111: PATERSON | E111: =IFERROR(VLOOKUP(B111,Enrollment!$A$2:$G$146,5,0),0) -> 18 | F111: 8873 | G111: =IFERROR(VLOOKUP(B111,Enrollment!$A$2:$G$146,6,0),0) -> 3 | H111: 370 | I111: =IFERROR(VLOOKUP(B111,Enrollment!$A$2:$G$146,7,0),0) -> 2 | J111: 986 | K111: 10229 | L111: =IF(E111>$E$17,_xlfn.IFNA(VLOOKUP(B111,'other funds ftr 2026'!A:I,9,FALSE),0),1) -> 1.1 | M111: 11252 | N111: =1+IF(ISNA(VLOOKUP(B111,'Rural and Low Income 26-27'!$A$1:$B$132,2,FALSE)),0,$N$17) -> 1.1 | O111: 12377 | R111: 0 | S111: 12377 | T111: =IFERROR(VLOOKUP(B111,'2025-26 Final'!$B$19:$AA$164,26,0),0) -> 18787 | U111: -6410 | V111: y | Y111: 750 | AA111: 13127
A112: 96 | B112: 04901 | D112: PINNACLES PREP CHARTER SCHOOL | E112: =IFERROR(VLOOKUP(B112,Enrollment!$A$2:$G$146,5,0),0) -> 21 | F112: 10352 | G112: =IFERROR(VLOOKUP(B112,Enrollment!$A$2:$G$146,6,0),0) -> 12 | H112: 1479 | I112: =IFERROR(VLOOKUP(B112,Enrollment!$A$2:$G$146,7,0),0) -> 8 | J112: 3944 | K112: 15775 | L112: =IF(E112>$E$17,_xlfn.IFNA(VLOOKUP(B112,'other funds ftr 2026'!A:I,9,FALSE),0),1) -> 0 | M112: 15775 | N112: =1+IF(ISNA(VLOOKUP(B112,'Rural and Low Income 26-27'!$A$1:$B$132,2,FALSE)),0,$N$17) -> 1 | O112: 15775 | R112: 0 | S112: 15775 | T112: =IFERROR(VLOOKUP(B112,'2025-26 Final'!$B$19:$AA$164,26,0),0) -> 0 | U112: 15775 | V112: y | Y112: 750 | AA112: 16525
A113: 97 | B113: 36402 | D113: PRESCOTT | E113: =IFERROR(VLOOKUP(B113,Enrollment!$A$2:$G$146,5,0),0) -> 68 | F113: 33521 | G113: =IFERROR(VLOOKUP(B113,Enrollment!$A$2:$G$146,6,0),0) -> 6 | H113: 739 | I113: =IFERROR(VLOOKUP(B113,Enrollment!$A$2:$G$146,7,0),0) -> 7 | J113: 3451 | K113: 37711 | L113: =IF(E113>$E$17,_xlfn.IFNA(VLOOKUP(B113,'other funds ftr 2026'!A:I,9,FALSE),0),1) -> 1.05 | M113: 39597 | N113: =1+IF(ISNA(VLOOKUP(B113,'Rural and Low Income 26-27'!$A$1:$B$132,2,FALSE)),0,$N$17) -> 1.1 | O113: 43557 | R113: 0 | S113: 43557 | T113: =IFERROR(VLOOKUP(B113,'2025-26 Final'!$B$19:$AA$164,26,0),0) -> 0 | U113: 43557 | V113: y | W113: 1 | Y113: 750 | AA113: 0
A114: 98 | B114: 03116 | D114: PROSSER | E114: =IFERROR(VLOOKUP(B114,Enrollment!$A$2:$G$146,5,0),0) -> 845 | F114: 416547 | G114: =IFERROR(VLOOKUP(B114,Enrollment!$A$2:$G$146,6,0),0) -> 286 | H114: 35246 | I114: =IFERROR(VLOOKUP(B114,Enrollment!$A$2:$G$146,7,0),0) -> 250 | J114: 123239 | K114: 575032 | L114: =IF(E114>$E$17,_xlfn.IFNA(VLOOKUP(B114,'other funds ftr 2026'!A:I,9,FALSE),0),1) -> 1.1 | M114: 632535 | N114: =1+IF(ISNA(VLOOKUP(B114,'Rural and Low Income 26-27'!$A$1:$B$132,2,FALSE)),0,$N$17) -> 1 | O114: 632535 | R114: 0 | S114: 632535 | T114: =IFERROR(VLOOKUP(B114,'2025-26 Final'!$B$19:$AA$164,26,0),0) -> 623916 | U114: 8619 | V114: y | Y114: 2000 | AA114: 634535
A115: 99 | B115: 27003 | D115: PUYALLUP | E115: =IFERROR(VLOOKUP(B115,Enrollment!$A$2:$G$146,5,0),0) -> 18 | F115: 8873 | G115: =IFERROR(VLOOKUP(B115,Enrollment!$A$2:$G$146,6,0),0) -> 4 | H115: 493 | I115: =IFERROR(VLOOKUP(B115,Enrollment!$A$2:$G$146,7,0),0) -> 1 | J115: 493 | K115: 9859 | L115: =IF(E115>$E$17,_xlfn.IFNA(VLOOKUP(B115,'other funds ftr 2026'!A:I,9,FALSE),0),1) -> 0.95 | M115: 9366 | N115: =1+IF(ISNA(VLOOKUP(B115,'Rural and Low Income 26-27'!$A$1:$B$132,2,FALSE)),0,$N$17) -> 1 | O115: 9366 | R115: 0 | S115: 9366 | T115: =IFERROR(VLOOKUP(B115,'2025-26 Final'!$B$19:$AA$164,26,0),0) -> 11571 | U115: -2205 | V115: y | Y115: 750 | AA115: 10116
A116: 100 | B116: 05402 | D116: QUILLAYUTE VALLEY | E116: =IFERROR(VLOOKUP(B116,Enrollment!$A$2:$G$146,5,0),0) -> 80 | F116: 39436 | G116: =IFERROR(VLOOKUP(B116,Enrollment!$A$2:$G$146,6,0),0) -> 32 | H116: 3944 | I116: =IFERROR(VLOOKUP(B116,Enrollment!$A$2:$G$146,7,0),0) -> 21 | J116: 10352 | K116: 53732 | L116: =IF(E116>$E$17,_xlfn.IFNA(VLOOKUP(B116,'other funds ftr 2026'!A:I,9,FALSE),0),1) -> 0.95 | M116: 51045 | N116: =1+IF(ISNA(VLOOKUP(B116,'Rural and Low Income 26-27'!$A$1:$B$132,2,FALSE)),0,$N$17) -> 1 | O116: 51045 | R116: 0 | S116: 51045 | T116: =IFERROR(VLOOKUP(B116,'2025-26 Final'!$B$19:$AA$164,26,0),0) -> 56190 | U116: -5145 | V116: y | Y116: 750 | AA116: 51795
A117: 101 | B117: 13144 | D117: QUINCY | E117: =IFERROR(VLOOKUP(B117,Enrollment!$A$2:$G$146,5,0),0) -> 603 | F117: 297252 | G117: =IFERROR(VLOOKUP(B117,Enrollment!$A$2:$G$146,6,0),0) -> 156 | H117: 19225 | I117: =IFERROR(VLOOKUP(B117,Enrollment!$A$2:$G$146,7,0),0) -> 156 | J117: 76901 | K117: 393378 | L117: =IF(E117>$E$17,_xlfn.IFNA(VLOOKUP(B117,'other funds ftr 2026'!A:I,9,FALSE),0),1) -> 1.05 | M117: 413047 | N117: =1+IF(ISNA(VLOOKUP(B117,'Rural and Low Income 26-27'!$A$1:$B$132,2,FALSE)),0,$N$17) -> 1 | O117: 413047 | R117: 0 | S117: 413047 | T117: =IFERROR(VLOOKUP(B117,'2025-26 Final'!$B$19:$AA$164,26,0),0) -> 455094 | U117: -42047 | V117: y | Y117: 2000 | AA117: 415047
A118: 102 | B118: 22009 | D118: REARDAN-EDWALL | E118: =IFERROR(VLOOKUP(B118,Enrollment!$A$2:$G$146,5,0),0) -> 23 | F118: 11338 | G118: =IFERROR(VLOOKUP(B118,Enrollment!$A$2:$G$146,6,0),0) -> 12 | H118: 1479 | I118: =IFERROR(VLOOKUP(B118,Enrollment!$A$2:$G$146,7,0),0) -> 2 | J118: 986 | K118: 13803 | L118: =IF(E118>$E$17,_xlfn.IFNA(VLOOKUP(B118,'other funds ftr 2026'!A:I,9,FALSE),0),1) -> 0 | M118: 13803 | N118: =1+IF(ISNA(VLOOKUP(B118,'Rural and Low Income 26-27'!$A$1:$B$132,2,FALSE)),0,$N$17) -> 1.1 | O118: 15183 | R118: 0 | S118: 15183 | T118: =IFERROR(VLOOKUP(B118,'2025-26 Final'!$B$19:$AA$164,26,0),0) -> 0 | U118: 15183 | V118: y | Y118: 750 | AA118: 15933
A119: 103 | B119: 17403 | D119: RENTON | E119: =IFERROR(VLOOKUP(B119,Enrollment!$A$2:$G$146,5,0),0) -> 14 | F119: 6901 | G119: =IFERROR(VLOOKUP(B119,Enrollment!$A$2:$G$146,6,0),0) -> 12 | H119: 1479 | I119: =IFERROR(VLOOKUP(B119,Enrollment!$A$2:$G$146,7,0),0) -> 0 | J119: 0 | K119: 8380 | L119: =IF(E119>$E$17,_xlfn.IFNA(VLOOKUP(B119,'other funds ftr 2026'!A:I,9,FALSE),0),1) -> 0 | M119: 8380 | N119: =1+IF(ISNA(VLOOKUP(B119,'Rural and Low Income 26-27'!$A$1:$B$132,2,FALSE)),0,$N$17) -> 1 | O119: 0 | R119: 0 | S119: 0 | T119: =IFERROR(VLOOKUP(B119,'2025-26 Final'!$B$19:$AA$164,26,0),0) -> 0 | U119: 0 | V119: n | Y119: 0 | AA119: 0
A120: 104 | B120: 03400 | D120: RICHLAND | E120: =IFERROR(VLOOKUP(B120,Enrollment!$A$2:$G$146,5,0),0) -> 311 | F120: 153309 | G120: =IFERROR(VLOOKUP(B120,Enrollment!$A$2:$G$146,6,0),0) -> 79 | H120: 9736 | I120: =IFERROR(VLOOKUP(B120,Enrollment!$A$2:$G$146,7,0),0) -> 110 | J120: 54225 | K120: 217270 | L120: =IF(E120>$E$17,_xlfn.IFNA(VLOOKUP(B120,'other funds ftr 2026'!A:I,9,FALSE),0),1) -> 1 | M120: 217270 | N120: =1+IF(ISNA(VLOOKUP(B120,'Rural and Low Income 26-27'!$A$1:$B$132,2,FALSE)),0,$N$17) -> 1 | O120: 217270 | R120: 0 | S120: 217270 | T120: =IFERROR(VLOOKUP(B120,'2025-26 Final'!$B$19:$AA$164,26,0),0) -> 0 | U120: 217270 | V120: y | W120: 1 | Y120: 1250 | AA120: 0
A121: 105 | B121: 06122 | D121: RIDGEFIELD | E121: =IFERROR(VLOOKUP(B121,Enrollment!$A$2:$G$146,5,0),0) -> 0 | F121: 0 | G121: =IFERROR(VLOOKUP(B121,Enrollment!$A$2:$G$146,6,0),0) -> 0 | H121: 0 | I121: =IFERROR(VLOOKUP(B121,Enrollment!$A$2:$G$146,7,0),0) -> 0 | J121: 0 | K121: 0 | L121: =IF(E121>$E$17,_xlfn.IFNA(VLOOKUP(B121,'other funds ftr 2026'!A:I,9,FALSE),0),1) -> 1 | M121: 0 | N121: =1+IF(ISNA(VLOOKUP(B121,'Rural and Low Income 26-27'!$A$1:$B$132,2,FALSE)),0,$N$17) -> 1 | O121: =IF(V121="y",ROUND(M121*N121,0),0) -> 0 | R121: 0 | S121: 0 | T121: =IFERROR(VLOOKUP(B121,'2025-26 Final'!$B$19:$AA$164,26,0),0) -> 13801 | U121: -13801 | V121: n | Y121: 0 | AA121: 0
A122: 106 | B122: 17407 | D122: RIVERVIEW | E122: =IFERROR(VLOOKUP(B122,Enrollment!$A$2:$G$146,5,0),0) -> 12 | F122: 5915 | G122: =IFERROR(VLOOKUP(B122,Enrollment!$A$2:$G$146,6,0),0) -> 7 | H122: 863 | I122: =IFERROR(VLOOKUP(B122,Enrollment!$A$2:$G$146,7,0),0) -> 3 | J122: 1479 | K122: 8257 | L122: =IF(E122>$E$17,_xlfn.IFNA(VLOOKUP(B122,'other funds ftr 2026'!A:I,9,FALSE),0),1) -> 0 | M122: 8257 | N122: =1+IF(ISNA(VLOOKUP(B122,'Rural and Low Income 26-27'!$A$1:$B$132,2,FALSE)),0,$N$17) -> 1 | O122: 0 | R122: 0 | S122: 0 | T122: =IFERROR(VLOOKUP(B122,'2025-26 Final'!$B$19:$AA$164,26,0),0) -> 0 | U122: 0 | V122: n | Y122: 0 | AA122: 0
A123: 107 | B123: 34401 | D123: ROCHESTER | E123: =IFERROR(VLOOKUP(B123,Enrollment!$A$2:$G$146,5,0),0) -> 51 | F123: 25141 | G123: =IFERROR(VLOOKUP(B123,Enrollment!$A$2:$G$146,6,0),0) -> 17 | H123: 2095 | I123: =IFERROR(VLOOKUP(B123,Enrollment!$A$2:$G$146,7,0),0) -> 15 | J123: 7394 | K123: 34630 | L123: =IF(E123>$E$17,_xlfn.IFNA(VLOOKUP(B123,'other funds ftr 2026'!A:I,9,FALSE),0),1) -> 0.95 | M123: 32899 | N123: =1+IF(ISNA(VLOOKUP(B123,'Rural and Low Income 26-27'!$A$1:$B$132,2,FALSE)),0,$N$17) -> 1 | O123: 32899 | R123: 0 | S123: 32899 | T123: =IFERROR(VLOOKUP(B123,'2025-26 Final'!$B$19:$AA$164,26,0),0) -> 35888 | U123: -2989 | V123: y | Y123: 750 | AA123: 33649
A124: 108 | B124: 20403 | D124: ROOSEVELT | E124: =IFERROR(VLOOKUP(B124,Enrollment!$A$2:$G$146,5,0),0) -> 0 | F124: 0 | G124: =IFERROR(VLOOKUP(B124,Enrollment!$A$2:$G$146,6,0),0) -> 0 | H124: 0 | I124: =IFERROR(VLOOKUP(B124,Enrollment!$A$2:$G$146,7,0),0) -> 0 | J124: 0 | K124: 0 | L124: =IF(E124>$E$17,_xlfn.IFNA(VLOOKUP(B124,'other funds ftr 2026'!A:I,9,FALSE),0),1) -> 1 | M124: 0 | N124: =1+IF(ISNA(VLOOKUP(B124,'Rural and Low Income 26-27'!$A$1:$B$132,2,FALSE)),0,$N$17) -> 1.1 | O124: 0 | R124: 0 | S124: 0 | T124: =IFERROR(VLOOKUP(B124,'2025-26 Final'!$B$19:$AA$164,26,0),0) -> 750 | U124: -750 | V124: n | Y124: 0 | AA124: 0
A125: 109 | B125: 13160 | D125: ROYAL | E125: =IFERROR(VLOOKUP(B125,Enrollment!$A$2:$G$146,5,0),0) -> 293 | F125: 144436 | G125: =IFERROR(VLOOKUP(B125,Enrollment!$A$2:$G$146,6,0),0) -> 54 | H125: 6655 | I125: =IFERROR(VLOOKUP(B125,Enrollment!$A$2:$G$146,7,0),0) -> 123 | J125: 60633 | K125: 211724 | L125: =IF(E125>$E$17,_xlfn.IFNA(VLOOKUP(B125,'other funds ftr 2026'!A:I,9,FALSE),0),1) -> 1.05 | M125: 222310 | N125: =1+IF(ISNA(VLOOKUP(B125,'Rural and Low Income 26-27'!$A$1:$B$132,2,FALSE)),0,$N$17) -> 1 | O125: 222310 | R125: 0 | S125: 222310 | T125: =IFERROR(VLOOKUP(B125,'2025-26 Final'!$B$19:$AA$164,26,0),0) -> 184584 | U125: 37726 | V125: y | Y125: 1250 | AA125: 223560
A126: 110 | B126: 28149 | D126: SAN JUAN ISLAND | E126: =IFERROR(VLOOKUP(B126,Enrollment!$A$2:$G$146,5,0),0) -> 0 | F126: 0 | G126: =IFERROR(VLOOKUP(B126,Enrollment!$A$2:$G$146,6,0),0) -> 0 | H126: 0 | I126: =IFERROR(VLOOKUP(B126,Enrollment!$A$2:$G$146,7,0),0) -> 0 | J126: 0 | K126: 0 | L126: =IF(E126>$E$17,_xlfn.IFNA(VLOOKUP(B126,'other funds ftr 2026'!A:I,9,FALSE),0),1) -> 1 | M126: 0 | N126: =1+IF(ISNA(VLOOKUP(B126,'Rural and Low Income 26-27'!$A$1:$B$132,2,FALSE)),0,$N$17) -> 1 | O126: 0 | R126: 0 | S126: 0 | T126: =IFERROR(VLOOKUP(B126,'2025-26 Final'!$B$19:$AA$164,26,0),0) -> 0 | U126: 0 | V126: n | Y126: 0 | AA126: 0
A127: 111 | B127: 17001 | D127: SEATTLE PUBLIC SCHOOLS | E127: =IFERROR(VLOOKUP(B127,Enrollment!$A$2:$G$146,5,0),0) -> 11 | F127: 5423 | G127: =IFERROR(VLOOKUP(B127,Enrollment!$A$2:$G$146,6,0),0) -> 4 | H127: 493 | I127: =IFERROR(VLOOKUP(B127,Enrollment!$A$2:$G$146,7,0),0) -> 3 | J127: 1479 | K127: 7395 | L127: =IF(E127>$E$17,_xlfn.IFNA(VLOOKUP(B127,'other funds ftr 2026'!A:I,9,FALSE),0),1) -> 0 | M127: 7395 | N127: =1+IF(ISNA(VLOOKUP(B127,'Rural and Low Income 26-27'!$A$1:$B$132,2,FALSE)),0,$N$17) -> 1 | O127: 0 | R127: 0 | S127: 0 | T127: =IFERROR(VLOOKUP(B127,'2025-26 Final'!$B$19:$AA$164,26,0),0) -> 0 | U127: 0 | V127: n | Y127: 0 | AA127: 0
A128: 112 | B128: 29101 | D128: SEDRO-WOOLLEY | E128: =IFERROR(VLOOKUP(B128,Enrollment!$A$2:$G$146,5,0),0) -> 144 | F128: 70985 | G128: =IFERROR(VLOOKUP(B128,Enrollment!$A$2:$G$146,6,0),0) -> 58 | H128: 7148 | I128: =IFERROR(VLOOKUP(B128,Enrollment!$A$2:$G$146,7,0),0) -> 25 | J128: 12324 | K128: 90457 | L128: =IF(E128>$E$17,_xlfn.IFNA(VLOOKUP(B128,'other funds ftr 2026'!A:I,9,FALSE),0),1) -> 1 | M128: 90457 | N128: =1+IF(ISNA(VLOOKUP(B128,'Rural and Low Income 26-27'!$A$1:$B$132,2,FALSE)),0,$N$17) -> 1 | O128: 90457 | R128: 0 | S128: 90457 | T128: =IFERROR(VLOOKUP(B128,'2025-26 Final'!$B$19:$AA$164,26,0),0) -> 95891 | U128: -5434 | V128: y | Y128: 1250 | AA128: 91707
A129: 113 | B129: 39119 | D129: SELAH | E129: =IFERROR(VLOOKUP(B129,Enrollment!$A$2:$G$146,5,0),0) -> 267 | F129: 131619 | G129: =IFERROR(VLOOKUP(B129,Enrollment!$A$2:$G$146,6,0),0) -> 77 | H129: 9489 | I129: =IFERROR(VLOOKUP(B129,Enrollment!$A$2:$G$146,7,0),0) -> 91 | J129: 44859 | K129: 185967 | L129: =IF(E129>$E$17,_xlfn.IFNA(VLOOKUP(B129,'other funds ftr 2026'!A:I,9,FALSE),0),1) -> 1 | M129: 185967 | N129: =1+IF(ISNA(VLOOKUP(B129,'Rural and Low Income 26-27'!$A$1:$B$132,2,FALSE)),0,$N$17) -> 1 | O129: 185967 | R129: 0 | S129: 185967 | T129: =IFERROR(VLOOKUP(B129,'2025-26 Final'!$B$19:$AA$164,26,0),0) -> 188653 | U129: -2686 | V129: y | Y129: 1250 | AA129: 187217
A130: 114 | B130: 23309 | D130: SHELTON | E130: =IFERROR(VLOOKUP(B130,Enrollment!$A$2:$G$146,5,0),0) -> 55 | F130: 27113 | G130: =IFERROR(VLOOKUP(B130,Enrollment!$A$2:$G$146,6,0),0) -> 28 | H130: 3451 | I130: =IFERROR(VLOOKUP(B130,Enrollment!$A$2:$G$146,7,0),0) -> 10 | J130: 4930 | K130: 35494 | L130: =IF(E130>$E$17,_xlfn.IFNA(VLOOKUP(B130,'other funds ftr 2026'!A:I,9,FALSE),0),1) -> 0 | M130: 35494 | N130: =1+IF(ISNA(VLOOKUP(B130,'Rural and Low Income 26-27'!$A$1:$B$132,2,FALSE)),0,$N$17) -> 1.1 | O130: 0 | R130: 0 | S130: 0 | T130: =IFERROR(VLOOKUP(B130,'2025-26 Final'!$B$19:$AA$164,26,0),0) -> 0 | U130: 0 | V130: n | Y130: 0 | AA130: 0
A131: 115 | B131: 31201 | D131: SNOHOMISH | E131: =IFERROR(VLOOKUP(B131,Enrollment!$A$2:$G$146,5,0),0) -> 47 | F131: 23169 | G131: =IFERROR(VLOOKUP(B131,Enrollment!$A$2:$G$146,6,0),0) -> 24 | H131: 2958 | I131: =IFERROR(VLOOKUP(B131,Enrollment!$A$2:$G$146,7,0),0) -> 14 | J131: 6901 | K131: 33028 | L131: =IF(E131>$E$17,_xlfn.IFNA(VLOOKUP(B131,'other funds ftr 2026'!A:I,9,FALSE),0),1) -> 0.95 | M131: 31377 | N131: =1+IF(ISNA(VLOOKUP(B131,'Rural and Low Income 26-27'!$A$1:$B$132,2,FALSE)),0,$N$17) -> 1 | O131: 31377 | R131: 0 | S131: 31377 | T131: =IFERROR(VLOOKUP(B131,'2025-26 Final'!$B$19:$AA$164,26,0),0) -> 38231 | U131: -6854 | V131: y | Y131: 750 | AA131: 32127
A132: 116 | B132: 13156 | D132: SOAP LAKE | E132: =IFERROR(VLOOKUP(B132,Enrollment!$A$2:$G$146,5,0),0) -> 28 | F132: 13803 | G132: =IFERROR(VLOOKUP(B132,Enrollment!$A$2:$G$146,6,0),0) -> 18 | H132: 2218 | I132: =IFERROR(VLOOKUP(B132,Enrollment!$A$2:$G$146,7,0),0) -> 1 | J132: 493 | K132: 16514 | L132: =IF(E132>$E$17,_xlfn.IFNA(VLOOKUP(B132,'other funds ftr 2026'!A:I,9,FALSE),0),1) -> 0 | M132: 16514 | N132: =1+IF(ISNA(VLOOKUP(B132,'Rural and Low Income 26-27'!$A$1:$B$132,2,FALSE)),0,$N$17) -> 1.1 | O132: 0 | R132: 0 | S132: 0 | T132: =IFERROR(VLOOKUP(B132,'2025-26 Final'!$B$19:$AA$164,26,0),0) -> 0 | U132: 0 | V132: n | Y132: 0 | AA132: 0
A133: 117 | B133: 32081 | D133: SPOKANE | E133: =IFERROR(VLOOKUP(B133,Enrollment!$A$2:$G$146,5,0),0) -> 65 | F133: 32042 | G133: =IFERROR(VLOOKUP(B133,Enrollment!$A$2:$G$146,6,0),0) -> 36 | H133: 4437 | I133: =IFERROR(VLOOKUP(B133,Enrollment!$A$2:$G$146,7,0),0) -> 7 | J133: 3451 | K133: 39930 | L133: =IF(E133>$E$17,_xlfn.IFNA(VLOOKUP(B133,'other funds ftr 2026'!A:I,9,FALSE),0),1) -> 0 | M133: 39930 | N133: =1+IF(ISNA(VLOOKUP(B133,'Rural and Low Income 26-27'!$A$1:$B$132,2,FALSE)),0,$N$17) -> 1 | O133: 0 | R133: 0 | S133: 0 | T133: =IFERROR(VLOOKUP(B133,'2025-26 Final'!$B$19:$AA$164,26,0),0) -> 0 | U133: 0 | V133: n | Y133: 0 | AA133: 0
A134: 118 | B134: 31401 | D134: STANWOOD-CAMANO | E134: =IFERROR(VLOOKUP(B134,Enrollment!$A$2:$G$146,5,0),0) -> 13 | F134: 6408 | G134: =IFERROR(VLOOKUP(B134,Enrollment!$A$2:$G$146,6,0),0) -> 11 | H134: 1356 | I134: =IFERROR(VLOOKUP(B134,Enrollment!$A$2:$G$146,7,0),0) -> 1 | J134: 493 | K134: 8257 | L134: =IF(E134>$E$17,_xlfn.IFNA(VLOOKUP(B134,'other funds ftr 2026'!A:I,9,FALSE),0),1) -> 0 | M134: 8257 | N134: =1+IF(ISNA(VLOOKUP(B134,'Rural and Low Income 26-27'!$A$1:$B$132,2,FALSE)),0,$N$17) -> 1 | O134: 8257 | R134: 0 | S134: 8257 | T134: =IFERROR(VLOOKUP(B134,'2025-26 Final'!$B$19:$AA$164,26,0),0) -> 0 | U134: 8257 | V134: y | Y134: 750 | AA134: 9007
A135: 119 | B135: 30303 | D135: STEVENSON-CARSON | E135: =IFERROR(VLOOKUP(B135,Enrollment!$A$2:$G$146,5,0),0) -> 0 | F135: 0 | G135: =IFERROR(VLOOKUP(B135,Enrollment!$A$2:$G$146,6,0),0) -> 0 | H135: 0 | I135: =IFERROR(VLOOKUP(B135,Enrollment!$A$2:$G$146,7,0),0) -> 0 | J135: 0 | K135: 0 | L135: =IF(E135>$E$17,_xlfn.IFNA(VLOOKUP(B135,'other funds ftr 2026'!A:I,9,FALSE),0),1) -> 1 | M135: 0 | N135: =1+IF(ISNA(VLOOKUP(B135,'Rural and Low Income 26-27'!$A$1:$B$132,2,FALSE)),0,$N$17) -> 1.1 | O135: 0 | R135: 0 | S135: 0 | T135: =IFERROR(VLOOKUP(B135,'2025-26 Final'!$B$19:$AA$164,26,0),0) -> 0 | U135: 0 | V135: n | Y135: 0 | AA135: 0
A136: 120 | B136: 39201 | D136: SUNNYSIDE | E136: =IFERROR(VLOOKUP(B136,Enrollment!$A$2:$G$146,5,0),0) -> 2295 | F136: 1131331 | G136: =IFERROR(VLOOKUP(B136,Enrollment!$A$2:$G$146,6,0),0) -> 459 | H136: 56567 | I136: =IFERROR(VLOOKUP(B136,Enrollment!$A$2:$G$146,7,0),0) -> 889 | J136: 438237 | K136: 1626135 | L136: =IF(E136>$E$17,_xlfn.IFNA(VLOOKUP(B136,'other funds ftr 2026'!A:I,9,FALSE),0),1) -> 1.1 | M136: 1788749 | N136: =1+IF(ISNA(VLOOKUP(B136,'Rural and Low Income 26-27'!$A$1:$B$132,2,FALSE)),0,$N$17) -> 1.1 | O136: 1967624 | R136: 0 | S136: 1967624 | T136: =IFERROR(VLOOKUP(B136,'2025-26 Final'!$B$19:$AA$164,26,0),0) -> 1815631 | U136: 151993 | V136: y | Y136: 2000 | AA136: 1969624
A137: 121 | B137: 27010 | D137: TACOMA | E137: =IFERROR(VLOOKUP(B137,Enrollment!$A$2:$G$146,5,0),0) -> 11 | F137: 5423 | G137: =IFERROR(VLOOKUP(B137,Enrollment!$A$2:$G$146,6,0),0) -> 8 | H137: 986 | I137: =IFERROR(VLOOKUP(B137,Enrollment!$A$2:$G$146,7,0),0) -> 0 | J137: 0 | K137: 6409 | L137: =IF(E137>$E$17,_xlfn.IFNA(VLOOKUP(B137,'other funds ftr 2026'!A:I,9,FALSE),0),1) -> 0 | M137: 6409 | N137: =1+IF(ISNA(VLOOKUP(B137,'Rural and Low Income 26-27'!$A$1:$B$132,2,FALSE)),0,$N$17) -> 1 | O137: 0 | R137: 0 | S137: 0 | T137: =IFERROR(VLOOKUP(B137,'2025-26 Final'!$B$19:$AA$164,26,0),0) -> 0 | U137: 0 | V137: n | Y137: 0 | AA137: 0
A138: 122 | B138: 14077 | D138: TAHOLAH | E138: =IFERROR(VLOOKUP(B138,Enrollment!$A$2:$G$146,5,0),0) -> 71 | F138: 35000 | G138: =IFERROR(VLOOKUP(B138,Enrollment!$A$2:$G$146,6,0),0) -> 48 | H138: 5915 | I138: =IFERROR(VLOOKUP(B138,Enrollment!$A$2:$G$146,7,0),0) -> 9 | J138: 4437 | K138: 45352 | L138: =IF(E138>$E$17,_xlfn.IFNA(VLOOKUP(B138,'other funds ftr 2026'!A:I,9,FALSE),0),1) -> 1.1 | M138: 49887 | N138: =1+IF(ISNA(VLOOKUP(B138,'Rural and Low Income 26-27'!$A$1:$B$132,2,FALSE)),0,$N$17) -> 1.1 | O138: 54876 | R138: 0 | S138: 54876 | T138: =IFERROR(VLOOKUP(B138,'2025-26 Final'!$B$19:$AA$164,26,0),0) -> 51187 | U138: 3689 | V138: y | Y138: 750 | AA138: 55626
A139: 123 | B139: 24404 | D139: TONASKET | E139: =IFERROR(VLOOKUP(B139,Enrollment!$A$2:$G$146,5,0),0) -> 317 | F139: 156267 | G139: =IFERROR(VLOOKUP(B139,Enrollment!$A$2:$G$146,6,0),0) -> 85 | H139: 10475 | I139: =IFERROR(VLOOKUP(B139,Enrollment!$A$2:$G$146,7,0),0) -> 88 | J139: 43380 | K139: 210122 | L139: =IF(E139>$E$17,_xlfn.IFNA(VLOOKUP(B139,'other funds ftr 2026'!A:I,9,FALSE),0),1) -> 1.1 | M139: 231134 | N139: =1+IF(ISNA(VLOOKUP(B139,'Rural and Low Income 26-27'!$A$1:$B$132,2,FALSE)),0,$N$17) -> 1.1 | O139: 254247 | R139: 0 | S139: 254247 | T139: =IFERROR(VLOOKUP(B139,'2025-26 Final'!$B$19:$AA$164,26,0),0) -> 286968 | U139: -32721 | V139: y | Y139: 1250 | AA139: 255497
A140: 124 | B140: 39202 | D140: TOPPENISH | E140: =IFERROR(VLOOKUP(B140,Enrollment!$A$2:$G$146,5,0),0) -> 886 | F140: 436758 | G140: =IFERROR(VLOOKUP(B140,Enrollment!$A$2:$G$146,6,0),0) -> 231 | H140: 28468 | I140: =IFERROR(VLOOKUP(B140,Enrollment!$A$2:$G$146,7,0),0) -> 291 | J140: 143450 | K140: 608676 | L140: =IF(E140>$E$17,_xlfn.IFNA(VLOOKUP(B140,'other funds ftr 2026'!A:I,9,FALSE),0),1) -> 1.05 | M140: 639110 | N140: =1+IF(ISNA(VLOOKUP(B140,'Rural and Low Income 26-27'!$A$1:$B$132,2,FALSE)),0,$N$17) -> 1.1 | O140: 703021 | R140: 0 | S140: 703021 | T140: =IFERROR(VLOOKUP(B140,'2025-26 Final'!$B$19:$AA$164,26,0),0) -> 607113 | U140: 95908 | V140: y | Y140: 2000 | AA140: 705021
A141: 125 | B141: 20400 | D141: TROUT LAKE | E141: =IFERROR(VLOOKUP(B141,Enrollment!$A$2:$G$146,5,0),0) -> 0 | F141: 0 | G141: =IFERROR(VLOOKUP(B141,Enrollment!$A$2:$G$146,6,0),0) -> 0 | H141: 0 | I141: =IFERROR(VLOOKUP(B141,Enrollment!$A$2:$G$146,7,0),0) -> 0 | J141: 0 | K141: 0 | L141: =IF(E141>$E$17,_xlfn.IFNA(VLOOKUP(B141,'other funds ftr 2026'!A:I,9,FALSE),0),1) -> 1 | M141: 0 | N141: =1+IF(ISNA(VLOOKUP(B141,'Rural and Low Income 26-27'!$A$1:$B$132,2,FALSE)),0,$N$17) -> 1.1 | O141: 0 | R141: 0 | S141: 0 | T141: =IFERROR(VLOOKUP(B141,'2025-26 Final'!$B$19:$AA$164,26,0),0) -> 0 | U141: 0 | V141: n | Y141: 0 | AA141: 0
A142: 126 | B142: 34033 | D142: TUMWATER | E142: =IFERROR(VLOOKUP(B142,Enrollment!$A$2:$G$146,5,0),0) -> 0 | F142: 0 | G142: =IFERROR(VLOOKUP(B142,Enrollment!$A$2:$G$146,6,0),0) -> 0 | H142: 0 | I142: =IFERROR(VLOOKUP(B142,Enrollment!$A$2:$G$146,7,0),0) -> 0 | J142: 0 | K142: 0 | L142: =IF(E142>$E$17,_xlfn.IFNA(VLOOKUP(B142,'other funds ftr 2026'!A:I,9,FALSE),0),1) -> 1 | M142: 0 | N142: =1+IF(ISNA(VLOOKUP(B142,'Rural and Low Income 26-27'!$A$1:$B$132,2,FALSE)),0,$N$17) -> 1 | O142: 0 | R142: 0 | S142: 0 | T142: =IFERROR(VLOOKUP(B142,'2025-26 Final'!$B$19:$AA$164,26,0),0) -> 0 | U142: 0 | V142: n | Y142: 0 | AA142: 0
A143: 127 | B143: 39002 | D143: UNION GAP | E143: =IFERROR(VLOOKUP(B143,Enrollment!$A$2:$G$146,5,0),0) -> 72 | F143: 35493 | G143: =IFERROR(VLOOKUP(B143,Enrollment!$A$2:$G$146,6,0),0) -> 21 | H143: 2588 | I143: =IFERROR(VLOOKUP(B143,Enrollment!$A$2:$G$146,7,0),0) -> 16 | J143: 7887 | K143: 45968 | L143: =IF(E143>$E$17,_xlfn.IFNA(VLOOKUP(B143,'other funds ftr 2026'!A:I,9,FALSE),0),1) -> 1 | M143: 45968 | N143: =1+IF(ISNA(VLOOKUP(B143,'Rural and Low Income 26-27'!$A$1:$B$132,2,FALSE)),0,$N$17) -> 1.1 | O143: 50565 | R143: 0 | S143: 50565 | T143: =IFERROR(VLOOKUP(B143,'2025-26 Final'!$B$19:$AA$164,26,0),0) -> 57167 | U143: -6602 | V143: y | Y143: 750 | AA143: 51315
A144: 128 | B144: 06037 | D144: VANCOUVER | E144: =IFERROR(VLOOKUP(B144,Enrollment!$A$2:$G$146,5,0),0) -> 47 | F144: 23169 | G144: =IFERROR(VLOOKUP(B144,Enrollment!$A$2:$G$146,6,0),0) -> 34 | H144: 4190 | I144: =IFERROR(VLOOKUP(B144,Enrollment!$A$2:$G$146,7,0),0) -> 6 | J144: 2958 | K144: 30317 | L144: =IF(E144>$E$17,_xlfn.IFNA(VLOOKUP(B144,'other funds ftr 2026'!A:I,9,FALSE),0),1) -> 0.95 | M144: 28801 | N144: =1+IF(ISNA(VLOOKUP(B144,'Rural and Low Income 26-27'!$A$1:$B$132,2,FALSE)),0,$N$17) -> 1 | O144: 28801 | R144: 0 | S144: 28801 | T144: =IFERROR(VLOOKUP(B144,'2025-26 Final'!$B$19:$AA$164,26,0),0) -> 29753 | U144: -952 | V144: y | Y144: 750 | AA144: 29551
A145: 129 | B145: 34901 | D145: WA HE LUT INDIAN SCHOOL | E145: =IFERROR(VLOOKUP(B145,Enrollment!$A$2:$G$146,5,0),0) -> 13 | F145: 6408 | G145: =IFERROR(VLOOKUP(B145,Enrollment!$A$2:$G$146,6,0),0) -> 13 | H145: 1602 | I145: =IFERROR(VLOOKUP(B145,Enrollment!$A$2:$G$146,7,0),0) -> 0 | J145: 0 | K145: =+F145+H145+J145 -> 8010 | L145: =IF(E145>$E$17,_xlfn.IFNA(VLOOKUP(B145,'other funds ftr 2026'!A:I,9,FALSE),0),1) -> 0 | M145: =IF(L145=0,K145,ROUND(K145*L145,0)) -> 8010 | N145: =1+IF(ISNA(VLOOKUP(B145,'Rural and Low Income 26-27'!$A$1:$B$132,2,FALSE)),0,$N$17) -> 1 | O145: =IF(V145="y",ROUND(M145*N145,0),0) -> 8010 | R145: 0 | S145: =O145+R145 -> 8010 | T145: =IFERROR(VLOOKUP(B145,'2025-26 Final'!$B$19:$AA$164,26,0),0) -> 0 | U145: =S145-T145 -> 8010 | V145: y | Y145: 750 | AA145: 8760
A146: 130 | B146: 13073 | D146: WAHLUKE | E146: =IFERROR(VLOOKUP(B146,Enrollment!$A$2:$G$146,5,0),0) -> 1910 | F146: =IF(E146>=10,ROUND(E146*$G$3,0),0) -> 941543 | G146: =IFERROR(VLOOKUP(B146,Enrollment!$A$2:$G$146,6,0),0) -> 729 | H146: =IF(E146>=$E$17,ROUND(G146*$G$3*$G$17,0),0) -> 89841 | I146: =IFERROR(VLOOKUP(B146,Enrollment!$A$2:$G$146,7,0),0) -> 539 | J146: =IF(E146>=$E$17,ROUND(I146*$G$3*$I$17,0),0) -> 265703 | K146: 1297087 | L146: =IF(E146>$E$17,_xlfn.IFNA(VLOOKUP(B146,'other funds ftr 2026'!A:I,9,FALSE),0),1) -> 1.1 | M146: 1426796 | N146: =1+IF(ISNA(VLOOKUP(B146,'Rural and Low Income 26-27'!$A$1:$B$132,2,FALSE)),0,$N$17) -> 1 | O146: 1426796 | R146: 0 | S146: 1426796 | T146: =IFERROR(VLOOKUP(B146,'2025-26 Final'!$B$19:$AA$164,26,0),0) -> 1482586 | U146: -55790 | V146: y | Y146: 2000 | AA146: =IF(W146=1, 0, Y146+S146+Z146) -> 1428796
A147: 131 | B147: 36140 | D147: WALLA WALLA PUBLIC SCHOOLS | E147: =IFERROR(VLOOKUP(B147,Enrollment!$A$2:$G$146,5,0),0) -> 94 | F147: 46338 | G147: =IFERROR(VLOOKUP(B147,Enrollment!$A$2:$G$146,6,0),0) -> 47 | H147: 5792 | I147: =IFERROR(VLOOKUP(B147,Enrollment!$A$2:$G$146,7,0),0) -> 18 | J147: 8873 | K147: 61003 | L147: =IF(E147>$E$17,_xlfn.IFNA(VLOOKUP(B147,'other funds ftr 2026'!A:I,9,FALSE),0),1) -> 0.95 | M147: 57953 | N147: =1+IF(ISNA(VLOOKUP(B147,'Rural and Low Income 26-27'!$A$1:$B$132,2,FALSE)),0,$N$17) -> 1 | O147: 57953 | R147: 0 | S147: 57953 | T147: =IFERROR(VLOOKUP(B147,'2025-26 Final'!$B$19:$AA$164,26,0),0) -> 66564 | U147: -8611 | V147: y | Y147: 750 | AA147: 58703
A148: 132 | B148: 39207 | D148: WAPATO | E148: =IFERROR(VLOOKUP(B148,Enrollment!$A$2:$G$146,5,0),0) -> 946 | F148: 466335 | G148: =IFERROR(VLOOKUP(B148,Enrollment!$A$2:$G$146,6,0),0) -> 260 | H148: 32042 | I148: =IFERROR(VLOOKUP(B148,Enrollment!$A$2:$G$146,7,0),0) -> 257 | J148: 126689 | K148: 625066 | L148: =IF(E148>$E$17,_xlfn.IFNA(VLOOKUP(B148,'other funds ftr 2026'!A:I,9,FALSE),0),1) -> 1.1 | M148: 687573 | N148: =1+IF(ISNA(VLOOKUP(B148,'Rural and Low Income 26-27'!$A$1:$B$132,2,FALSE)),0,$N$17) -> 1 | O148: 687573 | R148: 0 | S148: 687573 | T148: =IFERROR(VLOOKUP(B148,'2025-26 Final'!$B$19:$AA$164,26,0),0) -> 736675 | U148: -49102 | V148: y | Y148: =IF(V148="Y",IF(E148<=99,750,IF(AND(E148>=100,E148<=399),1250,2000)),0) -> 2000 | AA148: 689573
A149: 133 | B149: 13146 | D149: WARDEN | E149: =IFERROR(VLOOKUP(B149,Enrollment!$A$2:$G$146,5,0),0) -> 288 | F149: 141971 | G149: =IFERROR(VLOOKUP(B149,Enrollment!$A$2:$G$146,6,0),0) -> 63 | H149: 7764 | I149: =IFERROR(VLOOKUP(B149,Enrollment!$A$2:$G$146,7,0),0) -> 120 | J149: 59155 | K149: 208890 | L149: =IF(E149>$E$17,_xlfn.IFNA(VLOOKUP(B149,'other funds ftr 2026'!A:I,9,FALSE),0),1) -> 1.1 | M149: 229779 | N149: =1+IF(ISNA(VLOOKUP(B149,'Rural and Low Income 26-27'!$A$1:$B$132,2,FALSE)),0,$N$17) -> 1 | O149: 229779 | R149: 0 | S149: 229779 | T149: =IFERROR(VLOOKUP(B149,'2025-26 Final'!$B$19:$AA$164,26,0),0) -> 244204 | U149: -14425 | V149: y | Y149: 1250 | AA149: 231029
A150: 134 | B150: 09209 | D150: WATERVILLE | E150: =IFERROR(VLOOKUP(B150,Enrollment!$A$2:$G$146,5,0),0) -> 0 | F150: 0 | G150: =IFERROR(VLOOKUP(B150,Enrollment!$A$2:$G$146,6,0),0) -> 0 | H150: 0 | I150: =IFERROR(VLOOKUP(B150,Enrollment!$A$2:$G$146,7,0),0) -> 0 | J150: 0 | K150: 0 | L150: =IF(E150>$E$17,_xlfn.IFNA(VLOOKUP(B150,'other funds ftr 2026'!A:I,9,FALSE),0),1) -> 1 | M150: 0 | N150: =1+IF(ISNA(VLOOKUP(B150,'Rural and Low Income 26-27'!$A$1:$B$132,2,FALSE)),0,$N$17) -> 1.1 | O150: 0 | R150: 0 | S150: 0 | T150: =IFERROR(VLOOKUP(B150,'2025-26 Final'!$B$19:$AA$164,26,0),0) -> 0 | U150: 0 | V150: n | Y150: 0 | AA150: 0
A151: 135 | B151: 33049 | D151: WELLPINIT | E151: =IFERROR(VLOOKUP(B151,Enrollment!$A$2:$G$146,5,0),0) -> 70 | F151: 34507 | G151: =IFERROR(VLOOKUP(B151,Enrollment!$A$2:$G$146,6,0),0) -> 33 | H151: 4067 | I151: =IFERROR(VLOOKUP(B151,Enrollment!$A$2:$G$146,7,0),0) -> 7 | J151: 3451 | K151: 42025 | L151: =IF(E151>$E$17,_xlfn.IFNA(VLOOKUP(B151,'other funds ftr 2026'!A:I,9,FALSE),0),1) -> 0 | M151: 42025 | N151: =1+IF(ISNA(VLOOKUP(B151,'Rural and Low Income 26-27'!$A$1:$B$132,2,FALSE)),0,$N$17) -> 1.1 | O151: 0 | R151: 0 | S151: 0 | T151: =IFERROR(VLOOKUP(B151,'2025-26 Final'!$B$19:$AA$164,26,0),0) -> 0 | U151: 0 | V151: n | Y151: 0 | AA151: 0
A152: 136 | B152: 04246 | D152: WENATCHEE | E152: =IFERROR(VLOOKUP(B152,Enrollment!$A$2:$G$146,5,0),0) -> 1390 | F152: 685207 | G152: =IFERROR(VLOOKUP(B152,Enrollment!$A$2:$G$146,6,0),0) -> 437 | H152: 53855 | I152: =IFERROR(VLOOKUP(B152,Enrollment!$A$2:$G$146,7,0),0) -> 470 | J152: 231689 | K152: 970751 | L152: =IF(E152>$E$17,_xlfn.IFNA(VLOOKUP(B152,'other funds ftr 2026'!A:I,9,FALSE),0),1) -> 1.1 | M152: 1067826 | N152: =1+IF(ISNA(VLOOKUP(B152,'Rural and Low Income 26-27'!$A$1:$B$132,2,FALSE)),0,$N$17) -> 1 | O152: 1067826 | R152: 0 | S152: 1067826 | T152: =IFERROR(VLOOKUP(B152,'2025-26 Final'!$B$19:$AA$164,26,0),0) -> 1109178 | U152: -41352 | V152: y | Y152: 2000 | AA152: 1069826
A153: 137 | B153: 39208 | D153: WEST VALLEY (YAKIMA) | E153: =IFERROR(VLOOKUP(B153,Enrollment!$A$2:$G$146,5,0),0) -> 201 | F153: 99084 | G153: =IFERROR(VLOOKUP(B153,Enrollment!$A$2:$G$146,6,0),0) -> 56 | H153: 6901 | I153: =IFERROR(VLOOKUP(B153,Enrollment!$A$2:$G$146,7,0),0) -> 58 | J153: 28591 | K153: 134576 | L153: =IF(E153>$E$17,_xlfn.IFNA(VLOOKUP(B153,'other funds ftr 2026'!A:I,9,FALSE),0),1) -> 1 | M153: 134576 | N153: =1+IF(ISNA(VLOOKUP(B153,'Rural and Low Income 26-27'!$A$1:$B$132,2,FALSE)),0,$N$17) -> 1 | O153: 134576 | R153: 0 | S153: 134576 | T153: =IFERROR(VLOOKUP(B153,'2025-26 Final'!$B$19:$AA$164,26,0),0) -> 163290 | U153: -28714 | V153: y | Y153: 1250 | AA153: 135826
A154: 138 | B154: 21303 | D154: WHITE PASS | E154: =IFERROR(VLOOKUP(B154,Enrollment!$A$2:$G$146,5,0),0) -> 0 | F154: 0 | G154: =IFERROR(VLOOKUP(B154,Enrollment!$A$2:$G$146,6,0),0) -> 0 | H154: 0 | I154: =IFERROR(VLOOKUP(B154,Enrollment!$A$2:$G$146,7,0),0) -> 0 | J154: 0 | K154: 0 | L154: =IF(E154>$E$17,_xlfn.IFNA(VLOOKUP(B154,'other funds ftr 2026'!A:I,9,FALSE),0),1) -> 1 | M154: 0 | N154: =1+IF(ISNA(VLOOKUP(B154,'Rural and Low Income 26-27'!$A$1:$B$132,2,FALSE)),0,$N$17) -> 1.1 | O154: 0 | R154: 0 | S154: 0 | T154: =IFERROR(VLOOKUP(B154,'2025-26 Final'!$B$19:$AA$164,26,0),0) -> 0 | U154: 0 | V154: n | Y154: 0 | AA154: 0
A155: 139 | B155: 20405 | D155: WHITE SALMON VALLEY | E155: =IFERROR(VLOOKUP(B155,Enrollment!$A$2:$G$146,5,0),0) -> 11 | F155: 5423 | G155: =IFERROR(VLOOKUP(B155,Enrollment!$A$2:$G$146,6,0),0) -> 6 | H155: 739 | I155: =IFERROR(VLOOKUP(B155,Enrollment!$A$2:$G$146,7,0),0) -> 1 | J155: 493 | K155: 6655 | L155: =IF(E155>$E$17,_xlfn.IFNA(VLOOKUP(B155,'other funds ftr 2026'!A:I,9,FALSE),0),1) -> 0.95 | M155: 6322 | N155: =1+IF(ISNA(VLOOKUP(B155,'Rural and Low Income 26-27'!$A$1:$B$132,2,FALSE)),0,$N$17) -> 1 | O155: 6322 | R155: 0 | S155: 6322 | T155: =IFERROR(VLOOKUP(B155,'2025-26 Final'!$B$19:$AA$164,26,0),0) -> 6996 | U155: -674 | V155: y | Y155: 750 | AA155: 7072
A156: 140 | B156: 21232 | D156: WINLOCK | E156: =IFERROR(VLOOKUP(B156,Enrollment!$A$2:$G$146,5,0),0) -> 87 | F156: 42887 | G156: =IFERROR(VLOOKUP(B156,Enrollment!$A$2:$G$146,6,0),0) -> 28 | H156: 3451 | I156: =IFERROR(VLOOKUP(B156,Enrollment!$A$2:$G$146,7,0),0) -> 13 | J156: 6408 | K156: 52746 | L156: =IF(E156>$E$17,_xlfn.IFNA(VLOOKUP(B156,'other funds ftr 2026'!A:I,9,FALSE),0),1) -> 1.05 | M156: 55383 | N156: =1+IF(ISNA(VLOOKUP(B156,'Rural and Low Income 26-27'!$A$1:$B$132,2,FALSE)),0,$N$17) -> 1 | O156: 55383 | R156: 0 | S156: 55383 | T156: =IFERROR(VLOOKUP(B156,'2025-26 Final'!$B$19:$AA$164,26,0),0) -> 66224 | U156: -10841 | V156: y | Y156: 750 | AA156: 56133
A157: 141 | B157: 20094 | D157: WISHRAM | E157: =IFERROR(VLOOKUP(B157,Enrollment!$A$2:$G$146,5,0),0) -> 45 | F157: 22183 | G157: =IFERROR(VLOOKUP(B157,Enrollment!$A$2:$G$146,6,0),0) -> 9 | H157: 1109 | I157: =IFERROR(VLOOKUP(B157,Enrollment!$A$2:$G$146,7,0),0) -> 20 | J157: 9859 | K157: 33151 | L157: =IF(E157>$E$17,_xlfn.IFNA(VLOOKUP(B157,'other funds ftr 2026'!A:I,9,FALSE),0),1) -> 1.1 | M157: 36466 | N157: =1+IF(ISNA(VLOOKUP(B157,'Rural and Low Income 26-27'!$A$1:$B$132,2,FALSE)),0,$N$17) -> 1.1 | O157: 40113 | R157: 0 | S157: 40113 | T157: =IFERROR(VLOOKUP(B157,'2025-26 Final'!$B$19:$AA$164,26,0),0) -> 47211 | U157: -7098 | V157: y | Y157: 750 | AA157: 40863
A158: 142 | B158: 08404 | D158: WOODLAND | E158: =IFERROR(VLOOKUP(B158,Enrollment!$A$2:$G$146,5,0),0) -> 17 | F158: 8380 | G158: =IFERROR(VLOOKUP(B158,Enrollment!$A$2:$G$146,6,0),0) -> 17 | H158: 2095 | I158: =IFERROR(VLOOKUP(B158,Enrollment!$A$2:$G$146,7,0),0) -> 0 | J158: 0 | K158: 10475 | L158: =IF(E158>$E$17,_xlfn.IFNA(VLOOKUP(B158,'other funds ftr 2026'!A:I,9,FALSE),0),1) -> 0.95 | M158: 9951 | N158: =1+IF(ISNA(VLOOKUP(B158,'Rural and Low Income 26-27'!$A$1:$B$132,2,FALSE)),0,$N$17) -> 1 | O158: 0 | R158: 0 | S158: 0 | T158: =IFERROR(VLOOKUP(B158,'2025-26 Final'!$B$19:$AA$164,26,0),0) -> 19490 | U158: -19490 | V158: n | Y158: 0 | AA158: 0
A159: 143 | B159: 39901 | D159: YAKAMA NATION TRIBAL COMPACT | E159: =IFERROR(VLOOKUP(B159,Enrollment!$A$2:$G$146,5,0),0) -> 52 | F159: 25634 | G159: =IFERROR(VLOOKUP(B159,Enrollment!$A$2:$G$146,6,0),0) -> 20 | H159: 2465 | I159: =IFERROR(VLOOKUP(B159,Enrollment!$A$2:$G$146,7,0),0) -> 16 | J159: 7887 | K159: 35986 | L159: =IF(E159>$E$17,_xlfn.IFNA(VLOOKUP(B159,'other funds ftr 2026'!A:I,9,FALSE),0),1) -> 0 | M159: 35986 | N159: =1+IF(ISNA(VLOOKUP(B159,'Rural and Low Income 26-27'!$A$1:$B$132,2,FALSE)),0,$N$17) -> 1 | O159: 35986 | R159: 0 | S159: 35986 | T159: =IFERROR(VLOOKUP(B159,'2025-26 Final'!$B$19:$AA$164,26,0),0) -> 0 | U159: 35986 | V159: y | Y159: 750 | AA159: 36736
A160: 144 | B160: 39007 | D160: YAKIMA | E160: =IFERROR(VLOOKUP(B160,Enrollment!$A$2:$G$146,5,0),0) -> 2077 | F160: 1023867 | G160: =IFERROR(VLOOKUP(B160,Enrollment!$A$2:$G$146,6,0),0) -> 510 | H160: 62852 | I160: =IFERROR(VLOOKUP(B160,Enrollment!$A$2:$G$146,7,0),0) -> 883 | J160: 435279 | K160: 1521998 | L160: =IF(E160>$E$17,_xlfn.IFNA(VLOOKUP(B160,'other funds ftr 2026'!A:I,9,FALSE),0),1) -> 1 | M160: 1521998 | N160: =1+IF(ISNA(VLOOKUP(B160,'Rural and Low Income 26-27'!$A$1:$B$132,2,FALSE)),0,$N$17) -> 1 | O160: 1521998 | R160: 0 | S160: 1521998 | T160: =IFERROR(VLOOKUP(B160,'2025-26 Final'!$B$19:$AA$164,26,0),0) -> 1599148 | U160: -77150 | V160: y | Y160: 2000 | AA160: 1523998
A161: 145 | B161: 34002 | D161: YELM | E161: =IFERROR(VLOOKUP(B161,Enrollment!$A$2:$G$146,5,0),0) -> 42 | F161: 20704 | G161: =IFERROR(VLOOKUP(B161,Enrollment!$A$2:$G$146,6,0),0) -> 35 | H161: 4313 | I161: =IFERROR(VLOOKUP(B161,Enrollment!$A$2:$G$146,7,0),0) -> 1 | J161: 493 | K161: 25510 | L161: =IF(E161>$E$17,_xlfn.IFNA(VLOOKUP(B161,'other funds ftr 2026'!A:I,9,FALSE),0),1) -> 0 | M161: 25510 | N161: =1+IF(ISNA(VLOOKUP(B161,'Rural and Low Income 26-27'!$A$1:$B$132,2,FALSE)),0,$N$17) -> 1 | O161: 0 | R161: 0 | S161: 0 | T161: =IFERROR(VLOOKUP(B161,'2025-26 Final'!$B$19:$AA$164,26,0),0) -> 0 | U161: 0 | V161: n | Y161: 0 | AA161: 0
A162: 146 | B162: 39205 | D162: ZILLAH | E162: =IFERROR(VLOOKUP(B162,Enrollment!$A$2:$G$146,5,0),0) -> 90 | F162: 44366 | G162: =IFERROR(VLOOKUP(B162,Enrollment!$A$2:$G$146,6,0),0) -> 26 | H162: 3204 | I162: =IFERROR(VLOOKUP(B162,Enrollment!$A$2:$G$146,7,0),0) -> 20 | J162: 9859 | K162: 57429 | L162: =IF(E162>$E$17,_xlfn.IFNA(VLOOKUP(B162,'other funds ftr 2026'!A:I,9,FALSE),0),1) -> 1 | M162: 57429 | N162: =1+IF(ISNA(VLOOKUP(B162,'Rural and Low Income 26-27'!$A$1:$B$132,2,FALSE)),0,$N$17) -> 1 | O162: 57429 | R162: =ROUND(IF(Q162>0,-(0.9-Q162)*O162,0),0) -> 0 | S162: 57429 | T162: =IFERROR(VLOOKUP(B162,'2025-26 Final'!$B$19:$AA$164,26,0),0) -> 70498 | U162: -13069 | V162: y | Y162: 750 | AA162: 58179

Sheet Assumptions (hidden)
A1: Assumptions and Factors — Title I Part C Migrant - Final
B2: Caution: Yellow Cells below drive are inputs into the calculations in this model
AN3: Row Headings on Allocation Table
A4: Funding | C4: Final 2026-2027 | D4: Final 2025-26 | E4: Final 2024-25 | F4: Preliminary 2024-25 | G4: FINAL 2023-24 | H4: Preliminary 2023-24 | I4: Final 2022-23 | J4: Preliminary 2022-23 | K4: Final 2021-22 | L4: Preliminary 2021-22 | M4: Final 2020-21 | N4: Preliminary 2020-21 | O4: Final 2019-20 | P4: Preliminary 2019-20 | Q4: Final 2018-19 | R4: Preliminary 2018-19 | S4: Final 2017-18 | T4: Preliminary 2017-18 | U4: 2nd Rev Final 2016-17 | V4: Rev Final 2016-17 | W4: Final 2016-17 | X4: Final 2015-16 | Y4: Preliminary 2015-16 | Z4: Final 2014-15 | AA4: Preliminary 2014-15 | AB4: Revised Final 2013-14 | AC4: Final 2013-14 | AD4: Final 2012-13 | AE4: Preliminary 2012-13 | AF4: Final 2011-12 | AG4: Preliminary 2011-12 | AH4: Final 2010-11 | AI4: Final 2009-10 | AJ4: Final 2008-09 | AK4: Source:
B5: Total State Allocation | C5: 35969845 | D5: 36853035 | E5: 37992820 | F5: 37,838,194 | G5: 38616843 | H5: 38616843 | I5: 38126160 | J5: 38,168,234 | K5: 36172055 | L5: 36170767 | M5: 33650164 | N5: 32545772 | O5: 29253692 | P5: 28509499 | Q5: 27865765 | R5: 26740196 | S5: 24667573 | T5: 24540413 | U5: 14921087 | V5: 14921087 | W5: 14921087 | X5: 14921087 | Y5: 14875015 | Z5: 14875015 | AA5: 14875015 | AB5: 14839257 | AC5: 14839257 | AD5: 15628872 | AE5: 15628872 | AF5: 15659257 | AG5: 15659257 | AH5: 15691456 | AI5: 14450894 | AJ5: 15015291
B6: State Allocation under $14B rule | C6: 26457973 | D6: =E6*0.97 -> 27146359.86 | E6: 27985938 | F6: 27866779 | G6: 28466965 | H6: 28448427 | I6: 29491607 | J6: 29524149 | K6: 29680217 | L6: 29680217 | M6: 28007581 | N6: 32545800 | O6: 23817704 | P6: 23834846 | Q6: 21267203 | R6: 21267203 | S6: 13112612 | T6: 13104377 | U6: 13566765 | V6: 13616032 | W6: 13566765 | X6: 14077428 | Y6: 14055099 | Z6: 14085411 | AA6: 14041918 | AB6: 14645076 | AC6: 14645076 | AD6: 14620622 | AE6: 14620622 | AF6: 14680941 | AG6: 14680941 | AH6: 14980942
A7: General Admin | B7: State Admin | C7: =ROUND(C6*0.01,0) -> 264580 | D7: 271464 | E7: 279859 | F7: =ROUND(F6*0.01,0) -> 278668 | G7: =ROUND(G6*0.01,0) -> 284670 | H7: 284484 | I7: 294916 | J7: 295241 | K7: 296802 | L7: 296802 | M7: 280076 | N7: 325458 | O7: =ROUND(O6*0.01,0) -> 238177 | P7: 238348 | Q7: 212672 | R7: 212672 | S7: 131126 | T7: 131044 | U7: 135668 | V7: 136160 | W7: 135668 | X7: 140774 | Y7: 140551 | Z7: 140854 | AA7: 140419 | AB7: 146451 | AC7: =ROUND(AC6*0.01,0) -> 146451 | AD7: =ROUND(AD6*0.01,0) -> 146206 | AE7: =ROUND(AE6*0.01,0) -> 146206 | AF7: =ROUND(AF6*0.01,0) -> 146809 | AG7: =ROUND(14680941*0.01,0) -> 146809 | AH7: =ROUND(14680942*0.01,0) -> 146809 | AI7: =ROUND(13563693*0.01,0) -> 135637 | AJ7: =ROUND(14649429*0.01,0) -> 146494 | AK7: 0.01
B8: State Level Activities (Unallocated Balance) | C8: =C5-C7-C18-C24 -> 12623358 | D8: 12969750 | E8: 13417269 | F8: =F5-F7-F18-F24 -> 13356610 | G8: =G5-G7-G18-G24 -> 15061378 | H8: 15162254 | I8: 14955548 | J8: 14972053 | K8: 13087588 | L8: 13086382 | M8: 13179990 | N8: =N5-N7-N18-N24 -> 12692851 | O8: 10935689 | P8: 11551691 | Q8: 11233633 | R8: 10783406 | S8: 9920983 | T8: 12702535 | U8: 3078585 | V8: 3078093 | W8: 4570694 | X8: 2999662 | Y8: 2953813 | Z8: 3913523 | AA8: 2273028 | AB8: 14692806 | AC8: 14692806 | AD8: 15482666 | AE8: 15482666 | AF8: 15512448 | AG8: 15512448 | AH8: 15544647 | AI8: 14315257 | AJ8: 536592
A10: Other Admin | B10: Director salary
B11: Regional Offices
B12: MSDS
B13: Other stakeholders
B15: Other Grants - not through formula | K15: 180000
B16: Summer Grants - Current Year | C16: 2158191 | D16: 2211182 | E16: 2279569 | F16: 2270292 | G16: 2179730 | H16: 2317010 | I16: 2107548 | J16: 2290094 | K16: 2278840 | L16: 2278758 | M16: 3365016 | N16: 3254577 | O16: 2978130 | P16: 2786577 | Q16: 2486577 | R16: 2374020 | S16: 2281677 | T16: 1492109 | U16: 1492109 | V16: 1492109 | X16: 1565926 | Y16: 1565926 | Z16: 1565926 | AA16: 1565926 | AB16: 1562887 | AC16: 1562887 | AE16: 1000000 | AF16: 1000000 | AH16: 1550000 | AI16: 1200000 | AJ16: 1200000
B17: Summer Grants - Prior Year Unspent Funds | AA17: 75004
B18: Total | C18: =C16+C17 -> 2158191 | D18: 2211182 | E18: 2279569 | F18: =F16+F17 -> 2270292 | G18: =G16+G17 -> 2179730 | H18: 2317010 | I18: 2107548 | J18: 2290094 | K18: 2278840 | L18: 2278758 | M18: =M16+M17 -> 3365016 | N18: 3254577 | O18: 2978130 | P18: 2786577 | Q18: 2486577 | R18: 2374020 | S18: 2281677 | T18: 1492109 | U18: 1492109 | V18: 1492109 | X18: 1565926 | Y18: =Y16 -> 1565926 | AA18: =SUM(AA16:AA17) -> 1640930
B19: Allocated per Worksheet
B20: Difference
B22: Total Regular Year Allocation - from Sylvia | C22: 20923716 | D22: 21400639 | E22: 22016123 | F22: 21932624 | G22: 21091065 | H22: 20853095 | I22: 20768148 | J22: 20610846 | K22: 20508825 | L22: 20508825 | M22: 16825082 | N22: 16272886 | O22: 15101696 | P22: 13932883 | Q22: 13932883 | R22: 13370098 | S22: 12333787 | T22: 8952652 | U22: 8952652 | V22: 8952652 | W22: 8952652 | X22: 9470989 | Y22: 9470989 | Z22: 9395554 | AA22: 9395554 | AB22: 9212323 | AC22: 9212323 | AD22: 11016189 | AE22: 11016189 | AF22: 11500000 | AG22: 11500000 | AH22: 11500000 | AI22: 10135000 | AJ22: 9900000
B23: Regular Grants from Prior Year Unspent Funds | T23: 1262073 | U23: 1262073 | V23: 1262073 | W23: 1262073 | X23: 743736 | Y23: 743736 | Z23: 1425084 | AA23: 1425084 | AD23: 11010766
B24: Total | C24: =SUM(C22:C23) -> 20923716 | D24: 21400639 | E24: =SUM(E22:E23) -> 22016123 | F24: =SUM(F22:F23) -> 21932624 | G24: 21091065 | H24: 20853095 | I24: 20768148 | J24: 20610846 | K24: 20508825 | L24: =SUM(L22:L23) -> 20508825 | M24: 16825082 | N24: 16272886 | O24: 15101696 | P24: 13932883 | Q24: 13932883 | R24: 13370098 | S24: 12333787 | T24: 10214725 | U24: 10214725 | V24: 10214725 | W24: 10214725 | X24: 10214725 | Y24: 10214725 | Z24: 10820638 | AA24: 10820638
B25: Allocated per Worksheet before MOE | D25: 21247564 | E25: 22016123 | G25: =#REF! ->  | I25: =#REF! ->  | J25: 20768148 | K25: 20508825 | L25: 20508825 | M25: 16795507 | N25: 16272886 | O25: 13932883 | P25: 13932883 | Q25: 13932883 | R25: 13370098 | S25: 12333787 | AA25: 10820638
B26: MOE Reduction | K26: 0 | L26: 0 | M26: 0 | N26: 0 | O26: -57 | P26: -57 | Q26: 0 | R26: 0 | S26: -1406
B27: Allocated per Worksheet after MOE | C27: =SUM(C25:C26) -> 0 | D27: 21247564 | E27: =SUM(E25:E26) -> 22016123 | F27: =SUM(F25:F26) -> 0 | G27: =SUM(G25:G26) ->  | H27: 0 | J27: 20768148 | K27: 20508825 | L27: 20508825 | M27: 16795507 | N27: 16272886 | O27: 13932826 | P27: 13932826 | Q27: 13932883 | R27: 13370098 | S27: 12332381
B29: MERO Allocation - Sylvia to provide | O29: 2757777 | Z29: 1619378 | AA29: 1619378
B30: Allocated per Worksheet | AA30: 1409333
B31: Difference | AA31: =+AA29-AA30 -> 210045
B35: Counter-do not change | AE35: 1
B37: Summer:
B38: Amount per Pass Unit | AE38: 90 | AF38: 90
B39: Amount per Credits | AE39: 900 | AF39: 900
B42: Number of LEP child within the districts | AC42: From Bilingual apportionment data
A43: DataSets: | B43: Native american students are also added. See above.
B48: Allocations
B52: Program Review (Sylvia Reyna)
A55: Other Fund Factor
A56: Min | D56: =MIN('other funds ftr 2026'!$H$2:$H$147) -> 0
A57: 25th Percentile | B57: 1.1 | D57: =_xlfn.PERCENTILE.INC(IF('other funds ftr 2026'!$H$2:$H$147,'other funds ftr 2026'!$H$2:$H$147),0.25) -> 0.9221636254 | P57: 0.01565336724 | R57: 0.01719687959
A58: 50th Percentile | B58: 1.05 | D58: =_xlfn.PERCENTILE.INC(IF('other funds ftr 2026'!$H$2:$H$147,'other funds ftr 2026'!$H$2:$H$147),0.5) -> 0.955004873 | P58: 0.0370609667 | R58: 0.03624933072
A59: 75th Percentile | B59: 1 | D59: =_xlfn.PERCENTILE.INC(IF('other funds ftr 2026'!$H$2:$H$147,'other funds ftr 2026'!$H$2:$H$147),0.75) -> 0.9799788134 | P59: 0.0597864668 | R59: 0.05439831943
A60: < Max | B60: 0.95 | D60: =MAX('other funds ftr 2026'!$H$2:$H$147) -> 0.9994004067 | P60: 0.1706049389 | R60: 0.1237520479

Sheet Enrollment (hidden)
A1: CoDistNum | B1: Title | D1: ESD | E1: Students | F1: Needs | G1: Priority
A2: 14005 | B2: ABERDEEN | D2: 189 | E2: 159 | F2: 64 | G2: 41
A3: 31016 | B3: ARLINGTON | D3: 189 | E3: 39 | F3: 22 | G3: 7
A4: 17408 | B4: AUBURN | D4: 189 | E4: 23 | F4: 9 | G4: 6
A5: 06119 | B5: BATTLE GROUND | D5: 189 | E5: 12 | F5: 7 | G5: 0
A6: 37501 | B6: BELLINGHAM | D6: 189 | E6: 72 | F6: 26 | G6: 23
A7: 27403 | B7: BETHEL | D7: 189 | E7: 10 | F7: 6 | G7: 0
A8: 18100 | B8: BREMERTON | D8: 189 | E8: 30 | F8: 24 | G8: 1
A9: 24111 | B9: BREWSTER | D9: 171 | E9: 224 | F9: 69 | G9: 58
A10: 09075 | B10: BRIDGEPORT | D10: 171 | E10: 152 | F10: 59 | G10: 28
A11: 29100 | B11: BURLINGTON | D11: 189 | E11: 520 | F11: 208 | G11: 97
A12: 04228 | B12: CASCADE | D12: 171 | E12: 54 | F12: 12 | G12: 8
A13: 04222 | B13: CASHMERE | D13: 171 | E13: 165 | F13: 48 | G13: 3
A14: 18401 | B14: CENTRAL KITSAP | D14: 189 | E14: 13 | F14: 6 | G14: 5
A15: 32356 | B15: CENTRAL VALLEY | D15: 171 | E15: 12 | F15: 10 | G15: 2
A16: 21401 | B16: CENTRALIA | D16: 189 | E16: 80 | F16: 16 | G16: 26
A17: 21302 | B17: CHEHALIS | D17: 189 | E17: 24 | F17: 11 | G17: 6
A18: 32360 | B18: CHENEY | D18: 171 | E18: 10 | F18: 7 | G18: 0
A19: 27901 | B19: CHIEF LESCHI SCHOOLS | D19: 189 | E19: 24 | F19: 16 | G19: 1
A20: 27400 | B20: CLOVER PARK | D20: 189 | E20: 15 | F20: 5 | G20: 3
A21: 36250 | B21: COLLEGE PLACE | D21: 123 | E21: 199 | F21: 70 | G21: 55
A22: 36400 | B22: COLUMBIA (WALLA WALLA) | D22: 123 | E22: 52 | F22: 26 | G22: 7
A23: 29317 | B23: CONWAY | D23: 189 | E23: 12 | F23: 7 | G23: 1
A24: 39090 | B24: EAST VALLEY (YAKIMA) | D24: 105 | E24: 161 | F24: 114 | G24: 16
A25: 09206 | B25: EASTMONT | D25: 171 | E25: 1042 | F25: 220 | G25: 345
A26: 31015 | B26: EDMONDS | D26: 189 | E26: 25 | F26: 12 | G26: 2
A27: 39801 | B27: EDUCATIONAL SERVICE DISTRICT 105 | D27: NULL | E27: 12 | F27: 6 | G27: 4
A28: 11801 | B28: EDUCATIONAL SERVICE DISTRICT 123 | D28: NULL | E28: 157 | F28: 2 | G28: 1
A29: 19401 | B29: ELLENSBURG | D29: 105 | E29: 16 | F29: 13 | G29: 0
A30: 14068 | B30: ELMA | D30: 189 | E30: 12 | F30: 6 | G30: 4
A31: 04127 | B31: ENTIAT | D31: 171 | E31: 69 | F31: 39 | G31: 6
A32: 13165 | B32: EPHRATA | D32: 171 | E32: 130 | F32: 63 | G32: 21
A33: 31002 | B33: EVERETT | D33: 189 | E33: 42 | F33: 28 | G33: 4
A34: 06114 | B34: EVERGREEN | D34: 189 | E34: 19 | F34: 16 | G34: 1
A35: 17210 | B35: FEDERAL WAY | D35: 189 | E35: 15 | F35: 11 | G35: 3
A36: 37502 | B36: FERNDALE | D36: 189 | E36: 96 | F36: 13 | G36: 22
A37: 03053 | B37: FINLEY | D37: 123 | E37: 92 | F37: 42 | G37: 11
A38: 20404 | B38: GOLDENDALE | D38: 105 | E38: 55 | F38: 32 | G38: 2
A39: 13301 | B39: GRAND COULEE DAM | D39: 171 | E39: 173 | F39: 128 | G39: 15
A40: 39200 | B40: GRANDVIEW | D40: 105 | E40: 763 | F40: 189 | G40: 223
A41: 39204 | B41: GRANGER | D41: 105 | E41: 296 | F41: 132 | G41: 71
A42: 39203 | B42: HIGHLAND | D42: 105 | E42: 210 | F42: 77 | G42: 63
A43: 23404 | B43: HOOD CANAL | D43: 189 | E43: 25 | F43: 17 | G43: 1
A44: 14028 | B44: HOQUIAM | D44: 189 | E44: 12 | F44: 4 | G44: 6
A45: 08458 | B45: KELSO | D45: 189 | E45: 26 | F45: 22 | G45: 2
A46: 03017 | B46: KENNEWICK | D46: 123 | E46: 2679 | F46: 883 | G46: 882
A47: 17415 | B47: KENT | D47: 189 | E47: 18 | F47: 12 | G47: 1
A48: 03052 | B48: KIONA BENTON | D48: 123 | E48: 305 | F48: 93 | G48: 80
A49: 29311 | B49: LA CONNER | D49: 189 | E49: 124 | F49: 28 | G49: 46
A50: 04129 | B50: LAKE CHELAN | D50: 171 | E50: 156 | F50: 72 | G50: 35
A51: 31306 | B51: LAKEWOOD | D51: 189 | E51: 22 | F51: 9 | G51: 4
A52: 01158 | B52: LIND | D52: 171 | E52: 33 | F52: 16 | G52: 4
A53: 08122 | B53: LONGVIEW | D53: 189 | E53: 22 | F53: 21 | G53: 0
A54: 37504 | B54: LYNDEN | D54: 189 | E54: 122 | F54: 30 | G54: 14
A55: 39120 | B55: MABTON | D55: 105 | E55: 473 | F55: 47 | G55: 147
A56: 04019 | B56: MANSON | D56: 171 | E56: 87 | F56: 29 | G56: 20
A57: 33207 | B57: MARY WALKER | D57: 189 | E57: 19 | F57: 9 | G57: 0
A58: 31025 | B58: MARYSVILLE | D58: 189 | E58: 311 | F58: 84 | G58: 105
A59: 37505 | B59: MERIDIAN | D59: 189 | E59: 41 | F59: 19 | G59: 4
A60: 13161 | B60: MOSES LAKE | D60: 171 | E60: 516 | F60: 162 | G60: 146
A61: 21206 | B61: MOSSYROCK | D61: 189 | E61: 66 | F61: 19 | G61: 16
A62: 29320 | B62: MOUNT VERNON | D62: 189 | E62: 1093 | F62: 624 | G62: 171
A63: 39209 | B63: MT ADAMS | D63: 105 | E63: 361 | F63: 117 | G63: 83
A64: 37507 | B64: MT BAKER | D64: 189 | E64: 21 | F64: 8 | G64: 7
A65: 17903 | B65: MUCKLESHOOT INDIAN TRIBE | D65: 189 | E65: 11 | F65: 7 | G65: 3
A66: 31006 | B66: MUKILTEO | D66: 189 | E66: 14 | F66: 10 | G66: 0
A67: 39003 | B67: NACHES | D67: 105 | E67: 87 | F67: 49 | G67: 18
A68: 25155 | B68: NASELLE-GRAYS RIVER | D68: 189 | E68: 50 | F68: 8 | G68: 12
A69: 24014 | B69: NESPELEM | D69: 171 | E69: 41 | F69: 19 | G69: 1
A70: 37506 | B70: NOOKSACK VALLEY | D70: 189 | E70: 114 | F70: 55 | G70: 25
A71: 11051 | B71: NORTH FRANKLIN | D71: 123 | E71: 634 | F71: 147 | G71: 296
A72: 18400 | B72: NORTH KITSAP | D72: 189 | E72: 78 | F72: 12 | G72: 11
A73: 34003 | B73: NORTH THURSTON | D73: 189 | E73: 58 | F73: 25 | G73: 1
A74: 25101 | B74: OCEAN BEACH | D74: 189 | E74: 25 | F74: 5 | G74: 13
A75: 14172 | B75: OCOSTA | D75: 189 | E75: 31 | F75: 4 | G75: 15
A76: 24105 | B76: OKANOGAN | D76: 171 | E76: 46 | F76: 21 | G76: 4
A77: 34111 | B77: OLYMPIA | D77: 189 | E77: 48 | F77: 13 | G77: 23
A78: 24019 | B78: OMAK | D78: 171 | E78: 48 | F78: 27 | G78: 12
A79: 09013 | B79: ORONDO | D79: 171 | E79: 38 | F79: 5 | G79: 6
A80: 24410 | B80: OROVILLE | D80: 171 | E80: 35 | F80: 6 | G80: 7
A81: 01147 | B81: OTHELLO | D81: 123 | E81: 845 | F81: 234 | G81: 291
A82: 09102 | B82: PALISADES | D82: 171 | E82: 12 | F82: 1 | G82: 4
A83: 11001 | B83: PASCO | D83: 123 | E83: 1734 | F83: 645 | G83: 520
A84: 03050 | B84: PATERSON | D84: 123 | E84: 18 | F84: 3 | G84: 2
A85: 04901 | B85: PINNACLES PREP CHARTER SCHOOL | D85: NULL | E85: 21 | F85: 12 | G85: 8
A86: 36402 | B86: PRESCOTT | D86: 123 | E86: 68 | F86: 6 | G86: 7
A87: 03116 | B87: PROSSER | D87: 123 | E87: 845 | F87: 286 | G87: 250
A88: 27003 | B88: PUYALLUP | D88: 189 | E88: 18 | F88: 4 | G88: 1
A89: 05402 | B89: QUILLAYUTE VALLEY | D89: 189 | E89: 80 | F89: 32 | G89: 21
A90: 13144 | B90: QUINCY | D90: 171 | E90: 603 | F90: 156 | G90: 156
A91: 22009 | B91: REARDAN-EDWALL | D91: 171 | E91: 23 | F91: 12 | G91: 2
A92: 17403 | B92: RENTON | D92: 189 | E92: 14 | F92: 12 | G92: 0
A93: 03400 | B93: RICHLAND | D93: 123 | E93: 311 | F93: 79 | G93: 110
A94: 17407 | B94: RIVERVIEW | D94: 189 | E94: 12 | F94: 7 | G94: 3
A95: 34401 | B95: ROCHESTER | D95: 189 | E95: 51 | F95: 17 | G95: 15
A96: 13160 | B96: ROYAL CITY | D96: 105 | E96: 293 | F96: 54 | G96: 123
A97: 17001 | B97: SEATTLE | D97: 189 | E97: 11 | F97: 4 | G97: 3
A98: 29101 | B98: SEDRO WOOLLEY | D98: 189 | E98: 144 | F98: 58 | G98: 25
A99: 39119 | B99: SELAH | D99: 105 | E99: 267 | F99: 77 | G99: 91
A100: 23309 | B100: SHELTON | D100: 189 | E100: 55 | F100: 28 | G100: 10
A101: 31201 | B101: SNOHOMISH | D101: 189 | E101: 47 | F101: 24 | G101: 14
A102: 13156 | B102: SOAP LAKE | D102: 171 | E102: 28 | F102: 18 | G102: 1
A103: 32081 | B103: SPOKANE | D103: 171 | E103: 65 | F103: 36 | G103: 7
A104: 31401 | B104: STANWOOD | D104: 189 | E104: 13 | F104: 11 | G104: 1
A105: 39201 | B105: SUNNYSIDE | D105: 105 | E105: 2295 | F105: 459 | G105: 889
A106: 27010 | B106: TACOMA | D106: 189 | E106: 11 | F106: 8 | G106: 0
A107: 14077 | B107: TAHOLAH | D107: 189 | E107: 71 | F107: 48 | G107: 9
A108: 34402 | B108: TENINO | D108: 189 | E108: 13 | F108: 2 | G108: 0
A109: 24404 | B109: TONASKET | D109: 171 | E109: 317 | F109: 85 | G109: 88
A110: 39202 | B110: TOPPENISH | D110: 105 | E110: 886 | F110: 231 | G110: 291
A111: 39002 | B111: UNION GAP | D111: 105 | E111: 72 | F111: 21 | G111: 16
A112: 06037 | B112: VANCOUVER | D112: 189 | E112: 47 | F112: 34 | G112: 6
A113: 34901 | B113: WA HE LUT INDIAN SCHOOL | D113: 189 | E113: 13 | F113: 13 | G113: 0
A114: 13073 | B114: WAHLUKE | D114: 105 | E114: 1910 | F114: 729 | G114: 539
A115: 36140 | B115: WALLA WALLA | D115: 123 | E115: 94 | F115: 47 | G115: 18
A116: 39207 | B116: WAPATO | D116: 105 | E116: 946 | F116: 260 | G116: 257
A117: 13146 | B117: WARDEN | D117: 171 | E117: 288 | F117: 63 | G117: 120
A118: 33049 | B118: WELLPINIT | D118: 171 | E118: 70 | F118: 33 | G118: 7
A119: 04246 | B119: WENATCHEE | D119: 171 | E119: 1390 | F119: 437 | G119: 470
A120: 39208 | B120: WEST VALLEY (YAKIMA) | D120: 105 | E120: 201 | F120: 56 | G120: 58
A121: 20405 | B121: WHITE SALMON | D121: 105 | E121: 11 | F121: 6 | G121: 1
A122: 21232 | B122: WINLOCK | D122: 189 | E122: 87 | F122: 28 | G122: 13
A123: 20094 | B123: WISHRAM | D123: 105 | E123: 45 | F123: 9 | G123: 20
A124: 08404 | B124: WOODLAND | D124: 189 | E124: 17 | F124: 17 | G124: 0
A125: 39901 | B125: YAKAMA TRIBAL SCHOOL | D125: 105 | E125: 52 | F125: 20 | G125: 16
A126: 39007 | B126: YAKIMA | D126: 105 | E126: 2077 | F126: 510 | G126: 883
A127: 34002 | B127: YELM | D127: 189 | E127: 42 | F127: 35 | G127: 1
A128: 39205 | B128: ZILLAH | D128: 105 | E128: 90 | F128: 26 | G128: 20

Sheet Rural and Low Income 26-27 (hidden)
A1: CoDis | B1: Local Education Agency (LEA)
A2: 14005 | B2: Aberdeen School District
A3: 22017 | B3: Almira School District
A4: 01122 | B4: Benge School District
A5: 20203 | B5: Bickleton School District
A6: 21234 | B6: Boistfort School District
A7: 24111 | B7: Brewster School District
A8: 16046 | B8: Brinnon School District
A9: 05401 | B9: Cape Flattery School District
A10: 27019 | B10: Carbonado School District
A11: 20215 | B11: Centerville School District
A12: 38300 | B12: Colfax School District
A13: 38306 | B13: Colton School District
A14: 33206 | B14: Columbia (Stevens) School District
A15: 29011 | B15: Concrete School District
A16: 29317 | B16: Conway School District
A17: 14099 | B17: Cosmopolis School District
A18: 13151 | B18: Coulee-Hartline School District
A19: 05313 | B19: Crescent School District
A20: 22073 | B20: Creston School District
A21: 10050 | B21: Curlew School District
A22: 26059 | B22: Cusick School District
A23: 19007 | B23: Damman School District
A24: 31330 | B24: Darrington School District
A25: 22207 | B25: Davenport School District
A26: 07002 | B26: Dayton School District
A27: 36101 | B27: Dixie School District
A28: 19028 | B28: Easton School District
A29: 38308 | B29: Endicott School District
A30: 04127 | B30: Entiat School District
A31: 21036 | B31: Evaline School District
A32: 33205 | B32: Evergreen School District (Stevens)
A33: 38302 | B33: Garfield School District
A34: 20401 | B34: Glenwood School District
A35: 13301 | B35: Grand Coulee Dam School District
A36: 39200 | B36: Grandview School District
A37: 23054 | B37: Grapeview School District
A38: 32312 | B38: Great Northern School District
A39: 06103 | B39: Green Mountain School District
A40: 22204 | B40: Harrington School District
A41: 23404 | B41: Hood Canal School District
A42: 14028 | B42: Hoquiam School District
A43: 10070 | B43: Inchelium School District
A44: 31063 | B44: Index Elementary School District 63
A45: 11056 | B45: Kahlotus School District
A46: 10003 | B46: Keller School District
A47: 19403 | B47: Kittitas School District
A48: 20402 | B48: Klickitat School District
A49: 29311 | B49: La Conner School District
A50: 38126 | B50: LaCrosse School District
A51: 14097 | B51: Lake Quinault School District
A52: 38264 | B52: Lamont School District
A53: 32362 | B53: Liberty School District
A54: 01158 | B54: Lind School District
A55: 33183 | B55: Loon Lake School District
A56: 28144 | B56: Lopez School District
A57: 20406 | B57: Lyle School District
A58: 09207 | B58: Mansfield School District
A59: 33207 | B59: Mary Walker School District
A60: 14065 | B60: McCleary School District
A61: 24350 | B61: Methow Valley School District
A62: 30031 | B62: Mill A School District
A63: 21214 | B63: Morton School District
A64: 13161 | B64: Moses Lake School District
A65: 30029 | B65: Mount Pleasant School District
A66: 25155 | B66: Naselle-Grays River Valley School District
A67: 24014 | B67: Nespelem School District
A68: 25200 | B68: North River School District
A69: 33211 | B69: Northport School District
A70: 38324 | B70: Oakesdale School District
A71: 14400 | B71: Oakville School District
A72: 14172 | B72: Ocosta School District
A73: 22105 | B73: Odessa School District
A74: 24105 | B74: Okanogan School District
A75: 24019 | B75: Omak School District
A76: 33030 | B76: Onion Creek School District
A77: 32123 | B77: Orchard Prairie School District
A78: 10065 | B78: Orient School District
A79: 09013 | B79: Orondo School District
A80: 24410 | B80: Oroville School District
A81: 09102 | B81: Palisades School District
A82: 38301 | B82: Palouse School District
A83: 24122 | B83: Pateros School District
A84: 03050 | B84: Paterson School District
A85: 21301 | B85: Pe Ell School District
A86: 12110 | B86: Pomeroy School District
A87: 36402 | B87: Prescott School District
A88: 16020 | B88: Queets-Clearwater School District
A89: 25116 | B89: Raymond School District
A90: 22009 | B90: Reardan-Edwall School District
A91: 10309 | B91: Republic School District
A92: 01160 | B92: Ritzville School District
A93: 20403 | B93: Roosevelt School District
A94: 38320 | B94: Rosalia School District
A95: 14104 | B95: Satsop School District
A96: 26070 | B96: Selkirk School District
A97: 28010 | B97: Shaw Island School District
A98: 23309 | B98: Shelton School District
A99: 30002 | B99: Skamania School District
A100: 17404 | B100: Skykomish School District
A101: 13156 | B101: Soap Lake School District
A102: 25118 | B102: South Bend School District
A103: 23042 | B103: Southside School District
A104: 22008 | B104: Sprague School District
A105: 38322 | B105: St. John School District
A106: 11054 | B106: Star School District No. 054
A107: 07035 | B107: Starbuck School District
A108: 04069 | B108: Stehekin School District
A109: 38304 | B109: Steptoe School District
A110: 30303 | B110: Stevenson-Carson School District
A111: 33202 | B111: Summit Valley School District
A112: 39201 | B112: Sunnyside School District
A113: 14077 | B113: Taholah School District
A114: 38265 | B114: Tekoa School District
A115: 19400 | B115: Thorp School District
A116: 24404 | B116: Tonasket School District
A117: 39202 | B117: Toppenish School District
A118: 36300 | B118: Touchet School District
A119: 20400 | B119: Trout Lake School District
A120: 39002 | B120: Union Gap School District
A121: 33070 | B121: Valley School District
A122: 35200 | B122: Wahkiakum School District
A123: 36401 | B123: Waitsburg School District
A124: 01109 | B124: Washtucna School District
A125: 09209 | B125: Waterville School District
A126: 33049 | B126: Wellpinit School District #49
A127: 21303 | B127: White Pass School District
A128: 22200 | B128: Wilbur School District
A129: 25160 | B129: Willapa Valley School District
A130: 13167 | B130: Wilson Creek School District
A131: 14117 | B131: Wishkah Valley School District
A132: 20094 | B132: Wishram School District 94

Sheet other funds ftr 2026 (hidden)
A1: CCDDD | B1: Migrant Districts | C1: Title III 25-26 | D1: Title I A 25-26 | E1: LAP 25-26 | F1: TBIP 25-6 | G1: Title I C 25-26 | H1: other funds as % of Revs | I1: "Other Funds" Factor
A2: 14005 | B2: ABERDEEN | C2: =IFERROR(VLOOKUP(A2,'[2]Allocations 2025-26'!$B$9:$U$328,20,FALSE),0) -> 58975 | D2: =IFERROR(VLOOKUP(A2,'[3]State Reservations'!$C$4:$AE$318,29,FALSE),0) -> 1649858.299 | E2: =IFERROR(VLOOKUP(A2,[4]Sheet1!$A$2:$D$379,3,FALSE),0) -> 2481694.17 | F2: =IFERROR(VLOOKUP(A2,[4]Sheet1!$A$2:$D$379,4,FALSE),0) -> 812981.4 | G2: =IFERROR(VLOOKUP(A2,'[5]2025-26 FINAL Y'!$B$19:$S$164,18,FALSE),0) -> 114450 | H2: =IF(G2=0,0,(SUM(C2:F2)/SUM(C2:G2))) -> 0.9776375694 | I2: =_xlfn.IFS(H2=0%,0,'other funds ftr 2026'!H2<Assumptions!$D$57,Assumptions!$B$57,'other funds ftr 2026'!H2<Assumptions!$D$58,Assumptions!$B$58,'other funds ftr 2026'!H2<=Assumptions!$D$59,Assumptions!$B$59,'other funds ftr 2026'!H2<=Assumptions!$D$60,Assumptions!$B$60) -> 1
A3: 29103 | B3: ANACORTES | C3: =IFERROR(VLOOKUP(A3,'[2]Allocations 2025-26'!$B$9:$U$328,20,FALSE),0) -> 0 | D3: =IFERROR(VLOOKUP(A3,'[3]State Reservations'!$C$4:$AE$318,29,FALSE),0) -> 429328.0728 | E3: =IFERROR(VLOOKUP(A3,[4]Sheet1!$A$2:$D$379,3,FALSE),0) -> 656967.99 | F3: =IFERROR(VLOOKUP(A3,[4]Sheet1!$A$2:$D$379,4,FALSE),0) -> 102841.56 | G3: =IFERROR(VLOOKUP(A3,'[5]2025-26 FINAL Y'!$B$19:$S$164,18,FALSE),0) -> 0 | H3: 0 | I3: =_xlfn.IFS(H3=0%,0,'other funds ftr 2026'!H3<Assumptions!$D$57,Assumptions!$B$57,'other funds ftr 2026'!H3<Assumptions!$D$58,Assumptions!$B$58,'other funds ftr 2026'!H3<=Assumptions!$D$59,Assumptions!$B$59,'other funds ftr 2026'!H3<=Assumptions!$D$60,Assumptions!$B$60) -> 0
A4: 31016 | B4: ARLINGTON | C4: =IFERROR(VLOOKUP(A4,'[2]Allocations 2025-26'!$B$9:$U$328,20,FALSE),0) -> 45388 | D4: =IFERROR(VLOOKUP(A4,'[3]State Reservations'!$C$4:$AE$318,29,FALSE),0) -> 904355.6541 | E4: =IFERROR(VLOOKUP(A4,[4]Sheet1!$A$2:$D$379,3,FALSE),0) -> 1793124.34 | F4: =IFERROR(VLOOKUP(A4,[4]Sheet1!$A$2:$D$379,4,FALSE),0) -> 733644.45 | G4: =IFERROR(VLOOKUP(A4,'[5]2025-26 FINAL Y'!$B$19:$S$164,18,FALSE),0) -> 0 | H4: 0 | I4: =_xlfn.IFS(H4=0%,0,'other funds ftr 2026'!H4<Assumptions!$D$57,Assumptions!$B$57,'other funds ftr 2026'!H4<Assumptions!$D$58,Assumptions!$B$58,'other funds ftr 2026'!H4<=Assumptions!$D$59,Assumptions!$B$59,'other funds ftr 2026'!H4<=Assumptions!$D$60,Assumptions!$B$60) -> 0
A5: 17408 | B5: AUBURN | C5: =IFERROR(VLOOKUP(A5,'[2]Allocations 2025-26'!$B$9:$U$328,20,FALSE),0) -> 646948 | D5: =IFERROR(VLOOKUP(A5,'[3]State Reservations'!$C$4:$AE$318,29,FALSE),0) -> 6638689.911 | E5: =IFERROR(VLOOKUP(A5,[4]Sheet1!$A$2:$D$379,3,FALSE),0) -> 12302934.41 | F5: =IFERROR(VLOOKUP(A5,[4]Sheet1!$A$2:$D$379,4,FALSE),0) -> 10442721.74 | G5: =IFERROR(VLOOKUP(A5,'[5]2025-26 FINAL Y'!$B$19:$S$164,18,FALSE),0) -> 0 | H5: 0 | I5: =_xlfn.IFS(H5=0%,0,'other funds ftr 2026'!H5<Assumptions!$D$57,Assumptions!$B$57,'other funds ftr 2026'!H5<Assumptions!$D$58,Assumptions!$B$58,'other funds ftr 2026'!H5<=Assumptions!$D$59,Assumptions!$B$59,'other funds ftr 2026'!H5<=Assumptions!$D$60,Assumptions!$B$60) -> 0
A6: 06119 | B6: BATTLE GROUND | C6: =IFERROR(VLOOKUP(A6,'[2]Allocations 2025-26'!$B$9:$U$328,20,FALSE),0) -> 170190 | D6: =IFERROR(VLOOKUP(A6,'[3]State Reservations'!$C$4:$AE$318,29,FALSE),0) -> 1760787.123 | E6: =IFERROR(VLOOKUP(A6,[4]Sheet1!$A$2:$D$379,3,FALSE),0) -> 4086442.05 | F6: =IFERROR(VLOOKUP(A6,[4]Sheet1!$A$2:$D$379,4,FALSE),0) -> 2724716.89 | G6: =IFERROR(VLOOKUP(A6,'[5]2025-26 FINAL Y'!$B$19:$S$164,18,FALSE),0) -> 0 | H6: 0 | I6: =_xlfn.IFS(H6=0%,0,'other funds ftr 2026'!H6<Assumptions!$D$57,Assumptions!$B$57,'other funds ftr 2026'!H6<Assumptions!$D$58,Assumptions!$B$58,'other funds ftr 2026'!H6<=Assumptions!$D$59,Assumptions!$B$59,'other funds ftr 2026'!H6<=Assumptions!$D$60,Assumptions!$B$60) -> 0
A7: 17405 | B7: BELLEVUE | C7: =IFERROR(VLOOKUP(A7,'[2]Allocations 2025-26'!$B$9:$U$328,20,FALSE),0) -> 459931 | D7: =IFERROR(VLOOKUP(A7,'[3]State Reservations'!$C$4:$AE$318,29,FALSE),0) -> 2791887.807 | E7: =IFERROR(VLOOKUP(A7,[4]Sheet1!$A$2:$D$379,3,FALSE),0) -> 4272150.97 | F7: =IFERROR(VLOOKUP(A7,[4]Sheet1!$A$2:$D$379,4,FALSE),0) -> 8426767.95 | G7: =IFERROR(VLOOKUP(A7,'[5]2025-26 FINAL Y'!$B$19:$S$164,18,FALSE),0) -> 0 | H7: 0 | I7: =_xlfn.IFS(H7=0%,0,'other funds ftr 2026'!H7<Assumptions!$D$57,Assumptions!$B$57,'other funds ftr 2026'!H7<Assumptions!$D$58,Assumptions!$B$58,'other funds ftr 2026'!H7<=Assumptions!$D$59,Assumptions!$B$59,'other funds ftr 2026'!H7<=Assumptions!$D$60,Assumptions!$B$60) -> 0
A8: 37501 | B8: BELLINGHAM | C8: =IFERROR(VLOOKUP(A8,'[2]Allocations 2025-26'!$B$9:$U$328,20,FALSE),0) -> 125543 | D8: =IFERROR(VLOOKUP(A8,'[3]State Reservations'!$C$4:$AE$318,29,FALSE),0) -> 2786322.437 | E8: =IFERROR(VLOOKUP(A8,[4]Sheet1!$A$2:$D$379,3,FALSE),0) -> 3778653.04 | F8: =IFERROR(VLOOKUP(A8,[4]Sheet1!$A$2:$D$379,4,FALSE),0) -> 2014700.12 | G8: =IFERROR(VLOOKUP(A8,'[5]2025-26 FINAL Y'!$B$19:$S$164,18,FALSE),0) -> 0 | H8: 0 | I8: =_xlfn.IFS(H8=0%,0,'other funds ftr 2026'!H8<Assumptions!$D$57,Assumptions!$B$57,'other funds ftr 2026'!H8<Assumptions!$D$58,Assumptions!$B$58,'other funds ftr 2026'!H8<=Assumptions!$D$59,Assumptions!$B$59,'other funds ftr 2026'!H8<=Assumptions!$D$60,Assumptions!$B$60) -> 0
A9: 27403 | B9: BETHEL | C9: =IFERROR(VLOOKUP(A9,'[2]Allocations 2025-26'!$B$9:$U$328,20,FALSE),0) -> 214679 | D9: =IFERROR(VLOOKUP(A9,'[3]State Reservations'!$C$4:$AE$318,29,FALSE),0) -> 5025516.445 | E9: =IFERROR(VLOOKUP(A9,[4]Sheet1!$A$2:$D$379,3,FALSE),0) -> 11728617.3 | F9: =IFERROR(VLOOKUP(A9,[4]Sheet1!$A$2:$D$379,4,FALSE),0) -> 3401726.02 | G9: =IFERROR(VLOOKUP(A9,'[5]2025-26 FINAL Y'!$B$19:$S$164,18,FALSE),0) -> 0 | H9: 0 | I9: =_xlfn.IFS(H9=0%,0,'other funds ftr 2026'!H9<Assumptions!$D$57,Assumptions!$B$57,'other funds ftr 2026'!H9<Assumptions!$D$58,Assumptions!$B$58,'other funds ftr 2026'!H9<=Assumptions!$D$59,Assumptions!$B$59,'other funds ftr 2026'!H9<=Assumptions!$D$60,Assumptions!$B$60) -> 0
A10: 18100 | B10: BREMERTON | C10: =IFERROR(VLOOKUP(A10,'[2]Allocations 2025-26'!$B$9:$U$328,20,FALSE),0) -> 77110 | D10: =IFERROR(VLOOKUP(A10,'[3]State Reservations'!$C$4:$AE$318,29,FALSE),0) -> 1804455.149 | E10: =IFERROR(VLOOKUP(A10,[4]Sheet1!$A$2:$D$379,3,FALSE),0) -> 3714248.41 | F10: =IFERROR(VLOOKUP(A10,[4]Sheet1!$A$2:$D$379,4,FALSE),0) -> 1259908.16 | G10: =IFERROR(VLOOKUP(A10,'[5]2025-26 FINAL Y'!$B$19:$S$164,18,FALSE),0) -> 32349 | H10: 0.9953036196 | I10: =_xlfn.IFS(H10=0%,0,'other funds ftr 2026'!H10<Assumptions!$D$57,Assumptions!$B$57,'other funds ftr 2026'!H10<Assumptions!$D$58,Assumptions!$B$58,'other funds ftr 2026'!H10<=Assumptions!$D$59,Assumptions!$B$59,'other funds ftr 2026'!H10<=Assumptions!$D$60,Assumptions!$B$60) -> 0.95
A11: 24111 | B11: BREWSTER | C11: =IFERROR(VLOOKUP(A11,'[2]Allocations 2025-26'!$B$9:$U$328,20,FALSE),0) -> 46306 | D11: =IFERROR(VLOOKUP(A11,'[3]State Reservations'!$C$4:$AE$318,29,FALSE),0) -> 575395.4286 | E11: =IFERROR(VLOOKUP(A11,[4]Sheet1!$A$2:$D$379,3,FALSE),0) -> 972803.78 | F11: =IFERROR(VLOOKUP(A11,[4]Sheet1!$A$2:$D$379,4,FALSE),0) -> 708769.8 | G11: =IFERROR(VLOOKUP(A11,'[5]2025-26 FINAL Y'!$B$19:$S$164,18,FALSE),0) -> 172103 | H11: 0.9304740531 | I11: =_xlfn.IFS(H11=0%,0,'other funds ftr 2026'!H11<Assumptions!$D$57,Assumptions!$B$57,'other funds ftr 2026'!H11<Assumptions!$D$58,Assumptions!$B$58,'other funds ftr 2026'!H11<=Assumptions!$D$59,Assumptions!$B$59,'other funds ftr 2026'!H11<=Assumptions!$D$60,Assumptions!$B$60) -> 1.05
A12: 09075 | B12: BRIDGEPORT | C12: =IFERROR(VLOOKUP(A12,'[2]Allocations 2025-26'!$B$9:$U$328,20,FALSE),0) -> 48843 | D12: =IFERROR(VLOOKUP(A12,'[3]State Reservations'!$C$4:$AE$318,29,FALSE),0) -> 406302.3242 | E12: =IFERROR(VLOOKUP(A12,[4]Sheet1!$A$2:$D$379,3,FALSE),0) -> 723219.54 | F12: =IFERROR(VLOOKUP(A12,[4]Sheet1!$A$2:$D$379,4,FALSE),0) -> 707352.69 | G12: =IFERROR(VLOOKUP(A12,'[5]2025-26 FINAL Y'!$B$19:$S$164,18,FALSE),0) -> 118055 | H12: 0.9410836326 | I12: =_xlfn.IFS(H12=0%,0,'other funds ftr 2026'!H12<Assumptions!$D$57,Assumptions!$B$57,'other funds ftr 2026'!H12<Assumptions!$D$58,Assumptions!$B$58,'other funds ftr 2026'!H12<=Assumptions!$D$59,Assumptions!$B$59,'other funds ftr 2026'!H12<=Assumptions!$D$60,Assumptions!$B$60) -> 1.05
A13: 29100 | B13: BURLINGTON-EDISON | C13: =IFERROR(VLOOKUP(A13,'[2]Allocations 2025-26'!$B$9:$U$328,20,FALSE),0) -> 94252 | D13: =IFERROR(VLOOKUP(A13,'[3]State Reservations'!$C$4:$AE$318,29,FALSE),0) -> 821123.0069 | E13: =IFERROR(VLOOKUP(A13,[4]Sheet1!$A$2:$D$379,3,FALSE),0) -> 2252663.72 | F13: =IFERROR(VLOOKUP(A13,[4]Sheet1!$A$2:$D$379,4,FALSE),0) -> 1406650.17 | G13: =IFERROR(VLOOKUP(A13,'[5]2025-26 FINAL Y'!$B$19:$S$164,18,FALSE),0) -> 357421 | H13: 0.9275318256 | I13: =_xlfn.IFS(H13=0%,0,'other funds ftr 2026'!H13<Assumptions!$D$57,Assumptions!$B$57,'other funds ftr 2026'!H13<Assumptions!$D$58,Assumptions!$B$58,'other funds ftr 2026'!H13<=Assumptions!$D$59,Assumptions!$B$59,'other funds ftr 2026'!H13<=Assumptions!$D$60,Assumptions!$B$60) -> 1.05
A14: 04228 | B14: CASCADE | C14: =IFERROR(VLOOKUP(A14,'[2]Allocations 2025-26'!$B$9:$U$328,20,FALSE),0) -> 15948 | D14: =IFERROR(VLOOKUP(A14,'[3]State Reservations'!$C$4:$AE$318,29,FALSE),0) -> 283761.9022 | E14: =IFERROR(VLOOKUP(A14,[4]Sheet1!$A$2:$D$379,3,FALSE),0) -> 386756.11 | F14: =IFERROR(VLOOKUP(A14,[4]Sheet1!$A$2:$D$379,4,FALSE),0) -> 243632.79 | G14: =IFERROR(VLOOKUP(A14,'[5]2025-26 FINAL Y'!$B$19:$S$164,18,FALSE),0) -> 31585 | H14: 0.9671565644 | I14: =_xlfn.IFS(H14=0%,0,'other funds ftr 2026'!H14<Assumptions!$D$57,Assumptions!$B$57,'other funds ftr 2026'!H14<Assumptions!$D$58,Assumptions!$B$58,'other funds ftr 2026'!H14<=Assumptions!$D$59,Assumptions!$B$59,'other funds ftr 2026'!H14<=Assumptions!$D$60,Assumptions!$B$60) -> 1
A15: 04222 | B15: CASHMERE | C15: =IFERROR(VLOOKUP(A15,'[2]Allocations 2025-26'!$B$9:$U$328,20,FALSE),0) -> 21727 | D15: =IFERROR(VLOOKUP(A15,'[3]State Reservations'!$C$4:$AE$318,29,FALSE),0) -> 330990.1022 | E15: =IFERROR(VLOOKUP(A15,[4]Sheet1!$A$2:$D$379,3,FALSE),0) -> 543472.92 | F15: =IFERROR(VLOOKUP(A15,[4]Sheet1!$A$2:$D$379,4,FALSE),0) -> 333644.6 | G15: =IFERROR(VLOOKUP(A15,'[5]2025-26 FINAL Y'!$B$19:$S$164,18,FALSE),0) -> 102555 | H15: 0.9230292714 | I15: =_xlfn.IFS(H15=0%,0,'other funds ftr 2026'!H15<Assumptions!$D$57,Assumptions!$B$57,'other funds ftr 2026'!H15<Assumptions!$D$58,Assumptions!$B$58,'other funds ftr 2026'!H15<=Assumptions!$D$59,Assumptions!$B$59,'other funds ftr 2026'!H15<=Assumptions!$D$60,Assumptions!$B$60) -> 1.05
A16: 18401 | B16: CENTRAL KITSAP | C16: =IFERROR(VLOOKUP(A16,'[2]Allocations 2025-26'!$B$9:$U$328,20,FALSE),0) -> 60927 | D16: =IFERROR(VLOOKUP(A16,'[3]State Reservations'!$C$4:$AE$318,29,FALSE),0) -> 1497186.896 | E16: =IFERROR(VLOOKUP(A16,[4]Sheet1!$A$2:$D$379,3,FALSE),0) -> 4246612.52 | F16: =IFERROR(VLOOKUP(A16,[4]Sheet1!$A$2:$D$379,4,FALSE),0) -> 1041822.34 | G16: =IFERROR(VLOOKUP(A16,'[5]2025-26 FINAL Y'!$B$19:$S$164,18,FALSE),0) -> 0 | H16: 0 | I16: =_xlfn.IFS(H16=0%,0,'other funds ftr 2026'!H16<Assumptions!$D$57,Assumptions!$B$57,'other funds ftr 2026'!H16<Assumptions!$D$58,Assumptions!$B$58,'other funds ftr 2026'!H16<=Assumptions!$D$59,Assumptions!$B$59,'other funds ftr 2026'!H16<=Assumptions!$D$60,Assumptions!$B$60) -> 0
A17: 32356 | B17: CENTRAL VALLEY | C17: =IFERROR(VLOOKUP(A17,'[2]Allocations 2025-26'!$B$9:$U$328,20,FALSE),0) -> 110004 | D17: =IFERROR(VLOOKUP(A17,'[3]State Reservations'!$C$4:$AE$318,29,FALSE),0) -> 3351081.788 | E17: =IFERROR(VLOOKUP(A17,[4]Sheet1!$A$2:$D$379,3,FALSE),0) -> 6068952.37 | F17: =IFERROR(VLOOKUP(A17,[4]Sheet1!$A$2:$D$379,4,FALSE),0) -> 1634858.51 | G17: =IFERROR(VLOOKUP(A17,'[5]2025-26 FINAL Y'!$B$19:$S$164,18,FALSE),0) -> 0 | H17: 0 | I17: =_xlfn.IFS(H17=0%,0,'other funds ftr 2026'!H17<Assumptions!$D$57,Assumptions!$B$57,'other funds ftr 2026'!H17<Assumptions!$D$58,Assumptions!$B$58,'other funds ftr 2026'!H17<=Assumptions!$D$59,Assumptions!$B$59,'other funds ftr 2026'!H17<=Assumptions!$D$60,Assumptions!$B$60) -> 0
A18: 21401 | B18: CENTRALIA | C18: =IFERROR(VLOOKUP(A18,'[2]Allocations 2025-26'!$B$9:$U$328,20,FALSE),0) -> 65865 | D18: =IFERROR(VLOOKUP(A18,'[3]State Reservations'!$C$4:$AE$318,29,FALSE),0) -> 1710829.746 | E18: =IFERROR(VLOOKUP(A18,[4]Sheet1!$A$2:$D$379,3,FALSE),0) -> 2735589.23 | F18: =IFERROR(VLOOKUP(A18,[4]Sheet1!$A$2:$D$379,4,FALSE),0) -> 949132.34 | G18: =IFERROR(VLOOKUP(A18,'[5]2025-26 FINAL Y'!$B$19:$S$164,18,FALSE),0) -> 61911 | H18: 0.9887909956 | I18: =_xlfn.IFS(H18=0%,0,'other funds ftr 2026'!H18<Assumptions!$D$57,Assumptions!$B$57,'other funds ftr 2026'!H18<Assumptions!$D$58,Assumptions!$B$58,'other funds ftr 2026'!H18<=Assumptions!$D$59,Assumptions!$B$59,'other funds ftr 2026'!H18<=Assumptions!$D$60,Assumptions!$B$60) -> 0.95
A19: 21302 | B19: CHEHALIS | C19: =IFERROR(VLOOKUP(A19,'[2]Allocations 2025-26'!$B$9:$U$328,20,FALSE),0) -> 18781 | D19: =IFERROR(VLOOKUP(A19,'[3]State Reservations'!$C$4:$AE$318,29,FALSE),0) -> 651163.7171 | E19: =IFERROR(VLOOKUP(A19,[4]Sheet1!$A$2:$D$379,3,FALSE),0) -> 1706424.94 | F19: =IFERROR(VLOOKUP(A19,[4]Sheet1!$A$2:$D$379,4,FALSE),0) -> 261167.06 | G19: =IFERROR(VLOOKUP(A19,'[5]2025-26 FINAL Y'!$B$19:$S$164,18,FALSE),0) -> 18852 | H19: 0.9929031471 | I19: =_xlfn.IFS(H19=0%,0,'other funds ftr 2026'!H19<Assumptions!$D$57,Assumptions!$B$57,'other funds ftr 2026'!H19<Assumptions!$D$58,Assumptions!$B$58,'other funds ftr 2026'!H19<=Assumptions!$D$59,Assumptions!$B$59,'other funds ftr 2026'!H19<=Assumptions!$D$60,Assumptions!$B$60) -> 0.95
A20: 32360 | B20: CHENEY | C20: =IFERROR(VLOOKUP(A20,'[2]Allocations 2025-26'!$B$9:$U$328,20,FALSE),0) -> 62313 | D20: =IFERROR(VLOOKUP(A20,'[3]State Reservations'!$C$4:$AE$318,29,FALSE),0) -> 1434052.818 | E20: =IFERROR(VLOOKUP(A20,[4]Sheet1!$A$2:$D$379,3,FALSE),0) -> 2999763.88 | F20: =IFERROR(VLOOKUP(A20,[4]Sheet1!$A$2:$D$379,4,FALSE),0) -> 937032.47 | G20: =IFERROR(VLOOKUP(A20,'[5]2025-26 FINAL Y'!$B$19:$S$164,18,FALSE),0) -> 0 | H20: 0 | I20: =_xlfn.IFS(H20=0%,0,'other funds ftr 2026'!H20<Assumptions!$D$57,Assumptions!$B$57,'other funds ftr 2026'!H20<Assumptions!$D$58,Assumptions!$B$58,'other funds ftr 2026'!H20<=Assumptions!$D$59,Assumptions!$B$59,'other funds ftr 2026'!H20<=Assumptions!$D$60,Assumptions!$B$60) -> 0
A21: 27901 | B21: CHIEF LESCHI TRIBAL COMPACT | C21: =IFERROR(VLOOKUP(A21,'[2]Allocations 2025-26'!$B$9:$U$328,20,FALSE),0) -> 0 | D21: =IFERROR(VLOOKUP(A21,'[3]State Reservations'!$C$4:$AE$318,29,FALSE),0) -> 0 | E21: =IFERROR(VLOOKUP(A21,[4]Sheet1!$A$2:$D$379,3,FALSE),0) -> 542842.84 | F21: =IFERROR(VLOOKUP(A21,[4]Sheet1!$A$2:$D$379,4,FALSE),0) -> 0 | G21: =IFERROR(VLOOKUP(A21,'[5]2025-26 FINAL Y'!$B$19:$S$164,18,FALSE),0) -> 0 | H21: 0 | I21: =_xlfn.IFS(H21=0%,0,'other funds ftr 2026'!H21<Assumptions!$D$57,Assumptions!$B$57,'other funds ftr 2026'!H21<Assumptions!$D$58,Assumptions!$B$58,'other funds ftr 2026'!H21<=Assumptions!$D$59,Assumptions!$B$59,'other funds ftr 2026'!H21<=Assumptions!$D$60,Assumptions!$B$60) -> 0
A22: 27400 | B22: CLOVER PARK | C22: =IFERROR(VLOOKUP(A22,'[2]Allocations 2025-26'!$B$9:$U$328,20,FALSE),0) -> 245660 | D22: =IFERROR(VLOOKUP(A22,'[3]State Reservations'!$C$4:$AE$318,29,FALSE),0) -> 4523113.609 | E22: =IFERROR(VLOOKUP(A22,[4]Sheet1!$A$2:$D$379,3,FALSE),0) -> 9314100.21 | F22: =IFERROR(VLOOKUP(A22,[4]Sheet1!$A$2:$D$379,4,FALSE),0) -> 3793205.86 | G22: =IFERROR(VLOOKUP(A22,'[5]2025-26 FINAL Y'!$B$19:$S$164,18,FALSE),0) -> 0 | H22: 0 | I22: =_xlfn.IFS(H22=0%,0,'other funds ftr 2026'!H22<Assumptions!$D$57,Assumptions!$B$57,'other funds ftr 2026'!H22<Assumptions!$D$58,Assumptions!$B$58,'other funds ftr 2026'!H22<=Assumptions!$D$59,Assumptions!$B$59,'other funds ftr 2026'!H22<=Assumptions!$D$60,Assumptions!$B$60) -> 0
A23: 36250 | B23: COLLEGE PLACE | C23: =IFERROR(VLOOKUP(A23,'[2]Allocations 2025-26'!$B$9:$U$328,20,FALSE),0) -> 28560 | D23: =IFERROR(VLOOKUP(A23,'[3]State Reservations'!$C$4:$AE$318,29,FALSE),0) -> 475613.1994 | E23: =IFERROR(VLOOKUP(A23,[4]Sheet1!$A$2:$D$379,3,FALSE),0) -> 1041997.63 | F23: =IFERROR(VLOOKUP(A23,[4]Sheet1!$A$2:$D$379,4,FALSE),0) -> 433851.71 | G23: =IFERROR(VLOOKUP(A23,'[5]2025-26 FINAL Y'!$B$19:$S$164,18,FALSE),0) -> 150908 | H23: 0.9291821121 | I23: =_xlfn.IFS(H23=0%,0,'other funds ftr 2026'!H23<Assumptions!$D$57,Assumptions!$B$57,'other funds ftr 2026'!H23<Assumptions!$D$58,Assumptions!$B$58,'other funds ftr 2026'!H23<=Assumptions!$D$59,Assumptions!$B$59,'other funds ftr 2026'!H23<=Assumptions!$D$60,Assumptions!$B$60) -> 1.05
A24: 36400 | B24: COLUMBIA (WALLA WALLA) | C24: =IFERROR(VLOOKUP(A24,'[2]Allocations 2025-26'!$B$9:$U$328,20,FALSE),0) -> 16554 | D24: =IFERROR(VLOOKUP(A24,'[3]State Reservations'!$C$4:$AE$318,29,FALSE),0) -> 206477.6801 | E24: =IFERROR(VLOOKUP(A24,[4]Sheet1!$A$2:$D$379,3,FALSE),0) -> 560293.42 | F24: =IFERROR(VLOOKUP(A24,[4]Sheet1!$A$2:$D$379,4,FALSE),0) -> 239926.51 | G24: =IFERROR(VLOOKUP(A24,'[5]2025-26 FINAL Y'!$B$19:$S$164,18,FALSE),0) -> 35813 | H24: 0.9661843105 | I24: =_xlfn.IFS(H24=0%,0,'other funds ftr 2026'!H24<Assumptions!$D$57,Assumptions!$B$57,'other funds ftr 2026'!H24<Assumptions!$D$58,Assumptions!$B$58,'other funds ftr 2026'!H24<=Assumptions!$D$59,Assumptions!$B$59,'other funds ftr 2026'!H24<=Assumptions!$D$60,Assumptions!$B$60) -> 1
A25: 29317 | B25: CONWAY | C25: =IFERROR(VLOOKUP(A25,'[2]Allocations 2025-26'!$B$9:$U$328,20,FALSE),0) -> 3104 | D25: =IFERROR(VLOOKUP(A25,'[3]State Reservations'!$C$4:$AE$318,29,FALSE),0) -> 90059.69075 | E25: =IFERROR(VLOOKUP(A25,[4]Sheet1!$A$2:$D$379,3,FALSE),0) -> 94732.04 | F25: =IFERROR(VLOOKUP(A25,[4]Sheet1!$A$2:$D$379,4,FALSE),0) -> 46092.85 | G25: =IFERROR(VLOOKUP(A25,'[5]2025-26 FINAL Y'!$B$19:$S$164,18,FALSE),0) -> 0 | H25: 0 | I25: =_xlfn.IFS(H25=0%,0,'other funds ftr 2026'!H25<Assumptions!$D$57,Assumptions!$B$57,'other funds ftr 2026'!H25<Assumptions!$D$58,Assumptions!$B$58,'other funds ftr 2026'!H25<=Assumptions!$D$59,Assumptions!$B$59,'other funds ftr 2026'!H25<=Assumptions!$D$60,Assumptions!$B$60) -> 0
A26: 15204 | B26: COUPEVILLE | C26: =IFERROR(VLOOKUP(A26,'[2]Allocations 2025-26'!$B$9:$U$328,20,FALSE),0) -> 3729 | D26: =IFERROR(VLOOKUP(A26,'[3]State Reservations'!$C$4:$AE$318,29,FALSE),0) -> 183600.1766 | E26: =IFERROR(VLOOKUP(A26,[4]Sheet1!$A$2:$D$379,3,FALSE),0) -> 328460.13 | F26: =IFERROR(VLOOKUP(A26,[4]Sheet1!$A$2:$D$379,4,FALSE),0) -> 60458.43 | G26: =IFERROR(VLOOKUP(A26,'[5]2025-26 FINAL Y'!$B$19:$S$164,18,FALSE),0) -> 0 | H26: 0 | I26: =_xlfn.IFS(H26=0%,0,'other funds ftr 2026'!H26<Assumptions!$D$57,Assumptions!$B$57,'other funds ftr 2026'!H26<Assumptions!$D$58,Assumptions!$B$58,'other funds ftr 2026'!H26<=Assumptions!$D$59,Assumptions!$B$59,'other funds ftr 2026'!H26<=Assumptions!$D$60,Assumptions!$B$60) -> 0
A27: 39090 | B27: EAST VALLEY (YAKIMA) | C27: =IFERROR(VLOOKUP(A27,'[2]Allocations 2025-26'!$B$9:$U$328,20,FALSE),0) -> 55521 | D27: =IFERROR(VLOOKUP(A27,'[3]State Reservations'!$C$4:$AE$318,29,FALSE),0) -> 808043.2851 | E27: =IFERROR(VLOOKUP(A27,[4]Sheet1!$A$2:$D$379,3,FALSE),0) -> 2526349.62 | F27: =IFERROR(VLOOKUP(A27,[4]Sheet1!$A$2:$D$379,4,FALSE),0) -> 816033.63 | G27: =IFERROR(VLOOKUP(A27,'[5]2025-26 FINAL Y'!$B$19:$S$164,18,FALSE),0) -> 0 | H27: 0 | I27: =_xlfn.IFS(H27=0%,0,'other funds ftr 2026'!H27<Assumptions!$D$57,Assumptions!$B$57,'other funds ftr 2026'!H27<Assumptions!$D$58,Assumptions!$B$58,'other funds ftr 2026'!H27<=Assumptions!$D$59,Assumptions!$B$59,'other funds ftr 2026'!H27<=Assumptions!$D$60,Assumptions!$B$60) -> 0
A28: 09206 | B28: EASTMONT | C28: =IFERROR(VLOOKUP(A28,'[2]Allocations 2025-26'!$B$9:$U$328,20,FALSE),0) -> 137843 | D28: =IFERROR(VLOOKUP(A28,'[3]State Reservations'!$C$4:$AE$318,29,FALSE),0) -> 1512342.046 | E28: =IFERROR(VLOOKUP(A28,[4]Sheet1!$A$2:$D$379,3,FALSE),0) -> 4291124.68 | F28: =IFERROR(VLOOKUP(A28,[4]Sheet1!$A$2:$D$379,4,FALSE),0) -> 2069952.23 | G28: =IFERROR(VLOOKUP(A28,'[5]2025-26 FINAL Y'!$B$19:$S$164,18,FALSE),0) -> 586989 | H28: 0.9317315809 | I28: =_xlfn.IFS(H28=0%,0,'other funds ftr 2026'!H28<Assumptions!$D$57,Assumptions!$B$57,'other funds ftr 2026'!H28<Assumptions!$D$58,Assumptions!$B$58,'other funds ftr 2026'!H28<=Assumptions!$D$59,Assumptions!$B$59,'other funds ftr 2026'!H28<=Assumptions!$D$60,Assumptions!$B$60) -> 1.05
A29: 31015 | B29: EDMONDS | C29: =IFERROR(VLOOKUP(A29,'[2]Allocations 2025-26'!$B$9:$U$328,20,FALSE),0) -> 497510 | D29: =IFERROR(VLOOKUP(A29,'[3]State Reservations'!$C$4:$AE$318,29,FALSE),0) -> 4616847.962 | E29: =IFERROR(VLOOKUP(A29,[4]Sheet1!$A$2:$D$379,3,FALSE),0) -> 8645576.45 | F29: =IFERROR(VLOOKUP(A29,[4]Sheet1!$A$2:$D$379,4,FALSE),0) -> 7982101.89 | G29: =IFERROR(VLOOKUP(A29,'[5]2025-26 FINAL Y'!$B$19:$S$164,18,FALSE),0) -> 0 | H29: 0 | I29: =_xlfn.IFS(H29=0%,0,'other funds ftr 2026'!H29<Assumptions!$D$57,Assumptions!$B$57,'other funds ftr 2026'!H29<Assumptions!$D$58,Assumptions!$B$58,'other funds ftr 2026'!H29<=Assumptions!$D$59,Assumptions!$B$59,'other funds ftr 2026'!H29<=Assumptions!$D$60,Assumptions!$B$60) -> 0
A30: 39801 | B30: EDUCATIONAL SERVICE DISTRICT 105 | C30: =IFERROR(VLOOKUP(A30,'[2]Allocations 2025-26'!$B$9:$U$328,20,FALSE),0) -> 0 | D30: =IFERROR(VLOOKUP(A30,'[3]State Reservations'!$C$4:$AE$318,29,FALSE),0) -> 0 | E30: =IFERROR(VLOOKUP(A30,[4]Sheet1!$A$2:$D$379,3,FALSE),0) -> 0 | F30: =IFERROR(VLOOKUP(A30,[4]Sheet1!$A$2:$D$379,4,FALSE),0) -> 0 | G30: =IFERROR(VLOOKUP(A30,'[5]2025-26 FINAL Y'!$B$19:$S$164,18,FALSE),0) -> 0 | H30: 0 | I30: =_xlfn.IFS(H30=0%,0,'other funds ftr 2026'!H30<Assumptions!$D$57,Assumptions!$B$57,'other funds ftr 2026'!H30<Assumptions!$D$58,Assumptions!$B$58,'other funds ftr 2026'!H30<=Assumptions!$D$59,Assumptions!$B$59,'other funds ftr 2026'!H30<=Assumptions!$D$60,Assumptions!$B$60) -> 0
A31: 11801 | B31: EDUCATIONAL SERVICE DISTRICT 123 | C31: =IFERROR(VLOOKUP(A31,'[2]Allocations 2025-26'!$B$9:$U$328,20,FALSE),0) -> 0 | D31: =IFERROR(VLOOKUP(A31,'[3]State Reservations'!$C$4:$AE$318,29,FALSE),0) -> 0 | E31: =IFERROR(VLOOKUP(A31,[4]Sheet1!$A$2:$D$379,3,FALSE),0) -> 0 | F31: =IFERROR(VLOOKUP(A31,[4]Sheet1!$A$2:$D$379,4,FALSE),0) -> 0 | G31: =IFERROR(VLOOKUP(A31,'[5]2025-26 FINAL Y'!$B$19:$S$164,18,FALSE),0) -> 0 | H31: 0 | I31: =_xlfn.IFS(H31=0%,0,'other funds ftr 2026'!H31<Assumptions!$D$57,Assumptions!$B$57,'other funds ftr 2026'!H31<Assumptions!$D$58,Assumptions!$B$58,'other funds ftr 2026'!H31<=Assumptions!$D$59,Assumptions!$B$59,'other funds ftr 2026'!H31<=Assumptions!$D$60,Assumptions!$B$60) -> 0
A32: 19401 | B32: ELLENSBURG | C32: =IFERROR(VLOOKUP(A32,'[2]Allocations 2025-26'!$B$9:$U$328,20,FALSE),0) -> 31118 | D32: =IFERROR(VLOOKUP(A32,'[3]State Reservations'!$C$4:$AE$318,29,FALSE),0) -> 741448.304 | E32: =IFERROR(VLOOKUP(A32,[4]Sheet1!$A$2:$D$379,3,FALSE),0) -> 1578084.28 | F32: =IFERROR(VLOOKUP(A32,[4]Sheet1!$A$2:$D$379,4,FALSE),0) -> 397007 | G32: =IFERROR(VLOOKUP(A32,'[5]2025-26 FINAL Y'!$B$19:$S$164,18,FALSE),0) -> 0 | H32: 0 | I32: =_xlfn.IFS(H32=0%,0,'other funds ftr 2026'!H32<Assumptions!$D$57,Assumptions!$B$57,'other funds ftr 2026'!H32<Assumptions!$D$58,Assumptions!$B$58,'other funds ftr 2026'!H32<=Assumptions!$D$59,Assumptions!$B$59,'other funds ftr 2026'!H32<=Assumptions!$D$60,Assumptions!$B$60) -> 0
A33: 14068 | B33: ELMA | C33: =IFERROR(VLOOKUP(A33,'[2]Allocations 2025-26'!$B$9:$U$328,20,FALSE),0) -> 16495 | D33: =IFERROR(VLOOKUP(A33,'[3]State Reservations'!$C$4:$AE$318,29,FALSE),0) -> 619221.7454 | E33: =IFERROR(VLOOKUP(A33,[4]Sheet1!$A$2:$D$379,3,FALSE),0) -> 1225814.56 | F33: =IFERROR(VLOOKUP(A33,[4]Sheet1!$A$2:$D$379,4,FALSE),0) -> 238945.46 | G33: =IFERROR(VLOOKUP(A33,'[5]2025-26 FINAL Y'!$B$19:$S$164,18,FALSE),0) -> 0 | H33: 0 | I33: =_xlfn.IFS(H33=0%,0,'other funds ftr 2026'!H33<Assumptions!$D$57,Assumptions!$B$57,'other funds ftr 2026'!H33<Assumptions!$D$58,Assumptions!$B$58,'other funds ftr 2026'!H33<=Assumptions!$D$59,Assumptions!$B$59,'other funds ftr 2026'!H33<=Assumptions!$D$60,Assumptions!$B$60) -> 0
A34: 04127 | B34: ENTIAT | C34: =IFERROR(VLOOKUP(A34,'[2]Allocations 2025-26'!$B$9:$U$328,20,FALSE),0) -> 15285 | D34: =IFERROR(VLOOKUP(A34,'[3]State Reservations'!$C$4:$AE$318,29,FALSE),0) -> 135698.7973 | E34: =IFERROR(VLOOKUP(A34,[4]Sheet1!$A$2:$D$379,3,FALSE),0) -> 329512.6 | F34: =IFERROR(VLOOKUP(A34,[4]Sheet1!$A$2:$D$379,4,FALSE),0) -> 225210.1 | G34: =IFERROR(VLOOKUP(A34,'[5]2025-26 FINAL Y'!$B$19:$S$164,18,FALSE),0) -> 0 | H34: =IF(G34=0,0,(SUM(C34:F34)/SUM(C34:G34))) -> 0 | I34: =_xlfn.IFS(H34=0%,0,'other funds ftr 2026'!H34<Assumptions!$D$57,Assumptions!$B$57,'other funds ftr 2026'!H34<Assumptions!$D$58,Assumptions!$B$58,'other funds ftr 2026'!H34<=Assumptions!$D$59,Assumptions!$B$59,'other funds ftr 2026'!H34<=Assumptions!$D$60,Assumptions!$B$60) -> 0
A35: 13165 | B35: EPHRATA | C35: =IFERROR(VLOOKUP(A35,'[2]Allocations 2025-26'!$B$9:$U$328,20,FALSE),0) -> 56554 | D35: =IFERROR(VLOOKUP(A35,'[3]State Reservations'!$C$4:$AE$318,29,FALSE),0) -> 801135.033 | E35: =IFERROR(VLOOKUP(A35,[4]Sheet1!$A$2:$D$379,3,FALSE),0) -> 2068168.78 | F35: =IFERROR(VLOOKUP(A35,[4]Sheet1!$A$2:$D$379,4,FALSE),0) -> 818105.56 | G35: =IFERROR(VLOOKUP(A35,'[5]2025-26 FINAL Y'!$B$19:$S$164,18,FALSE),0) -> 78554 | H35: 0.9794496683 | I35: =_xlfn.IFS(H35=0%,0,'other funds ftr 2026'!H35<Assumptions!$D$57,Assumptions!$B$57,'other funds ftr 2026'!H35<Assumptions!$D$58,Assumptions!$B$58,'other funds ftr 2026'!H35<=Assumptions!$D$59,Assumptions!$B$59,'other funds ftr 2026'!H35<=Assumptions!$D$60,Assumptions!$B$60) -> 1
A36: 31002 | B36: EVERETT | C36: =IFERROR(VLOOKUP(A36,'[2]Allocations 2025-26'!$B$9:$U$328,20,FALSE),0) -> 479705 | D36: =IFERROR(VLOOKUP(A36,'[3]State Reservations'!$C$4:$AE$318,29,FALSE),0) -> 4864144.332 | E36: =IFERROR(VLOOKUP(A36,[4]Sheet1!$A$2:$D$379,3,FALSE),0) -> 11305626.27 | F36: =IFERROR(VLOOKUP(A36,[4]Sheet1!$A$2:$D$379,4,FALSE),0) -> 8071160.89 | G36: =IFERROR(VLOOKUP(A36,'[5]2025-26 FINAL Y'!$B$19:$S$164,18,FALSE),0) -> 0 | H36: 0 | I36: =_xlfn.IFS(H36=0%,0,'other funds ftr 2026'!H36<Assumptions!$D$57,Assumptions!$B$57,'other funds ftr 2026'!H36<Assumptions!$D$58,Assumptions!$B$58,'other funds ftr 2026'!H36<=Assumptions!$D$59,Assumptions!$B$59,'other funds ftr 2026'!H36<=Assumptions!$D$60,Assumptions!$B$60) -> 0
A37: 06114 | B37: EVERGREEN (CLARK) | C37: =IFERROR(VLOOKUP(A37,'[2]Allocations 2025-26'!$B$9:$U$328,20,FALSE),0) -> 473556 | D37: =IFERROR(VLOOKUP(A37,'[3]State Reservations'!$C$4:$AE$318,29,FALSE),0) -> 5914371.147 | E37: =IFERROR(VLOOKUP(A37,[4]Sheet1!$A$2:$D$379,3,FALSE),0) -> 13890159.91 | F37: =IFERROR(VLOOKUP(A37,[4]Sheet1!$A$2:$D$379,4,FALSE),0) -> 7273917.46 | G37: =IFERROR(VLOOKUP(A37,'[5]2025-26 FINAL Y'!$B$19:$S$164,18,FALSE),0) -> 0 | H37: 0 | I37: =_xlfn.IFS(H37=0%,0,'other funds ftr 2026'!H37<Assumptions!$D$57,Assumptions!$B$57,'other funds ftr 2026'!H37<Assumptions!$D$58,Assumptions!$B$58,'other funds ftr 2026'!H37<=Assumptions!$D$59,Assumptions!$B$59,'other funds ftr 2026'!H37<=Assumptions!$D$60,Assumptions!$B$60) -> 0
A38: 17210 | B38: FEDERAL WAY | C38: =IFERROR(VLOOKUP(A38,'[2]Allocations 2025-26'!$B$9:$U$328,20,FALSE),0) -> 853758 | D38: =IFERROR(VLOOKUP(A38,'[3]State Reservations'!$C$4:$AE$318,29,FALSE),0) -> 10391255.09 | E38: =IFERROR(VLOOKUP(A38,[4]Sheet1!$A$2:$D$379,3,FALSE),0) -> 19491031.55 | F38: =IFERROR(VLOOKUP(A38,[4]Sheet1!$A$2:$D$379,4,FALSE),0) -> 13367443.46 | G38: =IFERROR(VLOOKUP(A38,'[5]2025-26 FINAL Y'!$B$19:$S$164,18,FALSE),0) -> 0 | H38: 0 | I38: =_xlfn.IFS(H38=0%,0,'other funds ftr 2026'!H38<Assumptions!$D$57,Assumptions!$B$57,'other funds ftr 2026'!H38<Assumptions!$D$58,Assumptions!$B$58,'other funds ftr 2026'!H38<=Assumptions!$D$59,Assumptions!$B$59,'other funds ftr 2026'!H38<=Assumptions!$D$60,Assumptions!$B$60) -> 0
A39: 37502 | B39: FERNDALE | C39: =IFERROR(VLOOKUP(A39,'[2]Allocations 2025-26'!$B$9:$U$328,20,FALSE),0) -> 63387 | D39: =IFERROR(VLOOKUP(A39,'[3]State Reservations'!$C$4:$AE$318,29,FALSE),0) -> 1648933.377 | E39: =IFERROR(VLOOKUP(A39,[4]Sheet1!$A$2:$D$379,3,FALSE),0) -> 2813799.06 | F39: =IFERROR(VLOOKUP(A39,[4]Sheet1!$A$2:$D$379,4,FALSE),0) -> 914637.19 | G39: =IFERROR(VLOOKUP(A39,'[5]2025-26 FINAL Y'!$B$19:$S$164,18,FALSE),0) -> 64252 | H39: 0.988328447 | I39: =_xlfn.IFS(H39=0%,0,'other funds ftr 2026'!H39<Assumptions!$D$57,Assumptions!$B$57,'other funds ftr 2026'!H39<Assumptions!$D$58,Assumptions!$B$58,'other funds ftr 2026'!H39<=Assumptions!$D$59,Assumptions!$B$59,'other funds ftr 2026'!H39<=Assumptions!$D$60,Assumptions!$B$60) -> 0.95
A40: 03053 | B40: FINLEY | C40: =IFERROR(VLOOKUP(A40,'[2]Allocations 2025-26'!$B$9:$U$328,20,FALSE),0) -> 22410 | D40: =IFERROR(VLOOKUP(A40,'[3]State Reservations'!$C$4:$AE$318,29,FALSE),0) -> 253069.9452 | E40: =IFERROR(VLOOKUP(A40,[4]Sheet1!$A$2:$D$379,3,FALSE),0) -> 717140.19 | F40: =IFERROR(VLOOKUP(A40,[4]Sheet1!$A$2:$D$379,4,FALSE),0) -> 307838.49 | G40: =IFERROR(VLOOKUP(A40,'[5]2025-26 FINAL Y'!$B$19:$S$164,18,FALSE),0) -> 61523 | H40: 0.9548283186 | I40: =_xlfn.IFS(H40=0%,0,'other funds ftr 2026'!H40<Assumptions!$D$57,Assumptions!$B$57,'other funds ftr 2026'!H40<Assumptions!$D$58,Assumptions!$B$58,'other funds ftr 2026'!H40<=Assumptions!$D$59,Assumptions!$B$59,'other funds ftr 2026'!H40<=Assumptions!$D$60,Assumptions!$B$60) -> 1.05
A41: 20404 | B41: GOLDENDALE | C41: =IFERROR(VLOOKUP(A41,'[2]Allocations 2025-26'!$B$9:$U$328,20,FALSE),0) -> 15422 | D41: =IFERROR(VLOOKUP(A41,'[3]State Reservations'!$C$4:$AE$318,29,FALSE),0) -> 454312.4422 | E41: =IFERROR(VLOOKUP(A41,[4]Sheet1!$A$2:$D$379,3,FALSE),0) -> 1251347.76 | F41: =IFERROR(VLOOKUP(A41,[4]Sheet1!$A$2:$D$379,4,FALSE),0) -> 250609.32 | G41: =IFERROR(VLOOKUP(A41,'[5]2025-26 FINAL Y'!$B$19:$S$164,18,FALSE),0) -> 39805 | H41: 0.9802112509 | I41: =_xlfn.IFS(H41=0%,0,'other funds ftr 2026'!H41<Assumptions!$D$57,Assumptions!$B$57,'other funds ftr 2026'!H41<Assumptions!$D$58,Assumptions!$B$58,'other funds ftr 2026'!H41<=Assumptions!$D$59,Assumptions!$B$59,'other funds ftr 2026'!H41<=Assumptions!$D$60,Assumptions!$B$60) -> 0.95
A42: 13301 | B42: GRAND COULEE DAM | C42: =IFERROR(VLOOKUP(A42,'[2]Allocations 2025-26'!$B$9:$U$328,20,FALSE),0) -> 17979 | D42: =IFERROR(VLOOKUP(A42,'[3]State Reservations'!$C$4:$AE$318,29,FALSE),0) -> 219057.3748 | E42: =IFERROR(VLOOKUP(A42,[4]Sheet1!$A$2:$D$379,3,FALSE),0) -> 554877.27 | F42: =IFERROR(VLOOKUP(A42,[4]Sheet1!$A$2:$D$379,4,FALSE),0) -> 0 | G42: =IFERROR(VLOOKUP(A42,'[5]2025-26 FINAL Y'!$B$19:$S$164,18,FALSE),0) -> 145178 | H42: 0.845075985 | I42: =_xlfn.IFS(H42=0%,0,'other funds ftr 2026'!H42<Assumptions!$D$57,Assumptions!$B$57,'other funds ftr 2026'!H42<Assumptions!$D$58,Assumptions!$B$58,'other funds ftr 2026'!H42<=Assumptions!$D$59,Assumptions!$B$59,'other funds ftr 2026'!H42<=Assumptions!$D$60,Assumptions!$B$60) -> 1.1
A43: 39200 | B43: GRANDVIEW | C43: =IFERROR(VLOOKUP(A43,'[2]Allocations 2025-26'!$B$9:$U$328,20,FALSE),0) -> 130619 | D43: =IFERROR(VLOOKUP(A43,'[3]State Reservations'!$C$4:$AE$318,29,FALSE),0) -> 1647711.407 | E43: =IFERROR(VLOOKUP(A43,[4]Sheet1!$A$2:$D$379,3,FALSE),0) -> 3284166.08 | F43: =IFERROR(VLOOKUP(A43,[4]Sheet1!$A$2:$D$379,4,FALSE),0) -> 2006945.62 | G43: =IFERROR(VLOOKUP(A43,'[5]2025-26 FINAL Y'!$B$19:$S$164,18,FALSE),0) -> 527970 | H43: 0.9305065998 | I43: =_xlfn.IFS(H43=0%,0,'other funds ftr 2026'!H43<Assumptions!$D$57,Assumptions!$B$57,'other funds ftr 2026'!H43<Assumptions!$D$58,Assumptions!$B$58,'other funds ftr 2026'!H43<=Assumptions!$D$59,Assumptions!$B$59,'other funds ftr 2026'!H43<=Assumptions!$D$60,Assumptions!$B$60) -> 1.05
A44: 39204 | B44: GRANGER | C44: =IFERROR(VLOOKUP(A44,'[2]Allocations 2025-26'!$B$9:$U$328,20,FALSE),0) -> 80839 | D44: =IFERROR(VLOOKUP(A44,'[3]State Reservations'!$C$4:$AE$318,29,FALSE),0) -> 778160.1163 | E44: =IFERROR(VLOOKUP(A44,[4]Sheet1!$A$2:$D$379,3,FALSE),0) -> 1336679.48 | F44: =IFERROR(VLOOKUP(A44,[4]Sheet1!$A$2:$D$379,4,FALSE),0) -> 1334911.52 | G44: =IFERROR(VLOOKUP(A44,'[5]2025-26 FINAL Y'!$B$19:$S$164,18,FALSE),0) -> 209348 | H44: 0.9440236727 | I44: =_xlfn.IFS(H44=0%,0,'other funds ftr 2026'!H44<Assumptions!$D$57,Assumptions!$B$57,'other funds ftr 2026'!H44<Assumptions!$D$58,Assumptions!$B$58,'other funds ftr 2026'!H44<=Assumptions!$D$59,Assumptions!$B$59,'other funds ftr 2026'!H44<=Assumptions!$D$60,Assumptions!$B$60) -> 1.05
A45: 39203 | B45: HIGHLAND | C45: =IFERROR(VLOOKUP(A45,'[2]Allocations 2025-26'!$B$9:$U$328,20,FALSE),0) -> 36545 | D45: =IFERROR(VLOOKUP(A45,'[3]State Reservations'!$C$4:$AE$318,29,FALSE),0) -> 431950.1223 | E45: =IFERROR(VLOOKUP(A45,[4]Sheet1!$A$2:$D$379,3,FALSE),0) -> 940749.1 | F45: =IFERROR(VLOOKUP(A45,[4]Sheet1!$A$2:$D$379,4,FALSE),0) -> 573817.93 | G45: =IFERROR(VLOOKUP(A45,'[5]2025-26 FINAL Y'!$B$19:$S$164,18,FALSE),0) -> 148813 | H45: 0.9301961938 | I45: =_xlfn.IFS(H45=0%,0,'other funds ftr 2026'!H45<Assumptions!$D$57,Assumptions!$B$57,'other funds ftr 2026'!H45<Assumptions!$D$58,Assumptions!$B$58,'other funds ftr 2026'!H45<=Assumptions!$D$59,Assumptions!$B$59,'other funds ftr 2026'!H45<=Assumptions!$D$60,Assumptions!$B$60) -> 1.05
A46: 23404 | B46: HOOD CANAL | C46: =IFERROR(VLOOKUP(A46,'[2]Allocations 2025-26'!$B$9:$U$328,20,FALSE),0) -> 0 | D46: =IFERROR(VLOOKUP(A46,'[3]State Reservations'!$C$4:$AE$318,29,FALSE),0) -> 282670.5424 | E46: =IFERROR(VLOOKUP(A46,[4]Sheet1!$A$2:$D$379,3,FALSE),0) -> 271580.38 | F46: =IFERROR(VLOOKUP(A46,[4]Sheet1!$A$2:$D$379,4,FALSE),0) -> 29432.15 | G46: =IFERROR(VLOOKUP(A46,'[5]2025-26 FINAL Y'!$B$19:$S$164,18,FALSE),0) -> 22514 | H46: 0.9628602627 | I46: =_xlfn.IFS(H46=0%,0,'other funds ftr 2026'!H46<Assumptions!$D$57,Assumptions!$B$57,'other funds ftr 2026'!H46<Assumptions!$D$58,Assumptions!$B$58,'other funds ftr 2026'!H46<=Assumptions!$D$59,Assumptions!$B$59,'other funds ftr 2026'!H46<=Assumptions!$D$60,Assumptions!$B$60) -> 1
A47: 14028 | B47: HOQUIAM | C47: =IFERROR(VLOOKUP(A47,'[2]Allocations 2025-26'!$B$9:$U$328,20,FALSE),0) -> 15812 | D47: =IFERROR(VLOOKUP(A47,'[3]State Reservations'!$C$4:$AE$318,29,FALSE),0) -> 1032507.354 | E47: =IFERROR(VLOOKUP(A47,[4]Sheet1!$A$2:$D$379,3,FALSE),0) -> 1313909.61 | F47: =IFERROR(VLOOKUP(A47,[4]Sheet1!$A$2:$D$379,4,FALSE),0) -> 220414.11 | G47: =IFERROR(VLOOKUP(A47,'[5]2025-26 FINAL Y'!$B$19:$S$164,18,FALSE),0) -> 0 | H47: 0 | I47: =_xlfn.IFS(H47=0%,0,'other funds ftr 2026'!H47<Assumptions!$D$57,Assumptions!$B$57,'other funds ftr 2026'!H47<Assumptions!$D$58,Assumptions!$B$58,'other funds ftr 2026'!H47<=Assumptions!$D$59,Assumptions!$B$59,'other funds ftr 2026'!H47<=Assumptions!$D$60,Assumptions!$B$60) -> 0
A48: 10070 | B48: INCHELIUM | C48: =IFERROR(VLOOKUP(A48,'[2]Allocations 2025-26'!$B$9:$U$328,20,FALSE),0) -> 0 | D48: =IFERROR(VLOOKUP(A48,'[3]State Reservations'!$C$4:$AE$318,29,FALSE),0) -> 135318.5883 | E48: =IFERROR(VLOOKUP(A48,[4]Sheet1!$A$2:$D$379,3,FALSE),0) -> 169447.59 | F48: =IFERROR(VLOOKUP(A48,[4]Sheet1!$A$2:$D$379,4,FALSE),0) -> 0 | G48: =IFERROR(VLOOKUP(A48,'[5]2025-26 FINAL Y'!$B$19:$S$164,18,FALSE),0) -> 9688 | H48: 0.9691910597 | I48: =_xlfn.IFS(H48=0%,0,'other funds ftr 2026'!H48<Assumptions!$D$57,Assumptions!$B$57,'other funds ftr 2026'!H48<Assumptions!$D$58,Assumptions!$B$58,'other funds ftr 2026'!H48<=Assumptions!$D$59,Assumptions!$B$59,'other funds ftr 2026'!H48<=Assumptions!$D$60,Assumptions!$B$60) -> 1
A49: 08458 | B49: KELSO | C49: =IFERROR(VLOOKUP(A49,'[2]Allocations 2025-26'!$B$9:$U$328,20,FALSE),0) -> 40936 | D49: =IFERROR(VLOOKUP(A49,'[3]State Reservations'!$C$4:$AE$318,29,FALSE),0) -> 1803697.989 | E49: =IFERROR(VLOOKUP(A49,[4]Sheet1!$A$2:$D$379,3,FALSE),0) -> 3708503.54 | F49: =IFERROR(VLOOKUP(A49,[4]Sheet1!$A$2:$D$379,4,FALSE),0) -> 597036.61 | G49: =IFERROR(VLOOKUP(A49,'[5]2025-26 FINAL Y'!$B$19:$S$164,18,FALSE),0) -> 21252 | H49: 0.9965563875 | I49: =_xlfn.IFS(H49=0%,0,'other funds ftr 2026'!H49<Assumptions!$D$57,Assumptions!$B$57,'other funds ftr 2026'!H49<Assumptions!$D$58,Assumptions!$B$58,'other funds ftr 2026'!H49<=Assumptions!$D$59,Assumptions!$B$59,'other funds ftr 2026'!H49<=Assumptions!$D$60,Assumptions!$B$60) -> 0.95
A50: 03017 | B50: KENNEWICK | C50: =IFERROR(VLOOKUP(A50,'[2]Allocations 2025-26'!$B$9:$U$328,20,FALSE),0) -> 419110 | D50: =IFERROR(VLOOKUP(A50,'[3]State Reservations'!$C$4:$AE$318,29,FALSE),0) -> 6712892.494 | E50: =IFERROR(VLOOKUP(A50,[4]Sheet1!$A$2:$D$379,3,FALSE),0) -> 12012430.02 | F50: =IFERROR(VLOOKUP(A50,[4]Sheet1!$A$2:$D$379,4,FALSE),0) -> 6029666.5 | G50: =IFERROR(VLOOKUP(A50,'[5]2025-26 FINAL Y'!$B$19:$S$164,18,FALSE),0) -> 2089045 | H50: 0.9233747583 | I50: =_xlfn.IFS(H50=0%,0,'other funds ftr 2026'!H50<Assumptions!$D$57,Assumptions!$B$57,'other funds ftr 2026'!H50<Assumptions!$D$58,Assumptions!$B$58,'other funds ftr 2026'!H50<=Assumptions!$D$59,Assumptions!$B$59,'other funds ftr 2026'!H50<=Assumptions!$D$60,Assumptions!$B$60) -> 1.05
A51: 17415 | B51: KENT | C51: =IFERROR(VLOOKUP(A51,'[2]Allocations 2025-26'!$B$9:$U$328,20,FALSE),0) -> 920368 | D51: =IFERROR(VLOOKUP(A51,'[3]State Reservations'!$C$4:$AE$318,29,FALSE),0) -> 10063648.9 | E51: =IFERROR(VLOOKUP(A51,[4]Sheet1!$A$2:$D$379,3,FALSE),0) -> 16267693.78 | F51: =IFERROR(VLOOKUP(A51,[4]Sheet1!$A$2:$D$379,4,FALSE),0) -> 15816149.45 | G51: =IFERROR(VLOOKUP(A51,'[5]2025-26 FINAL Y'!$B$19:$S$164,18,FALSE),0) -> 0 | H51: 0 | I51: =_xlfn.IFS(H51=0%,0,'other funds ftr 2026'!H51<Assumptions!$D$57,Assumptions!$B$57,'other funds ftr 2026'!H51<Assumptions!$D$58,Assumptions!$B$58,'other funds ftr 2026'!H51<=Assumptions!$D$59,Assumptions!$B$59,'other funds ftr 2026'!H51<=Assumptions!$D$60,Assumptions!$B$60) -> 0
A52: 03052 | B52: KIONA-BENTON CITY | C52: =IFERROR(VLOOKUP(A52,'[2]Allocations 2025-26'!$B$9:$U$328,20,FALSE),0) -> 40683 | D52: =IFERROR(VLOOKUP(A52,'[3]State Reservations'!$C$4:$AE$318,29,FALSE),0) -> 429069.521 | E52: =IFERROR(VLOOKUP(A52,[4]Sheet1!$A$2:$D$379,3,FALSE),0) -> 1127749.17 | F52: =IFERROR(VLOOKUP(A52,[4]Sheet1!$A$2:$D$379,4,FALSE),0) -> 612508.35 | G52: =IFERROR(VLOOKUP(A52,'[5]2025-26 FINAL Y'!$B$19:$S$164,18,FALSE),0) -> 231201 | H52: 0.9052924978 | I52: =_xlfn.IFS(H52=0%,0,'other funds ftr 2026'!H52<Assumptions!$D$57,Assumptions!$B$57,'other funds ftr 2026'!H52<Assumptions!$D$58,Assumptions!$B$58,'other funds ftr 2026'!H52<=Assumptions!$D$59,Assumptions!$B$59,'other funds ftr 2026'!H52<=Assumptions!$D$60,Assumptions!$B$60) -> 1.1
A53: 19403 | B53: KITTITAS | C53: =IFERROR(VLOOKUP(A53,'[2]Allocations 2025-26'!$B$9:$U$328,20,FALSE),0) -> 0 | D53: =IFERROR(VLOOKUP(A53,'[3]State Reservations'!$C$4:$AE$318,29,FALSE),0) -> 115930.5379 | E53: =IFERROR(VLOOKUP(A53,[4]Sheet1!$A$2:$D$379,3,FALSE),0) -> 312035.56 | F53: =IFERROR(VLOOKUP(A53,[4]Sheet1!$A$2:$D$379,4,FALSE),0) -> 82628.03 | G53: =IFERROR(VLOOKUP(A53,'[5]2025-26 FINAL Y'!$B$19:$S$164,18,FALSE),0) -> 0 | H53: 0 | I53: =_xlfn.IFS(H53=0%,0,'other funds ftr 2026'!H53<Assumptions!$D$57,Assumptions!$B$57,'other funds ftr 2026'!H53<Assumptions!$D$58,Assumptions!$B$58,'other funds ftr 2026'!H53<=Assumptions!$D$59,Assumptions!$B$59,'other funds ftr 2026'!H53<=Assumptions!$D$60,Assumptions!$B$60) -> 0
A54: 29311 | B54: LA CONNER | C54: =IFERROR(VLOOKUP(A54,'[2]Allocations 2025-26'!$B$9:$U$328,20,FALSE),0) -> 16359 | D54: =IFERROR(VLOOKUP(A54,'[3]State Reservations'!$C$4:$AE$318,29,FALSE),0) -> 228255.2395 | E54: =IFERROR(VLOOKUP(A54,[4]Sheet1!$A$2:$D$379,3,FALSE),0) -> 399271.03 | F54: =IFERROR(VLOOKUP(A54,[4]Sheet1!$A$2:$D$379,4,FALSE),0) -> 30890.29 | G54: =IFERROR(VLOOKUP(A54,'[5]2025-26 FINAL Y'!$B$19:$S$164,18,FALSE),0) -> 87946 | H54: 0.8846944879 | I54: =_xlfn.IFS(H54=0%,0,'other funds ftr 2026'!H54<Assumptions!$D$57,Assumptions!$B$57,'other funds ftr 2026'!H54<Assumptions!$D$58,Assumptions!$B$58,'other funds ftr 2026'!H54<=Assumptions!$D$59,Assumptions!$B$59,'other funds ftr 2026'!H54<=Assumptions!$D$60,Assumptions!$B$60) -> 1.1
A55: 04129 | B55: LAKE CHELAN | C55: =IFERROR(VLOOKUP(A55,'[2]Allocations 2025-26'!$B$9:$U$328,20,FALSE),0) -> 43221 | D55: =IFERROR(VLOOKUP(A55,'[3]State Reservations'!$C$4:$AE$318,29,FALSE),0) -> 277760.2376 | E55: =IFERROR(VLOOKUP(A55,[4]Sheet1!$A$2:$D$379,3,FALSE),0) -> 917316.05 | F55: =IFERROR(VLOOKUP(A55,[4]Sheet1!$A$2:$D$379,4,FALSE),0) -> 654374.8 | G55: =IFERROR(VLOOKUP(A55,'[5]2025-26 FINAL Y'!$B$19:$S$164,18,FALSE),0) -> 109853 | H55: 0.9451427597 | I55: =_xlfn.IFS(H55=0%,0,'other funds ftr 2026'!H55<Assumptions!$D$57,Assumptions!$B$57,'other funds ftr 2026'!H55<Assumptions!$D$58,Assumptions!$B$58,'other funds ftr 2026'!H55<=Assumptions!$D$59,Assumptions!$B$59,'other funds ftr 2026'!H55<=Assumptions!$D$60,Assumptions!$B$60) -> 1.05
A56: 31004 | B56: LAKE STEVENS | C56: =IFERROR(VLOOKUP(A56,'[2]Allocations 2025-26'!$B$9:$U$328,20,FALSE),0) -> 88081 | D56: =IFERROR(VLOOKUP(A56,'[3]State Reservations'!$C$4:$AE$318,29,FALSE),0) -> 1106315.718 | E56: =IFERROR(VLOOKUP(A56,[4]Sheet1!$A$2:$D$379,3,FALSE),0) -> 2343471.35 | F56: =IFERROR(VLOOKUP(A56,[4]Sheet1!$A$2:$D$379,4,FALSE),0) -> 1587464.15 | G56: =IFERROR(VLOOKUP(A56,'[5]2025-26 FINAL Y'!$B$19:$S$164,18,FALSE),0) -> 0 | H56: 0 | I56: =_xlfn.IFS(H56=0%,0,'other funds ftr 2026'!H56<Assumptions!$D$57,Assumptions!$B$57,'other funds ftr 2026'!H56<Assumptions!$D$58,Assumptions!$B$58,'other funds ftr 2026'!H56<=Assumptions!$D$59,Assumptions!$B$59,'other funds ftr 2026'!H56<=Assumptions!$D$60,Assumptions!$B$60) -> 0
A57: 31306 | B57: LAKEWOOD | C57: =IFERROR(VLOOKUP(A57,'[2]Allocations 2025-26'!$B$9:$U$328,20,FALSE),0) -> 37325 | D57: =IFERROR(VLOOKUP(A57,'[3]State Reservations'!$C$4:$AE$318,29,FALSE),0) -> 562969.9403 | E57: =IFERROR(VLOOKUP(A57,[4]Sheet1!$A$2:$D$379,3,FALSE),0) -> 1111036.22 | F57: =IFERROR(VLOOKUP(A57,[4]Sheet1!$A$2:$D$379,4,FALSE),0) -> 607228.63 | G57: =IFERROR(VLOOKUP(A57,'[5]2025-26 FINAL Y'!$B$19:$S$164,18,FALSE),0) -> 0 | H57: 0 | I57: =_xlfn.IFS(H57=0%,0,'other funds ftr 2026'!H57<Assumptions!$D$57,Assumptions!$B$57,'other funds ftr 2026'!H57<Assumptions!$D$58,Assumptions!$B$58,'other funds ftr 2026'!H57<=Assumptions!$D$59,Assumptions!$B$59,'other funds ftr 2026'!H57<=Assumptions!$D$60,Assumptions!$B$60) -> 0
A58: 01158 | B58: LIND | C58: =IFERROR(VLOOKUP(A58,'[2]Allocations 2025-26'!$B$9:$U$328,20,FALSE),0) -> 2694 | D58: =IFERROR(VLOOKUP(A58,'[3]State Reservations'!$C$4:$AE$318,29,FALSE),0) -> 164299.838 | E58: =IFERROR(VLOOKUP(A58,[4]Sheet1!$A$2:$D$379,3,FALSE),0) -> 145351.32 | F58: =IFERROR(VLOOKUP(A58,[4]Sheet1!$A$2:$D$379,4,FALSE),0) -> 33029.41 | G58: =IFERROR(VLOOKUP(A58,'[5]2025-26 FINAL Y'!$B$19:$S$164,18,FALSE),0) -> 29269 | H58: 0.9218750767 | I58: =_xlfn.IFS(H58=0%,0,'other funds ftr 2026'!H58<Assumptions!$D$57,Assumptions!$B$57,'other funds ftr 2026'!H58<Assumptions!$D$58,Assumptions!$B$58,'other funds ftr 2026'!H58<=Assumptions!$D$59,Assumptions!$B$59,'other funds ftr 2026'!H58<=Assumptions!$D$60,Assumptions!$B$60) -> 1.1
A59: 08122 | B59: LONGVIEW | C59: =IFERROR(VLOOKUP(A59,'[2]Allocations 2025-26'!$B$9:$U$328,20,FALSE),0) -> 66335 | D59: =IFERROR(VLOOKUP(A59,'[3]State Reservations'!$C$4:$AE$318,29,FALSE),0) -> 2837489.728 | E59: =IFERROR(VLOOKUP(A59,[4]Sheet1!$A$2:$D$379,3,FALSE),0) -> 4840364.78 | F59: =IFERROR(VLOOKUP(A59,[4]Sheet1!$A$2:$D$379,4,FALSE),0) -> 933544.2 | G59: =IFERROR(VLOOKUP(A59,'[5]2025-26 FINAL Y'!$B$19:$S$164,18,FALSE),0) -> 0 | H59: 0 | I59: =_xlfn.IFS(H59=0%,0,'other funds ftr 2026'!H59<Assumptions!$D$57,Assumptions!$B$57,'other funds ftr 2026'!H59<Assumptions!$D$58,Assumptions!$B$58,'other funds ftr 2026'!H59<=Assumptions!$D$59,Assumptions!$B$59,'other funds ftr 2026'!H59<=Assumptions!$D$60,Assumptions!$B$60) -> 0
A60: 20406 | B60: LYLE | C60: =IFERROR(VLOOKUP(A60,'[2]Allocations 2025-26'!$B$9:$U$328,20,FALSE),0) -> 0 | D60: =IFERROR(VLOOKUP(A60,'[3]State Reservations'!$C$4:$AE$318,29,FALSE),0) -> 187445.0175 | E60: =IFERROR(VLOOKUP(A60,[4]Sheet1!$A$2:$D$379,3,FALSE),0) -> 155741.44 | F60: =IFERROR(VLOOKUP(A60,[4]Sheet1!$A$2:$D$379,4,FALSE),0) -> 0 | G60: =IFERROR(VLOOKUP(A60,'[5]2025-26 FINAL Y'!$B$19:$S$164,18,FALSE),0) -> 0 | H60: 0 | I60: =_xlfn.IFS(H60=0%,0,'other funds ftr 2026'!H60<Assumptions!$D$57,Assumptions!$B$57,'other funds ftr 2026'!H60<Assumptions!$D$58,Assumptions!$B$58,'other funds ftr 2026'!H60<=Assumptions!$D$59,Assumptions!$B$59,'other funds ftr 2026'!H60<=Assumptions!$D$60,Assumptions!$B$60) -> 0
A61: 37504 | B61: LYNDEN | C61: =IFERROR(VLOOKUP(A61,'[2]Allocations 2025-26'!$B$9:$U$328,20,FALSE),0) -> 53704 | D61: =IFERROR(VLOOKUP(A61,'[3]State Reservations'!$C$4:$AE$318,29,FALSE),0) -> 612434.1385 | E61: =IFERROR(VLOOKUP(A61,[4]Sheet1!$A$2:$D$379,3,FALSE),0) -> 1130414.74 | F61: =IFERROR(VLOOKUP(A61,[4]Sheet1!$A$2:$D$379,4,FALSE),0) -> 812522.87 | G61: =IFERROR(VLOOKUP(A61,'[5]2025-26 FINAL Y'!$B$19:$S$164,18,FALSE),0) -> 61411 | H61: 0.9770038177 | I61: =_xlfn.IFS(H61=0%,0,'other funds ftr 2026'!H61<Assumptions!$D$57,Assumptions!$B$57,'other funds ftr 2026'!H61<Assumptions!$D$58,Assumptions!$B$58,'other funds ftr 2026'!H61<=Assumptions!$D$59,Assumptions!$B$59,'other funds ftr 2026'!H61<=Assumptions!$D$60,Assumptions!$B$60) -> 1
A62: 39120 | B62: MABTON | C62: =IFERROR(VLOOKUP(A62,'[2]Allocations 2025-26'!$B$9:$U$328,20,FALSE),0) -> 34651 | D62: =IFERROR(VLOOKUP(A62,'[3]State Reservations'!$C$4:$AE$318,29,FALSE),0) -> 393436.8681 | E62: =IFERROR(VLOOKUP(A62,[4]Sheet1!$A$2:$D$379,3,FALSE),0) -> 752953.01 | F62: =IFERROR(VLOOKUP(A62,[4]Sheet1!$A$2:$D$379,4,FALSE),0) -> 468952.26 | G62: =IFERROR(VLOOKUP(A62,'[5]2025-26 FINAL Y'!$B$19:$S$164,18,FALSE),0) -> 357004 | H62: 0.8221203243 | I62: =_xlfn.IFS(H62=0%,0,'other funds ftr 2026'!H62<Assumptions!$D$57,Assumptions!$B$57,'other funds ftr 2026'!H62<Assumptions!$D$58,Assumptions!$B$58,'other funds ftr 2026'!H62<=Assumptions!$D$59,Assumptions!$B$59,'other funds ftr 2026'!H62<=Assumptions!$D$60,Assumptions!$B$60) -> 1.1
A63: 04019 | B63: MANSON | C63: =IFERROR(VLOOKUP(A63,'[2]Allocations 2025-26'!$B$9:$U$328,20,FALSE),0) -> 27194 | D63: =IFERROR(VLOOKUP(A63,'[3]State Reservations'!$C$4:$AE$318,29,FALSE),0) -> 224337.9603 | E63: =IFERROR(VLOOKUP(A63,[4]Sheet1!$A$2:$D$379,3,FALSE),0) -> 492868.08 | F63: =IFERROR(VLOOKUP(A63,[4]Sheet1!$A$2:$D$379,4,FALSE),0) -> 349370.51 | G63: =IFERROR(VLOOKUP(A63,'[5]2025-26 FINAL Y'!$B$19:$S$164,18,FALSE),0) -> 74838 | H63: 0.9359597361 | I63: =_xlfn.IFS(H63=0%,0,'other funds ftr 2026'!H63<Assumptions!$D$57,Assumptions!$B$57,'other funds ftr 2026'!H63<Assumptions!$D$58,Assumptions!$B$58,'other funds ftr 2026'!H63<=Assumptions!$D$59,Assumptions!$B$59,'other funds ftr 2026'!H63<=Assumptions!$D$60,Assumptions!$B$60) -> 1.05
A64: 33207 | B64: MARY WALKER | C64: =IFERROR(VLOOKUP(A64,'[2]Allocations 2025-26'!$B$9:$U$328,20,FALSE),0) -> 0 | D64: =IFERROR(VLOOKUP(A64,'[3]State Reservations'!$C$4:$AE$318,29,FALSE),0) -> 302414.317 | E64: =IFERROR(VLOOKUP(A64,[4]Sheet1!$A$2:$D$379,3,FALSE),0) -> 460592.37 | F64: =IFERROR(VLOOKUP(A64,[4]Sheet1!$A$2:$D$379,4,FALSE),0) -> 0 | G64: =IFERROR(VLOOKUP(A64,'[5]2025-26 FINAL Y'!$B$19:$S$164,18,FALSE),0) -> 0 | H64: 0 | I64: =_xlfn.IFS(H64=0%,0,'other funds ftr 2026'!H64<Assumptions!$D$57,Assumptions!$B$57,'other funds ftr 2026'!H64<Assumptions!$D$58,Assumptions!$B$58,'other funds ftr 2026'!H64<=Assumptions!$D$59,Assumptions!$B$59,'other funds ftr 2026'!H64<=Assumptions!$D$60,Assumptions!$B$60) -> 0
A65: 31025 | B65: MARYSVILLE | C65: =IFERROR(VLOOKUP(A65,'[2]Allocations 2025-26'!$B$9:$U$328,20,FALSE),0) -> 152270 | D65: =IFERROR(VLOOKUP(A65,'[3]State Reservations'!$C$4:$AE$318,29,FALSE),0) -> 2738913.119 | E65: =IFERROR(VLOOKUP(A65,[4]Sheet1!$A$2:$D$379,3,FALSE),0) -> 6138586.3 | F65: =IFERROR(VLOOKUP(A65,[4]Sheet1!$A$2:$D$379,4,FALSE),0) -> 2911399.21 | G65: =IFERROR(VLOOKUP(A65,'[5]2025-26 FINAL Y'!$B$19:$S$164,18,FALSE),0) -> 241768 | H65: 0.9801551951 | I65: =_xlfn.IFS(H65=0%,0,'other funds ftr 2026'!H65<Assumptions!$D$57,Assumptions!$B$57,'other funds ftr 2026'!H65<Assumptions!$D$58,Assumptions!$B$58,'other funds ftr 2026'!H65<=Assumptions!$D$59,Assumptions!$B$59,'other funds ftr 2026'!H65<=Assumptions!$D$60,Assumptions!$B$60) -> 0.95
A66: NULL | B66: MASA - CWU | C66: =IFERROR(VLOOKUP(A66,'[2]Allocations 2025-26'!$B$9:$U$328,20,FALSE),0) -> 0 | D66: =IFERROR(VLOOKUP(A66,'[3]State Reservations'!$C$4:$AE$318,29,FALSE),0) -> 0 | E66: =IFERROR(VLOOKUP(A66,[4]Sheet1!$A$2:$D$379,3,FALSE),0) -> 0 | F66: =IFERROR(VLOOKUP(A66,[4]Sheet1!$A$2:$D$379,4,FALSE),0) -> 0 | G66: =IFERROR(VLOOKUP(A66,'[5]2025-26 FINAL Y'!$B$19:$S$164,18,FALSE),0) -> 0 | H66: =IF(G66=0,0,(SUM(C66:F66)/SUM(C66:G66))) -> 0 | I66: =_xlfn.IFS(H66=0%,0,'other funds ftr 2026'!H66<Assumptions!$D$57,Assumptions!$B$57,'other funds ftr 2026'!H66<Assumptions!$D$58,Assumptions!$B$58,'other funds ftr 2026'!H66<=Assumptions!$D$59,Assumptions!$B$59,'other funds ftr 2026'!H66<=Assumptions!$D$60,Assumptions!$B$60) -> 0
A67: 37505 | B67: MERIDIAN | C67: =IFERROR(VLOOKUP(A67,'[2]Allocations 2025-26'!$B$9:$U$328,20,FALSE),0) -> 33128 | D67: =IFERROR(VLOOKUP(A67,'[3]State Reservations'!$C$4:$AE$318,29,FALSE),0) -> 361722.2145 | E67: =IFERROR(VLOOKUP(A67,[4]Sheet1!$A$2:$D$379,3,FALSE),0) -> 599515.92 | F67: =IFERROR(VLOOKUP(A67,[4]Sheet1!$A$2:$D$379,4,FALSE),0) -> 532226.54 | G67: =IFERROR(VLOOKUP(A67,'[5]2025-26 FINAL Y'!$B$19:$S$164,18,FALSE),0) -> 19491 | H67: 0.9873933084 | I67: =_xlfn.IFS(H67=0%,0,'other funds ftr 2026'!H67<Assumptions!$D$57,Assumptions!$B$57,'other funds ftr 2026'!H67<Assumptions!$D$58,Assumptions!$B$58,'other funds ftr 2026'!H67<=Assumptions!$D$59,Assumptions!$B$59,'other funds ftr 2026'!H67<=Assumptions!$D$60,Assumptions!$B$60) -> 0.95
A68: 31103 | B68: MONROE | C68: =IFERROR(VLOOKUP(A68,'[2]Allocations 2025-26'!$B$9:$U$328,20,FALSE),0) -> 98174 | D68: =IFERROR(VLOOKUP(A68,'[3]State Reservations'!$C$4:$AE$318,29,FALSE),0) -> 763271.5203 | E68: =IFERROR(VLOOKUP(A68,[4]Sheet1!$A$2:$D$379,3,FALSE),0) -> 1920133.77 | F68: =IFERROR(VLOOKUP(A68,[4]Sheet1!$A$2:$D$379,4,FALSE),0) -> 1659541.58 | G68: =IFERROR(VLOOKUP(A68,'[5]2025-26 FINAL Y'!$B$19:$S$164,18,FALSE),0) -> 0 | H68: 0 | I68: =_xlfn.IFS(H68=0%,0,'other funds ftr 2026'!H68<Assumptions!$D$57,Assumptions!$B$57,'other funds ftr 2026'!H68<Assumptions!$D$58,Assumptions!$B$58,'other funds ftr 2026'!H68<=Assumptions!$D$59,Assumptions!$B$59,'other funds ftr 2026'!H68<=Assumptions!$D$60,Assumptions!$B$60) -> 0
A69: 14066 | B69: MONTESANO | C69: =IFERROR(VLOOKUP(A69,'[2]Allocations 2025-26'!$B$9:$U$328,20,FALSE),0) -> 0 | D69: =IFERROR(VLOOKUP(A69,'[3]State Reservations'!$C$4:$AE$318,29,FALSE),0) -> 372631.0681 | E69: =IFERROR(VLOOKUP(A69,[4]Sheet1!$A$2:$D$379,3,FALSE),0) -> 422663.06 | F69: =IFERROR(VLOOKUP(A69,[4]Sheet1!$A$2:$D$379,4,FALSE),0) -> 69997.74 | G69: =IFERROR(VLOOKUP(A69,'[5]2025-26 FINAL Y'!$B$19:$S$164,18,FALSE),0) -> 0 | H69: 0 | I69: =_xlfn.IFS(H69=0%,0,'other funds ftr 2026'!H69<Assumptions!$D$57,Assumptions!$B$57,'other funds ftr 2026'!H69<Assumptions!$D$58,Assumptions!$B$58,'other funds ftr 2026'!H69<=Assumptions!$D$59,Assumptions!$B$59,'other funds ftr 2026'!H69<=Assumptions!$D$60,Assumptions!$B$60) -> 0
A70: 13161 | B70: MOSES LAKE | C70: =IFERROR(VLOOKUP(A70,'[2]Allocations 2025-26'!$B$9:$U$328,20,FALSE),0) -> 147760 | D70: =IFERROR(VLOOKUP(A70,'[3]State Reservations'!$C$4:$AE$318,29,FALSE),0) -> 3435951.89 | E70: =IFERROR(VLOOKUP(A70,[4]Sheet1!$A$2:$D$379,3,FALSE),0) -> 6177044.28 | F70: =IFERROR(VLOOKUP(A70,[4]Sheet1!$A$2:$D$379,4,FALSE),0) -> 2049131.71 | G70: =IFERROR(VLOOKUP(A70,'[5]2025-26 FINAL Y'!$B$19:$S$164,18,FALSE),0) -> 260202 | H70: 0.9784424141 | I70: =_xlfn.IFS(H70=0%,0,'other funds ftr 2026'!H70<Assumptions!$D$57,Assumptions!$B$57,'other funds ftr 2026'!H70<Assumptions!$D$58,Assumptions!$B$58,'other funds ftr 2026'!H70<=Assumptions!$D$59,Assumptions!$B$59,'other funds ftr 2026'!H70<=Assumptions!$D$60,Assumptions!$B$60) -> 1
A71: 21206 | B71: MOSSYROCK | C71: =IFERROR(VLOOKUP(A71,'[2]Allocations 2025-26'!$B$9:$U$328,20,FALSE),0) -> 7985 | D71: =IFERROR(VLOOKUP(A71,'[3]State Reservations'!$C$4:$AE$318,29,FALSE),0) -> 223025.8047 | E71: =IFERROR(VLOOKUP(A71,[4]Sheet1!$A$2:$D$379,3,FALSE),0) -> 492647.03 | F71: =IFERROR(VLOOKUP(A71,[4]Sheet1!$A$2:$D$379,4,FALSE),0) -> 119254.73 | G71: =IFERROR(VLOOKUP(A71,'[5]2025-26 FINAL Y'!$B$19:$S$164,18,FALSE),0) -> 38984 | H71: 0.9557952695 | I71: =_xlfn.IFS(H71=0%,0,'other funds ftr 2026'!H71<Assumptions!$D$57,Assumptions!$B$57,'other funds ftr 2026'!H71<Assumptions!$D$58,Assumptions!$B$58,'other funds ftr 2026'!H71<=Assumptions!$D$59,Assumptions!$B$59,'other funds ftr 2026'!H71<=Assumptions!$D$60,Assumptions!$B$60) -> 1
A72: 39209 | B72: MOUNT ADAMS | C72: =IFERROR(VLOOKUP(A72,'[2]Allocations 2025-26'!$B$9:$U$328,20,FALSE),0) -> 46773 | D72: =IFERROR(VLOOKUP(A72,'[3]State Reservations'!$C$4:$AE$318,29,FALSE),0) -> 559516.5986 | E72: =IFERROR(VLOOKUP(A72,[4]Sheet1!$A$2:$D$379,3,FALSE),0) -> 850001.25 | F72: =IFERROR(VLOOKUP(A72,[4]Sheet1!$A$2:$D$379,4,FALSE),0) -> 205589.01 | G72: =IFERROR(VLOOKUP(A72,'[5]2025-26 FINAL Y'!$B$19:$S$164,18,FALSE),0) -> 256645 | H72: 0.8662279517 | I72: =_xlfn.IFS(H72=0%,0,'other funds ftr 2026'!H72<Assumptions!$D$57,Assumptions!$B$57,'other funds ftr 2026'!H72<Assumptions!$D$58,Assumptions!$B$58,'other funds ftr 2026'!H72<=Assumptions!$D$59,Assumptions!$B$59,'other funds ftr 2026'!H72<=Assumptions!$D$60,Assumptions!$B$60) -> 1.1
A73: 37507 | B73: MOUNT BAKER | C73: =IFERROR(VLOOKUP(A73,'[2]Allocations 2025-26'!$B$9:$U$328,20,FALSE),0) -> 16164 | D73: =IFERROR(VLOOKUP(A73,'[3]State Reservations'!$C$4:$AE$318,29,FALSE),0) -> 612757.341 | E73: =IFERROR(VLOOKUP(A73,[4]Sheet1!$A$2:$D$379,3,FALSE),0) -> 910469.79 | F73: =IFERROR(VLOOKUP(A73,[4]Sheet1!$A$2:$D$379,4,FALSE),0) -> 166974.85 | G73: =IFERROR(VLOOKUP(A73,'[5]2025-26 FINAL Y'!$B$19:$S$164,18,FALSE),0) -> 12939 | H73: 0.9924742846 | I73: =_xlfn.IFS(H73=0%,0,'other funds ftr 2026'!H73<Assumptions!$D$57,Assumptions!$B$57,'other funds ftr 2026'!H73<Assumptions!$D$58,Assumptions!$B$58,'other funds ftr 2026'!H73<=Assumptions!$D$59,Assumptions!$B$59,'other funds ftr 2026'!H73<=Assumptions!$D$60,Assumptions!$B$60) -> 0.95
A74: 29320 | B74: MOUNT VERNON | C74: =IFERROR(VLOOKUP(A74,'[2]Allocations 2025-26'!$B$9:$U$328,20,FALSE),0) -> 218974 | D74: =IFERROR(VLOOKUP(A74,'[3]State Reservations'!$C$4:$AE$318,29,FALSE),0) -> 1908297.674 | E74: =IFERROR(VLOOKUP(A74,[4]Sheet1!$A$2:$D$379,3,FALSE),0) -> 5311669.59 | F74: =IFERROR(VLOOKUP(A74,[4]Sheet1!$A$2:$D$379,4,FALSE),0) -> 3532791.72 | G74: =IFERROR(VLOOKUP(A74,'[5]2025-26 FINAL Y'!$B$19:$S$164,18,FALSE),0) -> 1236340 | H74: 0.8987276697 | I74: =_xlfn.IFS(H74=0%,0,'other funds ftr 2026'!H74<Assumptions!$D$57,Assumptions!$B$57,'other funds ftr 2026'!H74<Assumptions!$D$58,Assumptions!$B$58,'other funds ftr 2026'!H74<=Assumptions!$D$59,Assumptions!$B$59,'other funds ftr 2026'!H74<=Assumptions!$D$60,Assumptions!$B$60) -> 1.1
A75: 17903 | B75: MUCKLESHOOT INDIAN TRIBE | C75: =IFERROR(VLOOKUP(A75,'[2]Allocations 2025-26'!$B$9:$U$328,20,FALSE),0) -> 0 | D75: =IFERROR(VLOOKUP(A75,'[3]State Reservations'!$C$4:$AE$318,29,FALSE),0) -> 0 | E75: =IFERROR(VLOOKUP(A75,[4]Sheet1!$A$2:$D$379,3,FALSE),0) -> 404511.75 | F75: =IFERROR(VLOOKUP(A75,[4]Sheet1!$A$2:$D$379,4,FALSE),0) -> 0 | G75: =IFERROR(VLOOKUP(A75,'[5]2025-26 FINAL Y'!$B$19:$S$164,18,FALSE),0) -> 0 | H75: 0 | I75: =_xlfn.IFS(H75=0%,0,'other funds ftr 2026'!H75<Assumptions!$D$57,Assumptions!$B$57,'other funds ftr 2026'!H75<Assumptions!$D$58,Assumptions!$B$58,'other funds ftr 2026'!H75<=Assumptions!$D$59,Assumptions!$B$59,'other funds ftr 2026'!H75<=Assumptions!$D$60,Assumptions!$B$60) -> 0
A76: 31006 | B76: MUKILTEO | C76: =IFERROR(VLOOKUP(A76,'[2]Allocations 2025-26'!$B$9:$U$328,20,FALSE),0) -> 500418 | D76: =IFERROR(VLOOKUP(A76,'[3]State Reservations'!$C$4:$AE$318,29,FALSE),0) -> 4887996.307 | E76: =IFERROR(VLOOKUP(A76,[4]Sheet1!$A$2:$D$379,3,FALSE),0) -> 9406538.2 | F76: =IFERROR(VLOOKUP(A76,[4]Sheet1!$A$2:$D$379,4,FALSE),0) -> 8446013.76 | G76: =IFERROR(VLOOKUP(A76,'[5]2025-26 FINAL Y'!$B$19:$S$164,18,FALSE),0) -> 0 | H76: 0 | I76: =_xlfn.IFS(H76=0%,0,'other funds ftr 2026'!H76<Assumptions!$D$57,Assumptions!$B$57,'other funds ftr 2026'!H76<Assumptions!$D$58,Assumptions!$B$58,'other funds ftr 2026'!H76<=Assumptions!$D$59,Assumptions!$B$59,'other funds ftr 2026'!H76<=Assumptions!$D$60,Assumptions!$B$60) -> 0
A77: 39003 | B77: NACHES VALLEY | C77: =IFERROR(VLOOKUP(A77,'[2]Allocations 2025-26'!$B$9:$U$328,20,FALSE),0) -> 9565 | D77: =IFERROR(VLOOKUP(A77,'[3]State Reservations'!$C$4:$AE$318,29,FALSE),0) -> 339451.101 | E77: =IFERROR(VLOOKUP(A77,[4]Sheet1!$A$2:$D$379,3,FALSE),0) -> 901620.33 | F77: =IFERROR(VLOOKUP(A77,[4]Sheet1!$A$2:$D$379,4,FALSE),0) -> 121543.87 | G77: =IFERROR(VLOOKUP(A77,'[5]2025-26 FINAL Y'!$B$19:$S$164,18,FALSE),0) -> 66929 | H77: 0.9534927611 | I77: =_xlfn.IFS(H77=0%,0,'other funds ftr 2026'!H77<Assumptions!$D$57,Assumptions!$B$57,'other funds ftr 2026'!H77<Assumptions!$D$58,Assumptions!$B$58,'other funds ftr 2026'!H77<=Assumptions!$D$59,Assumptions!$B$59,'other funds ftr 2026'!H77<=Assumptions!$D$60,Assumptions!$B$60) -> 1.05
A78: 25155 | B78: NASELLE-GRAYS RIVER VALLEY | C78: =IFERROR(VLOOKUP(A78,'[2]Allocations 2025-26'!$B$9:$U$328,20,FALSE),0) -> 1250 | D78: =IFERROR(VLOOKUP(A78,'[3]State Reservations'!$C$4:$AE$318,29,FALSE),0) -> 73704.39018 | E78: =IFERROR(VLOOKUP(A78,[4]Sheet1!$A$2:$D$379,3,FALSE),0) -> 233777.98 | F78: =IFERROR(VLOOKUP(A78,[4]Sheet1!$A$2:$D$379,4,FALSE),0) -> 19839.44 | G78: =IFERROR(VLOOKUP(A78,'[5]2025-26 FINAL Y'!$B$19:$S$164,18,FALSE),0) -> 46886 | H78: 0.8751231198 | I78: =_xlfn.IFS(H78=0%,0,'other funds ftr 2026'!H78<Assumptions!$D$57,Assumptions!$B$57,'other funds ftr 2026'!H78<Assumptions!$D$58,Assumptions!$B$58,'other funds ftr 2026'!H78<=Assumptions!$D$59,Assumptions!$B$59,'other funds ftr 2026'!H78<=Assumptions!$D$60,Assumptions!$B$60) -> 1.1
A79: 24014 | B79: NESPELEM | C79: =IFERROR(VLOOKUP(A79,'[2]Allocations 2025-26'!$B$9:$U$328,20,FALSE),0) -> 0 | D79: =IFERROR(VLOOKUP(A79,'[3]State Reservations'!$C$4:$AE$318,29,FALSE),0) -> 169193.4425 | E79: =IFERROR(VLOOKUP(A79,[4]Sheet1!$A$2:$D$379,3,FALSE),0) -> 182269.46 | F79: =IFERROR(VLOOKUP(A79,[4]Sheet1!$A$2:$D$379,4,FALSE),0) -> 0 | G79: =IFERROR(VLOOKUP(A79,'[5]2025-26 FINAL Y'!$B$19:$S$164,18,FALSE),0) -> 45040 | H79: 0.8864068845 | I79: =_xlfn.IFS(H79=0%,0,'other funds ftr 2026'!H79<Assumptions!$D$57,Assumptions!$B$57,'other funds ftr 2026'!H79<Assumptions!$D$58,Assumptions!$B$58,'other funds ftr 2026'!H79<=Assumptions!$D$59,Assumptions!$B$59,'other funds ftr 2026'!H79<=Assumptions!$D$60,Assumptions!$B$60) -> 1.1
A80: 37506 | B80: NOOKSACK VALLEY | C80: =IFERROR(VLOOKUP(A80,'[2]Allocations 2025-26'!$B$9:$U$328,20,FALSE),0) -> 40214 | D80: =IFERROR(VLOOKUP(A80,'[3]State Reservations'!$C$4:$AE$318,29,FALSE),0) -> 440369.3091 | E80: =IFERROR(VLOOKUP(A80,[4]Sheet1!$A$2:$D$379,3,FALSE),0) -> 1427584.11 | F80: =IFERROR(VLOOKUP(A80,[4]Sheet1!$A$2:$D$379,4,FALSE),0) -> 562580.37 | G80: =IFERROR(VLOOKUP(A80,'[5]2025-26 FINAL Y'!$B$19:$S$164,18,FALSE),0) -> 82428 | H80: 0.9677155015 | I80: =_xlfn.IFS(H80=0%,0,'other funds ftr 2026'!H80<Assumptions!$D$57,Assumptions!$B$57,'other funds ftr 2026'!H80<Assumptions!$D$58,Assumptions!$B$58,'other funds ftr 2026'!H80<=Assumptions!$D$59,Assumptions!$B$59,'other funds ftr 2026'!H80<=Assumptions!$D$60,Assumptions!$B$60) -> 1
A81: 14064 | B81: NORTH BEACH | C81: =IFERROR(VLOOKUP(A81,'[2]Allocations 2025-26'!$B$9:$U$328,20,FALSE),0) -> 0 | D81: =IFERROR(VLOOKUP(A81,'[3]State Reservations'!$C$4:$AE$318,29,FALSE),0) -> 331010.7667 | E81: =IFERROR(VLOOKUP(A81,[4]Sheet1!$A$2:$D$379,3,FALSE),0) -> 524922.74 | F81: =IFERROR(VLOOKUP(A81,[4]Sheet1!$A$2:$D$379,4,FALSE),0) -> 27033.96 | G81: =IFERROR(VLOOKUP(A81,'[5]2025-26 FINAL Y'!$B$19:$S$164,18,FALSE),0) -> 15969 | H81: 0.9822356745 | I81: =_xlfn.IFS(H81=0%,0,'other funds ftr 2026'!H81<Assumptions!$D$57,Assumptions!$B$57,'other funds ftr 2026'!H81<Assumptions!$D$58,Assumptions!$B$58,'other funds ftr 2026'!H81<=Assumptions!$D$59,Assumptions!$B$59,'other funds ftr 2026'!H81<=Assumptions!$D$60,Assumptions!$B$60) -> 0.95
A82: 11051 | B82: NORTH FRANKLIN | C82: =IFERROR(VLOOKUP(A82,'[2]Allocations 2025-26'!$B$9:$U$328,20,FALSE),0) -> 87476 | D82: =IFERROR(VLOOKUP(A82,'[3]State Reservations'!$C$4:$AE$318,29,FALSE),0) -> 763845.9917 | E82: =IFERROR(VLOOKUP(A82,[4]Sheet1!$A$2:$D$379,3,FALSE),0) -> 1735262.63 | F82: =IFERROR(VLOOKUP(A82,[4]Sheet1!$A$2:$D$379,4,FALSE),0) -> 1270814.84 | G82: =IFERROR(VLOOKUP(A82,'[5]2025-26 FINAL Y'!$B$19:$S$164,18,FALSE),0) -> 498953 | H82: 0.8854654199 | I82: =_xlfn.IFS(H82=0%,0,'other funds ftr 2026'!H82<Assumptions!$D$57,Assumptions!$B$57,'other funds ftr 2026'!H82<Assumptions!$D$58,Assumptions!$B$58,'other funds ftr 2026'!H82<=Assumptions!$D$59,Assumptions!$B$59,'other funds ftr 2026'!H82<=Assumptions!$D$60,Assumptions!$B$60) -> 1.1
A83: 18400 | B83: NORTH KITSAP | C83: =IFERROR(VLOOKUP(A83,'[2]Allocations 2025-26'!$B$9:$U$328,20,FALSE),0) -> 39121 | D83: =IFERROR(VLOOKUP(A83,'[3]State Reservations'!$C$4:$AE$318,29,FALSE),0) -> 919462.2675 | E83: =IFERROR(VLOOKUP(A83,[4]Sheet1!$A$2:$D$379,3,FALSE),0) -> 1683281.56 | F83: =IFERROR(VLOOKUP(A83,[4]Sheet1!$A$2:$D$379,4,FALSE),0) -> 630014.38 | G83: =IFERROR(VLOOKUP(A83,'[5]2025-26 FINAL Y'!$B$19:$S$164,18,FALSE),0) -> 0 | H83: 0 | I83: =_xlfn.IFS(H83=0%,0,'other funds ftr 2026'!H83<Assumptions!$D$57,Assumptions!$B$57,'other funds ftr 2026'!H83<Assumptions!$D$58,Assumptions!$B$58,'other funds ftr 2026'!H83<=Assumptions!$D$59,Assumptions!$B$59,'other funds ftr 2026'!H83<=Assumptions!$D$60,Assumptions!$B$60) -> 0
A84: 34003 | B84: NORTH THURSTON PUBLIC SCHOOLS | C84: =IFERROR(VLOOKUP(A84,'[2]Allocations 2025-26'!$B$9:$U$328,20,FALSE),0) -> 129644 | D84: =IFERROR(VLOOKUP(A84,'[3]State Reservations'!$C$4:$AE$318,29,FALSE),0) -> 3148039.657 | E84: =IFERROR(VLOOKUP(A84,[4]Sheet1!$A$2:$D$379,3,FALSE),0) -> 6322727.18 | F84: =IFERROR(VLOOKUP(A84,[4]Sheet1!$A$2:$D$379,4,FALSE),0) -> 1862728.09 | G84: =IFERROR(VLOOKUP(A84,'[5]2025-26 FINAL Y'!$B$19:$S$164,18,FALSE),0) -> 32795 | H84: 0.9971472522 | I84: =_xlfn.IFS(H84=0%,0,'other funds ftr 2026'!H84<Assumptions!$D$57,Assumptions!$B$57,'other funds ftr 2026'!H84<Assumptions!$D$58,Assumptions!$B$58,'other funds ftr 2026'!H84<=Assumptions!$D$59,Assumptions!$B$59,'other funds ftr 2026'!H84<=Assumptions!$D$60,Assumptions!$B$60) -> 0.95
A85: 15201 | B85: OAK HARBOR | C85: =IFERROR(VLOOKUP(A85,'[2]Allocations 2025-26'!$B$9:$U$328,20,FALSE),0) -> 34026 | D85: =IFERROR(VLOOKUP(A85,'[3]State Reservations'!$C$4:$AE$318,29,FALSE),0) -> 942701.6373 | E85: =IFERROR(VLOOKUP(A85,[4]Sheet1!$A$2:$D$379,3,FALSE),0) -> 2055587.59 | F85: =IFERROR(VLOOKUP(A85,[4]Sheet1!$A$2:$D$379,4,FALSE),0) -> 486311.76 | G85: =IFERROR(VLOOKUP(A85,'[5]2025-26 FINAL Y'!$B$19:$S$164,18,FALSE),0) -> 0 | H85: 0 | I85: =_xlfn.IFS(H85=0%,0,'other funds ftr 2026'!H85<Assumptions!$D$57,Assumptions!$B$57,'other funds ftr 2026'!H85<Assumptions!$D$58,Assumptions!$B$58,'other funds ftr 2026'!H85<=Assumptions!$D$59,Assumptions!$B$59,'other funds ftr 2026'!H85<=Assumptions!$D$60,Assumptions!$B$60) -> 0
A86: 25101 | B86: OCEAN BEACH | C86: =IFERROR(VLOOKUP(A86,'[2]Allocations 2025-26'!$B$9:$U$328,20,FALSE),0) -> 6949 | D86: =IFERROR(VLOOKUP(A86,'[3]State Reservations'!$C$4:$AE$318,29,FALSE),0) -> 393368.9639 | E86: =IFERROR(VLOOKUP(A86,[4]Sheet1!$A$2:$D$379,3,FALSE),0) -> 722114.22 | F86: =IFERROR(VLOOKUP(A86,[4]Sheet1!$A$2:$D$379,4,FALSE),0) -> 90912.65 | G86: =IFERROR(VLOOKUP(A86,'[5]2025-26 FINAL Y'!$B$19:$S$164,18,FALSE),0) -> 28111 | H86: 0.9773564236 | I86: =_xlfn.IFS(H86=0%,0,'other funds ftr 2026'!H86<Assumptions!$D$57,Assumptions!$B$57,'other funds ftr 2026'!H86<Assumptions!$D$58,Assumptions!$B$58,'other funds ftr 2026'!H86<=Assumptions!$D$59,Assumptions!$B$59,'other funds ftr 2026'!H86<=Assumptions!$D$60,Assumptions!$B$60) -> 1
A87: 14172 | B87: OCOSTA | C87: =IFERROR(VLOOKUP(A87,'[2]Allocations 2025-26'!$B$9:$U$328,20,FALSE),0) -> 9156 | D87: =IFERROR(VLOOKUP(A87,'[3]State Reservations'!$C$4:$AE$318,29,FALSE),0) -> 447224.1609 | E87: =IFERROR(VLOOKUP(A87,[4]Sheet1!$A$2:$D$379,3,FALSE),0) -> 484135.96 | F87: =IFERROR(VLOOKUP(A87,[4]Sheet1!$A$2:$D$379,4,FALSE),0) -> 116311.49 | G87: =IFERROR(VLOOKUP(A87,'[5]2025-26 FINAL Y'!$B$19:$S$164,18,FALSE),0) -> 24153 | H87: 0.9776563985 | I87: =_xlfn.IFS(H87=0%,0,'other funds ftr 2026'!H87<Assumptions!$D$57,Assumptions!$B$57,'other funds ftr 2026'!H87<Assumptions!$D$58,Assumptions!$B$58,'other funds ftr 2026'!H87<=Assumptions!$D$59,Assumptions!$B$59,'other funds ftr 2026'!H87<=Assumptions!$D$60,Assumptions!$B$60) -> 1
A88: 24105 | B88: OKANOGAN | C88: =IFERROR(VLOOKUP(A88,'[2]Allocations 2025-26'!$B$9:$U$328,20,FALSE),0) -> 11655 | D88: =IFERROR(VLOOKUP(A88,'[3]State Reservations'!$C$4:$AE$318,29,FALSE),0) -> 464895.1659 | E88: =IFERROR(VLOOKUP(A88,[4]Sheet1!$A$2:$D$379,3,FALSE),0) -> 806782.74 | F88: =IFERROR(VLOOKUP(A88,[4]Sheet1!$A$2:$D$379,4,FALSE),0) -> 164384.02 | G88: =IFERROR(VLOOKUP(A88,'[5]2025-26 FINAL Y'!$B$19:$S$164,18,FALSE),0) -> 0 | H88: 0 | I88: =_xlfn.IFS(H88=0%,0,'other funds ftr 2026'!H88<Assumptions!$D$57,Assumptions!$B$57,'other funds ftr 2026'!H88<Assumptions!$D$58,Assumptions!$B$58,'other funds ftr 2026'!H88<=Assumptions!$D$59,Assumptions!$B$59,'other funds ftr 2026'!H88<=Assumptions!$D$60,Assumptions!$B$60) -> 0
A89: 34111 | B89: OLYMPIA | C89: =IFERROR(VLOOKUP(A89,'[2]Allocations 2025-26'!$B$9:$U$328,20,FALSE),0) -> 48843 | D89: =IFERROR(VLOOKUP(A89,'[3]State Reservations'!$C$4:$AE$318,29,FALSE),0) -> 1855916.921 | E89: =IFERROR(VLOOKUP(A89,[4]Sheet1!$A$2:$D$379,3,FALSE),0) -> 2506033.07 | F89: =IFERROR(VLOOKUP(A89,[4]Sheet1!$A$2:$D$379,4,FALSE),0) -> 698399.31 | G89: =IFERROR(VLOOKUP(A89,'[5]2025-26 FINAL Y'!$B$19:$S$164,18,FALSE),0) -> 36366 | H89: 0.9929325453 | I89: =_xlfn.IFS(H89=0%,0,'other funds ftr 2026'!H89<Assumptions!$D$57,Assumptions!$B$57,'other funds ftr 2026'!H89<Assumptions!$D$58,Assumptions!$B$58,'other funds ftr 2026'!H89<=Assumptions!$D$59,Assumptions!$B$59,'other funds ftr 2026'!H89<=Assumptions!$D$60,Assumptions!$B$60) -> 0.95
A90: 24019 | B90: OMAK | C90: =IFERROR(VLOOKUP(A90,'[2]Allocations 2025-26'!$B$9:$U$328,20,FALSE),0) -> 41308 | D90: =IFERROR(VLOOKUP(A90,'[3]State Reservations'!$C$4:$AE$318,29,FALSE),0) -> 923904.8188 | E90: =IFERROR(VLOOKUP(A90,[4]Sheet1!$A$2:$D$379,3,FALSE),0) -> 4918843.43 | F90: =IFERROR(VLOOKUP(A90,[4]Sheet1!$A$2:$D$379,4,FALSE),0) -> 672579.14 | G90: =IFERROR(VLOOKUP(A90,'[5]2025-26 FINAL Y'!$B$19:$S$164,18,FALSE),0) -> 0 | H90: 0 | I90: =_xlfn.IFS(H90=0%,0,'other funds ftr 2026'!H90<Assumptions!$D$57,Assumptions!$B$57,'other funds ftr 2026'!H90<Assumptions!$D$58,Assumptions!$B$58,'other funds ftr 2026'!H90<=Assumptions!$D$59,Assumptions!$B$59,'other funds ftr 2026'!H90<=Assumptions!$D$60,Assumptions!$B$60) -> 0
A91: 09013 | B91: ORONDO | C91: =IFERROR(VLOOKUP(A91,'[2]Allocations 2025-26'!$B$9:$U$328,20,FALSE),0) -> 7184 | D91: =IFERROR(VLOOKUP(A91,'[3]State Reservations'!$C$4:$AE$318,29,FALSE),0) -> 105477.5785 | E91: =IFERROR(VLOOKUP(A91,[4]Sheet1!$A$2:$D$379,3,FALSE),0) -> 103238.12 | F91: =IFERROR(VLOOKUP(A91,[4]Sheet1!$A$2:$D$379,4,FALSE),0) -> 100832.36 | G91: =IFERROR(VLOOKUP(A91,'[5]2025-26 FINAL Y'!$B$19:$S$164,18,FALSE),0) -> 32394 | H91: 0.90721403 | I91: =_xlfn.IFS(H91=0%,0,'other funds ftr 2026'!H91<Assumptions!$D$57,Assumptions!$B$57,'other funds ftr 2026'!H91<Assumptions!$D$58,Assumptions!$B$58,'other funds ftr 2026'!H91<=Assumptions!$D$59,Assumptions!$B$59,'other funds ftr 2026'!H91<=Assumptions!$D$60,Assumptions!$B$60) -> 1.1
A92: 24410 | B92: OROVILLE | C92: =IFERROR(VLOOKUP(A92,'[2]Allocations 2025-26'!$B$9:$U$328,20,FALSE),0) -> 0 | D92: =IFERROR(VLOOKUP(A92,'[3]State Reservations'!$C$4:$AE$318,29,FALSE),0) -> 659968.8048 | E92: =IFERROR(VLOOKUP(A92,[4]Sheet1!$A$2:$D$379,3,FALSE),0) -> 430085.17 | F92: =IFERROR(VLOOKUP(A92,[4]Sheet1!$A$2:$D$379,4,FALSE),0) -> 97780.15 | G92: =IFERROR(VLOOKUP(A92,'[5]2025-26 FINAL Y'!$B$19:$S$164,18,FALSE),0) -> 0 | H92: 0 | I92: =_xlfn.IFS(H92=0%,0,'other funds ftr 2026'!H92<Assumptions!$D$57,Assumptions!$B$57,'other funds ftr 2026'!H92<Assumptions!$D$58,Assumptions!$B$58,'other funds ftr 2026'!H92<=Assumptions!$D$59,Assumptions!$B$59,'other funds ftr 2026'!H92<=Assumptions!$D$60,Assumptions!$B$60) -> 0
A93: 01147 | B93: OTHELLO | C93: =IFERROR(VLOOKUP(A93,'[2]Allocations 2025-26'!$B$9:$U$328,20,FALSE),0) -> 233576 | D93: =IFERROR(VLOOKUP(A93,'[3]State Reservations'!$C$4:$AE$318,29,FALSE),0) -> 1810247.904 | E93: =IFERROR(VLOOKUP(A93,[4]Sheet1!$A$2:$D$379,3,FALSE),0) -> 3999206.18 | F93: =IFERROR(VLOOKUP(A93,[4]Sheet1!$A$2:$D$379,4,FALSE),0) -> 3318747.46 | G93: =IFERROR(VLOOKUP(A93,'[5]2025-26 FINAL Y'!$B$19:$S$164,18,FALSE),0) -> 585017 | H93: 0.9411853741 | I93: =_xlfn.IFS(H93=0%,0,'other funds ftr 2026'!H93<Assumptions!$D$57,Assumptions!$B$57,'other funds ftr 2026'!H93<Assumptions!$D$58,Assumptions!$B$58,'other funds ftr 2026'!H93<=Assumptions!$D$59,Assumptions!$B$59,'other funds ftr 2026'!H93<=Assumptions!$D$60,Assumptions!$B$60) -> 1.05
A94: 11001 | B94: PASCO | C94: =IFERROR(VLOOKUP(A94,'[2]Allocations 2025-26'!$B$9:$U$328,20,FALSE),0) -> 820534 | D94: =IFERROR(VLOOKUP(A94,'[3]State Reservations'!$C$4:$AE$318,29,FALSE),0) -> 7291679.103 | E94: =IFERROR(VLOOKUP(A94,[4]Sheet1!$A$2:$D$379,3,FALSE),0) -> 15038832.4 | F94: =IFERROR(VLOOKUP(A94,[4]Sheet1!$A$2:$D$379,4,FALSE),0) -> 11690014.03 | G94: =IFERROR(VLOOKUP(A94,'[5]2025-26 FINAL Y'!$B$19:$S$164,18,FALSE),0) -> 1274008 | H94: 0.9647236434 | I94: =_xlfn.IFS(H94=0%,0,'other funds ftr 2026'!H94<Assumptions!$D$57,Assumptions!$B$57,'other funds ftr 2026'!H94<Assumptions!$D$58,Assumptions!$B$58,'other funds ftr 2026'!H94<=Assumptions!$D$59,Assumptions!$B$59,'other funds ftr 2026'!H94<=Assumptions!$D$60,Assumptions!$B$60) -> 1
A95: 24122 | B95: PATEROS | C95: =IFERROR(VLOOKUP(A95,'[2]Allocations 2025-26'!$B$9:$U$328,20,FALSE),0) -> 0 | D95: =IFERROR(VLOOKUP(A95,'[3]State Reservations'!$C$4:$AE$318,29,FALSE),0) -> 102702.854 | E95: =IFERROR(VLOOKUP(A95,[4]Sheet1!$A$2:$D$379,3,FALSE),0) -> 191996.39 | F95: =IFERROR(VLOOKUP(A95,[4]Sheet1!$A$2:$D$379,4,FALSE),0) -> 75542.51 | G95: =IFERROR(VLOOKUP(A95,'[5]2025-26 FINAL Y'!$B$19:$S$164,18,FALSE),0) -> 0 | H95: 0 | I95: =_xlfn.IFS(H95=0%,0,'other funds ftr 2026'!H95<Assumptions!$D$57,Assumptions!$B$57,'other funds ftr 2026'!H95<Assumptions!$D$58,Assumptions!$B$58,'other funds ftr 2026'!H95<=Assumptions!$D$59,Assumptions!$B$59,'other funds ftr 2026'!H95<=Assumptions!$D$60,Assumptions!$B$60) -> 0
A96: 03050 | B96: PATERSON | C96: =IFERROR(VLOOKUP(A96,'[2]Allocations 2025-26'!$B$9:$U$328,20,FALSE),0) -> 2928 | D96: =IFERROR(VLOOKUP(A96,'[3]State Reservations'!$C$4:$AE$318,29,FALSE),0) -> 0 | E96: =IFERROR(VLOOKUP(A96,[4]Sheet1!$A$2:$D$379,3,FALSE),0) -> 140156.24 | F96: =IFERROR(VLOOKUP(A96,[4]Sheet1!$A$2:$D$379,4,FALSE),0) -> 34773.55 | G96: =IFERROR(VLOOKUP(A96,'[5]2025-26 FINAL Y'!$B$19:$S$164,18,FALSE),0) -> 18037 | H96: 0.9079250653 | I96: =_xlfn.IFS(H96=0%,0,'other funds ftr 2026'!H96<Assumptions!$D$57,Assumptions!$B$57,'other funds ftr 2026'!H96<Assumptions!$D$58,Assumptions!$B$58,'other funds ftr 2026'!H96<=Assumptions!$D$59,Assumptions!$B$59,'other funds ftr 2026'!H96<=Assumptions!$D$60,Assumptions!$B$60) -> 1.1
A97: 04901 | B97: PINNACLES PREP CHARTER SCHOOL | C97: =IFERROR(VLOOKUP(A97,'[2]Allocations 2025-26'!$B$9:$U$328,20,FALSE),0) -> 0 | D97: =IFERROR(VLOOKUP(A97,'[3]State Reservations'!$C$4:$AE$318,29,FALSE),0) -> 47635.47701 | E97: =IFERROR(VLOOKUP(A97,[4]Sheet1!$A$2:$D$379,3,FALSE),0) -> 85884.4 | F97: =IFERROR(VLOOKUP(A97,[4]Sheet1!$A$2:$D$379,4,FALSE),0) -> 77831.68 | G97: =IFERROR(VLOOKUP(A97,'[5]2025-26 FINAL Y'!$B$19:$S$164,18,FALSE),0) -> 0 | H97: 0 | I97: =_xlfn.IFS(H97=0%,0,'other funds ftr 2026'!H97<Assumptions!$D$57,Assumptions!$B$57,'other funds ftr 2026'!H97<Assumptions!$D$58,Assumptions!$B$58,'other funds ftr 2026'!H97<=Assumptions!$D$59,Assumptions!$B$59,'other funds ftr 2026'!H97<=Assumptions!$D$60,Assumptions!$B$60) -> 0
A98: 36402 | B98: PRESCOTT | C98: =IFERROR(VLOOKUP(A98,'[2]Allocations 2025-26'!$B$9:$U$328,20,FALSE),0) -> 12298 | D98: =IFERROR(VLOOKUP(A98,'[3]State Reservations'!$C$4:$AE$318,29,FALSE),0) -> 131820.0471 | E98: =IFERROR(VLOOKUP(A98,[4]Sheet1!$A$2:$D$379,3,FALSE),0) -> 247263.05 | F98: =IFERROR(VLOOKUP(A98,[4]Sheet1!$A$2:$D$379,4,FALSE),0) -> 155663.38 | G98: =IFERROR(VLOOKUP(A98,'[5]2025-26 FINAL Y'!$B$19:$S$164,18,FALSE),0) -> 40550 | H98: =IF(G98=0,0,(SUM(C98:F98)/SUM(C98:G98))) -> 0.9309898211 | I98: =_xlfn.IFS(H98=0%,0,'other funds ftr 2026'!H98<Assumptions!$D$57,Assumptions!$B$57,'other funds ftr 2026'!H98<Assumptions!$D$58,Assumptions!$B$58,'other funds ftr 2026'!H98<=Assumptions!$D$59,Assumptions!$B$59,'other funds ftr 2026'!H98<=Assumptions!$D$60,Assumptions!$B$60) -> 1.05
A99: 03116 | B99: PROSSER | C99: =IFERROR(VLOOKUP(A99,'[2]Allocations 2025-26'!$B$9:$U$328,20,FALSE),0) -> 82342 | D99: =IFERROR(VLOOKUP(A99,'[3]State Reservations'!$C$4:$AE$318,29,FALSE),0) -> 704735.518 | E99: =IFERROR(VLOOKUP(A99,[4]Sheet1!$A$2:$D$379,3,FALSE),0) -> 1974567.28 | F99: =IFERROR(VLOOKUP(A99,[4]Sheet1!$A$2:$D$379,4,FALSE),0) -> 1203883.96 | G99: =IFERROR(VLOOKUP(A99,'[5]2025-26 FINAL Y'!$B$19:$S$164,18,FALSE),0) -> 621916 | H99: 0.8644308471 | I99: =_xlfn.IFS(H99=0%,0,'other funds ftr 2026'!H99<Assumptions!$D$57,Assumptions!$B$57,'other funds ftr 2026'!H99<Assumptions!$D$58,Assumptions!$B$58,'other funds ftr 2026'!H99<=Assumptions!$D$59,Assumptions!$B$59,'other funds ftr 2026'!H99<=Assumptions!$D$60,Assumptions!$B$60) -> 1.1
A100: 27003 | B100: PUYALLUP | C100: =IFERROR(VLOOKUP(A100,'[2]Allocations 2025-26'!$B$9:$U$328,20,FALSE),0) -> 284821 | D100: =IFERROR(VLOOKUP(A100,'[3]State Reservations'!$C$4:$AE$318,29,FALSE),0) -> 4038611.316 | E100: =IFERROR(VLOOKUP(A100,[4]Sheet1!$A$2:$D$379,3,FALSE),0) -> 9195664.99 | F100: =IFERROR(VLOOKUP(A100,[4]Sheet1!$A$2:$D$379,4,FALSE),0) -> 4517314.62 | G100: =IFERROR(VLOOKUP(A100,'[5]2025-26 FINAL Y'!$B$19:$S$164,18,FALSE),0) -> 10821 | H100: 0.9994004067 | I100: =_xlfn.IFS(H100=0%,0,'other funds ftr 2026'!H100<Assumptions!$D$57,Assumptions!$B$57,'other funds ftr 2026'!H100<Assumptions!$D$58,Assumptions!$B$58,'other funds ftr 2026'!H100<=Assumptions!$D$59,Assumptions!$B$59,'other funds ftr 2026'!H100<=Assumptions!$D$60,Assumptions!$B$60) -> 0.95
A101: 05402 | B101: QUILLAYUTE VALLEY | C101: =IFERROR(VLOOKUP(A101,'[2]Allocations 2025-26'!$B$9:$U$328,20,FALSE),0) -> 51205 | D101: =IFERROR(VLOOKUP(A101,'[3]State Reservations'!$C$4:$AE$318,29,FALSE),0) -> 613715.6795 | E101: =IFERROR(VLOOKUP(A101,[4]Sheet1!$A$2:$D$379,3,FALSE),0) -> 3269354.65 | F101: =IFERROR(VLOOKUP(A101,[4]Sheet1!$A$2:$D$379,4,FALSE),0) -> 685551.09 | G101: =IFERROR(VLOOKUP(A101,'[5]2025-26 FINAL Y'!$B$19:$S$164,18,FALSE),0) -> 55440 | H101: 0.9881418522 | I101: =_xlfn.IFS(H101=0%,0,'other funds ftr 2026'!H101<Assumptions!$D$57,Assumptions!$B$57,'other funds ftr 2026'!H101<Assumptions!$D$58,Assumptions!$B$58,'other funds ftr 2026'!H101<=Assumptions!$D$59,Assumptions!$B$59,'other funds ftr 2026'!H101<=Assumptions!$D$60,Assumptions!$B$60) -> 0.95
A102: 13144 | B102: QUINCY | C102: =IFERROR(VLOOKUP(A102,'[2]Allocations 2025-26'!$B$9:$U$328,20,FALSE),0) -> 154143 | D102: =IFERROR(VLOOKUP(A102,'[3]State Reservations'!$C$4:$AE$318,29,FALSE),0) -> 894001.4925 | E102: =IFERROR(VLOOKUP(A102,[4]Sheet1!$A$2:$D$379,3,FALSE),0) -> 2896636.29 | F102: =IFERROR(VLOOKUP(A102,[4]Sheet1!$A$2:$D$379,4,FALSE),0) -> 2357515.23 | G102: =IFERROR(VLOOKUP(A102,'[5]2025-26 FINAL Y'!$B$19:$S$164,18,FALSE),0) -> 453094 | H102: 0.9329285209 | I102: =_xlfn.IFS(H102=0%,0,'other funds ftr 2026'!H102<Assumptions!$D$57,Assumptions!$B$57,'other funds ftr 2026'!H102<Assumptions!$D$58,Assumptions!$B$58,'other funds ftr 2026'!H102<=Assumptions!$D$59,Assumptions!$B$59,'other funds ftr 2026'!H102<=Assumptions!$D$60,Assumptions!$B$60) -> 1.05
A103: 22009 | B103: REARDAN-EDWALL | C103: =IFERROR(VLOOKUP(A103,'[2]Allocations 2025-26'!$B$9:$U$328,20,FALSE),0) -> 0 | D103: =IFERROR(VLOOKUP(A103,'[3]State Reservations'!$C$4:$AE$318,29,FALSE),0) -> 217297.7436 | E103: =IFERROR(VLOOKUP(A103,[4]Sheet1!$A$2:$D$379,3,FALSE),0) -> 343316.5 | F103: =IFERROR(VLOOKUP(A103,[4]Sheet1!$A$2:$D$379,4,FALSE),0) -> 8066.59 | G103: =IFERROR(VLOOKUP(A103,'[5]2025-26 FINAL Y'!$B$19:$S$164,18,FALSE),0) -> 0 | H103: 0 | I103: =_xlfn.IFS(H103=0%,0,'other funds ftr 2026'!H103<Assumptions!$D$57,Assumptions!$B$57,'other funds ftr 2026'!H103<Assumptions!$D$58,Assumptions!$B$58,'other funds ftr 2026'!H103<=Assumptions!$D$59,Assumptions!$B$59,'other funds ftr 2026'!H103<=Assumptions!$D$60,Assumptions!$B$60) -> 0
A104: 17403 | B104: RENTON | C104: =IFERROR(VLOOKUP(A104,'[2]Allocations 2025-26'!$B$9:$U$328,20,FALSE),0) -> 433322 | D104: =IFERROR(VLOOKUP(A104,'[3]State Reservations'!$C$4:$AE$318,29,FALSE),0) -> 4699964.156 | E104: =IFERROR(VLOOKUP(A104,[4]Sheet1!$A$2:$D$379,3,FALSE),0) -> 8922997.11 | F104: =IFERROR(VLOOKUP(A104,[4]Sheet1!$A$2:$D$379,4,FALSE),0) -> 7592154.25 | G104: =IFERROR(VLOOKUP(A104,'[5]2025-26 FINAL Y'!$B$19:$S$164,18,FALSE),0) -> 0 | H104: 0 | I104: =_xlfn.IFS(H104=0%,0,'other funds ftr 2026'!H104<Assumptions!$D$57,Assumptions!$B$57,'other funds ftr 2026'!H104<Assumptions!$D$58,Assumptions!$B$58,'other funds ftr 2026'!H104<=Assumptions!$D$59,Assumptions!$B$59,'other funds ftr 2026'!H104<=Assumptions!$D$60,Assumptions!$B$60) -> 0
A105: 03400 | B105: RICHLAND | C105: =IFERROR(VLOOKUP(A105,'[2]Allocations 2025-26'!$B$9:$U$328,20,FALSE),0) -> 110239 | D105: =IFERROR(VLOOKUP(A105,'[3]State Reservations'!$C$4:$AE$318,29,FALSE),0) -> 2870746.687 | E105: =IFERROR(VLOOKUP(A105,[4]Sheet1!$A$2:$D$379,3,FALSE),0) -> 5642505.1 | F105: =IFERROR(VLOOKUP(A105,[4]Sheet1!$A$2:$D$379,4,FALSE),0) -> 1629451.03 | G105: =IFERROR(VLOOKUP(A105,'[5]2025-26 FINAL Y'!$B$19:$S$164,18,FALSE),0) -> 224977 | H105: 0.9785284651 | I105: =_xlfn.IFS(H105=0%,0,'other funds ftr 2026'!H105<Assumptions!$D$57,Assumptions!$B$57,'other funds ftr 2026'!H105<Assumptions!$D$58,Assumptions!$B$58,'other funds ftr 2026'!H105<=Assumptions!$D$59,Assumptions!$B$59,'other funds ftr 2026'!H105<=Assumptions!$D$60,Assumptions!$B$60) -> 1
A106: 06122 | B106: RIDGEFIELD | C106: =IFERROR(VLOOKUP(A106,'[2]Allocations 2025-26'!$B$9:$U$328,20,FALSE),0) -> 27116 | D106: =IFERROR(VLOOKUP(A106,'[3]State Reservations'!$C$4:$AE$318,29,FALSE),0) -> 153501.4649 | E106: =IFERROR(VLOOKUP(A106,[4]Sheet1!$A$2:$D$379,3,FALSE),0) -> 806582.12 | F106: =IFERROR(VLOOKUP(A106,[4]Sheet1!$A$2:$D$379,4,FALSE),0) -> 396636.92 | G106: =IFERROR(VLOOKUP(A106,'[5]2025-26 FINAL Y'!$B$19:$S$164,18,FALSE),0) -> 13051 | H106: 0.9906570859 | I106: =_xlfn.IFS(H106=0%,0,'other funds ftr 2026'!H106<Assumptions!$D$57,Assumptions!$B$57,'other funds ftr 2026'!H106<Assumptions!$D$58,Assumptions!$B$58,'other funds ftr 2026'!H106<=Assumptions!$D$59,Assumptions!$B$59,'other funds ftr 2026'!H106<=Assumptions!$D$60,Assumptions!$B$60) -> 0.95
A107: 17407 | B107: RIVERVIEW | C107: =IFERROR(VLOOKUP(A107,'[2]Allocations 2025-26'!$B$9:$U$328,20,FALSE),0) -> 25183 | D107: =IFERROR(VLOOKUP(A107,'[3]State Reservations'!$C$4:$AE$318,29,FALSE),0) -> 121063.4195 | E107: =IFERROR(VLOOKUP(A107,[4]Sheet1!$A$2:$D$379,3,FALSE),0) -> 498081.74 | F107: =IFERROR(VLOOKUP(A107,[4]Sheet1!$A$2:$D$379,4,FALSE),0) -> 479887.15 | G107: =IFERROR(VLOOKUP(A107,'[5]2025-26 FINAL Y'!$B$19:$S$164,18,FALSE),0) -> 0 | H107: 0 | I107: =_xlfn.IFS(H107=0%,0,'other funds ftr 2026'!H107<Assumptions!$D$57,Assumptions!$B$57,'other funds ftr 2026'!H107<Assumptions!$D$58,Assumptions!$B$58,'other funds ftr 2026'!H107<=Assumptions!$D$59,Assumptions!$B$59,'other funds ftr 2026'!H107<=Assumptions!$D$60,Assumptions!$B$60) -> 0
A108: 34401 | B108: ROCHESTER | C108: =IFERROR(VLOOKUP(A108,'[2]Allocations 2025-26'!$B$9:$U$328,20,FALSE),0) -> 32367 | D108: =IFERROR(VLOOKUP(A108,'[3]State Reservations'!$C$4:$AE$318,29,FALSE),0) -> 522914.8904 | E108: =IFERROR(VLOOKUP(A108,[4]Sheet1!$A$2:$D$379,3,FALSE),0) -> 1516738.26 | F108: =IFERROR(VLOOKUP(A108,[4]Sheet1!$A$2:$D$379,4,FALSE),0) -> 397988.07 | G108: =IFERROR(VLOOKUP(A108,'[5]2025-26 FINAL Y'!$B$19:$S$164,18,FALSE),0) -> 35138 | H108: 0.985973673 | I108: =_xlfn.IFS(H108=0%,0,'other funds ftr 2026'!H108<Assumptions!$D$57,Assumptions!$B$57,'other funds ftr 2026'!H108<Assumptions!$D$58,Assumptions!$B$58,'other funds ftr 2026'!H108<=Assumptions!$D$59,Assumptions!$B$59,'other funds ftr 2026'!H108<=Assumptions!$D$60,Assumptions!$B$60) -> 0.95
A109: 20403 | B109: ROOSEVELT | C109: =IFERROR(VLOOKUP(A109,'[2]Allocations 2025-26'!$B$9:$U$328,20,FALSE),0) -> 0 | D109: =IFERROR(VLOOKUP(A109,'[3]State Reservations'!$C$4:$AE$318,29,FALSE),0) -> 1517.089931 | E109: =IFERROR(VLOOKUP(A109,[4]Sheet1!$A$2:$D$379,3,FALSE),0) -> 6300.41 | F109: =IFERROR(VLOOKUP(A109,[4]Sheet1!$A$2:$D$379,4,FALSE),0) -> 16678.22 | G109: =IFERROR(VLOOKUP(A109,'[5]2025-26 FINAL Y'!$B$19:$S$164,18,FALSE),0) -> 0 | H109: 0 | I109: =_xlfn.IFS(H109=0%,0,'other funds ftr 2026'!H109<Assumptions!$D$57,Assumptions!$B$57,'other funds ftr 2026'!H109<Assumptions!$D$58,Assumptions!$B$58,'other funds ftr 2026'!H109<=Assumptions!$D$59,Assumptions!$B$59,'other funds ftr 2026'!H109<=Assumptions!$D$60,Assumptions!$B$60) -> 0
A110: 13160 | B110: ROYAL | C110: =IFERROR(VLOOKUP(A110,'[2]Allocations 2025-26'!$B$9:$U$328,20,FALSE),0) -> 89273 | D110: =IFERROR(VLOOKUP(A110,'[3]State Reservations'!$C$4:$AE$318,29,FALSE),0) -> 497677.2721 | E110: =IFERROR(VLOOKUP(A110,[4]Sheet1!$A$2:$D$379,3,FALSE),0) -> 1390619.75 | F110: =IFERROR(VLOOKUP(A110,[4]Sheet1!$A$2:$D$379,4,FALSE),0) -> 1351480.73 | G110: =IFERROR(VLOOKUP(A110,'[5]2025-26 FINAL Y'!$B$19:$S$164,18,FALSE),0) -> 183334 | H110: 0.9478035543 | I110: =_xlfn.IFS(H110=0%,0,'other funds ftr 2026'!H110<Assumptions!$D$57,Assumptions!$B$57,'other funds ftr 2026'!H110<Assumptions!$D$58,Assumptions!$B$58,'other funds ftr 2026'!H110<=Assumptions!$D$59,Assumptions!$B$59,'other funds ftr 2026'!H110<=Assumptions!$D$60,Assumptions!$B$60) -> 1.05
A111: 17001 | B111: SEATTLE PUBLIC SCHOOLS | C111: =IFERROR(VLOOKUP(A111,'[2]Allocations 2025-26'!$B$9:$U$328,20,FALSE),0) -> 886113 | D111: =IFERROR(VLOOKUP(A111,'[3]State Reservations'!$C$4:$AE$318,29,FALSE),0) -> 16700808.63 | E111: =IFERROR(VLOOKUP(A111,[4]Sheet1!$A$2:$D$379,3,FALSE),0) -> 21766490.58 | F111: =IFERROR(VLOOKUP(A111,[4]Sheet1!$A$2:$D$379,4,FALSE),0) -> 14669326.1 | G111: =IFERROR(VLOOKUP(A111,'[5]2025-26 FINAL Y'!$B$19:$S$164,18,FALSE),0) -> 0 | H111: 0 | I111: =_xlfn.IFS(H111=0%,0,'other funds ftr 2026'!H111<Assumptions!$D$57,Assumptions!$B$57,'other funds ftr 2026'!H111<Assumptions!$D$58,Assumptions!$B$58,'other funds ftr 2026'!H111<=Assumptions!$D$59,Assumptions!$B$59,'other funds ftr 2026'!H111<=Assumptions!$D$60,Assumptions!$B$60) -> 0
A112: 29101 | B112: SEDRO-WOOLLEY | C112: =IFERROR(VLOOKUP(A112,'[2]Allocations 2025-26'!$B$9:$U$328,20,FALSE),0) -> 52261 | D112: =IFERROR(VLOOKUP(A112,'[3]State Reservations'!$C$4:$AE$318,29,FALSE),0) -> 1003653.605 | E112: =IFERROR(VLOOKUP(A112,[4]Sheet1!$A$2:$D$379,3,FALSE),0) -> 2577345.63 | F112: =IFERROR(VLOOKUP(A112,[4]Sheet1!$A$2:$D$379,4,FALSE),0) -> 824903.04 | G112: =IFERROR(VLOOKUP(A112,'[5]2025-26 FINAL Y'!$B$19:$S$164,18,FALSE),0) -> 94641 | H112: 0.979212592 | I112: =_xlfn.IFS(H112=0%,0,'other funds ftr 2026'!H112<Assumptions!$D$57,Assumptions!$B$57,'other funds ftr 2026'!H112<Assumptions!$D$58,Assumptions!$B$58,'other funds ftr 2026'!H112<=Assumptions!$D$59,Assumptions!$B$59,'other funds ftr 2026'!H112<=Assumptions!$D$60,Assumptions!$B$60) -> 1
A113: 39119 | B113: SELAH | C113: =IFERROR(VLOOKUP(A113,'[2]Allocations 2025-26'!$B$9:$U$328,20,FALSE),0) -> 53684 | D113: =IFERROR(VLOOKUP(A113,'[3]State Reservations'!$C$4:$AE$318,29,FALSE),0) -> 835935.5211 | E113: =IFERROR(VLOOKUP(A113,[4]Sheet1!$A$2:$D$379,3,FALSE),0) -> 2581505.78 | F113: =IFERROR(VLOOKUP(A113,[4]Sheet1!$A$2:$D$379,4,FALSE),0) -> 727301.13 | G113: =IFERROR(VLOOKUP(A113,'[5]2025-26 FINAL Y'!$B$19:$S$164,18,FALSE),0) -> 187403 | H113: 0.9572707961 | I113: =_xlfn.IFS(H113=0%,0,'other funds ftr 2026'!H113<Assumptions!$D$57,Assumptions!$B$57,'other funds ftr 2026'!H113<Assumptions!$D$58,Assumptions!$B$58,'other funds ftr 2026'!H113<=Assumptions!$D$59,Assumptions!$B$59,'other funds ftr 2026'!H113<=Assumptions!$D$60,Assumptions!$B$60) -> 1
A114: 23309 | B114: SHELTON | C114: =IFERROR(VLOOKUP(A114,'[2]Allocations 2025-26'!$B$9:$U$328,20,FALSE),0) -> 136203 | D114: =IFERROR(VLOOKUP(A114,'[3]State Reservations'!$C$4:$AE$318,29,FALSE),0) -> 1604928.188 | E114: =IFERROR(VLOOKUP(A114,[4]Sheet1!$A$2:$D$379,3,FALSE),0) -> 3427417.3 | F114: =IFERROR(VLOOKUP(A114,[4]Sheet1!$A$2:$D$379,4,FALSE),0) -> 1929113.94 | G114: =IFERROR(VLOOKUP(A114,'[5]2025-26 FINAL Y'!$B$19:$S$164,18,FALSE),0) -> 0 | H114: 0 | I114: =_xlfn.IFS(H114=0%,0,'other funds ftr 2026'!H114<Assumptions!$D$57,Assumptions!$B$57,'other funds ftr 2026'!H114<Assumptions!$D$58,Assumptions!$B$58,'other funds ftr 2026'!H114<=Assumptions!$D$59,Assumptions!$B$59,'other funds ftr 2026'!H114<=Assumptions!$D$60,Assumptions!$B$60) -> 0
A115: 31201 | B115: SNOHOMISH | C115: =IFERROR(VLOOKUP(A115,'[2]Allocations 2025-26'!$B$9:$U$328,20,FALSE),0) -> 72055 | D115: =IFERROR(VLOOKUP(A115,'[3]State Reservations'!$C$4:$AE$318,29,FALSE),0) -> 935719.2364 | E115: =IFERROR(VLOOKUP(A115,[4]Sheet1!$A$2:$D$379,3,FALSE),0) -> 1756028.1 | F115: =IFERROR(VLOOKUP(A115,[4]Sheet1!$A$2:$D$379,4,FALSE),0) -> 1407658.02 | G115: =IFERROR(VLOOKUP(A115,'[5]2025-26 FINAL Y'!$B$19:$S$164,18,FALSE),0) -> 37481 | H115: 0.9910949104 | I115: =_xlfn.IFS(H115=0%,0,'other funds ftr 2026'!H115<Assumptions!$D$57,Assumptions!$B$57,'other funds ftr 2026'!H115<Assumptions!$D$58,Assumptions!$B$58,'other funds ftr 2026'!H115<=Assumptions!$D$59,Assumptions!$B$59,'other funds ftr 2026'!H115<=Assumptions!$D$60,Assumptions!$B$60) -> 0.95
A116: 13156 | B116: SOAP LAKE | C116: =IFERROR(VLOOKUP(A116,'[2]Allocations 2025-26'!$B$9:$U$328,20,FALSE),0) -> 17784 | D116: =IFERROR(VLOOKUP(A116,'[3]State Reservations'!$C$4:$AE$318,29,FALSE),0) -> 495053.7115 | E116: =IFERROR(VLOOKUP(A116,[4]Sheet1!$A$2:$D$379,3,FALSE),0) -> 463908.36 | F116: =IFERROR(VLOOKUP(A116,[4]Sheet1!$A$2:$D$379,4,FALSE),0) -> 255405.65 | G116: =IFERROR(VLOOKUP(A116,'[5]2025-26 FINAL Y'!$B$19:$S$164,18,FALSE),0) -> 0 | H116: 0 | I116: =_xlfn.IFS(H116=0%,0,'other funds ftr 2026'!H116<Assumptions!$D$57,Assumptions!$B$57,'other funds ftr 2026'!H116<Assumptions!$D$58,Assumptions!$B$58,'other funds ftr 2026'!H116<=Assumptions!$D$59,Assumptions!$B$59,'other funds ftr 2026'!H116<=Assumptions!$D$60,Assumptions!$B$60) -> 0
A117: 32081 | B117: SPOKANE | C117: =IFERROR(VLOOKUP(A117,'[2]Allocations 2025-26'!$B$9:$U$328,20,FALSE),0) -> 345651 | D117: =IFERROR(VLOOKUP(A117,'[3]State Reservations'!$C$4:$AE$318,29,FALSE),0) -> 14298448.09 | E117: =IFERROR(VLOOKUP(A117,[4]Sheet1!$A$2:$D$379,3,FALSE),0) -> 18048654.82 | F117: =IFERROR(VLOOKUP(A117,[4]Sheet1!$A$2:$D$379,4,FALSE),0) -> 4782288.37 | G117: =IFERROR(VLOOKUP(A117,'[5]2025-26 FINAL Y'!$B$19:$S$164,18,FALSE),0) -> 0 | H117: 0 | I117: =_xlfn.IFS(H117=0%,0,'other funds ftr 2026'!H117<Assumptions!$D$57,Assumptions!$B$57,'other funds ftr 2026'!H117<Assumptions!$D$58,Assumptions!$B$58,'other funds ftr 2026'!H117<=Assumptions!$D$59,Assumptions!$B$59,'other funds ftr 2026'!H117<=Assumptions!$D$60,Assumptions!$B$60) -> 0
A118: 31401 | B118: STANWOOD-CAMANO | C118: =IFERROR(VLOOKUP(A118,'[2]Allocations 2025-26'!$B$9:$U$328,20,FALSE),0) -> 21611 | D118: =IFERROR(VLOOKUP(A118,'[3]State Reservations'!$C$4:$AE$318,29,FALSE),0) -> 708339.7032 | E118: =IFERROR(VLOOKUP(A118,[4]Sheet1!$A$2:$D$379,3,FALSE),0) -> 1204378.5 | F118: =IFERROR(VLOOKUP(A118,[4]Sheet1!$A$2:$D$379,4,FALSE),0) -> 353254.57 | G118: =IFERROR(VLOOKUP(A118,'[5]2025-26 FINAL Y'!$B$19:$S$164,18,FALSE),0) -> 0 | H118: 0 | I118: =_xlfn.IFS(H118=0%,0,'other funds ftr 2026'!H118<Assumptions!$D$57,Assumptions!$B$57,'other funds ftr 2026'!H118<Assumptions!$D$58,Assumptions!$B$58,'other funds ftr 2026'!H118<=Assumptions!$D$59,Assumptions!$B$59,'other funds ftr 2026'!H118<=Assumptions!$D$60,Assumptions!$B$60) -> 0
A119: 30303 | B119: STEVENSON-CARSON | C119: =IFERROR(VLOOKUP(A119,'[2]Allocations 2025-26'!$B$9:$U$328,20,FALSE),0) -> 0 | D119: =IFERROR(VLOOKUP(A119,'[3]State Reservations'!$C$4:$AE$318,29,FALSE),0) -> 265151.1618 | E119: =IFERROR(VLOOKUP(A119,[4]Sheet1!$A$2:$D$379,3,FALSE),0) -> 506684.76 | F119: =IFERROR(VLOOKUP(A119,[4]Sheet1!$A$2:$D$379,4,FALSE),0) -> 25616.87 | G119: =IFERROR(VLOOKUP(A119,'[5]2025-26 FINAL Y'!$B$19:$S$164,18,FALSE),0) -> 0 | H119: 0 | I119: =_xlfn.IFS(H119=0%,0,'other funds ftr 2026'!H119<Assumptions!$D$57,Assumptions!$B$57,'other funds ftr 2026'!H119<Assumptions!$D$58,Assumptions!$B$58,'other funds ftr 2026'!H119<=Assumptions!$D$59,Assumptions!$B$59,'other funds ftr 2026'!H119<=Assumptions!$D$60,Assumptions!$B$60) -> 0
A120: 27320 | B120: SUMNER | C120: =IFERROR(VLOOKUP(A120,'[2]Allocations 2025-26'!$B$9:$U$328,20,FALSE),0) -> 78926 | D120: =IFERROR(VLOOKUP(A120,'[3]State Reservations'!$C$4:$AE$318,29,FALSE),0) -> 985892.4956 | E120: =IFERROR(VLOOKUP(A120,[4]Sheet1!$A$2:$D$379,3,FALSE),0) -> 2848523.28 | F120: =IFERROR(VLOOKUP(A120,[4]Sheet1!$A$2:$D$379,4,FALSE),0) -> 1333450.98 | G120: =IFERROR(VLOOKUP(A120,'[5]2025-26 FINAL Y'!$B$19:$S$164,18,FALSE),0) -> 0 | H120: 0 | I120: =_xlfn.IFS(H120=0%,0,'other funds ftr 2026'!H120<Assumptions!$D$57,Assumptions!$B$57,'other funds ftr 2026'!H120<Assumptions!$D$58,Assumptions!$B$58,'other funds ftr 2026'!H120<=Assumptions!$D$59,Assumptions!$B$59,'other funds ftr 2026'!H120<=Assumptions!$D$60,Assumptions!$B$60) -> 0
A121: 39201 | B121: SUNNYSIDE | C121: =IFERROR(VLOOKUP(A121,'[2]Allocations 2025-26'!$B$9:$U$328,20,FALSE),0) -> 237989 | D121: =IFERROR(VLOOKUP(A121,'[3]State Reservations'!$C$4:$AE$318,29,FALSE),0) -> 2710148.403 | E121: =IFERROR(VLOOKUP(A121,[4]Sheet1!$A$2:$D$379,3,FALSE),0) -> 5910106.27 | F121: =IFERROR(VLOOKUP(A121,[4]Sheet1!$A$2:$D$379,4,FALSE),0) -> 3307083.6 | G121: =IFERROR(VLOOKUP(A121,'[5]2025-26 FINAL Y'!$B$19:$S$164,18,FALSE),0) -> 1813631 | H121: 0.8702599318 | I121: =_xlfn.IFS(H121=0%,0,'other funds ftr 2026'!H121<Assumptions!$D$57,Assumptions!$B$57,'other funds ftr 2026'!H121<Assumptions!$D$58,Assumptions!$B$58,'other funds ftr 2026'!H121<=Assumptions!$D$59,Assumptions!$B$59,'other funds ftr 2026'!H121<=Assumptions!$D$60,Assumptions!$B$60) -> 1.1
A122: 27010 | B122: TACOMA | C122: =IFERROR(VLOOKUP(A122,'[2]Allocations 2025-26'!$B$9:$U$328,20,FALSE),0) -> 463307 | D122: =IFERROR(VLOOKUP(A122,'[3]State Reservations'!$C$4:$AE$318,29,FALSE),0) -> 10158423.15 | E122: =IFERROR(VLOOKUP(A122,[4]Sheet1!$A$2:$D$379,3,FALSE),0) -> 18857268.04 | F122: =IFERROR(VLOOKUP(A122,[4]Sheet1!$A$2:$D$379,4,FALSE),0) -> 7210058.65 | G122: =IFERROR(VLOOKUP(A122,'[5]2025-26 FINAL Y'!$B$19:$S$164,18,FALSE),0) -> 0 | H122: 0 | I122: =_xlfn.IFS(H122=0%,0,'other funds ftr 2026'!H122<Assumptions!$D$57,Assumptions!$B$57,'other funds ftr 2026'!H122<Assumptions!$D$58,Assumptions!$B$58,'other funds ftr 2026'!H122<=Assumptions!$D$59,Assumptions!$B$59,'other funds ftr 2026'!H122<=Assumptions!$D$60,Assumptions!$B$60) -> 0
A123: 14077 | B123: TAHOLAH | C123: =IFERROR(VLOOKUP(A123,'[2]Allocations 2025-26'!$B$9:$U$328,20,FALSE),0) -> 0 | D123: =IFERROR(VLOOKUP(A123,'[3]State Reservations'!$C$4:$AE$318,29,FALSE),0) -> 174445.8137 | E123: =IFERROR(VLOOKUP(A123,[4]Sheet1!$A$2:$D$379,3,FALSE),0) -> 163257.71 | F123: =IFERROR(VLOOKUP(A123,[4]Sheet1!$A$2:$D$379,4,FALSE),0) -> 0 | G123: =IFERROR(VLOOKUP(A123,'[5]2025-26 FINAL Y'!$B$19:$S$164,18,FALSE),0) -> 50437 | H123: 0.8700547948 | I123: =_xlfn.IFS(H123=0%,0,'other funds ftr 2026'!H123<Assumptions!$D$57,Assumptions!$B$57,'other funds ftr 2026'!H123<Assumptions!$D$58,Assumptions!$B$58,'other funds ftr 2026'!H123<=Assumptions!$D$59,Assumptions!$B$59,'other funds ftr 2026'!H123<=Assumptions!$D$60,Assumptions!$B$60) -> 1.1
A124: 24404 | B124: TONASKET | C124: =IFERROR(VLOOKUP(A124,'[2]Allocations 2025-26'!$B$9:$U$328,20,FALSE),0) -> 15538 | D124: =IFERROR(VLOOKUP(A124,'[3]State Reservations'!$C$4:$AE$318,29,FALSE),0) -> 695270.1756 | E124: =IFERROR(VLOOKUP(A124,[4]Sheet1!$A$2:$D$379,3,FALSE),0) -> 867023.4 | F124: =IFERROR(VLOOKUP(A124,[4]Sheet1!$A$2:$D$379,4,FALSE),0) -> 219760.04 | G124: =IFERROR(VLOOKUP(A124,'[5]2025-26 FINAL Y'!$B$19:$S$164,18,FALSE),0) -> 285718 | H124: 0.8628537987 | I124: =_xlfn.IFS(H124=0%,0,'other funds ftr 2026'!H124<Assumptions!$D$57,Assumptions!$B$57,'other funds ftr 2026'!H124<Assumptions!$D$58,Assumptions!$B$58,'other funds ftr 2026'!H124<=Assumptions!$D$59,Assumptions!$B$59,'other funds ftr 2026'!H124<=Assumptions!$D$60,Assumptions!$B$60) -> 1.1
A125: 39202 | B125: TOPPENISH | C125: =IFERROR(VLOOKUP(A125,'[2]Allocations 2025-26'!$B$9:$U$328,20,FALSE),0) -> 155900 | D125: =IFERROR(VLOOKUP(A125,'[3]State Reservations'!$C$4:$AE$318,29,FALSE),0) -> 1496116.673 | E125: =IFERROR(VLOOKUP(A125,[4]Sheet1!$A$2:$D$379,3,FALSE),0) -> 3634335.68 | F125: =IFERROR(VLOOKUP(A125,[4]Sheet1!$A$2:$D$379,4,FALSE),0) -> 2020789.63 | G125: =IFERROR(VLOOKUP(A125,'[5]2025-26 FINAL Y'!$B$19:$S$164,18,FALSE),0) -> 605113 | H125: 0.9235220552 | I125: =_xlfn.IFS(H125=0%,0,'other funds ftr 2026'!H125<Assumptions!$D$57,Assumptions!$B$57,'other funds ftr 2026'!H125<Assumptions!$D$58,Assumptions!$B$58,'other funds ftr 2026'!H125<=Assumptions!$D$59,Assumptions!$B$59,'other funds ftr 2026'!H125<=Assumptions!$D$60,Assumptions!$B$60) -> 1.05
A126: 20400 | B126: TROUT LAKE | C126: =IFERROR(VLOOKUP(A126,'[2]Allocations 2025-26'!$B$9:$U$328,20,FALSE),0) -> 0 | D126: =IFERROR(VLOOKUP(A126,'[3]State Reservations'!$C$4:$AE$318,29,FALSE),0) -> 94089.05003 | E126: =IFERROR(VLOOKUP(A126,[4]Sheet1!$A$2:$D$379,3,FALSE),0) -> 59024.8 | F126: =IFERROR(VLOOKUP(A126,[4]Sheet1!$A$2:$D$379,4,FALSE),0) -> 16242.18 | G126: =IFERROR(VLOOKUP(A126,'[5]2025-26 FINAL Y'!$B$19:$S$164,18,FALSE),0) -> 0 | H126: 0 | I126: =_xlfn.IFS(H126=0%,0,'other funds ftr 2026'!H126<Assumptions!$D$57,Assumptions!$B$57,'other funds ftr 2026'!H126<Assumptions!$D$58,Assumptions!$B$58,'other funds ftr 2026'!H126<=Assumptions!$D$59,Assumptions!$B$59,'other funds ftr 2026'!H126<=Assumptions!$D$60,Assumptions!$B$60) -> 0
A127: 39002 | B127: UNION GAP | C127: =IFERROR(VLOOKUP(A127,'[2]Allocations 2025-26'!$B$9:$U$328,20,FALSE),0) -> 11791 | D127: =IFERROR(VLOOKUP(A127,'[3]State Reservations'!$C$4:$AE$318,29,FALSE),0) -> 590652.7794 | E127: =IFERROR(VLOOKUP(A127,[4]Sheet1!$A$2:$D$379,3,FALSE),0) -> 512100.92 | F127: =IFERROR(VLOOKUP(A127,[4]Sheet1!$A$2:$D$379,4,FALSE),0) -> 167000.2 | G127: =IFERROR(VLOOKUP(A127,'[5]2025-26 FINAL Y'!$B$19:$S$164,18,FALSE),0) -> 56417 | H127: 0.9578336274 | I127: =_xlfn.IFS(H127=0%,0,'other funds ftr 2026'!H127<Assumptions!$D$57,Assumptions!$B$57,'other funds ftr 2026'!H127<Assumptions!$D$58,Assumptions!$B$58,'other funds ftr 2026'!H127<=Assumptions!$D$59,Assumptions!$B$59,'other funds ftr 2026'!H127<=Assumptions!$D$60,Assumptions!$B$60) -> 1
A128: 06037 | B128: VANCOUVER | C128: =IFERROR(VLOOKUP(A128,'[2]Allocations 2025-26'!$B$9:$U$328,20,FALSE),0) -> 454386 | D128: =IFERROR(VLOOKUP(A128,'[3]State Reservations'!$C$4:$AE$318,29,FALSE),0) -> 6259127.099 | E128: =IFERROR(VLOOKUP(A128,[4]Sheet1!$A$2:$D$379,3,FALSE),0) -> 11945108.09 | F128: =IFERROR(VLOOKUP(A128,[4]Sheet1!$A$2:$D$379,4,FALSE),0) -> 6886309.16 | G128: =IFERROR(VLOOKUP(A128,'[5]2025-26 FINAL Y'!$B$19:$S$164,18,FALSE),0) -> 29003 | H128: 0.9988659156 | I128: =_xlfn.IFS(H128=0%,0,'other funds ftr 2026'!H128<Assumptions!$D$57,Assumptions!$B$57,'other funds ftr 2026'!H128<Assumptions!$D$58,Assumptions!$B$58,'other funds ftr 2026'!H128<=Assumptions!$D$59,Assumptions!$B$59,'other funds ftr 2026'!H128<=Assumptions!$D$60,Assumptions!$B$60) -> 0.95
A129: 34901 | B129: WA HE LUT INDIAN SCHOOL | C129: =IFERROR(VLOOKUP(A129,'[2]Allocations 2025-26'!$B$9:$U$328,20,FALSE),0) -> 0 | D129: =IFERROR(VLOOKUP(A129,'[3]State Reservations'!$C$4:$AE$318,29,FALSE),0) -> 0 | E129: =IFERROR(VLOOKUP(A129,[4]Sheet1!$A$2:$D$379,3,FALSE),0) -> 138498.26 | F129: =IFERROR(VLOOKUP(A129,[4]Sheet1!$A$2:$D$379,4,FALSE),0) -> 0 | G129: =IFERROR(VLOOKUP(A129,'[5]2025-26 FINAL Y'!$B$19:$S$164,18,FALSE),0) -> 0 | H129: 0 | I129: =_xlfn.IFS(H129=0%,0,'other funds ftr 2026'!H129<Assumptions!$D$57,Assumptions!$B$57,'other funds ftr 2026'!H129<Assumptions!$D$58,Assumptions!$B$58,'other funds ftr 2026'!H129<=Assumptions!$D$59,Assumptions!$B$59,'other funds ftr 2026'!H129<=Assumptions!$D$60,Assumptions!$B$60) -> 0
A130: 13073 | B130: WAHLUKE | C130: =IFERROR(VLOOKUP(A130,'[2]Allocations 2025-26'!$B$9:$U$328,20,FALSE),0) -> 159199 | D130: =IFERROR(VLOOKUP(A130,'[3]State Reservations'!$C$4:$AE$318,29,FALSE),0) -> 657130.2344 | E130: =IFERROR(VLOOKUP(A130,[4]Sheet1!$A$2:$D$379,3,FALSE),0) -> 2258085.25 | F130: =IFERROR(VLOOKUP(A130,[4]Sheet1!$A$2:$D$379,4,FALSE),0) -> 2234554.26 | G130: =IFERROR(VLOOKUP(A130,'[5]2025-26 FINAL Y'!$B$19:$S$164,18,FALSE),0) -> 1480586 | H130: =IF(G130=0,0,(SUM(C130:F130)/SUM(C130:G130))) -> 0.7819317973 | I130: =_xlfn.IFS(H130=0%,0,'other funds ftr 2026'!H130<Assumptions!$D$57,Assumptions!$B$57,'other funds ftr 2026'!H130<Assumptions!$D$58,Assumptions!$B$58,'other funds ftr 2026'!H130<=Assumptions!$D$59,Assumptions!$B$59,'other funds ftr 2026'!H130<=Assumptions!$D$60,Assumptions!$B$60) -> 1.1
A131: 36140 | B131: WALLA WALLA PUBLIC SCHOOLS | C131: =IFERROR(VLOOKUP(A131,'[2]Allocations 2025-26'!$B$9:$U$328,20,FALSE),0) -> 96515 | D131: =IFERROR(VLOOKUP(A131,'[3]State Reservations'!$C$4:$AE$318,29,FALSE),0) -> 2077472.247 | E131: =IFERROR(VLOOKUP(A131,[4]Sheet1!$A$2:$D$379,3,FALSE),0) -> 3912879.66 | F131: =IFERROR(VLOOKUP(A131,[4]Sheet1!$A$2:$D$379,4,FALSE),0) -> 1391704.68 | G131: =IFERROR(VLOOKUP(A131,'[5]2025-26 FINAL Y'!$B$19:$S$164,18,FALSE),0) -> 65814 | H131: 0.9912764268 | I131: =_xlfn.IFS(H131=0%,0,'other funds ftr 2026'!H131<Assumptions!$D$57,Assumptions!$B$57,'other funds ftr 2026'!H131<Assumptions!$D$58,Assumptions!$B$58,'other funds ftr 2026'!H131<=Assumptions!$D$59,Assumptions!$B$59,'other funds ftr 2026'!H131<=Assumptions!$D$60,Assumptions!$B$60) -> 0.95
A132: 39207 | B132: WAPATO | C132: =IFERROR(VLOOKUP(A132,'[2]Allocations 2025-26'!$B$9:$U$328,20,FALSE),0) -> 172436 | D132: =IFERROR(VLOOKUP(A132,'[3]State Reservations'!$C$4:$AE$318,29,FALSE),0) -> 1801222.692 | E132: =IFERROR(VLOOKUP(A132,[4]Sheet1!$A$2:$D$379,3,FALSE),0) -> 2868339.75 | F132: =IFERROR(VLOOKUP(A132,[4]Sheet1!$A$2:$D$379,4,FALSE),0) -> 1886600.85 | G132: =IFERROR(VLOOKUP(A132,'[5]2025-26 FINAL Y'!$B$19:$S$164,18,FALSE),0) -> 734675 | H132: 0.9015613025 | I132: =_xlfn.IFS(H132=0%,0,'other funds ftr 2026'!H132<Assumptions!$D$57,Assumptions!$B$57,'other funds ftr 2026'!H132<Assumptions!$D$58,Assumptions!$B$58,'other funds ftr 2026'!H132<=Assumptions!$D$59,Assumptions!$B$59,'other funds ftr 2026'!H132<=Assumptions!$D$60,Assumptions!$B$60) -> 1.1
A133: 13146 | B133: WARDEN | C133: =IFERROR(VLOOKUP(A133,'[2]Allocations 2025-26'!$B$9:$U$328,20,FALSE),0) -> 33675 | D133: =IFERROR(VLOOKUP(A133,'[3]State Reservations'!$C$4:$AE$318,29,FALSE),0) -> 421601.7861 | E133: =IFERROR(VLOOKUP(A133,[4]Sheet1!$A$2:$D$379,3,FALSE),0) -> 822589 | F133: =IFERROR(VLOOKUP(A133,[4]Sheet1!$A$2:$D$379,4,FALSE),0) -> 483232.31 | G133: =IFERROR(VLOOKUP(A133,'[5]2025-26 FINAL Y'!$B$19:$S$164,18,FALSE),0) -> 242954 | H133: 0.8787686206 | I133: =_xlfn.IFS(H133=0%,0,'other funds ftr 2026'!H133<Assumptions!$D$57,Assumptions!$B$57,'other funds ftr 2026'!H133<Assumptions!$D$58,Assumptions!$B$58,'other funds ftr 2026'!H133<=Assumptions!$D$59,Assumptions!$B$59,'other funds ftr 2026'!H133<=Assumptions!$D$60,Assumptions!$B$60) -> 1.1
A134: 34979 | B134: WASHINGTON MILITARY DEPARTMENT | C134: =IFERROR(VLOOKUP(A134,'[2]Allocations 2025-26'!$B$9:$U$328,20,FALSE),0) -> 0 | D134: =IFERROR(VLOOKUP(A134,'[3]State Reservations'!$C$4:$AE$318,29,FALSE),0) -> 0 | E134: =IFERROR(VLOOKUP(A134,[4]Sheet1!$A$2:$D$379,3,FALSE),0) -> 0 | F134: =IFERROR(VLOOKUP(A134,[4]Sheet1!$A$2:$D$379,4,FALSE),0) -> 0 | G134: =IFERROR(VLOOKUP(A134,'[5]2025-26 FINAL Y'!$B$19:$S$164,18,FALSE),0) -> 0 | H134: 0 | I134: =_xlfn.IFS(H134=0%,0,'other funds ftr 2026'!H134<Assumptions!$D$57,Assumptions!$B$57,'other funds ftr 2026'!H134<Assumptions!$D$58,Assumptions!$B$58,'other funds ftr 2026'!H134<=Assumptions!$D$59,Assumptions!$B$59,'other funds ftr 2026'!H134<=Assumptions!$D$60,Assumptions!$B$60) -> 0
A135: 09209 | B135: WATERVILLE | C135: =IFERROR(VLOOKUP(A135,'[2]Allocations 2025-26'!$B$9:$U$328,20,FALSE),0) -> 0 | D135: =IFERROR(VLOOKUP(A135,'[3]State Reservations'!$C$4:$AE$318,29,FALSE),0) -> 79750.64806 | E135: =IFERROR(VLOOKUP(A135,[4]Sheet1!$A$2:$D$379,3,FALSE),0) -> 186248.65 | F135: =IFERROR(VLOOKUP(A135,[4]Sheet1!$A$2:$D$379,4,FALSE),0) -> 43603.19 | G135: =IFERROR(VLOOKUP(A135,'[5]2025-26 FINAL Y'!$B$19:$S$164,18,FALSE),0) -> 0 | H135: 0 | I135: =_xlfn.IFS(H135=0%,0,'other funds ftr 2026'!H135<Assumptions!$D$57,Assumptions!$B$57,'other funds ftr 2026'!H135<Assumptions!$D$58,Assumptions!$B$58,'other funds ftr 2026'!H135<=Assumptions!$D$59,Assumptions!$B$59,'other funds ftr 2026'!H135<=Assumptions!$D$60,Assumptions!$B$60) -> 0
A136: 33049 | B136: WELLPINIT | C136: =IFERROR(VLOOKUP(A136,'[2]Allocations 2025-26'!$B$9:$U$328,20,FALSE),0) -> 11108 | D136: =IFERROR(VLOOKUP(A136,'[3]State Reservations'!$C$4:$AE$318,29,FALSE),0) -> 187498.3895 | E136: =IFERROR(VLOOKUP(A136,[4]Sheet1!$A$2:$D$379,3,FALSE),0) -> 325520.64 | F136: =IFERROR(VLOOKUP(A136,[4]Sheet1!$A$2:$D$379,4,FALSE),0) -> 0 | G136: =IFERROR(VLOOKUP(A136,'[5]2025-26 FINAL Y'!$B$19:$S$164,18,FALSE),0) -> 0 | H136: 0 | I136: =_xlfn.IFS(H136=0%,0,'other funds ftr 2026'!H136<Assumptions!$D$57,Assumptions!$B$57,'other funds ftr 2026'!H136<Assumptions!$D$58,Assumptions!$B$58,'other funds ftr 2026'!H136<=Assumptions!$D$59,Assumptions!$B$59,'other funds ftr 2026'!H136<=Assumptions!$D$60,Assumptions!$B$60) -> 0
A137: 04246 | B137: WENATCHEE | C137: =IFERROR(VLOOKUP(A137,'[2]Allocations 2025-26'!$B$9:$U$328,20,FALSE),0) -> 201795 | D137: =IFERROR(VLOOKUP(A137,'[3]State Reservations'!$C$4:$AE$318,29,FALSE),0) -> 2082177.218 | E137: =IFERROR(VLOOKUP(A137,[4]Sheet1!$A$2:$D$379,3,FALSE),0) -> 4744200.79 | F137: =IFERROR(VLOOKUP(A137,[4]Sheet1!$A$2:$D$379,4,FALSE),0) -> 2791911.97 | G137: =IFERROR(VLOOKUP(A137,'[5]2025-26 FINAL Y'!$B$19:$S$164,18,FALSE),0) -> 1107178 | H137: 0.8986774637 | I137: =_xlfn.IFS(H137=0%,0,'other funds ftr 2026'!H137<Assumptions!$D$57,Assumptions!$B$57,'other funds ftr 2026'!H137<Assumptions!$D$58,Assumptions!$B$58,'other funds ftr 2026'!H137<=Assumptions!$D$59,Assumptions!$B$59,'other funds ftr 2026'!H137<=Assumptions!$D$60,Assumptions!$B$60) -> 1.1
A138: 39208 | B138: WEST VALLEY (YAKIMA) | C138: =IFERROR(VLOOKUP(A138,'[2]Allocations 2025-26'!$B$9:$U$328,20,FALSE),0) -> 63583 | D138: =IFERROR(VLOOKUP(A138,'[3]State Reservations'!$C$4:$AE$318,29,FALSE),0) -> 1242731.197 | E138: =IFERROR(VLOOKUP(A138,[4]Sheet1!$A$2:$D$379,3,FALSE),0) -> 2842143.37 | F138: =IFERROR(VLOOKUP(A138,[4]Sheet1!$A$2:$D$379,4,FALSE),0) -> 963303.38 | G138: =IFERROR(VLOOKUP(A138,'[5]2025-26 FINAL Y'!$B$19:$S$164,18,FALSE),0) -> 162040 | H138: 0.9692745324 | I138: =_xlfn.IFS(H138=0%,0,'other funds ftr 2026'!H138<Assumptions!$D$57,Assumptions!$B$57,'other funds ftr 2026'!H138<Assumptions!$D$58,Assumptions!$B$58,'other funds ftr 2026'!H138<=Assumptions!$D$59,Assumptions!$B$59,'other funds ftr 2026'!H138<=Assumptions!$D$60,Assumptions!$B$60) -> 1
A139: 21303 | B139: WHITE PASS | C139: =IFERROR(VLOOKUP(A139,'[2]Allocations 2025-26'!$B$9:$U$328,20,FALSE),0) -> 0 | D139: =IFERROR(VLOOKUP(A139,'[3]State Reservations'!$C$4:$AE$318,29,FALSE),0) -> 211073.8415 | E139: =IFERROR(VLOOKUP(A139,[4]Sheet1!$A$2:$D$379,3,FALSE),0) -> 284844.37 | F139: =IFERROR(VLOOKUP(A139,[4]Sheet1!$A$2:$D$379,4,FALSE),0) -> 0 | G139: =IFERROR(VLOOKUP(A139,'[5]2025-26 FINAL Y'!$B$19:$S$164,18,FALSE),0) -> 0 | H139: 0 | I139: =_xlfn.IFS(H139=0%,0,'other funds ftr 2026'!H139<Assumptions!$D$57,Assumptions!$B$57,'other funds ftr 2026'!H139<Assumptions!$D$58,Assumptions!$B$58,'other funds ftr 2026'!H139<=Assumptions!$D$59,Assumptions!$B$59,'other funds ftr 2026'!H139<=Assumptions!$D$60,Assumptions!$B$60) -> 0
A140: 20405 | B140: WHITE SALMON VALLEY | C140: =IFERROR(VLOOKUP(A140,'[2]Allocations 2025-26'!$B$9:$U$328,20,FALSE),0) -> 20732 | D140: =IFERROR(VLOOKUP(A140,'[3]State Reservations'!$C$4:$AE$318,29,FALSE),0) -> 252362.9801 | E140: =IFERROR(VLOOKUP(A140,[4]Sheet1!$A$2:$D$379,3,FALSE),0) -> 366658.5 | F140: =IFERROR(VLOOKUP(A140,[4]Sheet1!$A$2:$D$379,4,FALSE),0) -> 289459.24 | G140: =IFERROR(VLOOKUP(A140,'[5]2025-26 FINAL Y'!$B$19:$S$164,18,FALSE),0) -> 6246 | H140: 0.9933230619 | I140: =_xlfn.IFS(H140=0%,0,'other funds ftr 2026'!H140<Assumptions!$D$57,Assumptions!$B$57,'other funds ftr 2026'!H140<Assumptions!$D$58,Assumptions!$B$58,'other funds ftr 2026'!H140<=Assumptions!$D$59,Assumptions!$B$59,'other funds ftr 2026'!H140<=Assumptions!$D$60,Assumptions!$B$60) -> 0.95
A141: 21232 | B141: WINLOCK | C141: =IFERROR(VLOOKUP(A141,'[2]Allocations 2025-26'!$B$9:$U$328,20,FALSE),0) -> 4821 | D141: =IFERROR(VLOOKUP(A141,'[3]State Reservations'!$C$4:$AE$318,29,FALSE),0) -> 202871.7558 | E141: =IFERROR(VLOOKUP(A141,[4]Sheet1!$A$2:$D$379,3,FALSE),0) -> 649604.33 | F141: =IFERROR(VLOOKUP(A141,[4]Sheet1!$A$2:$D$379,4,FALSE),0) -> 80556.89 | G141: =IFERROR(VLOOKUP(A141,'[5]2025-26 FINAL Y'!$B$19:$S$164,18,FALSE),0) -> 64974 | H141: 0.9352092267 | I141: =_xlfn.IFS(H141=0%,0,'other funds ftr 2026'!H141<Assumptions!$D$57,Assumptions!$B$57,'other funds ftr 2026'!H141<Assumptions!$D$58,Assumptions!$B$58,'other funds ftr 2026'!H141<=Assumptions!$D$59,Assumptions!$B$59,'other funds ftr 2026'!H141<=Assumptions!$D$60,Assumptions!$B$60) -> 1.05
A142: 20094 | B142: WISHRAM | C142: =IFERROR(VLOOKUP(A142,'[2]Allocations 2025-26'!$B$9:$U$328,20,FALSE),0) -> 0 | D142: =IFERROR(VLOOKUP(A142,'[3]State Reservations'!$C$4:$AE$318,29,FALSE),0) -> 100265.2327 | E142: =IFERROR(VLOOKUP(A142,[4]Sheet1!$A$2:$D$379,3,FALSE),0) -> 89974.11 | F142: =IFERROR(VLOOKUP(A142,[4]Sheet1!$A$2:$D$379,4,FALSE),0) -> 0 | G142: =IFERROR(VLOOKUP(A142,'[5]2025-26 FINAL Y'!$B$19:$S$164,18,FALSE),0) -> 46461 | H142: 0.8037138457 | I142: =_xlfn.IFS(H142=0%,0,'other funds ftr 2026'!H142<Assumptions!$D$57,Assumptions!$B$57,'other funds ftr 2026'!H142<Assumptions!$D$58,Assumptions!$B$58,'other funds ftr 2026'!H142<=Assumptions!$D$59,Assumptions!$B$59,'other funds ftr 2026'!H142<=Assumptions!$D$60,Assumptions!$B$60) -> 1.1
A143: 08404 | B143: WOODLAND | C143: =IFERROR(VLOOKUP(A143,'[2]Allocations 2025-26'!$B$9:$U$328,20,FALSE),0) -> 24500 | D143: =IFERROR(VLOOKUP(A143,'[3]State Reservations'!$C$4:$AE$318,29,FALSE),0) -> 441383.3138 | E143: =IFERROR(VLOOKUP(A143,[4]Sheet1!$A$2:$D$379,3,FALSE),0) -> 902946.74 | F143: =IFERROR(VLOOKUP(A143,[4]Sheet1!$A$2:$D$379,4,FALSE),0) -> 335744.52 | G143: =IFERROR(VLOOKUP(A143,'[5]2025-26 FINAL Y'!$B$19:$S$164,18,FALSE),0) -> 18740 | H143: 0.989125607 | I143: =_xlfn.IFS(H143=0%,0,'other funds ftr 2026'!H143<Assumptions!$D$57,Assumptions!$B$57,'other funds ftr 2026'!H143<Assumptions!$D$58,Assumptions!$B$58,'other funds ftr 2026'!H143<=Assumptions!$D$59,Assumptions!$B$59,'other funds ftr 2026'!H143<=Assumptions!$D$60,Assumptions!$B$60) -> 0.95
A144: 39901 | B144: YAKAMA NATION TRIBAL COMPACT | C144: =IFERROR(VLOOKUP(A144,'[2]Allocations 2025-26'!$B$9:$U$328,20,FALSE),0) -> 0 | D144: =IFERROR(VLOOKUP(A144,'[3]State Reservations'!$C$4:$AE$318,29,FALSE),0) -> 0 | E144: =IFERROR(VLOOKUP(A144,[4]Sheet1!$A$2:$D$379,3,FALSE),0) -> 0 | F144: =IFERROR(VLOOKUP(A144,[4]Sheet1!$A$2:$D$379,4,FALSE),0) -> 0 | G144: =IFERROR(VLOOKUP(A144,'[5]2025-26 FINAL Y'!$B$19:$S$164,18,FALSE),0) -> 0 | H144: 0 | I144: =_xlfn.IFS(H144=0%,0,'other funds ftr 2026'!H144<Assumptions!$D$57,Assumptions!$B$57,'other funds ftr 2026'!H144<Assumptions!$D$58,Assumptions!$B$58,'other funds ftr 2026'!H144<=Assumptions!$D$59,Assumptions!$B$59,'other funds ftr 2026'!H144<=Assumptions!$D$60,Assumptions!$B$60) -> 0
A145: 39007 | B145: YAKIMA | C145: =IFERROR(VLOOKUP(A145,'[2]Allocations 2025-26'!$B$9:$U$328,20,FALSE),0) -> 612375 | D145: =IFERROR(VLOOKUP(A145,'[3]State Reservations'!$C$4:$AE$318,29,FALSE),0) -> 10905179 | E145: =IFERROR(VLOOKUP(A145,[4]Sheet1!$A$2:$D$379,3,FALSE),0) -> 14036405.7 | F145: =IFERROR(VLOOKUP(A145,[4]Sheet1!$A$2:$D$379,4,FALSE),0) -> 8484743.87 | G145: =IFERROR(VLOOKUP(A145,'[5]2025-26 FINAL Y'!$B$19:$S$164,18,FALSE),0) -> 1597148 | H145: 0.9551814274 | I145: =_xlfn.IFS(H145=0%,0,'other funds ftr 2026'!H145<Assumptions!$D$57,Assumptions!$B$57,'other funds ftr 2026'!H145<Assumptions!$D$58,Assumptions!$B$58,'other funds ftr 2026'!H145<=Assumptions!$D$59,Assumptions!$B$59,'other funds ftr 2026'!H145<=Assumptions!$D$60,Assumptions!$B$60) -> 1
A146: 34002 | B146: YELM | C146: =IFERROR(VLOOKUP(A146,'[2]Allocations 2025-26'!$B$9:$U$328,20,FALSE),0) -> 27663 | D146: =IFERROR(VLOOKUP(A146,'[3]State Reservations'!$C$4:$AE$318,29,FALSE),0) -> 993166.6576 | E146: =IFERROR(VLOOKUP(A146,[4]Sheet1!$A$2:$D$379,3,FALSE),0) -> 2131789.19 | F146: =IFERROR(VLOOKUP(A146,[4]Sheet1!$A$2:$D$379,4,FALSE),0) -> 402596.22 | G146: =IFERROR(VLOOKUP(A146,'[5]2025-26 FINAL Y'!$B$19:$S$164,18,FALSE),0) -> 0 | H146: 0 | I146: =_xlfn.IFS(H146=0%,0,'other funds ftr 2026'!H146<Assumptions!$D$57,Assumptions!$B$57,'other funds ftr 2026'!H146<Assumptions!$D$58,Assumptions!$B$58,'other funds ftr 2026'!H146<=Assumptions!$D$59,Assumptions!$B$59,'other funds ftr 2026'!H146<=Assumptions!$D$60,Assumptions!$B$60) -> 0
A147: 39205 | B147: ZILLAH | C147: =IFERROR(VLOOKUP(A147,'[2]Allocations 2025-26'!$B$9:$U$328,20,FALSE),0) -> 19854 | D147: =IFERROR(VLOOKUP(A147,'[3]State Reservations'!$C$4:$AE$318,29,FALSE),0) -> 288582.8389 | E147: =IFERROR(VLOOKUP(A147,[4]Sheet1!$A$2:$D$379,3,FALSE),0) -> 957329.12 | F147: =IFERROR(VLOOKUP(A147,[4]Sheet1!$A$2:$D$379,4,FALSE),0) -> 293340.44 | G147: =IFERROR(VLOOKUP(A147,'[5]2025-26 FINAL Y'!$B$19:$S$164,18,FALSE),0) -> 69748 | H147: 0.9571797209 | I147: =_xlfn.IFS(H147=0%,0,'other funds ftr 2026'!H147<Assumptions!$D$57,Assumptions!$B$57,'other funds ftr 2026'!H147<Assumptions!$D$58,Assumptions!$B$58,'other funds ftr 2026'!H147<=Assumptions!$D$59,Assumptions!$B$59,'other funds ftr 2026'!H147<=Assumptions!$D$60,Assumptions!$B$60) -> 1

Sheet CCDDD (hidden)
A1: CO_DIST_NUM | B1: DIST_TITLE | C1: =A1 -> CO_DIST_NUM
A2: 14005 | B2: ABERDEEN | C2: =A2 -> 14005
A3: 29103 | B3: ANACORTES | C3: 29103
A4: 31016 | B4: ARLINGTON | C4: 31016
A5: 17408 | B5: AUBURN | C5: 17408
A6: 06119 | B6: BATTLE GROUND | C6: 06119
A7: 37501 | B7: BELLINGHAM | C7: 37501
A8: 27403 | B8: BETHEL | C8: 27403
A9: 18100 | B9: BREMERTON | C9: 18100
A10: 24111 | B10: BREWSTER | C10: 24111
A11: 09075 | B11: BRIDGEPORT | C11: 09075
A12: 29100 | B12: BURLINGTON-EDISON | C12: 29100
A13: 04228 | B13: CASCADE | C13: 04228
A14: 04222 | B14: CASHMERE | C14: 04222
A15: 18401 | B15: CENTRAL KITSAP | C15: 18401
A16: 32356 | B16: CENTRAL VALLEY | C16: 32356
A17: 21401 | B17: CENTRALIA | C17: 21401
A18: 21302 | B18: CHEHALIS | C18: 21302
A19: 32360 | B19: CHENEY | C19: 32360
A20: 27901 | B20: CHIEF LESCHI TRIBAL COMPACT | C20: 27901
A21: 36250 | B21: COLLEGE PLACE | C21: 36250
A22: 36400 | B22: COLUMBIA (WALLA WALLA) | C22: 36400
A23: 39090 | B23: EAST VALLEY (YAKIMA) | C23: 39090
A24: 09206 | B24: EASTMONT | C24: 09206
A25: 31015 | B25: EDMONDS | C25: 31015
A26: 19401 | B26: ELLENSBURG | C26: 19401
A27: 14068 | B27: ELMA | C27: 14068
A28: 04127 | B28: ENTIAT | C28: 04127
A29: 13165 | B29: EPHRATA | C29: 13165
A30: 31002 | B30: EVERETT | C30: 31002
A31: 06114 | B31: EVERGREEN (CLARK) | C31: 06114
A32: 17210 | B32: FEDERAL WAY | C32: 17210
A33: 37502 | B33: FERNDALE | C33: 37502
A34: 03053 | B34: FINLEY | C34: 03053
A35: 27402 | B35: FRANKLIN PIERCE | C35: 27402
A36: 20404 | B36: GOLDENDALE | C36: 20404
A37: 13301 | B37: GRAND COULEE DAM | C37: 13301
A38: 39200 | B38: GRANDVIEW | C38: 39200
A39: 39204 | B39: GRANGER | C39: 39204
A40: 39203 | B40: HIGHLAND | C40: 39203
A41: 23404 | B41: HOOD CANAL | C41: 23404
A42: 14028 | B42: HOQUIAM | C42: 14028
A43: 10070 | B43: INCHELIUM | C43: 10070
A44: 08458 | B44: KELSO | C44: 08458
A45: 03017 | B45: KENNEWICK | C45: 03017
A46: 17415 | B46: KENT | C46: 17415
A47: 03052 | B47: KIONA-BENTON CITY | C47: 03052
A48: 19403 | B48: KITTITAS | C48: 19403
A49: 29311 | B49: LA CONNER | C49: 29311
A50: 04129 | B50: LAKE CHELAN | C50: 04129
A51: 31004 | B51: LAKE STEVENS | C51: 31004
A52: 31306 | B52: LAKEWOOD | C52: 31306
A53: 01158 | B53: LIND | C53: 01158
A54: 08122 | B54: LONGVIEW | C54: 08122
A55: 20406 | B55: LYLE | C55: 20406
A56: 37504 | B56: LYNDEN | C56: 37504
A57: 39120 | B57: MABTON | C57: 39120
A58: 04019 | B58: MANSON | C58: 04019
A59: 33207 | B59: MARY WALKER | C59: 33207
A60: 31025 | B60: MARYSVILLE | C60: 31025
A61: 37505 | B61: MERIDIAN | C61: 37505
A62: 31103 | B62: MONROE | C62: 31103
A63: 14066 | B63: MONTESANO | C63: 14066
A64: 13161 | B64: MOSES LAKE | C64: 13161
A65: 21206 | B65: MOSSYROCK | C65: 21206
A66: 39209 | B66: MOUNT ADAMS | C66: =A66 -> 39209
A67: 37507 | B67: MOUNT BAKER | C67: 37507
A68: 29320 | B68: MOUNT VERNON | C68: 29320
A69: 31006 | B69: MUKILTEO | C69: 31006
A70: 39003 | B70: NACHES VALLEY | C70: 39003
A71: 25155 | B71: NASELLE-GRAYS RIVER VALLEY | C71: 25155
A72: 24014 | B72: NESPELEM | C72: 24014
A73: 37506 | B73: NOOKSACK VALLEY | C73: 37506
A74: 14064 | B74: NORTH BEACH | C74: 14064
A75: 11051 | B75: NORTH FRANKLIN | C75: 11051
A76: 18400 | B76: NORTH KITSAP | C76: 18400
A77: 34003 | B77: NORTH THURSTON PUBLIC SCHOOLS | C77: 34003
A78: 15201 | B78: OAK HARBOR | C78: 15201
A79: 25101 | B79: OCEAN BEACH | C79: 25101
A80: 14172 | B80: OCOSTA | C80: 14172
A81: 24105 | B81: OKANOGAN | C81: 24105
A82: 34111 | B82: OLYMPIA | C82: 34111
A83: 24019 | B83: OMAK | C83: 24019
A84: 09013 | B84: ORONDO | C84: 09013
A85: 24410 | B85: OROVILLE | C85: 24410
A86: 01147 | B86: OTHELLO | C86: 01147
A87: 11001 | B87: PASCO | C87: 11001
A88: 24122 | B88: PATEROS | C88: 24122
A89: 03050 | B89: PATERSON | C89: 03050
A90: 04901 | B90: PINNACLES PREP | C90: 04901
A91: 36402 | B91: PRESCOTT | C91: 36402
A92: 03116 | B92: PROSSER | C92: 03116
A93: 27003 | B93: PUYALLUP | C93: 27003
A94: 05402 | B94: QUILLAYUTE VALLEY | C94: 05402
A95: 13144 | B95: QUINCY | C95: 13144
A96: 22009 | B96: REARDAN-EDWALL | C96: 22009
A97: 17403 | B97: RENTON | C97: 17403
A98: 03400 | B98: RICHLAND | C98: 03400
A99: 06122 | B99: RIDGEFIELD | C99: 06122
A100: 17407 | B100: RIVERVIEW | C100: 17407
A101: 34401 | B101: ROCHESTER | C101: 34401
A102: 13160 | B102: ROYAL | C102: 13160
A103: 17001 | B103: SEATTLE PUBLIC SCHOOLS | C103: 17001
A104: 29101 | B104: SEDRO-WOOLLEY | C104: 29101
A105: 39119 | B105: SELAH | C105: 39119
A106: 23309 | B106: SHELTON | C106: 23309
A107: 31201 | B107: SNOHOMISH | C107: 31201
A108: 13156 | B108: SOAP LAKE | C108: 13156
A109: 32081 | B109: SPOKANE | C109: 32081
A110: 31401 | B110: STANWOOD-CAMANO | C110: 31401
A111: 39201 | B111: SUNNYSIDE | C111: 39201
A112: 27010 | B112: TACOMA | C112: 27010
A113: 14077 | B113: TAHOLAH | C113: 14077
A114: 24404 | B114: TONASKET | C114: 24404
A115: 39202 | B115: TOPPENISH | C115: 39202
A116: 39002 | B116: UNION GAP | C116: 39002
A117: 06037 | B117: VANCOUVER | C117: 06037
A118: 13073 | B118: WAHLUKE | C118: 13073
A119: 36140 | B119: WALLA WALLA PUBLIC SCHOOLS | C119: 36140
A120: 39207 | B120: WAPATO | C120: 39207
A121: 13146 | B121: WARDEN | C121: 13146
A122: 09209 | B122: WATERVILLE | C122: 09209
A123: 33049 | B123: WELLPINIT | C123: 33049
A124: 04246 | B124: WENATCHEE | C124: 04246
A125: 39208 | B125: WEST VALLEY (YAKIMA) | C125: 39208
A126: 20405 | B126: WHITE SALMON VALLEY | C126: 20405
A127: 21232 | B127: WINLOCK | C127: 21232
A128: 20094 | B128: WISHRAM | C128: 20094
A129: 08404 | B129: WOODLAND | C129: 08404
A130: 39901 | B130: YAKAMA NATION TRIBAL COMPACT | C130: =A130 -> 39901
A131: 39007 | B131: YAKIMA | C131: 39007
A132: 34002 | B132: YELM | C132: 34002
A133: 39205 | B133: ZILLAH | C133: 39205

Sheet 2025-26 Final (hidden)
J1: From Assumptions Page:
D2: Constant Dollar Multipliers - Do Not Change Here | J2: Target Amounts | O2: =[5]Assumptions!C24 -> 21400639
D3: 0 | F3: 2.036969198e+66 | G3: 469.6805243 | H3: Use CTRL K | J3: Actual Amounts | O3: =O18 -> 21400639
J4: Difference | O4: =O3-O2 -> 0
J6: 22016123
H7: Put total here | J7: =[5]Assumptions!C24 -> 21400639
J10: Go to H9 & Control K to set dollar amount
E14: Migrant Students | V14: Accepting Funding? | X14: HOLD HARMLESS
D15: =G3 -> 469.6805243 | E15: K-12 | G15: Needs Support | I15: Priority Interuption
C16: CCDDD | D16: District | E16: Ave. number | F16: Regular Dollars | G16: Ave. number | H16: Regular Dollars | I16: Priority Number | J16: Priority Dollars | K16: Subtotal | L16: Other Funds Factor | M16: Subtotal 2 | N16: Add'l Rural Factor | O16: Total Allocated Amount | Q16: MOE | R16: MOE Red. | S16: Subtotal After MOE | V16: Y for yes, N for no (reallocates money) | X16: Override funding? Y for yes, otherwise blank. | Y16: Health Support Grant | Z16: Behavioral Health/OSY Supports | AA16: Total
E17: 10 | F17: =F18/E18 -> 469.680641 | G17: 0.25 | H17: =H18/G18 -> 119.9871543 | I17: 1 | J17: =J18/I18 -> 478.1103633 | N17: 0.1 | O17: 124
A18: 0 | C18: 99999 | D18: State Total | E18: =SUMIF(E19:E164,">-10") -> 30389 | F18: =SUM(F19:F164) -> 14273125 | G18: =SUMIF(G19:G164,">=10") -> 9653 | H18: =SUM(H19:H164) -> 1158236 | I18: =SUMIF(I19:I164,">=10") -> 11589 | J18: =SUM(J19:J164) -> 5540821 | K18: =SUM(K19:K164) -> 20972182 | M18: =SUM(M19:M164) -> 22080594 | O18: =SUM(O19:O164) -> 21400639 | R18: =SUM(R19:R152) -> 0 | S18: =SUM(S19:S164) -> 21400639 | T18: Previous Year Final Allocations | U18: Allocation Difference | W18: Consortia | Y18: =SUM(Y19:Y164) -> 97750 | Z18: =SUM(Z19:Z164) -> 305760 | AA18: =SUM(AA19:AA164) -> 21437786
A19: 1 | B19: 14005 | D19: ABERDEEN | E19: =IFERROR(VLOOKUP(B19,[5]Enrollment!$A$2:$G$147,5,0),0) -> 167 | F19: =IF(E19>=10,ROUND(E19*$G$3,0),0) -> 78437 | G19: =IFERROR(VLOOKUP(B19,[5]Enrollment!$A$2:$G$147,6,0),0) -> 30 | H19: =IF(E19>=$E$17,ROUND(G19*$G$3*$G$17,0),0) -> 3523 | I19: =IFERROR(VLOOKUP(B19,[5]Enrollment!$A$2:$G$147,7,0),0) -> 82 | J19: =IF(E19>=$E$17,ROUND(I19*$G$3*$I$17,0),0) -> 38514 | K19: =+F19+H19+J19 -> 120474 | L19: =IF(E19>$E$17,_xlfn.IFNA(VLOOKUP(B19,'[5]other funds ftr 2025'!A:I,9,FALSE),0),1) -> 0.95 | M19: =IF(L19=0,K19,ROUND(K19*L19,0)) -> 114450 | N19: =1+IF(ISNA(VLOOKUP(B19,'[5]Rural and Low Income 25-26'!$A:$B,2,FALSE)),0,$N$17) -> 1 | O19: =IF(V19="y",ROUND(M19*N19,0),0) -> 114450 | R19: =ROUND(IF(Q19>0,-(0.9-Q19)*O19,0),0) -> 0 | S19: =O19+R19 -> 114450 | T19: =IFERROR(VLOOKUP(B19,'[5]2024-25 Final'!$B$19:$AA$164,26,0),0) -> 95909 | U19: =S19-T19 -> 18541 | V19: y | Y19: =IF(V19="Y",IF(E19<=99,750,IF(AND(E19>=100,E19<=399),1250,2000)),0) -> 1250 | AA19: =IF(W19=1, 0, Y19+S19+Z19) -> 115700
A20: 2 | B20: 29103 | D20: ANACORTES | E20: =IFERROR(VLOOKUP(B20,[5]Enrollment!$A$2:$G$147,5,0),0) -> 12 | F20: 5636 | G20: =IFERROR(VLOOKUP(B20,[5]Enrollment!$A$2:$G$147,6,0),0) -> 5 | H20: 587 | I20: =IFERROR(VLOOKUP(B20,[5]Enrollment!$A$2:$G$147,7,0),0) -> 1 | J20: 470 | K20: 6693 | L20: =IF(E20>$E$17,_xlfn.IFNA(VLOOKUP(B20,'[5]other funds ftr 2025'!A:I,9,FALSE),0),1) -> 0 | M20: 6693 | N20: =1+IF(ISNA(VLOOKUP(B20,'[5]Rural and Low Income 25-26'!$A:$B,2,FALSE)),0,$N$17) -> 1 | O20: 0 | R20: 0 | S20: 0 | T20: =IFERROR(VLOOKUP(B20,'[5]2024-25 Final'!$B$19:$AA$164,26,0),0) -> 0 | U20: 0 | V20: n | Y20: 0 | AA20: 0
A21: 3 | B21: 31016 | D21: ARLINGTON | E21: =IFERROR(VLOOKUP(B21,[5]Enrollment!$A$2:$G$147,5,0),0) -> 44 | F21: 20666 | G21: =IFERROR(VLOOKUP(B21,[5]Enrollment!$A$2:$G$147,6,0),0) -> 16 | H21: 1879 | I21: =IFERROR(VLOOKUP(B21,[5]Enrollment!$A$2:$G$147,7,0),0) -> 20 | J21: 9394 | K21: 31939 | L21: =IF(E21>$E$17,_xlfn.IFNA(VLOOKUP(B21,'[5]other funds ftr 2025'!A:I,9,FALSE),0),1) -> 0 | M21: 31939 | N21: =1+IF(ISNA(VLOOKUP(B21,'[5]Rural and Low Income 25-26'!$A:$B,2,FALSE)),0,$N$17) -> 1 | O21: 0 | R21: 0 | S21: 0 | T21: =IFERROR(VLOOKUP(B21,'[5]2024-25 Final'!$B$19:$AA$164,26,0),0) -> 0 | U21: 0 | V21: n | Y21: 0 | AA21: 0
A22: 4 | B22: 17408 | D22: AUBURN | E22: =IFERROR(VLOOKUP(B22,[5]Enrollment!$A$2:$G$147,5,0),0) -> 27 | F22: 12681 | G22: =IFERROR(VLOOKUP(B22,[5]Enrollment!$A$2:$G$147,6,0),0) -> 17 | H22: 1996 | I22: =IFERROR(VLOOKUP(B22,[5]Enrollment!$A$2:$G$147,7,0),0) -> 7 | J22: 3288 | K22: 17965 | L22: =IF(E22>$E$17,_xlfn.IFNA(VLOOKUP(B22,'[5]other funds ftr 2025'!A:I,9,FALSE),0),1) -> 0 | M22: 17965 | N22: =1+IF(ISNA(VLOOKUP(B22,'[5]Rural and Low Income 25-26'!$A:$B,2,FALSE)),0,$N$17) -> 1 | O22: 0 | R22: 0 | S22: 0 | T22: =IFERROR(VLOOKUP(B22,'[5]2024-25 Final'!$B$19:$AA$164,26,0),0) -> 0 | U22: 0 | V22: n | Y22: 0 | AA22: 0
A23: 5 | B23: 06119 | D23: BATTLE GROUND | E23: =IFERROR(VLOOKUP(B23,[5]Enrollment!$A$2:$G$147,5,0),0) -> 26 | F23: 12212 | G23: =IFERROR(VLOOKUP(B23,[5]Enrollment!$A$2:$G$147,6,0),0) -> 13 | H23: 1526 | I23: =IFERROR(VLOOKUP(B23,[5]Enrollment!$A$2:$G$147,7,0),0) -> 2 | J23: 939 | K23: 14677 | L23: =IF(E23>$E$17,_xlfn.IFNA(VLOOKUP(B23,'[5]other funds ftr 2025'!A:I,9,FALSE),0),1) -> 0 | M23: 14677 | N23: =1+IF(ISNA(VLOOKUP(B23,'[5]Rural and Low Income 25-26'!$A:$B,2,FALSE)),0,$N$17) -> 1 | O23: 0 | R23: 0 | S23: 0 | T23: =IFERROR(VLOOKUP(B23,'[5]2024-25 Final'!$B$19:$AA$164,26,0),0) -> 0 | U23: 0 | V23: n | Y23: 0 | AA23: 0
A24: 6 | B24: 37501 | D24: BELLINGHAM | E24: =IFERROR(VLOOKUP(B24,[5]Enrollment!$A$2:$G$147,5,0),0) -> 94 | F24: 44150 | G24: =IFERROR(VLOOKUP(B24,[5]Enrollment!$A$2:$G$147,6,0),0) -> 34 | H24: 3992 | I24: =IFERROR(VLOOKUP(B24,[5]Enrollment!$A$2:$G$147,7,0),0) -> 28 | J24: 13151 | K24: 61293 | L24: =IF(E24>$E$17,_xlfn.IFNA(VLOOKUP(B24,'[5]other funds ftr 2025'!A:I,9,FALSE),0),1) -> 0 | M24: 61293 | N24: =1+IF(ISNA(VLOOKUP(B24,'[5]Rural and Low Income 25-26'!$A:$B,2,FALSE)),0,$N$17) -> 1 | O24: 0 | R24: 0 | S24: 0 | T24: =IFERROR(VLOOKUP(B24,'[5]2024-25 Final'!$B$19:$AA$164,26,0),0) -> 0 | U24: 0 | V24: n | Y24: 0 | AA24: 0
A25: 7 | B25: 27403 | D25: BETHEL | E25: =IFERROR(VLOOKUP(B25,[5]Enrollment!$A$2:$G$147,5,0),0) -> 13 | F25: 6106 | G25: =IFERROR(VLOOKUP(B25,[5]Enrollment!$A$2:$G$147,6,0),0) -> 8 | H25: 939 | I25: =IFERROR(VLOOKUP(B25,[5]Enrollment!$A$2:$G$147,7,0),0) -> 1 | J25: 470 | K25: 7515 | L25: =IF(E25>$E$17,_xlfn.IFNA(VLOOKUP(B25,'[5]other funds ftr 2025'!A:I,9,FALSE),0),1) -> 0 | M25: 7515 | N25: =1+IF(ISNA(VLOOKUP(B25,'[5]Rural and Low Income 25-26'!$A:$B,2,FALSE)),0,$N$17) -> 1 | O25: 0 | R25: 0 | S25: 0 | T25: =IFERROR(VLOOKUP(B25,'[5]2024-25 Final'!$B$19:$AA$164,26,0),0) -> 0 | U25: 0 | V25: n | Y25: 0 | AA25: 0
A26: 8 | B26: 18100 | D26: BREMERTON | E26: =IFERROR(VLOOKUP(B26,[5]Enrollment!$A$2:$G$147,5,0),0) -> 57 | F26: 26772 | G26: =IFERROR(VLOOKUP(B26,[5]Enrollment!$A$2:$G$147,6,0),0) -> 22 | H26: 2583 | I26: =IFERROR(VLOOKUP(B26,[5]Enrollment!$A$2:$G$147,7,0),0) -> 10 | J26: 4697 | K26: 34052 | L26: =IF(E26>$E$17,_xlfn.IFNA(VLOOKUP(B26,'[5]other funds ftr 2025'!A:I,9,FALSE),0),1) -> 0.95 | M26: 32349 | N26: =1+IF(ISNA(VLOOKUP(B26,'[5]Rural and Low Income 25-26'!$A:$B,2,FALSE)),0,$N$17) -> 1 | O26: 32349 | R26: 0 | S26: 32349 | T26: =IFERROR(VLOOKUP(B26,'[5]2024-25 Final'!$B$19:$AA$164,26,0),0) -> 41957 | U26: -9608 | V26: y | Y26: 750 | AA26: 33099
A27: 9 | B27: 24111 | D27: BREWSTER | E27: =IFERROR(VLOOKUP(B27,[5]Enrollment!$A$2:$G$147,5,0),0) -> 217 | F27: 101921 | G27: =IFERROR(VLOOKUP(B27,[5]Enrollment!$A$2:$G$147,6,0),0) -> 49 | H27: 5754 | I27: =IFERROR(VLOOKUP(B27,[5]Enrollment!$A$2:$G$147,7,0),0) -> 88 | J27: 41332 | K27: 149007 | L27: =IF(E27>$E$17,_xlfn.IFNA(VLOOKUP(B27,'[5]other funds ftr 2025'!A:I,9,FALSE),0),1) -> 1.05 | M27: 156457 | N27: =1+IF(ISNA(VLOOKUP(B27,'[5]Rural and Low Income 25-26'!$A:$B,2,FALSE)),0,$N$17) -> 1.1 | O27: 172103 | R27: 0 | S27: 172103 | T27: =IFERROR(VLOOKUP(B27,'[5]2024-25 Final'!$B$19:$AA$164,26,0),0) -> 195831 | U27: -23728 | V27: y | Y27: 1250 | AA27: 173353
A28: 10 | B28: 09075 | D28: BRIDGEPORT | E28: =IFERROR(VLOOKUP(B28,[5]Enrollment!$A$2:$G$147,5,0),0) -> 164 | F28: 77028 | G28: =IFERROR(VLOOKUP(B28,[5]Enrollment!$A$2:$G$147,6,0),0) -> 42 | H28: 4932 | I28: =IFERROR(VLOOKUP(B28,[5]Enrollment!$A$2:$G$147,7,0),0) -> 54 | J28: 25363 | K28: 107323 | L28: =IF(E28>$E$17,_xlfn.IFNA(VLOOKUP(B28,'[5]other funds ftr 2025'!A:I,9,FALSE),0),1) -> 1 | M28: 107323 | N28: =1+IF(ISNA(VLOOKUP(B28,'[5]Rural and Low Income 25-26'!$A:$B,2,FALSE)),0,$N$17) -> 1.1 | O28: 118055 | R28: 0 | S28: 118055 | T28: =IFERROR(VLOOKUP(B28,'[5]2024-25 Final'!$B$19:$AA$164,26,0),0) -> 95088 | U28: 22967 | V28: y | Y28: 1250 | AA28: 119305
A29: 11 | B29: 29100 | D29: BURLINGTON-EDISON | E29: =IFERROR(VLOOKUP(B29,[5]Enrollment!$A$2:$G$147,5,0),0) -> 517 | F29: 242825 | G29: =IFERROR(VLOOKUP(B29,[5]Enrollment!$A$2:$G$147,6,0),0) -> 139 | H29: 16321 | I29: =IFERROR(VLOOKUP(B29,[5]Enrollment!$A$2:$G$147,7,0),0) -> 173 | J29: 81255 | K29: 340401 | L29: =IF(E29>$E$17,_xlfn.IFNA(VLOOKUP(B29,'[5]other funds ftr 2025'!A:I,9,FALSE),0),1) -> 1.05 | M29: 357421 | N29: =1+IF(ISNA(VLOOKUP(B29,'[5]Rural and Low Income 25-26'!$A:$B,2,FALSE)),0,$N$17) -> 1 | O29: 357421 | R29: 0 | S29: 357421 | T29: =IFERROR(VLOOKUP(B29,'[5]2024-25 Final'!$B$19:$AA$164,26,0),0) -> 387791 | U29: -30370 | V29: y | Y29: 2000 | AA29: 359421
A30: 12 | B30: 04228 | D30: CASCADE | E30: =IFERROR(VLOOKUP(B30,[5]Enrollment!$A$2:$G$147,5,0),0) -> 53 | F30: 24893 | G30: =IFERROR(VLOOKUP(B30,[5]Enrollment!$A$2:$G$147,6,0),0) -> 13 | H30: 1526 | I30: =IFERROR(VLOOKUP(B30,[5]Enrollment!$A$2:$G$147,7,0),0) -> 11 | J30: 5166 | K30: 31585 | L30: =IF(E30>$E$17,_xlfn.IFNA(VLOOKUP(B30,'[5]other funds ftr 2025'!A:I,9,FALSE),0),1) -> 1 | M30: 31585 | N30: =1+IF(ISNA(VLOOKUP(B30,'[5]Rural and Low Income 25-26'!$A:$B,2,FALSE)),0,$N$17) -> 1 | O30: 31585 | R30: 0 | S30: 31585 | T30: =IFERROR(VLOOKUP(B30,'[5]2024-25 Final'!$B$19:$AA$164,26,0),0) -> 30423 | U30: 1162 | V30: y | Y30: 750 | AA30: 32335
A31: 14 | B31: 04222 | D31: CASHMERE | E31: =IFERROR(VLOOKUP(B31,[5]Enrollment!$A$2:$G$147,5,0),0) -> 162 | F31: 76088 | G31: =IFERROR(VLOOKUP(B31,[5]Enrollment!$A$2:$G$147,6,0),0) -> 42 | H31: 4932 | I31: =IFERROR(VLOOKUP(B31,[5]Enrollment!$A$2:$G$147,7,0),0) -> 26 | J31: 12212 | K31: 93232 | L31: =IF(E31>$E$17,_xlfn.IFNA(VLOOKUP(B31,'[5]other funds ftr 2025'!A:I,9,FALSE),0),1) -> 1.1 | M31: 102555 | N31: =1+IF(ISNA(VLOOKUP(B31,'[5]Rural and Low Income 25-26'!$A:$B,2,FALSE)),0,$N$17) -> 1 | O31: 102555 | R31: 0 | S31: 102555 | T31: =IFERROR(VLOOKUP(B31,'[5]2024-25 Final'!$B$19:$AA$164,26,0),0) -> 149800 | U31: -47245 | V31: y | Y31: 1250 | AA31: 103805
A32: 13 | B32: 18401 | D32: CENTRAL KITSAP | E32: =IFERROR(VLOOKUP(B32,[5]Enrollment!$A$2:$G$147,5,0),0) -> 15 | F32: 7045 | G32: =IFERROR(VLOOKUP(B32,[5]Enrollment!$A$2:$G$147,6,0),0) -> 9 | H32: 1057 | I32: =IFERROR(VLOOKUP(B32,[5]Enrollment!$A$2:$G$147,7,0),0) -> 4 | J32: 1879 | K32: 9981 | L32: =IF(E32>$E$17,_xlfn.IFNA(VLOOKUP(B32,'[5]other funds ftr 2025'!A:I,9,FALSE),0),1) -> 0 | M32: 9981 | N32: =1+IF(ISNA(VLOOKUP(B32,'[5]Rural and Low Income 25-26'!$A:$B,2,FALSE)),0,$N$17) -> 1 | O32: 0 | R32: =ROUND(IF(Q32>0,-(0.9-Q32)*O32,0),0) -> 0 | S32: 0 | T32: =IFERROR(VLOOKUP(B32,'[5]2024-25 Final'!$B$19:$AA$164,26,0),0) -> 0 | U32: 0 | V32: n | Y32: 0 | AA32: 0
A33: 15 | B33: 32356 | D33: CENTRAL VALLEY | E33: =IFERROR(VLOOKUP(B33,[5]Enrollment!$A$2:$G$147,5,0),0) -> 17 | F33: 7985 | G33: =IFERROR(VLOOKUP(B33,[5]Enrollment!$A$2:$G$147,6,0),0) -> 5 | H33: 587 | I33: =IFERROR(VLOOKUP(B33,[5]Enrollment!$A$2:$G$147,7,0),0) -> 1 | J33: 470 | K33: 9042 | L33: =IF(E33>$E$17,_xlfn.IFNA(VLOOKUP(B33,'[5]other funds ftr 2025'!A:I,9,FALSE),0),1) -> 0.95 | M33: 8590 | N33: =1+IF(ISNA(VLOOKUP(B33,'[5]Rural and Low Income 25-26'!$A:$B,2,FALSE)),0,$N$17) -> 1 | O33: 0 | R33: =ROUND(IF(Q33>0,-(0.9-Q33)*O33,0),0) -> 0 | S33: 0 | T33: =IFERROR(VLOOKUP(B33,'[5]2024-25 Final'!$B$19:$AA$164,26,0),0) -> 18011 | U33: -18011 | V33: n | Y33: 0 | AA33: 0
A34: 16 | B34: 21401 | D34: CENTRALIA | E34: =IFERROR(VLOOKUP(B34,[5]Enrollment!$A$2:$G$147,5,0),0) -> 86 | F34: 40393 | G34: =IFERROR(VLOOKUP(B34,[5]Enrollment!$A$2:$G$147,6,0),0) -> 19 | H34: 2231 | I34: =IFERROR(VLOOKUP(B34,[5]Enrollment!$A$2:$G$147,7,0),0) -> 48 | J34: 22545 | K34: 65169 | L34: =IF(E34>$E$17,_xlfn.IFNA(VLOOKUP(B34,'[5]other funds ftr 2025'!A:I,9,FALSE),0),1) -> 0.95 | M34: 61911 | N34: =1+IF(ISNA(VLOOKUP(B34,'[5]Rural and Low Income 25-26'!$A:$B,2,FALSE)),0,$N$17) -> 1 | O34: 61911 | R34: =ROUND(IF(Q34>0,-(0.9-Q34)*O34,0),0) -> 0 | S34: 61911 | T34: =IFERROR(VLOOKUP(B34,'[5]2024-25 Final'!$B$19:$AA$164,26,0),0) -> 56020 | U34: 5891 | V34: y | X34: Y | Y34: 750 | AA34: 62661
A35: 17 | B35: 21302 | D35: CHEHALIS | E35: =IFERROR(VLOOKUP(B35,[5]Enrollment!$A$2:$G$147,5,0),0) -> 32 | F35: 15030 | G35: =IFERROR(VLOOKUP(B35,[5]Enrollment!$A$2:$G$147,6,0),0) -> 17 | H35: 1996 | I35: =IFERROR(VLOOKUP(B35,[5]Enrollment!$A$2:$G$147,7,0),0) -> 6 | J35: 2818 | K35: 19844 | L35: =IF(E35>$E$17,_xlfn.IFNA(VLOOKUP(B35,'[5]other funds ftr 2025'!A:I,9,FALSE),0),1) -> 0.95 | M35: 18852 | N35: =1+IF(ISNA(VLOOKUP(B35,'[5]Rural and Low Income 25-26'!$A:$B,2,FALSE)),0,$N$17) -> 1 | O35: 18852 | R35: 0 | S35: 18852 | T35: =IFERROR(VLOOKUP(B35,'[5]2024-25 Final'!$B$19:$AA$164,26,0),0) -> 19457 | U35: -605 | V35: y | Y35: 750 | AA35: 19602
A36: 18 | B36: 32360 | D36: CHENEY | E36: =IFERROR(VLOOKUP(B36,[5]Enrollment!$A$2:$G$147,5,0),0) -> 13 | F36: 6106 | G36: =IFERROR(VLOOKUP(B36,[5]Enrollment!$A$2:$G$147,6,0),0) -> 6 | H36: 705 | I36: =IFERROR(VLOOKUP(B36,[5]Enrollment!$A$2:$G$147,7,0),0) -> 3 | J36: 1409 | K36: 8220 | L36: =IF(E36>$E$17,_xlfn.IFNA(VLOOKUP(B36,'[5]other funds ftr 2025'!A:I,9,FALSE),0),1) -> 0 | M36: 8220 | N36: =1+IF(ISNA(VLOOKUP(B36,'[5]Rural and Low Income 25-26'!$A:$B,2,FALSE)),0,$N$17) -> 1 | O36: 0 | R36: =ROUND(IF(Q36>0,-(0.9-Q36)*O36,0),0) -> 0 | S36: 0 | T36: =IFERROR(VLOOKUP(B36,'[5]2024-25 Final'!$B$19:$AA$164,26,0),0) -> 0 | U36: 0 | V36: n | X36: Y | Y36: 0 | AA36: 0
A37: 19 | B37: 27901 | D37: CHIEF LESCHI TRIBAL COMPACT | E37: =IFERROR(VLOOKUP(B37,[5]Enrollment!$A$2:$G$147,5,0),0) -> 31 | F37: 14560 | G37: =IFERROR(VLOOKUP(B37,[5]Enrollment!$A$2:$G$147,6,0),0) -> 13 | H37: 1526 | I37: =IFERROR(VLOOKUP(B37,[5]Enrollment!$A$2:$G$147,7,0),0) -> 9 | J37: 4227 | K37: 20313 | L37: =IF(E37>$E$17,_xlfn.IFNA(VLOOKUP(B37,'[5]other funds ftr 2025'!A:I,9,FALSE),0),1) -> 1.05 | M37: 21329 | N37: =1+IF(ISNA(VLOOKUP(B37,'[5]Rural and Low Income 25-26'!$A:$B,2,FALSE)),0,$N$17) -> 1 | O37: 0 | R37: 0 | S37: 0 | T37: =IFERROR(VLOOKUP(B37,'[5]2024-25 Final'!$B$19:$AA$164,26,0),0) -> 35217 | U37: -35217 | V37: n | Y37: 0 | AA37: 0
A38: 20 | B38: 27400 | D38: CLOVER PARK | E38: =IFERROR(VLOOKUP(B38,[5]Enrollment!$A$2:$G$147,5,0),0) -> 0 | F38: 0 | G38: =IFERROR(VLOOKUP(B38,[5]Enrollment!$A$2:$G$147,6,0),0) -> 0 | H38: 0 | I38: =IFERROR(VLOOKUP(B38,[5]Enrollment!$A$2:$G$147,7,0),0) -> 0 | J38: 0 | K38: 0 | L38: =IF(E38>$E$17,_xlfn.IFNA(VLOOKUP(B38,'[5]other funds ftr 2025'!A:I,9,FALSE),0),1) -> 1 | M38: 0 | N38: =1+IF(ISNA(VLOOKUP(B38,'[5]Rural and Low Income 25-26'!$A:$B,2,FALSE)),0,$N$17) -> 1 | O38: 0 | R38: 0 | S38: 0 | T38: =IFERROR(VLOOKUP(B38,'[5]2024-25 Final'!$B$19:$AA$164,26,0),0) -> 0 | U38: 0 | V38: n | Y38: 0 | AA38: 0
A39: 21 | B39: 36250 | D39: COLLEGE PLACE | E39: =IFERROR(VLOOKUP(B39,[5]Enrollment!$A$2:$G$147,5,0),0) -> 196 | F39: 92057 | G39: =IFERROR(VLOOKUP(B39,[5]Enrollment!$A$2:$G$147,6,0),0) -> 28 | H39: 3288 | I39: =IFERROR(VLOOKUP(B39,[5]Enrollment!$A$2:$G$147,7,0),0) -> 103 | J39: 48377 | K39: 143722 | L39: =IF(E39>$E$17,_xlfn.IFNA(VLOOKUP(B39,'[5]other funds ftr 2025'!A:I,9,FALSE),0),1) -> 1.05 | M39: 150908 | N39: =1+IF(ISNA(VLOOKUP(B39,'[5]Rural and Low Income 25-26'!$A:$B,2,FALSE)),0,$N$17) -> 1 | O39: 150908 | R39: 0 | S39: 150908 | T39: =IFERROR(VLOOKUP(B39,'[5]2024-25 Final'!$B$19:$AA$164,26,0),0) -> 171284 | U39: -20376 | V39: y | Y39: 1250 | AA39: 152158
A40: 22 | B40: 36400 | D40: COLUMBIA (WALLA WALLA) | E40: =IFERROR(VLOOKUP(B40,[5]Enrollment!$A$2:$G$147,5,0),0) -> 52 | F40: 24423 | G40: =IFERROR(VLOOKUP(B40,[5]Enrollment!$A$2:$G$147,6,0),0) -> 21 | H40: 2466 | I40: =IFERROR(VLOOKUP(B40,[5]Enrollment!$A$2:$G$147,7,0),0) -> 19 | J40: 8924 | K40: 35813 | L40: =IF(E40>$E$17,_xlfn.IFNA(VLOOKUP(B40,'[5]other funds ftr 2025'!A:I,9,FALSE),0),1) -> 1 | M40: 35813 | N40: =1+IF(ISNA(VLOOKUP(B40,'[5]Rural and Low Income 25-26'!$A:$B,2,FALSE)),0,$N$17) -> 1 | O40: 35813 | R40: 0 | S40: 35813 | T40: =IFERROR(VLOOKUP(B40,'[5]2024-25 Final'!$B$19:$AA$164,26,0),0) -> 0 | U40: 35813 | V40: y | W40: 1 | Y40: 750 | AA40: 0
A41: 23 | B41: 29317 | D41: CONWAY | E41: =IFERROR(VLOOKUP(B41,[5]Enrollment!$A$2:$G$147,5,0),0) -> 0 | F41: 0 | G41: =IFERROR(VLOOKUP(B41,[5]Enrollment!$A$2:$G$147,6,0),0) -> 0 | H41: 0 | I41: =IFERROR(VLOOKUP(B41,[5]Enrollment!$A$2:$G$147,7,0),0) -> 0 | J41: 0 | K41: 0 | L41: =IF(E41>$E$17,_xlfn.IFNA(VLOOKUP(B41,'[5]other funds ftr 2025'!A:I,9,FALSE),0),1) -> 1 | M41: 0 | N41: =1+IF(ISNA(VLOOKUP(B41,'[5]Rural and Low Income 25-26'!$A:$B,2,FALSE)),0,$N$17) -> 1.1 | O41: 0 | R41: 0 | S41: 0 | T41: =IFERROR(VLOOKUP(B41,'[5]2024-25 Final'!$B$19:$AA$164,26,0),0) -> 0 | U41: 0 | V41: n | Y41: 0 | AA41: 0
A42: 24 | B42: 15204 | D42: COUPEVILLE | E42: =IFERROR(VLOOKUP(B42,[5]Enrollment!$A$2:$G$147,5,0),0) -> 0 | F42: 0 | G42: =IFERROR(VLOOKUP(B42,[5]Enrollment!$A$2:$G$147,6,0),0) -> 0 | H42: 0 | I42: =IFERROR(VLOOKUP(B42,[5]Enrollment!$A$2:$G$147,7,0),0) -> 0 | J42: 0 | K42: 0 | L42: =IF(E42>$E$17,_xlfn.IFNA(VLOOKUP(B42,'[5]other funds ftr 2025'!A:I,9,FALSE),0),1) -> 1 | M42: 0 | N42: =1+IF(ISNA(VLOOKUP(B42,'[5]Rural and Low Income 25-26'!$A:$B,2,FALSE)),0,$N$17) -> 1 | O42: 0 | R42: 0 | S42: 0 | T42: =IFERROR(VLOOKUP(B42,'[5]2024-25 Final'!$B$19:$AA$164,26,0),0) -> 8639 | U42: -8639 | V42: n | Y42: 0 | AA42: 0
A43: 25 | B43: 39090 | D43: EAST VALLEY (YAKIMA) | E43: =IFERROR(VLOOKUP(B43,[5]Enrollment!$A$2:$G$147,5,0),0) -> 195 | F43: 91588 | G43: =IFERROR(VLOOKUP(B43,[5]Enrollment!$A$2:$G$147,6,0),0) -> 97 | H43: 11390 | I43: =IFERROR(VLOOKUP(B43,[5]Enrollment!$A$2:$G$147,7,0),0) -> 19 | J43: 8924 | K43: 111902 | L43: =IF(E43>$E$17,_xlfn.IFNA(VLOOKUP(B43,'[5]other funds ftr 2025'!A:I,9,FALSE),0),1) -> 0 | M43: 111902 | N43: =1+IF(ISNA(VLOOKUP(B43,'[5]Rural and Low Income 25-26'!$A:$B,2,FALSE)),0,$N$17) -> 1 | O43: 0 | R43: 0 | S43: 0 | T43: =IFERROR(VLOOKUP(B43,'[5]2024-25 Final'!$B$19:$AA$164,26,0),0) -> 0 | U43: 0 | V43: n | Y43: 0 | AA43: 0
A44: 26 | B44: 09206 | D44: EASTMONT | E44: =IFERROR(VLOOKUP(B44,[5]Enrollment!$A$2:$G$147,5,0),0) -> 833 | F44: 391244 | G44: =IFERROR(VLOOKUP(B44,[5]Enrollment!$A$2:$G$147,6,0),0) -> 333 | H44: 39101 | I44: =IFERROR(VLOOKUP(B44,[5]Enrollment!$A$2:$G$147,7,0),0) -> 274 | J44: 128692 | K44: 559037 | L44: =IF(E44>$E$17,_xlfn.IFNA(VLOOKUP(B44,'[5]other funds ftr 2025'!A:I,9,FALSE),0),1) -> 1.05 | M44: 586989 | N44: =1+IF(ISNA(VLOOKUP(B44,'[5]Rural and Low Income 25-26'!$A:$B,2,FALSE)),0,$N$17) -> 1 | O44: 586989 | R44: 0 | S44: 586989 | T44: =IFERROR(VLOOKUP(B44,'[5]2024-25 Final'!$B$19:$AA$164,26,0),0) -> 737368 | U44: -150379 | V44: y | Y44: 2000 | AA44: 588989
A45: 27 | B45: 19028 | D45: EASTON | E45: =IFERROR(VLOOKUP(B45,[5]Enrollment!$A$2:$G$147,5,0),0) -> 0 | F45: 0 | G45: =IFERROR(VLOOKUP(B45,[5]Enrollment!$A$2:$G$147,6,0),0) -> 0 | H45: 0 | I45: =IFERROR(VLOOKUP(B45,[5]Enrollment!$A$2:$G$147,7,0),0) -> 0 | J45: 0 | K45: 0 | L45: =IF(E45>$E$17,_xlfn.IFNA(VLOOKUP(B45,'[5]other funds ftr 2025'!A:I,9,FALSE),0),1) -> 1 | M45: 0 | N45: =1+IF(ISNA(VLOOKUP(B45,'[5]Rural and Low Income 25-26'!$A:$B,2,FALSE)),0,$N$17) -> 1.1 | O45: 0 | R45: 0 | S45: 0 | T45: =IFERROR(VLOOKUP(B45,'[5]2024-25 Final'!$B$19:$AA$164,26,0),0) -> 0 | U45: 0 | V45: n | Y45: 0 | AA45: 0
A46: 28 | B46: 31015 | D46: EDMONDS | E46: =IFERROR(VLOOKUP(B46,[5]Enrollment!$A$2:$G$147,5,0),0) -> 19 | F46: 8924 | G46: =IFERROR(VLOOKUP(B46,[5]Enrollment!$A$2:$G$147,6,0),0) -> 4 | H46: 470 | I46: =IFERROR(VLOOKUP(B46,[5]Enrollment!$A$2:$G$147,7,0),0) -> 8 | J46: 3757 | K46: 13151 | L46: =IF(E46>$E$17,_xlfn.IFNA(VLOOKUP(B46,'[5]other funds ftr 2025'!A:I,9,FALSE),0),1) -> 0.95 | M46: 12493 | N46: =1+IF(ISNA(VLOOKUP(B46,'[5]Rural and Low Income 25-26'!$A:$B,2,FALSE)),0,$N$17) -> 1 | O46: 0 | R46: 0 | S46: 0 | T46: =IFERROR(VLOOKUP(B46,'[5]2024-25 Final'!$B$19:$AA$164,26,0),0) -> 15163 | U46: -15163 | V46: n | Y46: 0 | AA46: 0
A47: 29 | B47: 39801 | D47: EDUCATIONAL SERVICE DISTRICT 105 | E47: =IFERROR(VLOOKUP(B47,[5]Enrollment!$A$2:$G$147,5,0),0) -> 0 | F47: 0 | G47: =IFERROR(VLOOKUP(B47,[5]Enrollment!$A$2:$G$147,6,0),0) -> 0 | H47: 0 | I47: =IFERROR(VLOOKUP(B47,[5]Enrollment!$A$2:$G$147,7,0),0) -> 0 | J47: 0 | K47: 0 | L47: =IF(E47>$E$17,_xlfn.IFNA(VLOOKUP(B47,'[5]other funds ftr 2025'!A:I,9,FALSE),0),1) -> 1 | M47: 0 | N47: =1+IF(ISNA(VLOOKUP(B47,'[5]Rural and Low Income 25-26'!$A:$B,2,FALSE)),0,$N$17) -> 1 | O47: 0 | R47: 0 | S47: 0 | T47: =IFERROR(VLOOKUP(B47,'[5]2024-25 Final'!$B$19:$AA$164,26,0),0) -> 0 | U47: 0 | V47: n | Y47: 0 | AA47: 0
A48: 30 | B48: 11801 | D48: EDUCATIONAL SERVICE DISTRICT 123 | E48: =IFERROR(VLOOKUP(B48,[5]Enrollment!$A$2:$G$147,5,0),0) -> 0 | F48: 0 | G48: =IFERROR(VLOOKUP(B48,[5]Enrollment!$A$2:$G$147,6,0),0) -> 0 | H48: 0 | I48: =IFERROR(VLOOKUP(B48,[5]Enrollment!$A$2:$G$147,7,0),0) -> 0 | J48: 0 | K48: 0 | L48: =IF(E48>$E$17,_xlfn.IFNA(VLOOKUP(B48,'[5]other funds ftr 2025'!A:I,9,FALSE),0),1) -> 1 | M48: 0 | N48: =1+IF(ISNA(VLOOKUP(B48,'[5]Rural and Low Income 25-26'!$A:$B,2,FALSE)),0,$N$17) -> 1 | O48: 0 | R48: 0 | S48: 0 | T48: =IFERROR(VLOOKUP(B48,'[5]2024-25 Final'!$B$19:$AA$164,26,0),0) -> 0 | U48: 0 | V48: n | Y48: 0 | AA48: 0
A49: 31 | B49: 19401 | D49: ELLENSBURG | E49: =IFERROR(VLOOKUP(B49,[5]Enrollment!$A$2:$G$147,5,0),0) -> 22 | F49: 10333 | G49: =IFERROR(VLOOKUP(B49,[5]Enrollment!$A$2:$G$147,6,0),0) -> 12 | H49: 1409 | I49: =IFERROR(VLOOKUP(B49,[5]Enrollment!$A$2:$G$147,7,0),0) -> 1 | J49: 470 | K49: 12212 | L49: =IF(E49>$E$17,_xlfn.IFNA(VLOOKUP(B49,'[5]other funds ftr 2025'!A:I,9,FALSE),0),1) -> 0 | M49: 12212 | N49: =1+IF(ISNA(VLOOKUP(B49,'[5]Rural and Low Income 25-26'!$A:$B,2,FALSE)),0,$N$17) -> 1 | O49: 0 | R49: 0 | S49: 0 | T49: =IFERROR(VLOOKUP(B49,'[5]2024-25 Final'!$B$19:$AA$164,26,0),0) -> 0 | U49: 0 | V49: n | Y49: 0 | AA49: 0
A50: 32 | B50: 14068 | D50: ELMA | E50: =IFERROR(VLOOKUP(B50,[5]Enrollment!$A$2:$G$147,5,0),0) -> 27 | F50: 12681 | G50: =IFERROR(VLOOKUP(B50,[5]Enrollment!$A$2:$G$147,6,0),0) -> 15 | H50: 1761 | I50: =IFERROR(VLOOKUP(B50,[5]Enrollment!$A$2:$G$147,7,0),0) -> 1 | J50: 470 | K50: 14912 | L50: =IF(E50>$E$17,_xlfn.IFNA(VLOOKUP(B50,'[5]other funds ftr 2025'!A:I,9,FALSE),0),1) -> 0 | M50: 14912 | N50: =1+IF(ISNA(VLOOKUP(B50,'[5]Rural and Low Income 25-26'!$A:$B,2,FALSE)),0,$N$17) -> 1 | O50: 0 | R50: 0 | S50: 0 | T50: =IFERROR(VLOOKUP(B50,'[5]2024-25 Final'!$B$19:$AA$164,26,0),0) -> 0 | U50: 0 | V50: n | Y50: 0 | AA50: 0
A51: 33 | B51: 04127 | D51: ENTIAT | E51: =IFERROR(VLOOKUP(B51,[5]Enrollment!$A$2:$G$147,5,0),0) -> 70 | F51: 32878 | G51: =IFERROR(VLOOKUP(B51,[5]Enrollment!$A$2:$G$147,6,0),0) -> 11 | H51: 1292 | I51: =IFERROR(VLOOKUP(B51,[5]Enrollment!$A$2:$G$147,7,0),0) -> 42 | J51: 19727 | K51: 53897 | L51: =IF(E51>$E$17,_xlfn.IFNA(VLOOKUP(B51,'[5]other funds ftr 2025'!A:I,9,FALSE),0),1) -> 0 | M51: 53897 | N51: =1+IF(ISNA(VLOOKUP(B51,'[5]Rural and Low Income 25-26'!$A:$B,2,FALSE)),0,$N$17) -> 1.1 | O51: 0 | R51: 0 | S51: 0 | T51: =IFERROR(VLOOKUP(B51,'[5]2024-25 Final'!$B$19:$AA$164,26,0),0) -> 0 | U51: 0 | V51: n | Y51: 0 | AA51: 0
A52: 34 | B52: 13165 | D52: EPHRATA | E52: =IFERROR(VLOOKUP(B52,[5]Enrollment!$A$2:$G$147,5,0),0) -> 126 | F52: 59180 | G52: =IFERROR(VLOOKUP(B52,[5]Enrollment!$A$2:$G$147,6,0),0) -> 33 | H52: 3875 | I52: =IFERROR(VLOOKUP(B52,[5]Enrollment!$A$2:$G$147,7,0),0) -> 33 | J52: 15499 | K52: 78554 | L52: =IF(E52>$E$17,_xlfn.IFNA(VLOOKUP(B52,'[5]other funds ftr 2025'!A:I,9,FALSE),0),1) -> 1 | M52: 78554 | N52: =1+IF(ISNA(VLOOKUP(B52,'[5]Rural and Low Income 25-26'!$A:$B,2,FALSE)),0,$N$17) -> 1 | O52: 78554 | R52: 0 | S52: 78554 | T52: =IFERROR(VLOOKUP(B52,'[5]2024-25 Final'!$B$19:$AA$164,26,0),0) -> 102817 | U52: -24263 | V52: y | Y52: 1250 | AA52: 79804
A53: 35 | B53: 31002 | D53: EVERETT | E53: =IFERROR(VLOOKUP(B53,[5]Enrollment!$A$2:$G$147,5,0),0) -> 49 | F53: 23014 | G53: =IFERROR(VLOOKUP(B53,[5]Enrollment!$A$2:$G$147,6,0),0) -> 14 | H53: 1644 | I53: =IFERROR(VLOOKUP(B53,[5]Enrollment!$A$2:$G$147,7,0),0) -> 21 | J53: 9863 | K53: 34521 | L53: =IF(E53>$E$17,_xlfn.IFNA(VLOOKUP(B53,'[5]other funds ftr 2025'!A:I,9,FALSE),0),1) -> 0 | M53: 34521 | N53: =1+IF(ISNA(VLOOKUP(B53,'[5]Rural and Low Income 25-26'!$A:$B,2,FALSE)),0,$N$17) -> 1 | O53: 0 | R53: 0 | S53: 0 | T53: =IFERROR(VLOOKUP(B53,'[5]2024-25 Final'!$B$19:$AA$164,26,0),0) -> 0 | U53: 0 | V53: n | Y53: 0 | AA53: 0
A54: 36 | B54: 06114 | D54: EVERGREEN (CLARK) | E54: =IFERROR(VLOOKUP(B54,[5]Enrollment!$A$2:$G$147,5,0),0) -> 32 | F54: 15030 | G54: =IFERROR(VLOOKUP(B54,[5]Enrollment!$A$2:$G$147,6,0),0) -> 16 | H54: 1879 | I54: =IFERROR(VLOOKUP(B54,[5]Enrollment!$A$2:$G$147,7,0),0) -> 7 | J54: 3288 | K54: 20197 | L54: =IF(E54>$E$17,_xlfn.IFNA(VLOOKUP(B54,'[5]other funds ftr 2025'!A:I,9,FALSE),0),1) -> 0 | M54: 20197 | N54: =1+IF(ISNA(VLOOKUP(B54,'[5]Rural and Low Income 25-26'!$A:$B,2,FALSE)),0,$N$17) -> 1 | O54: 0 | R54: 0 | S54: 0 | T54: =IFERROR(VLOOKUP(B54,'[5]2024-25 Final'!$B$19:$AA$164,26,0),0) -> 0 | U54: 0 | V54: n | Y54: 0 | AA54: 0
A55: 37 | B55: 17210 | D55: FEDERAL WAY | E55: =IFERROR(VLOOKUP(B55,[5]Enrollment!$A$2:$G$147,5,0),0) -> 20 | F55: 9394 | G55: =IFERROR(VLOOKUP(B55,[5]Enrollment!$A$2:$G$147,6,0),0) -> 6 | H55: 705 | I55: =IFERROR(VLOOKUP(B55,[5]Enrollment!$A$2:$G$147,7,0),0) -> 3 | J55: 1409 | K55: 11508 | L55: =IF(E55>$E$17,_xlfn.IFNA(VLOOKUP(B55,'[5]other funds ftr 2025'!A:I,9,FALSE),0),1) -> 0 | M55: 11508 | N55: =1+IF(ISNA(VLOOKUP(B55,'[5]Rural and Low Income 25-26'!$A:$B,2,FALSE)),0,$N$17) -> 1 | O55: 0 | R55: 0 | S55: 0 | T55: =IFERROR(VLOOKUP(B55,'[5]2024-25 Final'!$B$19:$AA$164,26,0),0) -> 0 | U55: 0 | V55: n | X55: Y | Y55: 0 | AA55: 0
A56: 38 | B56: 37502 | D56: FERNDALE | E56: =IFERROR(VLOOKUP(B56,[5]Enrollment!$A$2:$G$147,5,0),0) -> 113 | F56: 53074 | G56: =IFERROR(VLOOKUP(B56,[5]Enrollment!$A$2:$G$147,6,0),0) -> 16 | H56: 1879 | I56: =IFERROR(VLOOKUP(B56,[5]Enrollment!$A$2:$G$147,7,0),0) -> 27 | J56: 12681 | K56: 67634 | L56: =IF(E56>$E$17,_xlfn.IFNA(VLOOKUP(B56,'[5]other funds ftr 2025'!A:I,9,FALSE),0),1) -> 0.95 | M56: 64252 | N56: =1+IF(ISNA(VLOOKUP(B56,'[5]Rural and Low Income 25-26'!$A:$B,2,FALSE)),0,$N$17) -> 1 | O56: 64252 | R56: 0 | S56: 64252 | T56: =IFERROR(VLOOKUP(B56,'[5]2024-25 Final'!$B$19:$AA$164,26,0),0) -> 86193 | U56: -21941 | V56: y | X56: Y | Y56: 1250 | AA56: 65502
A57: 39 | B57: 03053 | D57: FINLEY | E57: =IFERROR(VLOOKUP(B57,[5]Enrollment!$A$2:$G$147,5,0),0) -> 86 | F57: 40393 | G57: =IFERROR(VLOOKUP(B57,[5]Enrollment!$A$2:$G$147,6,0),0) -> 23 | H57: 2701 | I57: =IFERROR(VLOOKUP(B57,[5]Enrollment!$A$2:$G$147,7,0),0) -> 33 | J57: 15499 | K57: 58593 | L57: =IF(E57>$E$17,_xlfn.IFNA(VLOOKUP(B57,'[5]other funds ftr 2025'!A:I,9,FALSE),0),1) -> 1.05 | M57: 61523 | N57: =1+IF(ISNA(VLOOKUP(B57,'[5]Rural and Low Income 25-26'!$A:$B,2,FALSE)),0,$N$17) -> 1 | O57: 61523 | R57: 0 | S57: 61523 | T57: =IFERROR(VLOOKUP(B57,'[5]2024-25 Final'!$B$19:$AA$164,26,0),0) -> 0 | U57: 61523 | V57: y | W57: 1 | Y57: 750 | AA57: 0
A58: 40 | B58: 27402 | D58: FRANKLIN PIERCE | E58: =IFERROR(VLOOKUP(B58,[5]Enrollment!$A$2:$G$147,5,0),0) -> 10 | F58: 4697 | G58: =IFERROR(VLOOKUP(B58,[5]Enrollment!$A$2:$G$147,6,0),0) -> 1 | H58: 117 | I58: =IFERROR(VLOOKUP(B58,[5]Enrollment!$A$2:$G$147,7,0),0) -> 3 | J58: 1409 | K58: 6223 | L58: =IF(E58>$E$17,_xlfn.IFNA(VLOOKUP(B58,'[5]other funds ftr 2025'!A:I,9,FALSE),0),1) -> 1 | M58: 6223 | N58: =1+IF(ISNA(VLOOKUP(B58,'[5]Rural and Low Income 25-26'!$A:$B,2,FALSE)),0,$N$17) -> 1 | O58: 0 | R58: 0 | S58: 0 | T58: =IFERROR(VLOOKUP(B58,'[5]2024-25 Final'!$B$19:$AA$164,26,0),0) -> 0 | U58: 0 | V58: n | Y58: 0 | AA58: 0
A59: 41 | B59: 20404 | D59: GOLDENDALE | E59: =IFERROR(VLOOKUP(B59,[5]Enrollment!$A$2:$G$147,5,0),0) -> 56 | F59: 26302 | G59: =IFERROR(VLOOKUP(B59,[5]Enrollment!$A$2:$G$147,6,0),0) -> 15 | H59: 1761 | I59: =IFERROR(VLOOKUP(B59,[5]Enrollment!$A$2:$G$147,7,0),0) -> 25 | J59: 11742 | K59: 39805 | L59: =IF(E59>$E$17,_xlfn.IFNA(VLOOKUP(B59,'[5]other funds ftr 2025'!A:I,9,FALSE),0),1) -> 1 | M59: 39805 | N59: =1+IF(ISNA(VLOOKUP(B59,'[5]Rural and Low Income 25-26'!$A:$B,2,FALSE)),0,$N$17) -> 1 | O59: 39805 | R59: 0 | S59: 39805 | T59: =IFERROR(VLOOKUP(B59,'[5]2024-25 Final'!$B$19:$AA$164,26,0),0) -> 56112 | U59: -16307 | V59: y | Y59: 750 | AA59: 40555
A60: 42 | B60: 13301 | D60: GRAND COULEE DAM | E60: =IFERROR(VLOOKUP(B60,[5]Enrollment!$A$2:$G$147,5,0),0) -> 223 | F60: 104739 | G60: =IFERROR(VLOOKUP(B60,[5]Enrollment!$A$2:$G$147,6,0),0) -> 88 | H60: 10333 | I60: =IFERROR(VLOOKUP(B60,[5]Enrollment!$A$2:$G$147,7,0),0) -> 36 | J60: 16908 | K60: 131980 | L60: =IF(E60>$E$17,_xlfn.IFNA(VLOOKUP(B60,'[5]other funds ftr 2025'!A:I,9,FALSE),0),1) -> 1.1 | M60: 145178 | N60: =1+IF(ISNA(VLOOKUP(B60,'[5]Rural and Low Income 25-26'!$A:$B,2,FALSE)),0,$N$17) -> 1 | O60: 145178 | R60: 0 | S60: 145178 | T60: =IFERROR(VLOOKUP(B60,'[5]2024-25 Final'!$B$19:$AA$164,26,0),0) -> 210047 | U60: -64869 | V60: y | Y60: 1250 | AA60: 146428
A61: 43 | B61: 39200 | D61: GRANDVIEW | E61: =IFERROR(VLOOKUP(B61,[5]Enrollment!$A$2:$G$147,5,0),0) -> 652 | F61: 306232 | G61: =IFERROR(VLOOKUP(B61,[5]Enrollment!$A$2:$G$147,6,0),0) -> 197 | H61: 23132 | I61: =IFERROR(VLOOKUP(B61,[5]Enrollment!$A$2:$G$147,7,0),0) -> 272 | J61: 127753 | K61: 457117 | L61: =IF(E61>$E$17,_xlfn.IFNA(VLOOKUP(B61,'[5]other funds ftr 2025'!A:I,9,FALSE),0),1) -> 1.05 | M61: 479973 | N61: =1+IF(ISNA(VLOOKUP(B61,'[5]Rural and Low Income 25-26'!$A:$B,2,FALSE)),0,$N$17) -> 1.1 | O61: 527970 | R61: 0 | S61: 527970 | T61: =IFERROR(VLOOKUP(B61,'[5]2024-25 Final'!$B$19:$AA$164,26,0),0) -> 458213 | U61: 69757 | V61: y | Y61: 2000 | AA61: 529970
A62: 44 | B62: 39204 | D62: GRANGER | E62: =IFERROR(VLOOKUP(B62,[5]Enrollment!$A$2:$G$147,5,0),0) -> 315 | F62: 147949 | G62: =IFERROR(VLOOKUP(B62,[5]Enrollment!$A$2:$G$147,6,0),0) -> 102 | H62: 11977 | I62: =IFERROR(VLOOKUP(B62,[5]Enrollment!$A$2:$G$147,7,0),0) -> 84 | J62: 39453 | K62: 199379 | L62: =IF(E62>$E$17,_xlfn.IFNA(VLOOKUP(B62,'[5]other funds ftr 2025'!A:I,9,FALSE),0),1) -> 1.05 | M62: 209348 | N62: =1+IF(ISNA(VLOOKUP(B62,'[5]Rural and Low Income 25-26'!$A:$B,2,FALSE)),0,$N$17) -> 1 | O62: 209348 | R62: 0 | S62: 209348 | T62: =IFERROR(VLOOKUP(B62,'[5]2024-25 Final'!$B$19:$AA$164,26,0),0) -> 252119 | U62: -42771 | V62: y | Y62: 1250 | AA62: 210598
A63: 45 | B63: 39203 | D63: HIGHLAND | E63: =IFERROR(VLOOKUP(B63,[5]Enrollment!$A$2:$G$147,5,0),0) -> 220 | F63: 103330 | G63: =IFERROR(VLOOKUP(B63,[5]Enrollment!$A$2:$G$147,6,0),0) -> 75 | H63: 8807 | I63: =IFERROR(VLOOKUP(B63,[5]Enrollment!$A$2:$G$147,7,0),0) -> 63 | J63: 29590 | K63: 141727 | L63: =IF(E63>$E$17,_xlfn.IFNA(VLOOKUP(B63,'[5]other funds ftr 2025'!A:I,9,FALSE),0),1) -> 1.05 | M63: 148813 | N63: =1+IF(ISNA(VLOOKUP(B63,'[5]Rural and Low Income 25-26'!$A:$B,2,FALSE)),0,$N$17) -> 1 | O63: 148813 | R63: 0 | S63: 148813 | T63: =IFERROR(VLOOKUP(B63,'[5]2024-25 Final'!$B$19:$AA$164,26,0),0) -> 168929 | U63: -20116 | V63: y | Y63: 1250 | AA63: 150063
A64: 46 | B64: 17401 | D64: HIGHLINE | E64: =IFERROR(VLOOKUP(B64,[5]Enrollment!$A$2:$G$147,5,0),0) -> 0 | F64: 0 | G64: =IFERROR(VLOOKUP(B64,[5]Enrollment!$A$2:$G$147,6,0),0) -> 0 | H64: 0 | I64: =IFERROR(VLOOKUP(B64,[5]Enrollment!$A$2:$G$147,7,0),0) -> 0 | J64: 0 | K64: 0 | L64: =IF(E64>$E$17,_xlfn.IFNA(VLOOKUP(B64,'[5]other funds ftr 2025'!A:I,9,FALSE),0),1) -> 1 | M64: 0 | N64: =1+IF(ISNA(VLOOKUP(B64,'[5]Rural and Low Income 25-26'!$A:$B,2,FALSE)),0,$N$17) -> 1 | O64: 0 | R64: 0 | S64: 0 | T64: =IFERROR(VLOOKUP(B64,'[5]2024-25 Final'!$B$19:$AA$164,26,0),0) -> 0 | U64: 0 | V64: n | X64: Y | Y64: 0 | AA64: 0
A65: 47 | B65: 23404 | D65: HOOD CANAL | E65: =IFERROR(VLOOKUP(B65,[5]Enrollment!$A$2:$G$147,5,0),0) -> 31 | F65: 14560 | G65: =IFERROR(VLOOKUP(B65,[5]Enrollment!$A$2:$G$147,6,0),0) -> 18 | H65: 2114 | I65: =IFERROR(VLOOKUP(B65,[5]Enrollment!$A$2:$G$147,7,0),0) -> 6 | J65: 2818 | K65: 19492 | L65: =IF(E65>$E$17,_xlfn.IFNA(VLOOKUP(B65,'[5]other funds ftr 2025'!A:I,9,FALSE),0),1) -> 1.05 | M65: 20467 | N65: =1+IF(ISNA(VLOOKUP(B65,'[5]Rural and Low Income 25-26'!$A:$B,2,FALSE)),0,$N$17) -> 1.1 | O65: 22514 | R65: 0 | S65: 22514 | T65: =IFERROR(VLOOKUP(B65,'[5]2024-25 Final'!$B$19:$AA$164,26,0),0) -> 41581 | U65: -19067 | V65: y | Y65: 750 | AA65: 23264
A66: 48 | B66: 14028 | D66: HOQUIAM | E66: =IFERROR(VLOOKUP(B66,[5]Enrollment!$A$2:$G$147,5,0),0) -> 20 | F66: 9394 | G66: =IFERROR(VLOOKUP(B66,[5]Enrollment!$A$2:$G$147,6,0),0) -> 8 | H66: 939 | I66: =IFERROR(VLOOKUP(B66,[5]Enrollment!$A$2:$G$147,7,0),0) -> 0 | J66: 0 | K66: 10333 | L66: =IF(E66>$E$17,_xlfn.IFNA(VLOOKUP(B66,'[5]other funds ftr 2025'!A:I,9,FALSE),0),1) -> 0 | M66: 10333 | N66: =1+IF(ISNA(VLOOKUP(B66,'[5]Rural and Low Income 25-26'!$A:$B,2,FALSE)),0,$N$17) -> 1.1 | O66: 0 | R66: 0 | S66: 0 | T66: =IFERROR(VLOOKUP(B66,'[5]2024-25 Final'!$B$19:$AA$164,26,0),0) -> 0 | U66: 0 | V66: n | Y66: 0 | AA66: 0
A67: 49 | B67: 10070 | D67: INCHELIUM | E67: =IFERROR(VLOOKUP(B67,[5]Enrollment!$A$2:$G$147,5,0),0) -> 13 | F67: 6106 | G67: =IFERROR(VLOOKUP(B67,[5]Enrollment!$A$2:$G$147,6,0),0) -> 7 | H67: 822 | I67: =IFERROR(VLOOKUP(B67,[5]Enrollment!$A$2:$G$147,7,0),0) -> 4 | J67: 1879 | K67: 8807 | L67: =IF(E67>$E$17,_xlfn.IFNA(VLOOKUP(B67,'[5]other funds ftr 2025'!A:I,9,FALSE),0),1) -> 1 | M67: 8807 | N67: =1+IF(ISNA(VLOOKUP(B67,'[5]Rural and Low Income 25-26'!$A:$B,2,FALSE)),0,$N$17) -> 1.1 | O67: 9688 | R67: 0 | S67: 9688 | T67: =IFERROR(VLOOKUP(B67,'[5]2024-25 Final'!$B$19:$AA$164,26,0),0) -> 13901 | U67: -4213 | V67: y | Y67: 750 | AA67: 10438
A68: 50 | B68: 08458 | D68: KELSO | E68: =IFERROR(VLOOKUP(B68,[5]Enrollment!$A$2:$G$147,5,0),0) -> 33 | F68: 15499 | G68: =IFERROR(VLOOKUP(B68,[5]Enrollment!$A$2:$G$147,6,0),0) -> 17 | H68: 1996 | I68: =IFERROR(VLOOKUP(B68,[5]Enrollment!$A$2:$G$147,7,0),0) -> 8 | J68: 3757 | K68: 21252 | L68: =IF(E68>$E$17,_xlfn.IFNA(VLOOKUP(B68,'[5]other funds ftr 2025'!A:I,9,FALSE),0),1) -> 0 | M68: 21252 | N68: =1+IF(ISNA(VLOOKUP(B68,'[5]Rural and Low Income 25-26'!$A:$B,2,FALSE)),0,$N$17) -> 1 | O68: 21252 | R68: 0 | S68: 21252 | T68: =IFERROR(VLOOKUP(B68,'[5]2024-25 Final'!$B$19:$AA$164,26,0),0) -> 0 | U68: 21252 | V68: y | Y68: 750 | AA68: 22002
A69: 51 | B69: 03017 | D69: KENNEWICK | E69: =IFERROR(VLOOKUP(B69,[5]Enrollment!$A$2:$G$147,5,0),0) -> 2693 | F69: 1264850 | G69: =IFERROR(VLOOKUP(B69,[5]Enrollment!$A$2:$G$147,6,0),0) -> 1012 | H69: 118829 | I69: =IFERROR(VLOOKUP(B69,[5]Enrollment!$A$2:$G$147,7,0),0) -> 1290 | J69: 605888 | K69: 1989567 | L69: =IF(E69>$E$17,_xlfn.IFNA(VLOOKUP(B69,'[5]other funds ftr 2025'!A:I,9,FALSE),0),1) -> 1.05 | M69: 2089045 | N69: =1+IF(ISNA(VLOOKUP(B69,'[5]Rural and Low Income 25-26'!$A:$B,2,FALSE)),0,$N$17) -> 1 | O69: 2089045 | R69: 0 | S69: 2089045 | T69: =IFERROR(VLOOKUP(B69,'[5]2024-25 Final'!$B$19:$AA$164,26,0),0) -> 2021118 | U69: 67927 | V69: y | Y69: 2000 | AA69: 2091045
A70: 52 | B70: 17415 | D70: KENT | E70: =IFERROR(VLOOKUP(B70,[5]Enrollment!$A$2:$G$147,5,0),0) -> 24 | F70: 11272 | G70: =IFERROR(VLOOKUP(B70,[5]Enrollment!$A$2:$G$147,6,0),0) -> 10 | H70: 1174 | I70: =IFERROR(VLOOKUP(B70,[5]Enrollment!$A$2:$G$147,7,0),0) -> 4 | J70: 1879 | K70: 14325 | L70: =IF(E70>$E$17,_xlfn.IFNA(VLOOKUP(B70,'[5]other funds ftr 2025'!A:I,9,FALSE),0),1) -> 0 | M70: 14325 | N70: =1+IF(ISNA(VLOOKUP(B70,'[5]Rural and Low Income 25-26'!$A:$B,2,FALSE)),0,$N$17) -> 1 | O70: 0 | R70: 0 | S70: 0 | T70: =IFERROR(VLOOKUP(B70,'[5]2024-25 Final'!$B$19:$AA$164,26,0),0) -> 0 | U70: 0 | V70: n | Y70: 0 | AA70: 0
A71: 53 | B71: 03052 | D71: KIONA-BENTON CITY | E71: =IFERROR(VLOOKUP(B71,[5]Enrollment!$A$2:$G$147,5,0),0) -> 314 | F71: 147480 | G71: =IFERROR(VLOOKUP(B71,[5]Enrollment!$A$2:$G$147,6,0),0) -> 142 | H71: 16674 | I71: =IFERROR(VLOOKUP(B71,[5]Enrollment!$A$2:$G$147,7,0),0) -> 98 | J71: 46029 | K71: 210183 | L71: =IF(E71>$E$17,_xlfn.IFNA(VLOOKUP(B71,'[5]other funds ftr 2025'!A:I,9,FALSE),0),1) -> 1.1 | M71: 231201 | N71: =1+IF(ISNA(VLOOKUP(B71,'[5]Rural and Low Income 25-26'!$A:$B,2,FALSE)),0,$N$17) -> 1 | O71: 231201 | R71: 0 | S71: 231201 | T71: =IFERROR(VLOOKUP(B71,'[5]2024-25 Final'!$B$19:$AA$164,26,0),0) -> 266412 | U71: -35211 | V71: y | Y71: 1250 | AA71: 232451
A72: 54 | B72: 19403 | D72: KITTITAS | E72: =IFERROR(VLOOKUP(B72,[5]Enrollment!$A$2:$G$147,5,0),0) -> 14 | F72: 6576 | G72: =IFERROR(VLOOKUP(B72,[5]Enrollment!$A$2:$G$147,6,0),0) -> 10 | H72: 1174 | I72: =IFERROR(VLOOKUP(B72,[5]Enrollment!$A$2:$G$147,7,0),0) -> 1 | J72: 470 | K72: 8220 | L72: =IF(E72>$E$17,_xlfn.IFNA(VLOOKUP(B72,'[5]other funds ftr 2025'!A:I,9,FALSE),0),1) -> 0 | M72: 8220 | N72: =1+IF(ISNA(VLOOKUP(B72,'[5]Rural and Low Income 25-26'!$A:$B,2,FALSE)),0,$N$17) -> 1.1 | O72: 0 | R72: 0 | S72: 0 | T72: =IFERROR(VLOOKUP(B72,'[5]2024-25 Final'!$B$19:$AA$164,26,0),0) -> 0 | U72: 0 | V72: n | Y72: 0 | AA72: 0
A73: 55 | B73: 29311 | D73: LA CONNER | E73: =IFERROR(VLOOKUP(B73,[5]Enrollment!$A$2:$G$147,5,0),0) -> 112 | F73: 52604 | G73: =IFERROR(VLOOKUP(B73,[5]Enrollment!$A$2:$G$147,6,0),0) -> 71 | H73: 8337 | I73: =IFERROR(VLOOKUP(B73,[5]Enrollment!$A$2:$G$147,7,0),0) -> 25 | J73: 11742 | K73: 72683 | L73: =IF(E73>$E$17,_xlfn.IFNA(VLOOKUP(B73,'[5]other funds ftr 2025'!A:I,9,FALSE),0),1) -> 1.1 | M73: 79951 | N73: =1+IF(ISNA(VLOOKUP(B73,'[5]Rural and Low Income 25-26'!$A:$B,2,FALSE)),0,$N$17) -> 1.1 | O73: 87946 | R73: 0 | S73: 87946 | T73: =IFERROR(VLOOKUP(B73,'[5]2024-25 Final'!$B$19:$AA$164,26,0),0) -> 131875 | U73: -43929 | V73: y | Y73: 1250 | AA73: 89196
A74: 56 | B74: 04129 | D74: LAKE CHELAN | E74: =IFERROR(VLOOKUP(B74,[5]Enrollment!$A$2:$G$147,5,0),0) -> 145 | F74: 68104 | G74: =IFERROR(VLOOKUP(B74,[5]Enrollment!$A$2:$G$147,6,0),0) -> 31 | H74: 3640 | I74: =IFERROR(VLOOKUP(B74,[5]Enrollment!$A$2:$G$147,7,0),0) -> 70 | J74: 32878 | K74: 104622 | L74: =IF(E74>$E$17,_xlfn.IFNA(VLOOKUP(B74,'[5]other funds ftr 2025'!A:I,9,FALSE),0),1) -> 1.05 | M74: 109853 | N74: =1+IF(ISNA(VLOOKUP(B74,'[5]Rural and Low Income 25-26'!$A:$B,2,FALSE)),0,$N$17) -> 1 | O74: 109853 | R74: 0 | S74: 109853 | T74: =IFERROR(VLOOKUP(B74,'[5]2024-25 Final'!$B$19:$AA$164,26,0),0) -> 132822 | U74: -22969 | V74: y | Y74: 1250 | AA74: 111103
A75: 57 | B75: 31306 | D75: LAKEWOOD | E75: =IFERROR(VLOOKUP(B75,[5]Enrollment!$A$2:$G$147,5,0),0) -> 20 | F75: 9394 | G75: =IFERROR(VLOOKUP(B75,[5]Enrollment!$A$2:$G$147,6,0),0) -> 2 | H75: 235 | I75: =IFERROR(VLOOKUP(B75,[5]Enrollment!$A$2:$G$147,7,0),0) -> 4 | J75: 1879 | K75: 11508 | L75: =IF(E75>$E$17,_xlfn.IFNA(VLOOKUP(B75,'[5]other funds ftr 2025'!A:I,9,FALSE),0),1) -> 0.95 | M75: 10933 | N75: =1+IF(ISNA(VLOOKUP(B75,'[5]Rural and Low Income 25-26'!$A:$B,2,FALSE)),0,$N$17) -> 1 | O75: 0 | R75: 0 | S75: 0 | T75: =IFERROR(VLOOKUP(B75,'[5]2024-25 Final'!$B$19:$AA$164,26,0),0) -> 15164 | U75: -15164 | V75: n | Y75: 0 | AA75: 0
A76: 58 | B76: 01158 | D76: LIND | E76: =IFERROR(VLOOKUP(B76,[5]Enrollment!$A$2:$G$147,5,0),0) -> 37 | F76: 17378 | G76: =IFERROR(VLOOKUP(B76,[5]Enrollment!$A$2:$G$147,6,0),0) -> 18 | H76: 2114 | I76: =IFERROR(VLOOKUP(B76,[5]Enrollment!$A$2:$G$147,7,0),0) -> 10 | J76: 4697 | K76: 24189 | L76: =IF(E76>$E$17,_xlfn.IFNA(VLOOKUP(B76,'[5]other funds ftr 2025'!A:I,9,FALSE),0),1) -> 1.1 | M76: 26608 | N76: =1+IF(ISNA(VLOOKUP(B76,'[5]Rural and Low Income 25-26'!$A:$B,2,FALSE)),0,$N$17) -> 1.1 | O76: 29269 | R76: 0 | S76: 29269 | T76: =IFERROR(VLOOKUP(B76,'[5]2024-25 Final'!$B$19:$AA$164,26,0),0) -> 36615 | U76: -7346 | V76: y | Y76: 750 | AA76: 30019
A77: 59 | B77: 08122 | D77: LONGVIEW | E77: =IFERROR(VLOOKUP(B77,[5]Enrollment!$A$2:$G$147,5,0),0) -> 30 | F77: 14090 | G77: =IFERROR(VLOOKUP(B77,[5]Enrollment!$A$2:$G$147,6,0),0) -> 17 | H77: 1996 | I77: =IFERROR(VLOOKUP(B77,[5]Enrollment!$A$2:$G$147,7,0),0) -> 1 | J77: 470 | K77: 16556 | L77: =IF(E77>$E$17,_xlfn.IFNA(VLOOKUP(B77,'[5]other funds ftr 2025'!A:I,9,FALSE),0),1) -> 0 | M77: 16556 | N77: =1+IF(ISNA(VLOOKUP(B77,'[5]Rural and Low Income 25-26'!$A:$B,2,FALSE)),0,$N$17) -> 1 | O77: 0 | R77: 0 | S77: 0 | T77: =IFERROR(VLOOKUP(B77,'[5]2024-25 Final'!$B$19:$AA$164,26,0),0) -> 0 | U77: 0 | V77: n | Y77: 0 | AA77: 0
A78: 60 | B78: 20406 | D78: LYLE | E78: =IFERROR(VLOOKUP(B78,[5]Enrollment!$A$2:$G$147,5,0),0) -> 10 | F78: 4697 | G78: =IFERROR(VLOOKUP(B78,[5]Enrollment!$A$2:$G$147,6,0),0) -> 3 | H78: 352 | I78: =IFERROR(VLOOKUP(B78,[5]Enrollment!$A$2:$G$147,7,0),0) -> 6 | J78: 2818 | K78: 7867 | L78: =IF(E78>$E$17,_xlfn.IFNA(VLOOKUP(B78,'[5]other funds ftr 2025'!A:I,9,FALSE),0),1) -> 1 | M78: 7867 | N78: =1+IF(ISNA(VLOOKUP(B78,'[5]Rural and Low Income 25-26'!$A:$B,2,FALSE)),0,$N$17) -> 1.1 | O78: 0 | R78: 0 | S78: 0 | T78: =IFERROR(VLOOKUP(B78,'[5]2024-25 Final'!$B$19:$AA$164,26,0),0) -> 0 | U78: 0 | V78: n | Y78: 0 | AA78: 0
A79: 61 | B79: 37504 | D79: LYNDEN | E79: =IFERROR(VLOOKUP(B79,[5]Enrollment!$A$2:$G$147,5,0),0) -> 104 | F79: 48847 | G79: =IFERROR(VLOOKUP(B79,[5]Enrollment!$A$2:$G$147,6,0),0) -> 19 | H79: 2231 | I79: =IFERROR(VLOOKUP(B79,[5]Enrollment!$A$2:$G$147,7,0),0) -> 22 | J79: 10333 | K79: 61411 | L79: =IF(E79>$E$17,_xlfn.IFNA(VLOOKUP(B79,'[5]other funds ftr 2025'!A:I,9,FALSE),0),1) -> 1 | M79: 61411 | N79: =1+IF(ISNA(VLOOKUP(B79,'[5]Rural and Low Income 25-26'!$A:$B,2,FALSE)),0,$N$17) -> 1 | O79: 61411 | R79: 0 | S79: 61411 | T79: =IFERROR(VLOOKUP(B79,'[5]2024-25 Final'!$B$19:$AA$164,26,0),0) -> 75831 | U79: -14420 | V79: y | Y79: 1250 | AA79: 62661
A80: 62 | B80: 39120 | D80: MABTON | E80: =IFERROR(VLOOKUP(B80,[5]Enrollment!$A$2:$G$147,5,0),0) -> 443 | F80: 208068 | G80: =IFERROR(VLOOKUP(B80,[5]Enrollment!$A$2:$G$147,6,0),0) -> 148 | H80: 17378 | I80: =IFERROR(VLOOKUP(B80,[5]Enrollment!$A$2:$G$147,7,0),0) -> 211 | J80: 99103 | K80: 324549 | L80: =IF(E80>$E$17,_xlfn.IFNA(VLOOKUP(B80,'[5]other funds ftr 2025'!A:I,9,FALSE),0),1) -> 1.1 | M80: 357004 | N80: =1+IF(ISNA(VLOOKUP(B80,'[5]Rural and Low Income 25-26'!$A:$B,2,FALSE)),0,$N$17) -> 1 | O80: 357004 | R80: 0 | S80: 357004 | T80: =IFERROR(VLOOKUP(B80,'[5]2024-25 Final'!$B$19:$AA$164,26,0),0) -> 314847 | U80: 42157 | V80: y | Y80: 2000 | AA80: 359004
A81: 63 | B81: 04019 | D81: MANSON | E81: =IFERROR(VLOOKUP(B81,[5]Enrollment!$A$2:$G$147,5,0),0) -> 107 | F81: 50256 | G81: =IFERROR(VLOOKUP(B81,[5]Enrollment!$A$2:$G$147,6,0),0) -> 19 | H81: 2231 | I81: =IFERROR(VLOOKUP(B81,[5]Enrollment!$A$2:$G$147,7,0),0) -> 40 | J81: 18787 | K81: 71274 | L81: =IF(E81>$E$17,_xlfn.IFNA(VLOOKUP(B81,'[5]other funds ftr 2025'!A:I,9,FALSE),0),1) -> 1.05 | M81: 74838 | N81: =1+IF(ISNA(VLOOKUP(B81,'[5]Rural and Low Income 25-26'!$A:$B,2,FALSE)),0,$N$17) -> 1 | O81: 74838 | R81: 0 | S81: 74838 | T81: =IFERROR(VLOOKUP(B81,'[5]2024-25 Final'!$B$19:$AA$164,26,0),0) -> 82909 | U81: -8071 | V81: y | Y81: 1250 | AA81: 76088
A82: 64 | B82: 33207 | D82: MARY WALKER | E82: =IFERROR(VLOOKUP(B82,[5]Enrollment!$A$2:$G$147,5,0),0) -> 12 | F82: 5636 | G82: =IFERROR(VLOOKUP(B82,[5]Enrollment!$A$2:$G$147,6,0),0) -> 9 | H82: 1057 | I82: =IFERROR(VLOOKUP(B82,[5]Enrollment!$A$2:$G$147,7,0),0) -> 0 | J82: 0 | K82: 6693 | L82: =IF(E82>$E$17,_xlfn.IFNA(VLOOKUP(B82,'[5]other funds ftr 2025'!A:I,9,FALSE),0),1) -> 0 | M82: 6693 | N82: =1+IF(ISNA(VLOOKUP(B82,'[5]Rural and Low Income 25-26'!$A:$B,2,FALSE)),0,$N$17) -> 1.1 | O82: 0 | R82: 0 | S82: 0 | T82: =IFERROR(VLOOKUP(B82,'[5]2024-25 Final'!$B$19:$AA$164,26,0),0) -> 0 | U82: 0 | V82: n | Y82: 0 | AA82: 0
A83: 65 | B83: 31025 | D83: MARYSVILLE | E83: =IFERROR(VLOOKUP(B83,[5]Enrollment!$A$2:$G$147,5,0),0) -> 328 | F83: =IF(E83>=10,ROUND(E83*$G$3,0),0) -> 154055 | G83: =IFERROR(VLOOKUP(B83,[5]Enrollment!$A$2:$G$147,6,0),0) -> 111 | H83: =IF(E83>=$E$17,ROUND(G83*$G$3*$G$17,0),0) -> 13034 | I83: =IFERROR(VLOOKUP(B83,[5]Enrollment!$A$2:$G$147,7,0),0) -> 159 | J83: =IF(E83>=$E$17,ROUND(I83*$G$3*$I$17,0),0) -> 74679 | K83: =+F83+H83+J83 -> 241768 | L83: =IF(E83>$E$17,_xlfn.IFNA(VLOOKUP(B83,'[5]other funds ftr 2025'!A:I,9,FALSE),0),1) -> 1 | M83: =IF(L83=0,K83,ROUND(K83*L83,0)) -> 241768 | N83: =1+IF(ISNA(VLOOKUP(B83,'[5]Rural and Low Income 25-26'!$A:$B,2,FALSE)),0,$N$17) -> 1 | O83: =IF(V83="y",ROUND(M83*N83,0),0) -> 241768 | R83: 0 | S83: =O83+R83 -> 241768 | T83: =IFERROR(VLOOKUP(B83,'[5]2024-25 Final'!$B$19:$AA$164,26,0),0) -> 256653 | U83: =S83-T83 -> -14885 | V83: y | Y83: =IF(V83="Y",IF(E83<=99,750,IF(AND(E83>=100,E83<=399),1250,2000)),0) -> 1250 | AA83: =IF(W83=1, 0, Y83+S83+Z83) -> 243018
A84: 66 | B84: 37505 | D84: MERIDIAN | E84: =IFERROR(VLOOKUP(B84,[5]Enrollment!$A$2:$G$147,5,0),0) -> 30 | F84: 14090 | G84: =IFERROR(VLOOKUP(B84,[5]Enrollment!$A$2:$G$147,6,0),0) -> 14 | H84: 1644 | I84: =IFERROR(VLOOKUP(B84,[5]Enrollment!$A$2:$G$147,7,0),0) -> 8 | J84: 3757 | K84: 19491 | L84: =IF(E84>$E$17,_xlfn.IFNA(VLOOKUP(B84,'[5]other funds ftr 2025'!A:I,9,FALSE),0),1) -> 1 | M84: 19491 | N84: =1+IF(ISNA(VLOOKUP(B84,'[5]Rural and Low Income 25-26'!$A:$B,2,FALSE)),0,$N$17) -> 1 | O84: 19491 | R84: 0 | S84: 19491 | T84: =IFERROR(VLOOKUP(B84,'[5]2024-25 Final'!$B$19:$AA$164,26,0),0) -> 34293 | U84: -14802 | V84: y | Y84: 750 | AA84: 20241
A85: 67 | B85: 31103 | D85: MONROE | E85: =IFERROR(VLOOKUP(B85,[5]Enrollment!$A$2:$G$147,5,0),0) -> 13 | F85: 6106 | G85: =IFERROR(VLOOKUP(B85,[5]Enrollment!$A$2:$G$147,6,0),0) -> 7 | H85: 822 | I85: =IFERROR(VLOOKUP(B85,[5]Enrollment!$A$2:$G$147,7,0),0) -> 3 | J85: 1409 | K85: 8337 | L85: =IF(E85>$E$17,_xlfn.IFNA(VLOOKUP(B85,'[5]other funds ftr 2025'!A:I,9,FALSE),0),1) -> 0 | M85: 8337 | N85: =1+IF(ISNA(VLOOKUP(B85,'[5]Rural and Low Income 25-26'!$A:$B,2,FALSE)),0,$N$17) -> 1 | O85: 0 | R85: 0 | S85: 0 | T85: =IFERROR(VLOOKUP(B85,'[5]2024-25 Final'!$B$19:$AA$164,26,0),0) -> 0 | U85: 0 | V85: n | X85: Y | Y85: 0 | AA85: 0
A86: 68 | B86: 13161 | D86: MOSES LAKE | E86: =IFERROR(VLOOKUP(B86,[5]Enrollment!$A$2:$G$147,5,0),0) -> 425 | F86: 199614 | G86: =IFERROR(VLOOKUP(B86,[5]Enrollment!$A$2:$G$147,6,0),0) -> 184 | H86: 21605 | I86: =IFERROR(VLOOKUP(B86,[5]Enrollment!$A$2:$G$147,7,0),0) -> 83 | J86: 38983 | K86: 260202 | L86: =IF(E86>$E$17,_xlfn.IFNA(VLOOKUP(B86,'[5]other funds ftr 2025'!A:I,9,FALSE),0),1) -> 1 | M86: 260202 | N86: =1+IF(ISNA(VLOOKUP(B86,'[5]Rural and Low Income 25-26'!$A:$B,2,FALSE)),0,$N$17) -> 1 | O86: 260202 | R86: 0 | S86: 260202 | T86: =IFERROR(VLOOKUP(B86,'[5]2024-25 Final'!$B$19:$AA$164,26,0),0) -> 372249 | U86: -112047 | V86: y | X86: Y | Y86: 2000 | Z86: 120000 | AA86: 382202
A87: 69 | B87: 21206 | D87: MOSSYROCK | E87: =IFERROR(VLOOKUP(B87,[5]Enrollment!$A$2:$G$147,5,0),0) -> 54 | F87: 25363 | G87: =IFERROR(VLOOKUP(B87,[5]Enrollment!$A$2:$G$147,6,0),0) -> 12 | H87: 1409 | I87: =IFERROR(VLOOKUP(B87,[5]Enrollment!$A$2:$G$147,7,0),0) -> 26 | J87: 12212 | K87: 38984 | L87: =IF(E87>$E$17,_xlfn.IFNA(VLOOKUP(B87,'[5]other funds ftr 2025'!A:I,9,FALSE),0),1) -> 1 | M87: 38984 | N87: =1+IF(ISNA(VLOOKUP(B87,'[5]Rural and Low Income 25-26'!$A:$B,2,FALSE)),0,$N$17) -> 1 | O87: 38984 | R87: 0 | S87: 38984 | T87: =IFERROR(VLOOKUP(B87,'[5]2024-25 Final'!$B$19:$AA$164,26,0),0) -> 19912 | U87: 19072 | V87: y | Y87: 750 | AA87: 39734
A88: 70 | B88: 39209 | D88: MOUNT ADAMS | E88: =IFERROR(VLOOKUP(B88,[5]Enrollment!$A$2:$G$147,5,0),0) -> 337 | F88: 158282 | G88: =IFERROR(VLOOKUP(B88,[5]Enrollment!$A$2:$G$147,6,0),0) -> 95 | H88: 11155 | I88: =IFERROR(VLOOKUP(B88,[5]Enrollment!$A$2:$G$147,7,0),0) -> 136 | J88: 63877 | K88: 233314 | L88: =IF(E88>$E$17,_xlfn.IFNA(VLOOKUP(B88,'[5]other funds ftr 2025'!A:I,9,FALSE),0),1) -> 1.1 | M88: 256645 | N88: =1+IF(ISNA(VLOOKUP(B88,'[5]Rural and Low Income 25-26'!$A:$B,2,FALSE)),0,$N$17) -> 1 | O88: 256645 | R88: 0 | S88: 256645 | T88: =IFERROR(VLOOKUP(B88,'[5]2024-25 Final'!$B$19:$AA$164,26,0),0) -> 196632 | U88: 60013 | V88: y | Y88: 1250 | AA88: 257895
A89: 71 | B89: 37507 | D89: MOUNT BAKER | E89: =IFERROR(VLOOKUP(B89,[5]Enrollment!$A$2:$G$147,5,0),0) -> 21 | F89: 9863 | G89: =IFERROR(VLOOKUP(B89,[5]Enrollment!$A$2:$G$147,6,0),0) -> 8 | H89: 939 | I89: =IFERROR(VLOOKUP(B89,[5]Enrollment!$A$2:$G$147,7,0),0) -> 6 | J89: 2818 | K89: 13620 | L89: =IF(E89>$E$17,_xlfn.IFNA(VLOOKUP(B89,'[5]other funds ftr 2025'!A:I,9,FALSE),0),1) -> 0.95 | M89: 12939 | N89: =1+IF(ISNA(VLOOKUP(B89,'[5]Rural and Low Income 25-26'!$A:$B,2,FALSE)),0,$N$17) -> 1 | O89: 12939 | R89: 0 | S89: 12939 | T89: =IFERROR(VLOOKUP(B89,'[5]2024-25 Final'!$B$19:$AA$164,26,0),0) -> 22110 | U89: -9171 | V89: y | Y89: 750 | AA89: 13689
A90: 72 | B90: 29320 | D90: MOUNT VERNON | E90: =IFERROR(VLOOKUP(B90,[5]Enrollment!$A$2:$G$147,5,0),0) -> 1722 | F90: 808790 | G90: =IFERROR(VLOOKUP(B90,[5]Enrollment!$A$2:$G$147,6,0),0) -> 748 | H90: 87830 | I90: =IFERROR(VLOOKUP(B90,[5]Enrollment!$A$2:$G$147,7,0),0) -> 484 | J90: 227325 | K90: 1123945 | L90: =IF(E90>$E$17,_xlfn.IFNA(VLOOKUP(B90,'[5]other funds ftr 2025'!A:I,9,FALSE),0),1) -> 1.1 | M90: 1236340 | N90: =1+IF(ISNA(VLOOKUP(B90,'[5]Rural and Low Income 25-26'!$A:$B,2,FALSE)),0,$N$17) -> 1 | O90: 1236340 | R90: 0 | S90: 1236340 | T90: =IFERROR(VLOOKUP(B90,'[5]2024-25 Final'!$B$19:$AA$164,26,0),0) -> 1466597 | U90: -230257 | V90: y | Y90: 2000 | AA90: 1238340
A91: 73 | B91: 17903 | D91: MUCKLESHOOT INDIAN TRIBE | E91: =IFERROR(VLOOKUP(B91,[5]Enrollment!$A$2:$G$147,5,0),0) -> 0 | F91: 0 | G91: =IFERROR(VLOOKUP(B91,[5]Enrollment!$A$2:$G$147,6,0),0) -> 0 | H91: 0 | I91: =IFERROR(VLOOKUP(B91,[5]Enrollment!$A$2:$G$147,7,0),0) -> 0 | J91: 0 | K91: 0 | L91: =IF(E91>$E$17,_xlfn.IFNA(VLOOKUP(B91,'[5]other funds ftr 2025'!A:I,9,FALSE),0),1) -> 1 | M91: 0 | N91: =1+IF(ISNA(VLOOKUP(B91,'[5]Rural and Low Income 25-26'!$A:$B,2,FALSE)),0,$N$17) -> 1 | O91: 0 | R91: 0 | S91: 0 | T91: =IFERROR(VLOOKUP(B91,'[5]2024-25 Final'!$B$19:$AA$164,26,0),0) -> 0 | U91: 0 | V91: n | Y91: 0 | AA91: 0
A92: 74 | B92: 31006 | D92: MUKILTEO | E92: =IFERROR(VLOOKUP(B92,[5]Enrollment!$A$2:$G$147,5,0),0) -> 29 | F92: 13621 | G92: =IFERROR(VLOOKUP(B92,[5]Enrollment!$A$2:$G$147,6,0),0) -> 6 | H92: 705 | I92: =IFERROR(VLOOKUP(B92,[5]Enrollment!$A$2:$G$147,7,0),0) -> 12 | J92: 5636 | K92: 19962 | L92: =IF(E92>$E$17,_xlfn.IFNA(VLOOKUP(B92,'[5]other funds ftr 2025'!A:I,9,FALSE),0),1) -> 0 | M92: 19962 | N92: =1+IF(ISNA(VLOOKUP(B92,'[5]Rural and Low Income 25-26'!$A:$B,2,FALSE)),0,$N$17) -> 1 | O92: 0 | R92: 0 | S92: 0 | T92: =IFERROR(VLOOKUP(B92,'[5]2024-25 Final'!$B$19:$AA$164,26,0),0) -> 0 | U92: 0 | V92: n | Y92: 0 | AA92: 0
A93: 75 | B93: 39003 | D93: NACHES VALLEY | E93: =IFERROR(VLOOKUP(B93,[5]Enrollment!$A$2:$G$147,5,0),0) -> 99 | F93: 46498 | G93: =IFERROR(VLOOKUP(B93,[5]Enrollment!$A$2:$G$147,6,0),0) -> 54 | H93: 6341 | I93: =IFERROR(VLOOKUP(B93,[5]Enrollment!$A$2:$G$147,7,0),0) -> 30 | J93: 14090 | K93: 66929 | L93: =IF(E93>$E$17,_xlfn.IFNA(VLOOKUP(B93,'[5]other funds ftr 2025'!A:I,9,FALSE),0),1) -> 0 | M93: 66929 | N93: =1+IF(ISNA(VLOOKUP(B93,'[5]Rural and Low Income 25-26'!$A:$B,2,FALSE)),0,$N$17) -> 1 | O93: 66929 | R93: 0 | S93: 66929 | T93: =IFERROR(VLOOKUP(B93,'[5]2024-25 Final'!$B$19:$AA$164,26,0),0) -> 0 | U93: 66929 | V93: y | Y93: 750 | AA93: 67679
